{"text_format":"1","workbook":"xlsx","n_sheets":9,"sheets":["Chessboard","Moves","Series","Rules","Lessons","Languages","Pieces","Games","Numerical"],"not_rendered":{"charts":3,"images":26,"macros":1,"external_links":0,"defined_names":154,"comments":0,"pivot_tables":0},"unopened":[],"bounds":{"document_bytes":16777216,"sheet_cells":100000,"rows_first":2000,"rows_last":500,"rows_between":2000,"halvings":0,"cell_chars":16384,"cell_head_chars":4096},"cells_cut":0,"cells_raw":0,"read":"whole","date_system":"1900"}

{"sheet":"Chessboard","index":0,"n_rows":48,"n_cols":19,"rows_kept":48,"cut":false,"hidden":false,"merged":[[6,12,12,13],[16,12,17,13],[1,15,1,17],[5,12,5,13],[10,1,15,2],[36,5,36,10],[18,12,18,13],[19,12,19,13],[20,12,20,13],[21,12,21,13],[22,12,22,13],[23,12,23,13],[24,12,24,13],[25,12,25,13],[32,5,32,10],[33,5,33,10],[34,5,34,10],[35,5,35,10]]}
[]
[null,{"$f":"INDEX(TablaIdiomas[],1,miIdioma)","v":"Aprende Ajedrez"},null,null,null,null,null,null,null,null,null,null,{"$f":"INDEX(TablaIdiomas[],27,miIdioma)","v":"Turno"},{"$f":"INDEX(TablaIdiomas[],28,miIdioma)","v":"Pieza Casilla"},null,"Notación Numérica",null,null,"i"]
[null,{"$f":"INDEX(TablaIdiomas[],2,miIdioma) & \" (v2.1)\"","v":"con Excel (v2.1)"},null,null,null,null,null,null,null,null,null,null,{"$f":"INDEX(TablaIdiomas[],IF(MOD(INT(miPiezaMovimiento/2),2)=0,29,30),miIdioma)","v":"Blancas"},{"$f":"IF(miPosA>0,LEFT(miSeriePieza,2),\"--\") & \" \" & IF(valX=0,\"--\",IF(Tipo_Notación=1, IF(miCasilla>0,miCasilla,miPosB), miPosCoordenadas))","v":"-- --"},null,{"$f":"INT(miPiezaMovimiento/4)+1","v":1},{"$f":"INDEX(TablaIdiomas[],29,miIdioma)","v":"Blancas"},{"$f":"INDEX(TablaIdiomas[],30,miIdioma)","v":"Negras"},"?"]
[null,null,null,null,null,null,null,null,null,null,null,null,null,null,null,1,{"$f":"IF(Botón_Nota_Modo=\"?\",\nIFERROR(INDEX(CHOOSE(Tipo_Notación,miJuegoNumérico,miJuegoAlgebraico,miJuegoFiguras),$P4,1) & \"\",\"\"),\nIFERROR(INDEX(CHOOSE(Tipo_Notación,miPartidaNumérica,miPartidaAlgebraica,miPartidaFiguras),$P4,1) & \"\",\"\"))","v":""},{"$f":"IF(Botón_Nota_Modo=\"?\",\nIFERROR(INDEX(CHOOSE(Tipo_Notación,miJuegoNumérico,miJuegoAlgebraico,miJuegoFiguras),$P4,2) & \"\",\"\"),\nIFERROR(INDEX(CHOOSE(Tipo_Notación,miPartidaNumérica,miPartidaAlgebraica,miPartidaFiguras),$P4,2) & \"\",\"\"))","v":""},9]
[null,{"$f":"INDEX(TablaIdiomas[],134,miIdioma)","v":"Idioma"},null,null,null,null,null,null,null,null,null,null,{"$f":"INDEX(TablaIdiomas[],191,miIdioma) & \" \" & miLección","v":"Lección 0"},{"$f":"INDEX(TablaIdiomas[],192,miIdioma) & \" \" & miTema","v":"Sección 0"},"O",{"$f":"IF(OR(P4=\"\",P4>=100),\"\",P4+1)","v":2},{"$f":"IF(Botón_Nota_Modo=\"?\",\nIFERROR(INDEX(CHOOSE(Tipo_Notación,miJuegoNumérico,miJuegoAlgebraico,miJuegoFiguras),$P5,1) & \"\",\"\"),\nIFERROR(INDEX(CHOOSE(Tipo_Notación,miPartidaNumérica,miPartidaAlgebraica,miPartidaFiguras),$P5,1) & \"\",\"\"))","v":""},{"$f":"IF(Botón_Nota_Modo=\"?\",\nIFERROR(INDEX(CHOOSE(Tipo_Notación,miJuegoNumérico,miJuegoAlgebraico,miJuegoFiguras),$P5,2) & \"\",\"\"),\nIFERROR(INDEX(CHOOSE(Tipo_Notación,miPartidaNumérica,miPartidaAlgebraica,miPartidaFiguras),$P5,2) & \"\",\"\"))","v":""},7]
[null,{"$f":"INDEX(TablaIdiomas[],3,miIdioma)","v":"Jugador"},null,null,null,null,null,null,null,null,null,null,"Todas las lecciones",null,9,{"$f":"IF(OR(P5=\"\",P5>=100),\"\",P5+1)","v":3},{"$f":"IF(Botón_Nota_Modo=\"?\",\nIFERROR(INDEX(CHOOSE(Tipo_Notación,miJuegoNumérico,miJuegoAlgebraico,miJuegoFiguras),$P6,1) & \"\",\"\"),\nIFERROR(INDEX(CHOOSE(Tipo_Notación,miPartidaNumérica,miPartidaAlgebraica,miPartidaFiguras),$P6,1) & \"\",\"\"))","v":""},{"$f":"IF(Botón_Nota_Modo=\"?\",\nIFERROR(INDEX(CHOOSE(Tipo_Notación,miJuegoNumérico,miJuegoAlgebraico,miJuegoFiguras),$P6,2) & \"\",\"\"),\nIFERROR(INDEX(CHOOSE(Tipo_Notación,miPartidaNumérica,miPartidaAlgebraica,miPartidaFiguras),$P6,2) & \"\",\"\"))","v":""},5]
[null,{"$f":"INDEX(TablaIdiomas[],5,miIdioma)","v":"Aciertos"},{"$f":"IFERROR(miNúmVálidas/(miNúmVálidas+miNúmInválidas),0)","v":0},null,null,null,null,null,null,null,null,null,"¡Aprende Ajedrez con Excel!\r\n\r\nElige una de las lecciones con el desplegable de la celda M6. O mejor, toca el botón de abajo a la derecha, celda N14, para ir a la Lección 1.",null,5,4,{"$f":"IF(Botón_Nota_Modo=\"?\",\nIFERROR(INDEX(CHOOSE(Tipo_Notación,miJuegoNumérico,miJuegoAlgebraico,miJuegoFiguras),$P7,1) & \"\",\"\"),\nIFERROR(INDEX(CHOOSE(Tipo_Notación,miPartidaNumérica,miPartidaAlgebraica,miPartidaFiguras),$P7,1) & \"\",\"\"))","v":""},{"$f":"IF(Botón_Nota_Modo=\"?\",\nIFERROR(INDEX(CHOOSE(Tipo_Notación,miJuegoNumérico,miJuegoAlgebraico,miJuegoFiguras),$P7,2) & \"\",\"\"),\nIFERROR(INDEX(CHOOSE(Tipo_Notación,miPartidaNumérica,miPartidaAlgebraica,miPartidaFiguras),$P7,2) & \"\",\"\"))","v":""},6]
[null,{"$f":"INDEX(TablaIdiomas[],6,miIdioma)","v":"Válidas"},0,null,null,null,null,null,null,null,null,null,null,null,6,5,{"$f":"IF(Botón_Nota_Modo=\"?\",\nIFERROR(INDEX(CHOOSE(Tipo_Notación,miJuegoNumérico,miJuegoAlgebraico,miJuegoFiguras),$P8,1) & \"\",\"\"),\nIFERROR(INDEX(CHOOSE(Tipo_Notación,miPartidaNumérica,miPartidaAlgebraica,miPartidaFiguras),$P8,1) & \"\",\"\"))","v":""},{"$f":"IF(Botón_Nota_Modo=\"?\",\nIFERROR(INDEX(CHOOSE(Tipo_Notación,miJuegoNumérico,miJuegoAlgebraico,miJuegoFiguras),$P8,2) & \"\",\"\"),\nIFERROR(INDEX(CHOOSE(Tipo_Notación,miPartidaNumérica,miPartidaAlgebraica,miPartidaFiguras),$P8,2) & \"\",\"\"))","v":""},8]
[null,{"$f":"INDEX(TablaIdiomas[],7,miIdioma)","v":"Inválidas"},0,null,null,null,null,null,null,null,null,null,null,null,":",6,{"$f":"IF(Botón_Nota_Modo=\"?\",\nIFERROR(INDEX(CHOOSE(Tipo_Notación,miJuegoNumérico,miJuegoAlgebraico,miJuegoFiguras),$P9,1) & \"\",\"\"),\nIFERROR(INDEX(CHOOSE(Tipo_Notación,miPartidaNumérica,miPartidaAlgebraica,miPartidaFiguras),$P9,1) & \"\",\"\"))","v":""},{"$f":"IF(Botón_Nota_Modo=\"?\",\nIFERROR(INDEX(CHOOSE(Tipo_Notación,miJuegoNumérico,miJuegoAlgebraico,miJuegoFiguras),$P9,2) & \"\",\"\"),\nIFERROR(INDEX(CHOOSE(Tipo_Notación,miPartidaNumérica,miPartidaAlgebraica,miPartidaFiguras),$P9,2) & \"\",\"\"))","v":""},":"]
[null,null,null,null,null,null,null,null,null,null,null,null,null,null,null,7,{"$f":"IF(Botón_Nota_Modo=\"?\",\nIFERROR(INDEX(CHOOSE(Tipo_Notación,miJuegoNumérico,miJuegoAlgebraico,miJuegoFiguras),$P10,1) & \"\",\"\"),\nIFERROR(INDEX(CHOOSE(Tipo_Notación,miPartidaNumérica,miPartidaAlgebraica,miPartidaFiguras),$P10,1) & \"\",\"\"))","v":""},{"$f":"IF(Botón_Nota_Modo=\"?\",\nIFERROR(INDEX(CHOOSE(Tipo_Notación,miJuegoNumérico,miJuegoAlgebraico,miJuegoFiguras),$P10,2) & \"\",\"\"),\nIFERROR(INDEX(CHOOSE(Tipo_Notación,miPartidaNumérica,miPartidaAlgebraica,miPartidaFiguras),$P10,2) & \"\",\"\"))","v":""}]
[null,"Aprende a jugar ajedrez con 27 lecciones en una hoja de cálculo de Excel.\r\n\r\nComienza por la Lección 1, tocando el botón en N14.",null,null,null,null,null,null,null,null,null,null,null,null," ",8,{"$f":"IF(Botón_Nota_Modo=\"?\",\nIFERROR(INDEX(CHOOSE(Tipo_Notación,miJuegoNumérico,miJuegoAlgebraico,miJuegoFiguras),$P11,1) & \"\",\"\"),\nIFERROR(INDEX(CHOOSE(Tipo_Notación,miPartidaNumérica,miPartidaAlgebraica,miPartidaFiguras),$P11,1) & \"\",\"\"))","v":""},{"$f":"IF(Botón_Nota_Modo=\"?\",\nIFERROR(INDEX(CHOOSE(Tipo_Notación,miJuegoNumérico,miJuegoAlgebraico,miJuegoFiguras),$P11,2) & \"\",\"\"),\nIFERROR(INDEX(CHOOSE(Tipo_Notación,miPartidaNumérica,miPartidaAlgebraica,miPartidaFiguras),$P11,2) & \"\",\"\"))","v":""}]
[null,null,null,null,null,null,null,null,null,null,null,null,null,null," ",9,{"$f":"IF(Botón_Nota_Modo=\"?\",\nIFERROR(INDEX(CHOOSE(Tipo_Notación,miJuegoNumérico,miJuegoAlgebraico,miJuegoFiguras),$P12,1) & \"\",\"\"),\nIFERROR(INDEX(CHOOSE(Tipo_Notación,miPartidaNumérica,miPartidaAlgebraica,miPartidaFiguras),$P12,1) & \"\",\"\"))","v":""},{"$f":"IF(Botón_Nota_Modo=\"?\",\nIFERROR(INDEX(CHOOSE(Tipo_Notación,miJuegoNumérico,miJuegoAlgebraico,miJuegoFiguras),$P12,2) & \"\",\"\"),\nIFERROR(INDEX(CHOOSE(Tipo_Notación,miPartidaNumérica,miPartidaAlgebraica,miPartidaFiguras),$P12,2) & \"\",\"\"))","v":""}]
[null,null,null,null,null,null,null,null,null,null,null,null,null,null," ",10,{"$f":"IF(Botón_Nota_Modo=\"?\",\nIFERROR(INDEX(CHOOSE(Tipo_Notación,miJuegoNumérico,miJuegoAlgebraico,miJuegoFiguras),$P13,1) & \"\",\"\"),\nIFERROR(INDEX(CHOOSE(Tipo_Notación,miPartidaNumérica,miPartidaAlgebraica,miPartidaFiguras),$P13,1) & \"\",\"\"))","v":""},{"$f":"IF(Botón_Nota_Modo=\"?\",\nIFERROR(INDEX(CHOOSE(Tipo_Notación,miJuegoNumérico,miJuegoAlgebraico,miJuegoFiguras),$P13,2) & \"\",\"\"),\nIFERROR(INDEX(CHOOSE(Tipo_Notación,miPartidaNumérica,miPartidaAlgebraica,miPartidaFiguras),$P13,2) & \"\",\"\"))","v":""}]
[null,null,null,null,null,null,null,null,null,null,null,null,9,4,null,11,{"$f":"IF(Botón_Nota_Modo=\"?\",\nIFERROR(INDEX(CHOOSE(Tipo_Notación,miJuegoNumérico,miJuegoAlgebraico,miJuegoFiguras),$P14,1) & \"\",\"\"),\nIFERROR(INDEX(CHOOSE(Tipo_Notación,miPartidaNumérica,miPartidaAlgebraica,miPartidaFiguras),$P14,1) & \"\",\"\"))","v":""},{"$f":"IF(Botón_Nota_Modo=\"?\",\nIFERROR(INDEX(CHOOSE(Tipo_Notación,miJuegoNumérico,miJuegoAlgebraico,miJuegoFiguras),$P14,2) & \"\",\"\"),\nIFERROR(INDEX(CHOOSE(Tipo_Notación,miPartidaNumérica,miPartidaAlgebraica,miPartidaFiguras),$P14,2) & \"\",\"\"))","v":""}]
[null,null,null,null,null,null,null,null,null,null,null,null,null,null," ",12,{"$f":"IF(Botón_Nota_Modo=\"?\",\nIFERROR(INDEX(CHOOSE(Tipo_Notación,miJuegoNumérico,miJuegoAlgebraico,miJuegoFiguras),$P15,1) & \"\",\"\"),\nIFERROR(INDEX(CHOOSE(Tipo_Notación,miPartidaNumérica,miPartidaAlgebraica,miPartidaFiguras),$P15,1) & \"\",\"\"))","v":""},{"$f":"IF(Botón_Nota_Modo=\"?\",\nIFERROR(INDEX(CHOOSE(Tipo_Notación,miJuegoNumérico,miJuegoAlgebraico,miJuegoFiguras),$P15,2) & \"\",\"\"),\nIFERROR(INDEX(CHOOSE(Tipo_Notación,miPartidaNumérica,miPartidaAlgebraica,miPartidaFiguras),$P15,2) & \"\",\"\"))","v":""}]
[null,null,null,null,null,null,null,null,null,null,null,null,{"$f":"INDEX(TablaIdiomas[],31,miIdioma)","v":"Partida"},0,"n",13,{"$f":"IF(Botón_Nota_Modo=\"?\",\nIFERROR(INDEX(CHOOSE(Tipo_Notación,miJuegoNumérico,miJuegoAlgebraico,miJuegoFiguras),$P16,1) & \"\",\"\"),\nIFERROR(INDEX(CHOOSE(Tipo_Notación,miPartidaNumérica,miPartidaAlgebraica,miPartidaFiguras),$P16,1) & \"\",\"\"))","v":""},{"$f":"IF(Botón_Nota_Modo=\"?\",\nIFERROR(INDEX(CHOOSE(Tipo_Notación,miJuegoNumérico,miJuegoAlgebraico,miJuegoFiguras),$P16,2) & \"\",\"\"),\nIFERROR(INDEX(CHOOSE(Tipo_Notación,miPartidaNumérica,miPartidaAlgebraica,miPartidaFiguras),$P16,2) & \"\",\"\"))","v":""}]
[null,null,null,null,null,null,null,null,null,null,null,null,"Puedes estudiar partidas a partir de la lección 17",null,9,14,{"$f":"IF(Botón_Nota_Modo=\"?\",\nIFERROR(INDEX(CHOOSE(Tipo_Notación,miJuegoNumérico,miJuegoAlgebraico,miJuegoFiguras),$P17,1) & \"\",\"\"),\nIFERROR(INDEX(CHOOSE(Tipo_Notación,miPartidaNumérica,miPartidaAlgebraica,miPartidaFiguras),$P17,1) & \"\",\"\"))","v":""},{"$f":"IF(Botón_Nota_Modo=\"?\",\nIFERROR(INDEX(CHOOSE(Tipo_Notación,miJuegoNumérico,miJuegoAlgebraico,miJuegoFiguras),$P17,2) & \"\",\"\"),\nIFERROR(INDEX(CHOOSE(Tipo_Notación,miPartidaNumérica,miPartidaAlgebraica,miPartidaFiguras),$P17,2) & \"\",\"\"))","v":""}]
[null,null,{"$f":"INDEX(TablaIdiomas[],8,miIdioma)","v":"Movimiento"},null,null,null,null,null,null,null,null,null,null,null,5,15,{"$f":"IF(Botón_Nota_Modo=\"?\",\nIFERROR(INDEX(CHOOSE(Tipo_Notación,miJuegoNumérico,miJuegoAlgebraico,miJuegoFiguras),$P18,1) & \"\",\"\"),\nIFERROR(INDEX(CHOOSE(Tipo_Notación,miPartidaNumérica,miPartidaAlgebraica,miPartidaFiguras),$P18,1) & \"\",\"\"))","v":""},{"$f":"IF(Botón_Nota_Modo=\"?\",\nIFERROR(INDEX(CHOOSE(Tipo_Notación,miJuegoNumérico,miJuegoAlgebraico,miJuegoFiguras),$P18,2) & \"\",\"\"),\nIFERROR(INDEX(CHOOSE(Tipo_Notación,miPartidaNumérica,miPartidaAlgebraica,miPartidaFiguras),$P18,2) & \"\",\"\"))","v":""}]
[null,{"$f":"INDEX(TablaIdiomas[],9,miIdioma)","v":"Válido"},"Sí",null,null,null,null,null,null,null,null,null,"",null,6,16,{"$f":"IF(Botón_Nota_Modo=\"?\",\nIFERROR(INDEX(CHOOSE(Tipo_Notación,miJuegoNumérico,miJuegoAlgebraico,miJuegoFiguras),$P19,1) & \"\",\"\"),\nIFERROR(INDEX(CHOOSE(Tipo_Notación,miPartidaNumérica,miPartidaAlgebraica,miPartidaFiguras),$P19,1) & \"\",\"\"))","v":""},{"$f":"IF(Botón_Nota_Modo=\"?\",\nIFERROR(INDEX(CHOOSE(Tipo_Notación,miJuegoNumérico,miJuegoAlgebraico,miJuegoFiguras),$P19,2) & \"\",\"\"),\nIFERROR(INDEX(CHOOSE(Tipo_Notación,miPartidaNumérica,miPartidaAlgebraica,miPartidaFiguras),$P19,2) & \"\",\"\"))","v":""}]
[null,{"$f":"INDEX(TablaIdiomas[],10,miIdioma)","v":"Último"},"Sí",null,null,null,null,null,null,null,null,null,"",null,":",17,{"$f":"IF(Botón_Nota_Modo=\"?\",\nIFERROR(INDEX(CHOOSE(Tipo_Notación,miJuegoNumérico,miJuegoAlgebraico,miJuegoFiguras),$P20,1) & \"\",\"\"),\nIFERROR(INDEX(CHOOSE(Tipo_Notación,miPartidaNumérica,miPartidaAlgebraica,miPartidaFiguras),$P20,1) & \"\",\"\"))","v":""},{"$f":"IF(Botón_Nota_Modo=\"?\",\nIFERROR(INDEX(CHOOSE(Tipo_Notación,miJuegoNumérico,miJuegoAlgebraico,miJuegoFiguras),$P20,2) & \"\",\"\"),\nIFERROR(INDEX(CHOOSE(Tipo_Notación,miPartidaNumérica,miPartidaAlgebraica,miPartidaFiguras),$P20,2) & \"\",\"\"))","v":""}]
[null,{"$f":"INDEX(TablaIdiomas[],11,miIdioma)","v":"Piezas"},"Sí",null,null,null,null,null,null,null,null,null,"",null,null,18,{"$f":"IF(Botón_Nota_Modo=\"?\",\nIFERROR(INDEX(CHOOSE(Tipo_Notación,miJuegoNumérico,miJuegoAlgebraico,miJuegoFiguras),$P21,1) & \"\",\"\"),\nIFERROR(INDEX(CHOOSE(Tipo_Notación,miPartidaNumérica,miPartidaAlgebraica,miPartidaFiguras),$P21,1) & \"\",\"\"))","v":""},{"$f":"IF(Botón_Nota_Modo=\"?\",\nIFERROR(INDEX(CHOOSE(Tipo_Notación,miJuegoNumérico,miJuegoAlgebraico,miJuegoFiguras),$P21,2) & \"\",\"\"),\nIFERROR(INDEX(CHOOSE(Tipo_Notación,miPartidaNumérica,miPartidaAlgebraica,miPartidaFiguras),$P21,2) & \"\",\"\"))","v":""}]
[null,{"$f":"INDEX(TablaIdiomas[],12,miIdioma)","v":"Velocidad"},5,null,null,null,null,null,null,null,null,null,"",null,null,19,{"$f":"IF(Botón_Nota_Modo=\"?\",\nIFERROR(INDEX(CHOOSE(Tipo_Notación,miJuegoNumérico,miJuegoAlgebraico,miJuegoFiguras),$P22,1) & \"\",\"\"),\nIFERROR(INDEX(CHOOSE(Tipo_Notación,miPartidaNumérica,miPartidaAlgebraica,miPartidaFiguras),$P22,1) & \"\",\"\"))","v":""},{"$f":"IF(Botón_Nota_Modo=\"?\",\nIFERROR(INDEX(CHOOSE(Tipo_Notación,miJuegoNumérico,miJuegoAlgebraico,miJuegoFiguras),$P22,2) & \"\",\"\"),\nIFERROR(INDEX(CHOOSE(Tipo_Notación,miPartidaNumérica,miPartidaAlgebraica,miPartidaFiguras),$P22,2) & \"\",\"\"))","v":""}]
[null,null,null,null,null,null,null,null,null,null,null,null,"",null,null,20,{"$f":"IF(Botón_Nota_Modo=\"?\",\nIFERROR(INDEX(CHOOSE(Tipo_Notación,miJuegoNumérico,miJuegoAlgebraico,miJuegoFiguras),$P23,1) & \"\",\"\"),\nIFERROR(INDEX(CHOOSE(Tipo_Notación,miPartidaNumérica,miPartidaAlgebraica,miPartidaFiguras),$P23,1) & \"\",\"\"))","v":""},{"$f":"IF(Botón_Nota_Modo=\"?\",\nIFERROR(INDEX(CHOOSE(Tipo_Notación,miJuegoNumérico,miJuegoAlgebraico,miJuegoFiguras),$P23,2) & \"\",\"\"),\nIFERROR(INDEX(CHOOSE(Tipo_Notación,miPartidaNumérica,miPartidaAlgebraica,miPartidaFiguras),$P23,2) & \"\",\"\"))","v":""}]
[null,null,{"$f":"INDEX(TablaIdiomas[],15,miIdioma)","v":"Tablero"},null,null,null,null,null,null,null,null,null,"",null,null,21,{"$f":"IF(Botón_Nota_Modo=\"?\",\nIFERROR(INDEX(CHOOSE(Tipo_Notación,miJuegoNumérico,miJuegoAlgebraico,miJuegoFiguras),$P24,1) & \"\",\"\"),\nIFERROR(INDEX(CHOOSE(Tipo_Notación,miPartidaNumérica,miPartidaAlgebraica,miPartidaFiguras),$P24,1) & \"\",\"\"))","v":""},{"$f":"IF(Botón_Nota_Modo=\"?\",\nIFERROR(INDEX(CHOOSE(Tipo_Notación,miJuegoNumérico,miJuegoAlgebraico,miJuegoFiguras),$P24,2) & \"\",\"\"),\nIFERROR(INDEX(CHOOSE(Tipo_Notación,miPartidaNumérica,miPartidaAlgebraica,miPartidaFiguras),$P24,2) & \"\",\"\"))","v":""}]
[null,{"$f":"INDEX(TablaIdiomas[],16,miIdioma)","v":"Al frente"},"No",null,null,null,null,null,null,null,null,null,"",null,null,22,{"$f":"IF(Botón_Nota_Modo=\"?\",\nIFERROR(INDEX(CHOOSE(Tipo_Notación,miJuegoNumérico,miJuegoAlgebraico,miJuegoFiguras),$P25,1) & \"\",\"\"),\nIFERROR(INDEX(CHOOSE(Tipo_Notación,miPartidaNumérica,miPartidaAlgebraica,miPartidaFiguras),$P25,1) & \"\",\"\"))","v":""},{"$f":"IF(Botón_Nota_Modo=\"?\",\nIFERROR(INDEX(CHOOSE(Tipo_Notación,miJuegoNumérico,miJuegoAlgebraico,miJuegoFiguras),$P25,2) & \"\",\"\"),\nIFERROR(INDEX(CHOOSE(Tipo_Notación,miPartidaNumérica,miPartidaAlgebraica,miPartidaFiguras),$P25,2) & \"\",\"\"))","v":""}]
[null,{"$f":"INDEX(TablaIdiomas[],17,miIdioma)","v":"Estilo"},"Moderno",null,null,null,null,null,null,null,null,null,"",null,null,23,{"$f":"IF(Botón_Nota_Modo=\"?\",\nIFERROR(INDEX(CHOOSE(Tipo_Notación,miJuegoNumérico,miJuegoAlgebraico,miJuegoFiguras),$P26,1) & \"\",\"\"),\nIFERROR(INDEX(CHOOSE(Tipo_Notación,miPartidaNumérica,miPartidaAlgebraica,miPartidaFiguras),$P26,1) & \"\",\"\"))","v":""},{"$f":"IF(Botón_Nota_Modo=\"?\",\nIFERROR(INDEX(CHOOSE(Tipo_Notación,miJuegoNumérico,miJuegoAlgebraico,miJuegoFiguras),$P26,2) & \"\",\"\"),\nIFERROR(INDEX(CHOOSE(Tipo_Notación,miPartidaNumérica,miPartidaAlgebraica,miPartidaFiguras),$P26,2) & \"\",\"\"))","v":""}]
[null,{"$f":"INDEX(TablaIdiomas[],18,miIdioma)","v":"Pantalla"},"Completa",null,null,null,null,null,null,null,null,null,{"$f":"$M$43","v":""},null,null,24,{"$f":"IF(Botón_Nota_Modo=\"?\",\nIFERROR(INDEX(CHOOSE(Tipo_Notación,miJuegoNumérico,miJuegoAlgebraico,miJuegoFiguras),$P27,1) & \"\",\"\"),\nIFERROR(INDEX(CHOOSE(Tipo_Notación,miPartidaNumérica,miPartidaAlgebraica,miPartidaFiguras),$P27,1) & \"\",\"\"))","v":""},{"$f":"IF(Botón_Nota_Modo=\"?\",\nIFERROR(INDEX(CHOOSE(Tipo_Notación,miJuegoNumérico,miJuegoAlgebraico,miJuegoFiguras),$P27,2) & \"\",\"\"),\nIFERROR(INDEX(CHOOSE(Tipo_Notación,miPartidaNumérica,miPartidaAlgebraica,miPartidaFiguras),$P27,2) & \"\",\"\"))","v":""}]
[null,{"$f":"INDEX(TablaIdiomas[],241,miIdioma)","v":"Volteado"},"No",null,null,null,null,null,null,null,null,null,{"$f":"IFERROR(INDEX(miPartidaGuardada,miJugada,1)&\"\",\"\")","v":""},null,null,25,{"$f":"IF(Botón_Nota_Modo=\"?\",\nIFERROR(INDEX(CHOOSE(Tipo_Notación,miJuegoNumérico,miJuegoAlgebraico,miJuegoFiguras),$P28,1) & \"\",\"\"),\nIFERROR(INDEX(CHOOSE(Tipo_Notación,miPartidaNumérica,miPartidaAlgebraica,miPartidaFiguras),$P28,1) & \"\",\"\"))","v":""},{"$f":"IF(Botón_Nota_Modo=\"?\",\nIFERROR(INDEX(CHOOSE(Tipo_Notación,miJuegoNumérico,miJuegoAlgebraico,miJuegoFiguras),$P28,2) & \"\",\"\"),\nIFERROR(INDEX(CHOOSE(Tipo_Notación,miPartidaNumérica,miPartidaAlgebraica,miPartidaFiguras),$P28,2) & \"\",\"\"))","v":""}]
[null,{"$f":"INDEX(TablaIdiomas[],135,miIdioma)","v":"Zoom"},100]
[null,{"$f":"INDEX(TablaIdiomas[],242,miIdioma)","v":"Hojas"}]
[]
[]
[null,{"$f":"INDEX(TablaIdiomas[],23,miIdioma)","v":"Autor del blog:"},null,"Pedro Wave",null,"Learn Chess with Excel | #ExcelPedroWave"]
[null,{"$f":"INDEX(TablaIdiomas[],24,miIdioma)","v":"Canal de YouTube:"},null,"Pedro Wave",null,"Ajedrez en Excel - YouTube | #ExcelPedroWave"]
[null,{"$f":"INDEX(TablaIdiomas[],25,miIdioma)","v":"Idea original de:"},null,"Daniel Ferry",null,"Excel 2007 Chess Game Viewer - Excel Hero Blog"]
[null,{"$f":"INDEX(TablaIdiomas[],26,miIdioma)","v":"Imagen piezas ajedrez:"},null,"Maurizio Monge",null,"Category:SVG chess pieces/Maurizio Monge - Wikimedia Commons"]
[null,{"$f":"INDEX(TablaIdiomas[],136,miIdioma)","v":"COPYRIGHT:"},null,null,null,"Creative Commons — Atribución-NoComercial-CompartirIgual 3.0 No portada"]
[]
[]
[null,null,{"$f":"IF(miPiezaColor=INDEX(TablaIdiomas[],29,miIdioma),1,2)","v":1},null,null,null,null,null,null,null,null,null,{"$f":"IFERROR(INDEX(TablaListaLecciones['#],MATCH(miLectura,TablaListaLecciones[Lección - Lesson],0)),\"\")","v":0},0,null,{"$f":"IF(Valor_Notación=INDEX(TablaIdiomas[],35,miIdioma),1,\nIF(Valor_Notación=INDEX(TablaIdiomas[],36,miIdioma),2,3))","v":1},null,null,0]
[null,null,{"$f":"IF(Valor_MoverPieza=INDEX(TablaIdiomas[],13,miIdioma),1,0)","v":1}]
[null,null,{"$f":"IF(Valor_Movimiento=INDEX(TablaIdiomas[],13,miIdioma),1,0)","v":1},null,null,null,null,null,null,null,null,{"$f":"INDEX(TablaIdiomas[],36,miIdioma)","v":"Notación Algebraica"},{"$f":"TRIM(IFERROR(INDEX(miPartida,miJugada,1)&\"\",\"\"))","v":""},{"$f":"IF(IFERROR(FIND(\". \",M42),0)>0,\nSUBSTITUTE(SUBSTITUTE(SUBSTITUTE(SUBSTITUTE(SUBSTITUTE(SUBSTITUTE(SUBSTITUTE(SUBSTITUTE(SUBSTITUTE(SUBSTITUTE(M42,\n\"♔\",\"R\"),\"♕\",\"D\"),\"♖\",\"T\"),\"♗\",\"A\"),\"♘\",\"C\"),\n\"♚\",\"R\"),\"♛\",\"D\"),\"♜\",\"T\"),\"♝\",\"A\"),\"♞\",\"C\"),\nM42)","v":""}]
[null,null,{"$f":"IF(Valor_MovVálido=INDEX(TablaIdiomas[],13,miIdioma),1,0)","v":1},null,null,null,null,null,null,null,null,{"$f":"INDEX(TablaIdiomas[],209,miIdioma)","v":"Instrucciones traducidas"},{"$f":"SUBSTITUTE(SUBSTITUTE(SUBSTITUTE(SUBSTITUTE(SUBSTITUTE(SUBSTITUTE(SUBSTITUTE(SUBSTITUTE(SUBSTITUTE(SUBSTITUTE(SUBSTITUTE(SUBSTITUTE(SUBSTITUTE(SUBSTITUTE(SUBSTITUTE(SUBSTITUTE(SUBSTITUTE(SUBSTITUTE(SUBSTITUTE(SUBSTITUTE(SUBSTITUTE(SUBSTITUTE(SUBSTITUTE(SUBSTITUTE(SUBSTITUTE(SUBSTITUTE(SUBSTITUTE($M$44,\n\"Rey blanco\",INDEX(TablaIdiomas[],210,miIdioma)),\n\"Dama blanca\",INDEX(TablaIdiomas[],211,miIdioma)),\n\"Torre blanca\",INDEX(TablaIdiomas[],212,miIdioma)),\n\"Alfil blanco\",INDEX(TablaIdiomas[],213,miIdioma)),\n\"Caballo blanco\",INDEX(TablaIdiomas[],214,miIdioma)),\n\"Peón blanco\",INDEX(TablaIdiomas[],215,miIdioma)),\n\"Rey negro\",INDEX(TablaIdiomas[],216,miIdioma)),\n\"Dama negra\",INDEX(TablaIdiomas[],217,miIdioma)),\n\"Torre negra\",INDEX(TablaIdiomas[],218,miIdioma)),\n\"Alfil negro\",INDEX(TablaIdiomas[],219,miIdioma)),\n\"Caballo negro\",INDEX(TablaIdiomas[],220,miIdioma)),\n\"Peón negro\",INDEX(TablaIdiomas[],221,miIdioma)),\n\"Enroque largo de las blancas\",INDEX(TablaIdiomas[],222,miIdioma)),\n\"Enroque corto de las blancas\",INDEX(TablaIdiomas[],223,miIdioma)),\n\"Enroque largo de las negras\",INDEX(TablaIdiomas[],224,miIdioma)),\n\"Enroque corto de las negras\",INDEX(TablaIdiomas[],225,miIdioma)),\n\"¡Jaque mate!\",INDEX(TablaIdiomas[],226,miIdioma)),\n\"¡Jaque doble!\",INDEX(TablaIdiomas[],227,miIdioma)),\n\"¡Jaque!\",INDEX(TablaIdiomas[],228,miIdioma)),\n\"Promociona a dama\",INDEX(TablaIdiomas[],229,miIdioma)),\n\"Promociona a torre\",INDEX(TablaIdiomas[],230,miIdioma)),\n\"Promociona a alfil\",INDEX(TablaIdiomas[],231,miIdioma)),\n\"Promociona a caballo\",INDEX(TablaIdiomas[],232,miIdioma)),\n\" de \",INDEX(TablaIdiomas[],233,miIdioma)),\n\" por \",INDEX(TablaIdiomas[],235,miIdioma)),\n\" a \",INDEX(TablaIdiomas[],234,miIdioma)),\n\" aa \",\" a \")","v":""}]
[null,null,{"$f":"IF(Valor_Pantalla=INDEX(TablaIdiomas[],22,miIdioma),1,2)","v":1},null,null,null,null,null,null,null,null,{"$f":"INDEX(TablaIdiomas[],199,miIdioma)","v":"Instrucciones"},{"$f":"SUBSTITUTE(SUBSTITUTE(SUBSTITUTE(SUBSTITUTE(SUBSTITUTE(SUBSTITUTE(SUBSTITUTE(SUBSTITUTE(SUBSTITUTE(SUBSTITUTE(SUBSTITUTE(SUBSTITUTE(SUBSTITUTE(SUBSTITUTE(SUBSTITUTE(SUBSTITUTE(\nSUBSTITUTE(SUBSTITUTE(SUBSTITUTE(SUBSTITUTE(SUBSTITUTE(SUBSTITUTE(SUBSTITUTE(SUBSTITUTE(SUBSTITUTE(SUBSTITUTE(SUBSTITUTE(SUBSTITUTE(SUBSTITUTE(SUBSTITUTE(SUBSTITUTE(SUBSTITUTE(SUBSTITUTE(SUBSTITUTE(SUBSTITUTE(SUBSTITUTE(SUBSTITUTE(SUBSTITUTE(SUBSTITUTE(SUBSTITUTE(SUBSTITUTE(SUBSTITUTE(SUBSTITUTE(SUBSTITUTE(SUBSTITUTE(SUBSTITUTE(SUBSTITUTE(SUBSTITUTE($N$46,\n\"Blancas R\",\"Rey blanco*\"),\"Blancas D\",\"Dama blanca*\"),\"Blancas T\",\"Torre blanca*\"),\"Blancas A\",\"Alfil blanco*\"),\"Blancas C\",\"Caballo blanco*\"),\n\"Blancas O-O-O\",\"Enroque largo de las blancas\"),\"Blancas O-O\",\"Enroque corto de las blancas\"),\"Blancas 1\",\"1\"),\"Blancas 0\",\"0\"),\"Blancas ½\",\"½\"),\"Blancas \",\"Peón blanco*\"),\"Blancas\",\"\"),\n\"Negras R\",\"Rey negro*\"),\"Negras D\",\"Dama negra*\"),\"Negras T\",\"Torre negra*\"),\"Negras A\",\"Alfil negro*\"),\"Negras C\",\"Caballo negro*\"),\n\"Negras O-O-O\",\"Enroque largo de las negras\"),\"Negras O-O\",\"Enroque corto de las negras\"),\"Negras 1\",\"1\"),\"Negras 0\",\"0\"),\"Negras ½\",\"½\"),\"Negras \",\"Peón negro*\"),\"Negras\",\"\"),\n\"*1\",\" de 1 a \"),\"*2\",\" de 2 a \"),\"*3\",\" de 3 a \"),\"*4\",\" de 4 a \"),\"*5\",\" de 5 a \"),\"*6\",\" de 6 a \"),\"*7\",\" de 7 a \"),\"*8\",\" de 8 a \"),\n\"*a\",\" de aa a \"),\"*b\",\" de b a \"),\"*c\",\" de c a \"),\"*d\",\" de d a \"),\"*e\",\" de e a \"),\"*f\",\" de f a \"),\"*g\",\" de g a \"),\"*h\",\" de h a \"),\"a x\",\"por \"),\"*x\",\" por \"),\"x\",\" por \"),\"*\",\" a \")\n& $M$46 & IF(RIGHT($M$45)=\"#\",\". ¡Jaque mate!\",IF(RIGHT($M$45)=\"++\",\". ¡Jaque doble!\",IF(RIGHT($M$45)=\"+\",\". ¡Jaque!\",\"\"))),\n\"=D\",\". Promociona a dama\"),\"=T\",\". Promociona a torre\"),\"=A\",\". Promociona a alfil\"),\"=C\",\". Promociona a caballo\")","v":""}]
[null,null,{"$f":"IF(Valor_Tablero=INDEX(TablaIdiomas[],20,miIdioma),1,2)","v":2},null,null,null,null,null,null,null,null,{"$f":"INDEX(TablaIdiomas[],198,miIdioma)","v":"Genera"},{"$f":"IF(MOD(miPiezaMovimiento,4)=0,IFERROR(\"Blancas \"&RIGHT($N$45,LEN($N$45)-FIND(\". \",$N$45)-1),IF(ISNUMBER(--LEFT($N$45)),\"\",$N$45)),\nIF(MOD(miPiezaMovimiento,4)=2,IF(SUBSTITUTE($N$42,$N$45,\"\")=\"\",\"\",\"Negras\")&SUBSTITUTE($N$42,$N$45,\"\"),IF(ISNUMBER(--LEFT($N$45)),\"\",$N$45)))","v":""},{"$f":"IFERROR(LEFT($N$42,FIND(\" \",$N$42,FIND(\". \",$N$42)+2)-1),$N$42)","v":""}]
[null,null,{"$f":"IF(Valor_Traer_Tablero=INDEX(TablaIdiomas[],13,miIdioma),1,0)","v":0},null,null,null,null,null,null,null,null,{"$f":"INDEX(TablaIdiomas[],199,miIdioma)","v":"Instrucciones"},{"$f":"IF(LEN(SUBSTITUTE(M45,\"O-O\",\"\"))=LEN(M45),RIGHT(SUBSTITUTE(SUBSTITUTE(M45,\"#\",\"\"),\"+\",\"\"),IF(LEN(SUBSTITUTE(M45,\"-\",\"\"))=LEN(M45),2,IF(LEN(M45)<12,4,6))),\"\")","v":""},{"$f":"SUBSTITUTE(SUBSTITUTE(SUBSTITUTE(M45,M46,\"\"),\"#\",\"\"),\"+\",\"\")","v":""}]
[]
[null,null,null,null,null,null,null,null,null,null,null,null,null,null,null,null,3,4]

{"sheet":"Moves","index":1,"n_rows":102,"n_cols":22,"rows_kept":102,"cut":false,"hidden":true,"merged":[]}
[1,{"$f":"INDEX(TablaIdiomas[],35,miIdioma)","v":"Notación Numérica"},null,{"$f":"INDEX(TablaIdiomas[],35,miIdioma)","v":"Notación Numérica"},null,null,{"$f":"INDEX(TablaIdiomas[],36,miIdioma)","v":"Notación Algebraica"},null,{"$f":"INDEX(TablaIdiomas[],36,miIdioma)","v":"Notación Algebraica"},null,null,{"$f":"INDEX(TablaIdiomas[],37,miIdioma)","v":"Test"},null,{"$f":"INDEX(TablaIdiomas[],8,miIdioma)","v":"Movimiento"},null,{"$f":"INDEX(TablaIdiomas[],34,miIdioma)","v":"Notación"},{"$f":"INDEX(TablaIdiomas[],238,miIdioma)","v":"Notación Algebraica con Figuras"},null,null,{"$f":"INDEX(TablaIdiomas[],239,miIdioma)","v":"Notación con Figuras"}]
[{"$f":"INDEX(TablaIdiomas[],4,miIdioma)","v":"Jugadas"},{"$f":"INDEX(TablaIdiomas[],29,miIdioma)","v":"Blancas"},{"$f":"INDEX(TablaIdiomas[],30,miIdioma)","v":"Negras"},{"$f":"INDEX(TablaIdiomas[],38,miIdioma)","v":"Partida Guardada"},{"$f":"INDEX(TablaIdiomas[],29,miIdioma)","v":"Blancas"},{"$f":"INDEX(TablaIdiomas[],30,miIdioma)","v":"Negras"},{"$f":"INDEX(TablaIdiomas[],29,miIdioma)","v":"Blancas"},{"$f":"INDEX(TablaIdiomas[],30,miIdioma)","v":"Negras"},{"$f":"INDEX(TablaIdiomas[],38,miIdioma)","v":"Partida Guardada"},{"$f":"INDEX(TablaIdiomas[],29,miIdioma)","v":"Blancas"},{"$f":"INDEX(TablaIdiomas[],30,miIdioma)","v":"Negras"},{"$f":"INDEX(TablaIdiomas[],29,miIdioma)","v":"Blancas"},{"$f":"INDEX(TablaIdiomas[],30,miIdioma)","v":"Negras"},{"$f":"INDEX(TablaIdiomas[],29,miIdioma)","v":"Blancas"},{"$f":"INDEX(TablaIdiomas[],30,miIdioma)","v":"Negras"},{"$f":"INDEX(TablaIdiomas[],32,miIdioma)","v":"Numérica"},{"$f":"INDEX(TablaIdiomas[],38,miIdioma)","v":"Partida Guardada"},{"$f":"INDEX(TablaIdiomas[],29,miIdioma)","v":"Blancas"},{"$f":"INDEX(TablaIdiomas[],30,miIdioma)","v":"Negras"},{"$f":"INDEX(TablaIdiomas[],38,miIdioma)","v":"Partida Guardada"},{"$f":"INDEX(TablaIdiomas[],29,miIdioma)","v":"Blancas"},{"$f":"INDEX(TablaIdiomas[],30,miIdioma)","v":"Negras"}]
[1,null,null,{"$f":"Numerical!$A11","v":""},{"$f":"IF(ISNUMBER(--LEFT($D3)),LEFT(SUBSTITUTE($D3,$A3&\". \",\"\"),FIND(\" \",SUBSTITUTE($D3,$A3&\". \",\"\")&\" \")-1),\"\")","v":""},{"$f":"IF(ISNUMBER(--LEFT($D3)),TRIM(SUBSTITUTE($D3,$A3&\". \" & $E3,\"\")),\"\")","v":""},null,null,{"$f":"IF(IFERROR(FIND(\". \",Games!$A11),0)>0,\nSUBSTITUTE(SUBSTITUTE(SUBSTITUTE(SUBSTITUTE(SUBSTITUTE(SUBSTITUTE(SUBSTITUTE(SUBSTITUTE(SUBSTITUTE(SUBSTITUTE(SUBSTITUTE(SUBSTITUTE(SUBSTITUTE(SUBSTITUTE(SUBSTITUTE(Games!$A11,\n\"♔\",\"R\"),\"♕\",\"D\"),\"♖\",\"T\"),\"♗\",\"A\"),\"♘\",\"C\"),\n\"♚\",\"R\"),\"♛\",\"D\"),\"♜\",\"T\"),\"♝\",\"A\"),\"♞\",\"C\"),\n\"R\",INDEX(TablaPiezas[],1,miIdioma)),\n\"D\",INDEX(TablaPiezas[],2,miIdioma)),\n\"T\",INDEX(TablaPiezas[],3,miIdioma)),\n\"A\",INDEX(TablaPiezas[],4,miIdioma)),\n\"C\",INDEX(TablaPiezas[],5,miIdioma)),\nGames!$A11)","v":""},{"$f":"IF(ISNUMBER(--LEFT($I3)),LEFT(SUBSTITUTE($I3,$A3&\". \",\"\"),FIND(\" \",SUBSTITUTE($I3,$A3&\". \",\"\")&\" \")-1),\"\")","v":""},{"$f":"IF(ISNUMBER(--LEFT($I3)),TRIM(SUBSTITUTE($I3,$A3&\". \" & $J3,\"\")),\"\")","v":""},{"$f":"IF(OR(J3=\"\",G3=\"\",G3=IFERROR(LEFT(J3,FIND(\" \",J3)-1),J3)),\"\",IF(LEFT(G3)&RIGHT(G3,LEN(G3)-2)=J3,\"NOTA\",IF(AND(RIGHT(G3)=\"+\",RIGHT(J3)=\"#\"),\"NOTA\",\"ERROR\")))","v":""},{"$f":"IF(OR(K3=\"\",H3=\"\",H3=IFERROR(LEFT(K3,FIND(\" \",K3)-1),K3)),\"\",IF(LEFT(H3)&RIGHT(H3,LEN(H3)-2)=K3,\"NOTA\",IF(AND(RIGHT(H3)=\"+\",RIGHT(K3)=\"#\"),\"NOTA\",\"ERROR\")))","v":""},{"$f":"IF(AND($A3=INT((miPiezaMovimiento+2)/4),MOD(miPiezaMovimiento,4)>1),\"M\",\"\")","v":""},{"$f":"IF(AND($A3=INT((miPiezaMovimiento+2)/4),MOD(miPiezaMovimiento,4)<2),\"M\",\"\")","v":""},{"$f":"IF(B3=\"\",\"\",$A3&\". \"&B3&\" \"&C3)","v":""},{"$f":"IF(G3=\"\",\"\",$A3&\". \"&\nSUBSTITUTE(SUBSTITUTE(SUBSTITUTE(SUBSTITUTE(SUBSTITUTE(G3,\nINDEX(TablaPiezas[],1,miIdioma),\"♔\"),\nINDEX(TablaPiezas[],2,miIdioma),\"♕\"),\nINDEX(TablaPiezas[],3,miIdioma),\"♖\"),\nINDEX(TablaPiezas[],4,miIdioma),\"♗\"),\nINDEX(TablaPiezas[],5,miIdioma),\"♘\")&\" \"&\nSUBSTITUTE(SUBSTITUTE(SUBSTITUTE(SUBSTITUTE(SUBSTITUTE(H3,\nINDEX(TablaPiezas[],1,miIdioma),\"♚\"),\nINDEX(TablaPiezas[],2,miIdioma),\"♛\"),\nINDEX(TablaPiezas[],3,miIdioma),\"♜\"),\nINDEX(TablaPiezas[],4,miIdioma),\"♝\"),\nINDEX(TablaPiezas[],5,miIdioma),\"♞\"))","v":""},{"$f":"IF(ISNUMBER(--LEFT($Q3)),LEFT(SUBSTITUTE($Q3,$A3&\". \",\"\"),FIND(\" \",SUBSTITUTE($Q3,$A3&\". \",\"\")&\" \")-1),\"\")","v":""},{"$f":"IF(ISNUMBER(--LEFT($Q3)),TRIM(SUBSTITUTE($Q3,$A3&\". \" & $R3,\"\")),\"\")","v":""},{"$f":"Games!$A11","v":""},{"$f":"IF(ISNUMBER(--LEFT($T3)),LEFT(SUBSTITUTE($T3,$A3&\". \",\"\"),FIND(\" \",SUBSTITUTE($T3,$A3&\". \",\"\")&\" \")-1),\"\")","v":""},{"$f":"IF(ISNUMBER(--LEFT($T3)),TRIM(SUBSTITUTE($T3,$A3&\". \" & $U3,\"\")),\"\")","v":""}]
[2,null,null,{"$f":"Numerical!$A12","v":""},"","",null,null,{"$f":"IF(IFERROR(FIND(\". \",Games!$A12),0)>0,\nSUBSTITUTE(SUBSTITUTE(SUBSTITUTE(SUBSTITUTE(SUBSTITUTE(SUBSTITUTE(SUBSTITUTE(SUBSTITUTE(SUBSTITUTE(SUBSTITUTE(SUBSTITUTE(SUBSTITUTE(SUBSTITUTE(SUBSTITUTE(SUBSTITUTE(Games!$A12,\n\"♔\",\"R\"),\"♕\",\"D\"),\"♖\",\"T\"),\"♗\",\"A\"),\"♘\",\"C\"),\n\"♚\",\"R\"),\"♛\",\"D\"),\"♜\",\"T\"),\"♝\",\"A\"),\"♞\",\"C\"),\n\"R\",INDEX(TablaPiezas[],1,miIdioma)),\n\"D\",INDEX(TablaPiezas[],2,miIdioma)),\n\"T\",INDEX(TablaPiezas[],3,miIdioma)),\n\"A\",INDEX(TablaPiezas[],4,miIdioma)),\n\"C\",INDEX(TablaPiezas[],5,miIdioma)),\nGames!$A12)","v":""},"","",{"$f":"IF(OR(J4=\"\",G4=\"\",G4=IFERROR(LEFT(J4,FIND(\" \",J4)-1),J4)),\"\",IF(LEFT(G4)&RIGHT(G4,LEN(G4)-2)=J4,\"NOTA\",IF(AND(RIGHT(G4)=\"+\",RIGHT(J4)=\"#\"),\"NOTA\",\"ERROR\")))","v":""},{"$f":"IF(OR(K4=\"\",H4=\"\",H4=IFERROR(LEFT(K4,FIND(\" \",K4)-1),K4)),\"\",IF(LEFT(H4)&RIGHT(H4,LEN(H4)-2)=K4,\"NOTA\",IF(AND(RIGHT(H4)=\"+\",RIGHT(K4)=\"#\"),\"NOTA\",\"ERROR\")))","v":""},"","","",{"$f":"IF(G4=\"\",\"\",$A4&\". \"&\nSUBSTITUTE(SUBSTITUTE(SUBSTITUTE(SUBSTITUTE(SUBSTITUTE(G4,\nINDEX(TablaPiezas[],1,miIdioma),\"♔\"),\nINDEX(TablaPiezas[],2,miIdioma),\"♕\"),\nINDEX(TablaPiezas[],3,miIdioma),\"♖\"),\nINDEX(TablaPiezas[],4,miIdioma),\"♗\"),\nINDEX(TablaPiezas[],5,miIdioma),\"♘\")&\" \"&\nSUBSTITUTE(SUBSTITUTE(SUBSTITUTE(SUBSTITUTE(SUBSTITUTE(H4,\nINDEX(TablaPiezas[],1,miIdioma),\"♚\"),\nINDEX(TablaPiezas[],2,miIdioma),\"♛\"),\nINDEX(TablaPiezas[],3,miIdioma),\"♜\"),\nINDEX(TablaPiezas[],4,miIdioma),\"♝\"),\nINDEX(TablaPiezas[],5,miIdioma),\"♞\"))","v":""},{"$f":"IF(ISNUMBER(--LEFT($Q4)),LEFT(SUBSTITUTE($Q4,$A4&\". \",\"\"),FIND(\" \",SUBSTITUTE($Q4,$A4&\". \",\"\")&\" \")-1),\"\")","v":""},"",{"$f":"Games!$A12","v":""},{"$f":"IF(ISNUMBER(--LEFT($T4)),LEFT(SUBSTITUTE($T4,$A4&\". \",\"\"),FIND(\" \",SUBSTITUTE($T4,$A4&\". \",\"\")&\" \")-1),\"\")","v":""},{"$f":"IF(ISNUMBER(--LEFT($T4)),TRIM(SUBSTITUTE($T4,$A4&\". \" & $U4,\"\")),\"\")","v":""}]
[3,null,null,{"$f":"Numerical!$A13","v":""},"","",null,null,{"$f":"IF(IFERROR(FIND(\". \",Games!$A13),0)>0,\nSUBSTITUTE(SUBSTITUTE(SUBSTITUTE(SUBSTITUTE(SUBSTITUTE(SUBSTITUTE(SUBSTITUTE(SUBSTITUTE(SUBSTITUTE(SUBSTITUTE(SUBSTITUTE(SUBSTITUTE(SUBSTITUTE(SUBSTITUTE(SUBSTITUTE(Games!$A13,\n\"♔\",\"R\"),\"♕\",\"D\"),\"♖\",\"T\"),\"♗\",\"A\"),\"♘\",\"C\"),\n\"♚\",\"R\"),\"♛\",\"D\"),\"♜\",\"T\"),\"♝\",\"A\"),\"♞\",\"C\"),\n\"R\",INDEX(TablaPiezas[],1,miIdioma)),\n\"D\",INDEX(TablaPiezas[],2,miIdioma)),\n\"T\",INDEX(TablaPiezas[],3,miIdioma)),\n\"A\",INDEX(TablaPiezas[],4,miIdioma)),\n\"C\",INDEX(TablaPiezas[],5,miIdioma)),\nGames!$A13)","v":""},"","","","","","","",{"$f":"IF(G5=\"\",\"\",$A5&\". \"&\nSUBSTITUTE(SUBSTITUTE(SUBSTITUTE(SUBSTITUTE(SUBSTITUTE(G5,\nINDEX(TablaPiezas[],1,miIdioma),\"♔\"),\nINDEX(TablaPiezas[],2,miIdioma),\"♕\"),\nINDEX(TablaPiezas[],3,miIdioma),\"♖\"),\nINDEX(TablaPiezas[],4,miIdioma),\"♗\"),\nINDEX(TablaPiezas[],5,miIdioma),\"♘\")&\" \"&\nSUBSTITUTE(SUBSTITUTE(SUBSTITUTE(SUBSTITUTE(SUBSTITUTE(H5,\nINDEX(TablaPiezas[],1,miIdioma),\"♚\"),\nINDEX(TablaPiezas[],2,miIdioma),\"♛\"),\nINDEX(TablaPiezas[],3,miIdioma),\"♜\"),\nINDEX(TablaPiezas[],4,miIdioma),\"♝\"),\nINDEX(TablaPiezas[],5,miIdioma),\"♞\"))","v":""},"","",{"$f":"Games!$A13","v":""},"",""]
[4,null,null,{"$f":"Numerical!$A14","v":""},"","",null,null,{"$f":"IF(IFERROR(FIND(\". \",Games!$A14),0)>0,\nSUBSTITUTE(SUBSTITUTE(SUBSTITUTE(SUBSTITUTE(SUBSTITUTE(SUBSTITUTE(SUBSTITUTE(SUBSTITUTE(SUBSTITUTE(SUBSTITUTE(SUBSTITUTE(SUBSTITUTE(SUBSTITUTE(SUBSTITUTE(SUBSTITUTE(Games!$A14,\n\"♔\",\"R\"),\"♕\",\"D\"),\"♖\",\"T\"),\"♗\",\"A\"),\"♘\",\"C\"),\n\"♚\",\"R\"),\"♛\",\"D\"),\"♜\",\"T\"),\"♝\",\"A\"),\"♞\",\"C\"),\n\"R\",INDEX(TablaPiezas[],1,miIdioma)),\n\"D\",INDEX(TablaPiezas[],2,miIdioma)),\n\"T\",INDEX(TablaPiezas[],3,miIdioma)),\n\"A\",INDEX(TablaPiezas[],4,miIdioma)),\n\"C\",INDEX(TablaPiezas[],5,miIdioma)),\nGames!$A14)","v":""},"","","","","","","",{"$f":"IF(G6=\"\",\"\",$A6&\". \"&\nSUBSTITUTE(SUBSTITUTE(SUBSTITUTE(SUBSTITUTE(SUBSTITUTE(G6,\nINDEX(TablaPiezas[],1,miIdioma),\"♔\"),\nINDEX(TablaPiezas[],2,miIdioma),\"♕\"),\nINDEX(TablaPiezas[],3,miIdioma),\"♖\"),\nINDEX(TablaPiezas[],4,miIdioma),\"♗\"),\nINDEX(TablaPiezas[],5,miIdioma),\"♘\")&\" \"&\nSUBSTITUTE(SUBSTITUTE(SUBSTITUTE(SUBSTITUTE(SUBSTITUTE(H6,\nINDEX(TablaPiezas[],1,miIdioma),\"♚\"),\nINDEX(TablaPiezas[],2,miIdioma),\"♛\"),\nINDEX(TablaPiezas[],3,miIdioma),\"♜\"),\nINDEX(TablaPiezas[],4,miIdioma),\"♝\"),\nINDEX(TablaPiezas[],5,miIdioma),\"♞\"))","v":""},"","",{"$f":"Games!$A14","v":""},"",""]
[5,null,null,{"$f":"Numerical!$A15","v":""},"","",null,null,{"$f":"IF(IFERROR(FIND(\". \",Games!$A15),0)>0,\nSUBSTITUTE(SUBSTITUTE(SUBSTITUTE(SUBSTITUTE(SUBSTITUTE(SUBSTITUTE(SUBSTITUTE(SUBSTITUTE(SUBSTITUTE(SUBSTITUTE(SUBSTITUTE(SUBSTITUTE(SUBSTITUTE(SUBSTITUTE(SUBSTITUTE(Games!$A15,\n\"♔\",\"R\"),\"♕\",\"D\"),\"♖\",\"T\"),\"♗\",\"A\"),\"♘\",\"C\"),\n\"♚\",\"R\"),\"♛\",\"D\"),\"♜\",\"T\"),\"♝\",\"A\"),\"♞\",\"C\"),\n\"R\",INDEX(TablaPiezas[],1,miIdioma)),\n\"D\",INDEX(TablaPiezas[],2,miIdioma)),\n\"T\",INDEX(TablaPiezas[],3,miIdioma)),\n\"A\",INDEX(TablaPiezas[],4,miIdioma)),\n\"C\",INDEX(TablaPiezas[],5,miIdioma)),\nGames!$A15)","v":""},"","","","","","","",{"$f":"IF(G7=\"\",\"\",$A7&\". \"&\nSUBSTITUTE(SUBSTITUTE(SUBSTITUTE(SUBSTITUTE(SUBSTITUTE(G7,\nINDEX(TablaPiezas[],1,miIdioma),\"♔\"),\nINDEX(TablaPiezas[],2,miIdioma),\"♕\"),\nINDEX(TablaPiezas[],3,miIdioma),\"♖\"),\nINDEX(TablaPiezas[],4,miIdioma),\"♗\"),\nINDEX(TablaPiezas[],5,miIdioma),\"♘\")&\" \"&\nSUBSTITUTE(SUBSTITUTE(SUBSTITUTE(SUBSTITUTE(SUBSTITUTE(H7,\nINDEX(TablaPiezas[],1,miIdioma),\"♚\"),\nINDEX(TablaPiezas[],2,miIdioma),\"♛\"),\nINDEX(TablaPiezas[],3,miIdioma),\"♜\"),\nINDEX(TablaPiezas[],4,miIdioma),\"♝\"),\nINDEX(TablaPiezas[],5,miIdioma),\"♞\"))","v":""},"","",{"$f":"Games!$A15","v":""},"",""]
[6,null,null,{"$f":"Numerical!$A16","v":""},"","",null,null,{"$f":"IF(IFERROR(FIND(\". \",Games!$A16),0)>0,\nSUBSTITUTE(SUBSTITUTE(SUBSTITUTE(SUBSTITUTE(SUBSTITUTE(SUBSTITUTE(SUBSTITUTE(SUBSTITUTE(SUBSTITUTE(SUBSTITUTE(SUBSTITUTE(SUBSTITUTE(SUBSTITUTE(SUBSTITUTE(SUBSTITUTE(Games!$A16,\n\"♔\",\"R\"),\"♕\",\"D\"),\"♖\",\"T\"),\"♗\",\"A\"),\"♘\",\"C\"),\n\"♚\",\"R\"),\"♛\",\"D\"),\"♜\",\"T\"),\"♝\",\"A\"),\"♞\",\"C\"),\n\"R\",INDEX(TablaPiezas[],1,miIdioma)),\n\"D\",INDEX(TablaPiezas[],2,miIdioma)),\n\"T\",INDEX(TablaPiezas[],3,miIdioma)),\n\"A\",INDEX(TablaPiezas[],4,miIdioma)),\n\"C\",INDEX(TablaPiezas[],5,miIdioma)),\nGames!$A16)","v":""},"","","","","","","",{"$f":"IF(G8=\"\",\"\",$A8&\". \"&\nSUBSTITUTE(SUBSTITUTE(SUBSTITUTE(SUBSTITUTE(SUBSTITUTE(G8,\nINDEX(TablaPiezas[],1,miIdioma),\"♔\"),\nINDEX(TablaPiezas[],2,miIdioma),\"♕\"),\nINDEX(TablaPiezas[],3,miIdioma),\"♖\"),\nINDEX(TablaPiezas[],4,miIdioma),\"♗\"),\nINDEX(TablaPiezas[],5,miIdioma),\"♘\")&\" \"&\nSUBSTITUTE(SUBSTITUTE(SUBSTITUTE(SUBSTITUTE(SUBSTITUTE(H8,\nINDEX(TablaPiezas[],1,miIdioma),\"♚\"),\nINDEX(TablaPiezas[],2,miIdioma),\"♛\"),\nINDEX(TablaPiezas[],3,miIdioma),\"♜\"),\nINDEX(TablaPiezas[],4,miIdioma),\"♝\"),\nINDEX(TablaPiezas[],5,miIdioma),\"♞\"))","v":""},"","",{"$f":"Games!$A16","v":""},"",""]
[7,null,null,{"$f":"Numerical!$A17","v":""},"","",null,null,{"$f":"IF(IFERROR(FIND(\". \",Games!$A17),0)>0,\nSUBSTITUTE(SUBSTITUTE(SUBSTITUTE(SUBSTITUTE(SUBSTITUTE(SUBSTITUTE(SUBSTITUTE(SUBSTITUTE(SUBSTITUTE(SUBSTITUTE(SUBSTITUTE(SUBSTITUTE(SUBSTITUTE(SUBSTITUTE(SUBSTITUTE(Games!$A17,\n\"♔\",\"R\"),\"♕\",\"D\"),\"♖\",\"T\"),\"♗\",\"A\"),\"♘\",\"C\"),\n\"♚\",\"R\"),\"♛\",\"D\"),\"♜\",\"T\"),\"♝\",\"A\"),\"♞\",\"C\"),\n\"R\",INDEX(TablaPiezas[],1,miIdioma)),\n\"D\",INDEX(TablaPiezas[],2,miIdioma)),\n\"T\",INDEX(TablaPiezas[],3,miIdioma)),\n\"A\",INDEX(TablaPiezas[],4,miIdioma)),\n\"C\",INDEX(TablaPiezas[],5,miIdioma)),\nGames!$A17)","v":""},"","","","","","","",{"$f":"IF(G9=\"\",\"\",$A9&\". \"&\nSUBSTITUTE(SUBSTITUTE(SUBSTITUTE(SUBSTITUTE(SUBSTITUTE(G9,\nINDEX(TablaPiezas[],1,miIdioma),\"♔\"),\nINDEX(TablaPiezas[],2,miIdioma),\"♕\"),\nINDEX(TablaPiezas[],3,miIdioma),\"♖\"),\nINDEX(TablaPiezas[],4,miIdioma),\"♗\"),\nINDEX(TablaPiezas[],5,miIdioma),\"♘\")&\" \"&\nSUBSTITUTE(SUBSTITUTE(SUBSTITUTE(SUBSTITUTE(SUBSTITUTE(H9,\nINDEX(TablaPiezas[],1,miIdioma),\"♚\"),\nINDEX(TablaPiezas[],2,miIdioma),\"♛\"),\nINDEX(TablaPiezas[],3,miIdioma),\"♜\"),\nINDEX(TablaPiezas[],4,miIdioma),\"♝\"),\nINDEX(TablaPiezas[],5,miIdioma),\"♞\"))","v":""},"","",{"$f":"Games!$A17","v":""},"",""]
[8,null,null,{"$f":"Numerical!$A18","v":""},"","",null,null,{"$f":"IF(IFERROR(FIND(\". \",Games!$A18),0)>0,\nSUBSTITUTE(SUBSTITUTE(SUBSTITUTE(SUBSTITUTE(SUBSTITUTE(SUBSTITUTE(SUBSTITUTE(SUBSTITUTE(SUBSTITUTE(SUBSTITUTE(SUBSTITUTE(SUBSTITUTE(SUBSTITUTE(SUBSTITUTE(SUBSTITUTE(Games!$A18,\n\"♔\",\"R\"),\"♕\",\"D\"),\"♖\",\"T\"),\"♗\",\"A\"),\"♘\",\"C\"),\n\"♚\",\"R\"),\"♛\",\"D\"),\"♜\",\"T\"),\"♝\",\"A\"),\"♞\",\"C\"),\n\"R\",INDEX(TablaPiezas[],1,miIdioma)),\n\"D\",INDEX(TablaPiezas[],2,miIdioma)),\n\"T\",INDEX(TablaPiezas[],3,miIdioma)),\n\"A\",INDEX(TablaPiezas[],4,miIdioma)),\n\"C\",INDEX(TablaPiezas[],5,miIdioma)),\nGames!$A18)","v":""},"","","","","","","",{"$f":"IF(G10=\"\",\"\",$A10&\". \"&\nSUBSTITUTE(SUBSTITUTE(SUBSTITUTE(SUBSTITUTE(SUBSTITUTE(G10,\nINDEX(TablaPiezas[],1,miIdioma),\"♔\"),\nINDEX(TablaPiezas[],2,miIdioma),\"♕\"),\nINDEX(TablaPiezas[],3,miIdioma),\"♖\"),\nINDEX(TablaPiezas[],4,miIdioma),\"♗\"),\nINDEX(TablaPiezas[],5,miIdioma),\"♘\")&\" \"&\nSUBSTITUTE(SUBSTITUTE(SUBSTITUTE(SUBSTITUTE(SUBSTITUTE(H10,\nINDEX(TablaPiezas[],1,miIdioma),\"♚\"),\nINDEX(TablaPiezas[],2,miIdioma),\"♛\"),\nINDEX(TablaPiezas[],3,miIdioma),\"♜\"),\nINDEX(TablaPiezas[],4,miIdioma),\"♝\"),\nINDEX(TablaPiezas[],5,miIdioma),\"♞\"))","v":""},"","",{"$f":"Games!$A18","v":""},"",""]
[9,null,null,{"$f":"Numerical!$A19","v":""},"","",null,null,{"$f":"IF(IFERROR(FIND(\". \",Games!$A19),0)>0,\nSUBSTITUTE(SUBSTITUTE(SUBSTITUTE(SUBSTITUTE(SUBSTITUTE(SUBSTITUTE(SUBSTITUTE(SUBSTITUTE(SUBSTITUTE(SUBSTITUTE(SUBSTITUTE(SUBSTITUTE(SUBSTITUTE(SUBSTITUTE(SUBSTITUTE(Games!$A19,\n\"♔\",\"R\"),\"♕\",\"D\"),\"♖\",\"T\"),\"♗\",\"A\"),\"♘\",\"C\"),\n\"♚\",\"R\"),\"♛\",\"D\"),\"♜\",\"T\"),\"♝\",\"A\"),\"♞\",\"C\"),\n\"R\",INDEX(TablaPiezas[],1,miIdioma)),\n\"D\",INDEX(TablaPiezas[],2,miIdioma)),\n\"T\",INDEX(TablaPiezas[],3,miIdioma)),\n\"A\",INDEX(TablaPiezas[],4,miIdioma)),\n\"C\",INDEX(TablaPiezas[],5,miIdioma)),\nGames!$A19)","v":""},"","","","","","","",{"$f":"IF(G11=\"\",\"\",$A11&\". \"&\nSUBSTITUTE(SUBSTITUTE(SUBSTITUTE(SUBSTITUTE(SUBSTITUTE(G11,\nINDEX(TablaPiezas[],1,miIdioma),\"♔\"),\nINDEX(TablaPiezas[],2,miIdioma),\"♕\"),\nINDEX(TablaPiezas[],3,miIdioma),\"♖\"),\nINDEX(TablaPiezas[],4,miIdioma),\"♗\"),\nINDEX(TablaPiezas[],5,miIdioma),\"♘\")&\" \"&\nSUBSTITUTE(SUBSTITUTE(SUBSTITUTE(SUBSTITUTE(SUBSTITUTE(H11,\nINDEX(TablaPiezas[],1,miIdioma),\"♚\"),\nINDEX(TablaPiezas[],2,miIdioma),\"♛\"),\nINDEX(TablaPiezas[],3,miIdioma),\"♜\"),\nINDEX(TablaPiezas[],4,miIdioma),\"♝\"),\nINDEX(TablaPiezas[],5,miIdioma),\"♞\"))","v":""},"","",{"$f":"Games!$A19","v":""},"",""]
[10,null,null,{"$f":"Numerical!$A20","v":""},"","",null,null,{"$f":"IF(IFERROR(FIND(\". \",Games!$A20),0)>0,\nSUBSTITUTE(SUBSTITUTE(SUBSTITUTE(SUBSTITUTE(SUBSTITUTE(SUBSTITUTE(SUBSTITUTE(SUBSTITUTE(SUBSTITUTE(SUBSTITUTE(SUBSTITUTE(SUBSTITUTE(SUBSTITUTE(SUBSTITUTE(SUBSTITUTE(Games!$A20,\n\"♔\",\"R\"),\"♕\",\"D\"),\"♖\",\"T\"),\"♗\",\"A\"),\"♘\",\"C\"),\n\"♚\",\"R\"),\"♛\",\"D\"),\"♜\",\"T\"),\"♝\",\"A\"),\"♞\",\"C\"),\n\"R\",INDEX(TablaPiezas[],1,miIdioma)),\n\"D\",INDEX(TablaPiezas[],2,miIdioma)),\n\"T\",INDEX(TablaPiezas[],3,miIdioma)),\n\"A\",INDEX(TablaPiezas[],4,miIdioma)),\n\"C\",INDEX(TablaPiezas[],5,miIdioma)),\nGames!$A20)","v":""},"","","","","","","",{"$f":"IF(G12=\"\",\"\",$A12&\". \"&\nSUBSTITUTE(SUBSTITUTE(SUBSTITUTE(SUBSTITUTE(SUBSTITUTE(G12,\nINDEX(TablaPiezas[],1,miIdioma),\"♔\"),\nINDEX(TablaPiezas[],2,miIdioma),\"♕\"),\nINDEX(TablaPiezas[],3,miIdioma),\"♖\"),\nINDEX(TablaPiezas[],4,miIdioma),\"♗\"),\nINDEX(TablaPiezas[],5,miIdioma),\"♘\")&\" \"&\nSUBSTITUTE(SUBSTITUTE(SUBSTITUTE(SUBSTITUTE(SUBSTITUTE(H12,\nINDEX(TablaPiezas[],1,miIdioma),\"♚\"),\nINDEX(TablaPiezas[],2,miIdioma),\"♛\"),\nINDEX(TablaPiezas[],3,miIdioma),\"♜\"),\nINDEX(TablaPiezas[],4,miIdioma),\"♝\"),\nINDEX(TablaPiezas[],5,miIdioma),\"♞\"))","v":""},"","",{"$f":"Games!$A20","v":""},"",""]
[11,null,null,{"$f":"Numerical!$A21","v":""},"","",null,null,{"$f":"IF(IFERROR(FIND(\". \",Games!$A21),0)>0,\nSUBSTITUTE(SUBSTITUTE(SUBSTITUTE(SUBSTITUTE(SUBSTITUTE(SUBSTITUTE(SUBSTITUTE(SUBSTITUTE(SUBSTITUTE(SUBSTITUTE(SUBSTITUTE(SUBSTITUTE(SUBSTITUTE(SUBSTITUTE(SUBSTITUTE(Games!$A21,\n\"♔\",\"R\"),\"♕\",\"D\"),\"♖\",\"T\"),\"♗\",\"A\"),\"♘\",\"C\"),\n\"♚\",\"R\"),\"♛\",\"D\"),\"♜\",\"T\"),\"♝\",\"A\"),\"♞\",\"C\"),\n\"R\",INDEX(TablaPiezas[],1,miIdioma)),\n\"D\",INDEX(TablaPiezas[],2,miIdioma)),\n\"T\",INDEX(TablaPiezas[],3,miIdioma)),\n\"A\",INDEX(TablaPiezas[],4,miIdioma)),\n\"C\",INDEX(TablaPiezas[],5,miIdioma)),\nGames!$A21)","v":""},"","","","","","","",{"$f":"IF(G13=\"\",\"\",$A13&\". \"&\nSUBSTITUTE(SUBSTITUTE(SUBSTITUTE(SUBSTITUTE(SUBSTITUTE(G13,\nINDEX(TablaPiezas[],1,miIdioma),\"♔\"),\nINDEX(TablaPiezas[],2,miIdioma),\"♕\"),\nINDEX(TablaPiezas[],3,miIdioma),\"♖\"),\nINDEX(TablaPiezas[],4,miIdioma),\"♗\"),\nINDEX(TablaPiezas[],5,miIdioma),\"♘\")&\" \"&\nSUBSTITUTE(SUBSTITUTE(SUBSTITUTE(SUBSTITUTE(SUBSTITUTE(H13,\nINDEX(TablaPiezas[],1,miIdioma),\"♚\"),\nINDEX(TablaPiezas[],2,miIdioma),\"♛\"),\nINDEX(TablaPiezas[],3,miIdioma),\"♜\"),\nINDEX(TablaPiezas[],4,miIdioma),\"♝\"),\nINDEX(TablaPiezas[],5,miIdioma),\"♞\"))","v":""},"","",{"$f":"Games!$A21","v":""},"",""]
[12,null,null,{"$f":"Numerical!$A22","v":""},"","",null,null,{"$f":"IF(IFERROR(FIND(\". \",Games!$A22),0)>0,\nSUBSTITUTE(SUBSTITUTE(SUBSTITUTE(SUBSTITUTE(SUBSTITUTE(SUBSTITUTE(SUBSTITUTE(SUBSTITUTE(SUBSTITUTE(SUBSTITUTE(SUBSTITUTE(SUBSTITUTE(SUBSTITUTE(SUBSTITUTE(SUBSTITUTE(Games!$A22,\n\"♔\",\"R\"),\"♕\",\"D\"),\"♖\",\"T\"),\"♗\",\"A\"),\"♘\",\"C\"),\n\"♚\",\"R\"),\"♛\",\"D\"),\"♜\",\"T\"),\"♝\",\"A\"),\"♞\",\"C\"),\n\"R\",INDEX(TablaPiezas[],1,miIdioma)),\n\"D\",INDEX(TablaPiezas[],2,miIdioma)),\n\"T\",INDEX(TablaPiezas[],3,miIdioma)),\n\"A\",INDEX(TablaPiezas[],4,miIdioma)),\n\"C\",INDEX(TablaPiezas[],5,miIdioma)),\nGames!$A22)","v":""},"","","","","","","",{"$f":"IF(G14=\"\",\"\",$A14&\". \"&\nSUBSTITUTE(SUBSTITUTE(SUBSTITUTE(SUBSTITUTE(SUBSTITUTE(G14,\nINDEX(TablaPiezas[],1,miIdioma),\"♔\"),\nINDEX(TablaPiezas[],2,miIdioma),\"♕\"),\nINDEX(TablaPiezas[],3,miIdioma),\"♖\"),\nINDEX(TablaPiezas[],4,miIdioma),\"♗\"),\nINDEX(TablaPiezas[],5,miIdioma),\"♘\")&\" \"&\nSUBSTITUTE(SUBSTITUTE(SUBSTITUTE(SUBSTITUTE(SUBSTITUTE(H14,\nINDEX(TablaPiezas[],1,miIdioma),\"♚\"),\nINDEX(TablaPiezas[],2,miIdioma),\"♛\"),\nINDEX(TablaPiezas[],3,miIdioma),\"♜\"),\nINDEX(TablaPiezas[],4,miIdioma),\"♝\"),\nINDEX(TablaPiezas[],5,miIdioma),\"♞\"))","v":""},"","",{"$f":"Games!$A22","v":""},"",""]
[13,null,null,{"$f":"Numerical!$A23","v":""},"","",null,null,{"$f":"IF(IFERROR(FIND(\". \",Games!$A23),0)>0,\nSUBSTITUTE(SUBSTITUTE(SUBSTITUTE(SUBSTITUTE(SUBSTITUTE(SUBSTITUTE(SUBSTITUTE(SUBSTITUTE(SUBSTITUTE(SUBSTITUTE(SUBSTITUTE(SUBSTITUTE(SUBSTITUTE(SUBSTITUTE(SUBSTITUTE(Games!$A23,\n\"♔\",\"R\"),\"♕\",\"D\"),\"♖\",\"T\"),\"♗\",\"A\"),\"♘\",\"C\"),\n\"♚\",\"R\"),\"♛\",\"D\"),\"♜\",\"T\"),\"♝\",\"A\"),\"♞\",\"C\"),\n\"R\",INDEX(TablaPiezas[],1,miIdioma)),\n\"D\",INDEX(TablaPiezas[],2,miIdioma)),\n\"T\",INDEX(TablaPiezas[],3,miIdioma)),\n\"A\",INDEX(TablaPiezas[],4,miIdioma)),\n\"C\",INDEX(TablaPiezas[],5,miIdioma)),\nGames!$A23)","v":""},"","","","","","","",{"$f":"IF(G15=\"\",\"\",$A15&\". \"&\nSUBSTITUTE(SUBSTITUTE(SUBSTITUTE(SUBSTITUTE(SUBSTITUTE(G15,\nINDEX(TablaPiezas[],1,miIdioma),\"♔\"),\nINDEX(TablaPiezas[],2,miIdioma),\"♕\"),\nINDEX(TablaPiezas[],3,miIdioma),\"♖\"),\nINDEX(TablaPiezas[],4,miIdioma),\"♗\"),\nINDEX(TablaPiezas[],5,miIdioma),\"♘\")&\" \"&\nSUBSTITUTE(SUBSTITUTE(SUBSTITUTE(SUBSTITUTE(SUBSTITUTE(H15,\nINDEX(TablaPiezas[],1,miIdioma),\"♚\"),\nINDEX(TablaPiezas[],2,miIdioma),\"♛\"),\nINDEX(TablaPiezas[],3,miIdioma),\"♜\"),\nINDEX(TablaPiezas[],4,miIdioma),\"♝\"),\nINDEX(TablaPiezas[],5,miIdioma),\"♞\"))","v":""},"","",{"$f":"Games!$A23","v":""},"",""]
[14,null,null,{"$f":"Numerical!$A24","v":""},"","",null,null,{"$f":"IF(IFERROR(FIND(\". \",Games!$A24),0)>0,\nSUBSTITUTE(SUBSTITUTE(SUBSTITUTE(SUBSTITUTE(SUBSTITUTE(SUBSTITUTE(SUBSTITUTE(SUBSTITUTE(SUBSTITUTE(SUBSTITUTE(SUBSTITUTE(SUBSTITUTE(SUBSTITUTE(SUBSTITUTE(SUBSTITUTE(Games!$A24,\n\"♔\",\"R\"),\"♕\",\"D\"),\"♖\",\"T\"),\"♗\",\"A\"),\"♘\",\"C\"),\n\"♚\",\"R\"),\"♛\",\"D\"),\"♜\",\"T\"),\"♝\",\"A\"),\"♞\",\"C\"),\n\"R\",INDEX(TablaPiezas[],1,miIdioma)),\n\"D\",INDEX(TablaPiezas[],2,miIdioma)),\n\"T\",INDEX(TablaPiezas[],3,miIdioma)),\n\"A\",INDEX(TablaPiezas[],4,miIdioma)),\n\"C\",INDEX(TablaPiezas[],5,miIdioma)),\nGames!$A24)","v":""},"","","","","","","",{"$f":"IF(G16=\"\",\"\",$A16&\". \"&\nSUBSTITUTE(SUBSTITUTE(SUBSTITUTE(SUBSTITUTE(SUBSTITUTE(G16,\nINDEX(TablaPiezas[],1,miIdioma),\"♔\"),\nINDEX(TablaPiezas[],2,miIdioma),\"♕\"),\nINDEX(TablaPiezas[],3,miIdioma),\"♖\"),\nINDEX(TablaPiezas[],4,miIdioma),\"♗\"),\nINDEX(TablaPiezas[],5,miIdioma),\"♘\")&\" \"&\nSUBSTITUTE(SUBSTITUTE(SUBSTITUTE(SUBSTITUTE(SUBSTITUTE(H16,\nINDEX(TablaPiezas[],1,miIdioma),\"♚\"),\nINDEX(TablaPiezas[],2,miIdioma),\"♛\"),\nINDEX(TablaPiezas[],3,miIdioma),\"♜\"),\nINDEX(TablaPiezas[],4,miIdioma),\"♝\"),\nINDEX(TablaPiezas[],5,miIdioma),\"♞\"))","v":""},"","",{"$f":"Games!$A24","v":""},"",""]
[15,null,null,{"$f":"Numerical!$A25","v":""},"","",null,null,{"$f":"IF(IFERROR(FIND(\". \",Games!$A25),0)>0,\nSUBSTITUTE(SUBSTITUTE(SUBSTITUTE(SUBSTITUTE(SUBSTITUTE(SUBSTITUTE(SUBSTITUTE(SUBSTITUTE(SUBSTITUTE(SUBSTITUTE(SUBSTITUTE(SUBSTITUTE(SUBSTITUTE(SUBSTITUTE(SUBSTITUTE(Games!$A25,\n\"♔\",\"R\"),\"♕\",\"D\"),\"♖\",\"T\"),\"♗\",\"A\"),\"♘\",\"C\"),\n\"♚\",\"R\"),\"♛\",\"D\"),\"♜\",\"T\"),\"♝\",\"A\"),\"♞\",\"C\"),\n\"R\",INDEX(TablaPiezas[],1,miIdioma)),\n\"D\",INDEX(TablaPiezas[],2,miIdioma)),\n\"T\",INDEX(TablaPiezas[],3,miIdioma)),\n\"A\",INDEX(TablaPiezas[],4,miIdioma)),\n\"C\",INDEX(TablaPiezas[],5,miIdioma)),\nGames!$A25)","v":""},"","","","","","","",{"$f":"IF(G17=\"\",\"\",$A17&\". \"&\nSUBSTITUTE(SUBSTITUTE(SUBSTITUTE(SUBSTITUTE(SUBSTITUTE(G17,\nINDEX(TablaPiezas[],1,miIdioma),\"♔\"),\nINDEX(TablaPiezas[],2,miIdioma),\"♕\"),\nINDEX(TablaPiezas[],3,miIdioma),\"♖\"),\nINDEX(TablaPiezas[],4,miIdioma),\"♗\"),\nINDEX(TablaPiezas[],5,miIdioma),\"♘\")&\" \"&\nSUBSTITUTE(SUBSTITUTE(SUBSTITUTE(SUBSTITUTE(SUBSTITUTE(H17,\nINDEX(TablaPiezas[],1,miIdioma),\"♚\"),\nINDEX(TablaPiezas[],2,miIdioma),\"♛\"),\nINDEX(TablaPiezas[],3,miIdioma),\"♜\"),\nINDEX(TablaPiezas[],4,miIdioma),\"♝\"),\nINDEX(TablaPiezas[],5,miIdioma),\"♞\"))","v":""},"","",{"$f":"Games!$A25","v":""},"",""]
[16,null,null,{"$f":"Numerical!$A26","v":""},"","",null,null,{"$f":"IF(IFERROR(FIND(\". \",Games!$A26),0)>0,\nSUBSTITUTE(SUBSTITUTE(SUBSTITUTE(SUBSTITUTE(SUBSTITUTE(SUBSTITUTE(SUBSTITUTE(SUBSTITUTE(SUBSTITUTE(SUBSTITUTE(SUBSTITUTE(SUBSTITUTE(SUBSTITUTE(SUBSTITUTE(SUBSTITUTE(Games!$A26,\n\"♔\",\"R\"),\"♕\",\"D\"),\"♖\",\"T\"),\"♗\",\"A\"),\"♘\",\"C\"),\n\"♚\",\"R\"),\"♛\",\"D\"),\"♜\",\"T\"),\"♝\",\"A\"),\"♞\",\"C\"),\n\"R\",INDEX(TablaPiezas[],1,miIdioma)),\n\"D\",INDEX(TablaPiezas[],2,miIdioma)),\n\"T\",INDEX(TablaPiezas[],3,miIdioma)),\n\"A\",INDEX(TablaPiezas[],4,miIdioma)),\n\"C\",INDEX(TablaPiezas[],5,miIdioma)),\nGames!$A26)","v":""},"","","","","","","",{"$f":"IF(G18=\"\",\"\",$A18&\". \"&\nSUBSTITUTE(SUBSTITUTE(SUBSTITUTE(SUBSTITUTE(SUBSTITUTE(G18,\nINDEX(TablaPiezas[],1,miIdioma),\"♔\"),\nINDEX(TablaPiezas[],2,miIdioma),\"♕\"),\nINDEX(TablaPiezas[],3,miIdioma),\"♖\"),\nINDEX(TablaPiezas[],4,miIdioma),\"♗\"),\nINDEX(TablaPiezas[],5,miIdioma),\"♘\")&\" \"&\nSUBSTITUTE(SUBSTITUTE(SUBSTITUTE(SUBSTITUTE(SUBSTITUTE(H18,\nINDEX(TablaPiezas[],1,miIdioma),\"♚\"),\nINDEX(TablaPiezas[],2,miIdioma),\"♛\"),\nINDEX(TablaPiezas[],3,miIdioma),\"♜\"),\nINDEX(TablaPiezas[],4,miIdioma),\"♝\"),\nINDEX(TablaPiezas[],5,miIdioma),\"♞\"))","v":""},"","",{"$f":"Games!$A26","v":""},"",""]
[17,null,null,{"$f":"Numerical!$A27","v":""},"","",null,null,{"$f":"IF(IFERROR(FIND(\". \",Games!$A27),0)>0,\nSUBSTITUTE(SUBSTITUTE(SUBSTITUTE(SUBSTITUTE(SUBSTITUTE(SUBSTITUTE(SUBSTITUTE(SUBSTITUTE(SUBSTITUTE(SUBSTITUTE(SUBSTITUTE(SUBSTITUTE(SUBSTITUTE(SUBSTITUTE(SUBSTITUTE(Games!$A27,\n\"♔\",\"R\"),\"♕\",\"D\"),\"♖\",\"T\"),\"♗\",\"A\"),\"♘\",\"C\"),\n\"♚\",\"R\"),\"♛\",\"D\"),\"♜\",\"T\"),\"♝\",\"A\"),\"♞\",\"C\"),\n\"R\",INDEX(TablaPiezas[],1,miIdioma)),\n\"D\",INDEX(TablaPiezas[],2,miIdioma)),\n\"T\",INDEX(TablaPiezas[],3,miIdioma)),\n\"A\",INDEX(TablaPiezas[],4,miIdioma)),\n\"C\",INDEX(TablaPiezas[],5,miIdioma)),\nGames!$A27)","v":""},"","","","","","","",{"$f":"IF(G19=\"\",\"\",$A19&\". \"&\nSUBSTITUTE(SUBSTITUTE(SUBSTITUTE(SUBSTITUTE(SUBSTITUTE(G19,\nINDEX(TablaPiezas[],1,miIdioma),\"♔\"),\nINDEX(TablaPiezas[],2,miIdioma),\"♕\"),\nINDEX(TablaPiezas[],3,miIdioma),\"♖\"),\nINDEX(TablaPiezas[],4,miIdioma),\"♗\"),\nINDEX(TablaPiezas[],5,miIdioma),\"♘\")&\" \"&\nSUBSTITUTE(SUBSTITUTE(SUBSTITUTE(SUBSTITUTE(SUBSTITUTE(H19,\nINDEX(TablaPiezas[],1,miIdioma),\"♚\"),\nINDEX(TablaPiezas[],2,miIdioma),\"♛\"),\nINDEX(TablaPiezas[],3,miIdioma),\"♜\"),\nINDEX(TablaPiezas[],4,miIdioma),\"♝\"),\nINDEX(TablaPiezas[],5,miIdioma),\"♞\"))","v":""},"","",{"$f":"Games!$A27","v":""},"",""]
[18,null,null,{"$f":"Numerical!$A28","v":""},"","",null,null,{"$f":"IF(IFERROR(FIND(\". \",Games!$A28),0)>0,\nSUBSTITUTE(SUBSTITUTE(SUBSTITUTE(SUBSTITUTE(SUBSTITUTE(SUBSTITUTE(SUBSTITUTE(SUBSTITUTE(SUBSTITUTE(SUBSTITUTE(SUBSTITUTE(SUBSTITUTE(SUBSTITUTE(SUBSTITUTE(SUBSTITUTE(Games!$A28,\n\"♔\",\"R\"),\"♕\",\"D\"),\"♖\",\"T\"),\"♗\",\"A\"),\"♘\",\"C\"),\n\"♚\",\"R\"),\"♛\",\"D\"),\"♜\",\"T\"),\"♝\",\"A\"),\"♞\",\"C\"),\n\"R\",INDEX(TablaPiezas[],1,miIdioma)),\n\"D\",INDEX(TablaPiezas[],2,miIdioma)),\n\"T\",INDEX(TablaPiezas[],3,miIdioma)),\n\"A\",INDEX(TablaPiezas[],4,miIdioma)),\n\"C\",INDEX(TablaPiezas[],5,miIdioma)),\nGames!$A28)","v":""},"","","","","","","",{"$f":"IF(G20=\"\",\"\",$A20&\". \"&\nSUBSTITUTE(SUBSTITUTE(SUBSTITUTE(SUBSTITUTE(SUBSTITUTE(G20,\nINDEX(TablaPiezas[],1,miIdioma),\"♔\"),\nINDEX(TablaPiezas[],2,miIdioma),\"♕\"),\nINDEX(TablaPiezas[],3,miIdioma),\"♖\"),\nINDEX(TablaPiezas[],4,miIdioma),\"♗\"),\nINDEX(TablaPiezas[],5,miIdioma),\"♘\")&\" \"&\nSUBSTITUTE(SUBSTITUTE(SUBSTITUTE(SUBSTITUTE(SUBSTITUTE(H20,\nINDEX(TablaPiezas[],1,miIdioma),\"♚\"),\nINDEX(TablaPiezas[],2,miIdioma),\"♛\"),\nINDEX(TablaPiezas[],3,miIdioma),\"♜\"),\nINDEX(TablaPiezas[],4,miIdioma),\"♝\"),\nINDEX(TablaPiezas[],5,miIdioma),\"♞\"))","v":""},"","",{"$f":"Games!$A28","v":""},"",""]
[19,null,null,{"$f":"Numerical!$A29","v":""},"","",null,null,{"$f":"IF(IFERROR(FIND(\". \",Games!$A29),0)>0,\nSUBSTITUTE(SUBSTITUTE(SUBSTITUTE(SUBSTITUTE(SUBSTITUTE(SUBSTITUTE(SUBSTITUTE(SUBSTITUTE(SUBSTITUTE(SUBSTITUTE(SUBSTITUTE(SUBSTITUTE(SUBSTITUTE(SUBSTITUTE(SUBSTITUTE(Games!$A29,\n\"♔\",\"R\"),\"♕\",\"D\"),\"♖\",\"T\"),\"♗\",\"A\"),\"♘\",\"C\"),\n\"♚\",\"R\"),\"♛\",\"D\"),\"♜\",\"T\"),\"♝\",\"A\"),\"♞\",\"C\"),\n\"R\",INDEX(TablaPiezas[],1,miIdioma)),\n\"D\",INDEX(TablaPiezas[],2,miIdioma)),\n\"T\",INDEX(TablaPiezas[],3,miIdioma)),\n\"A\",INDEX(TablaPiezas[],4,miIdioma)),\n\"C\",INDEX(TablaPiezas[],5,miIdioma)),\nGames!$A29)","v":""},"","","","","","","",{"$f":"IF(G21=\"\",\"\",$A21&\". \"&\nSUBSTITUTE(SUBSTITUTE(SUBSTITUTE(SUBSTITUTE(SUBSTITUTE(G21,\nINDEX(TablaPiezas[],1,miIdioma),\"♔\"),\nINDEX(TablaPiezas[],2,miIdioma),\"♕\"),\nINDEX(TablaPiezas[],3,miIdioma),\"♖\"),\nINDEX(TablaPiezas[],4,miIdioma),\"♗\"),\nINDEX(TablaPiezas[],5,miIdioma),\"♘\")&\" \"&\nSUBSTITUTE(SUBSTITUTE(SUBSTITUTE(SUBSTITUTE(SUBSTITUTE(H21,\nINDEX(TablaPiezas[],1,miIdioma),\"♚\"),\nINDEX(TablaPiezas[],2,miIdioma),\"♛\"),\nINDEX(TablaPiezas[],3,miIdioma),\"♜\"),\nINDEX(TablaPiezas[],4,miIdioma),\"♝\"),\nINDEX(TablaPiezas[],5,miIdioma),\"♞\"))","v":""},"","",{"$f":"Games!$A29","v":""},"",""]
[20,null,null,{"$f":"Numerical!$A30","v":""},"","",null,null,{"$f":"IF(IFERROR(FIND(\". \",Games!$A30),0)>0,\nSUBSTITUTE(SUBSTITUTE(SUBSTITUTE(SUBSTITUTE(SUBSTITUTE(SUBSTITUTE(SUBSTITUTE(SUBSTITUTE(SUBSTITUTE(SUBSTITUTE(SUBSTITUTE(SUBSTITUTE(SUBSTITUTE(SUBSTITUTE(SUBSTITUTE(Games!$A30,\n\"♔\",\"R\"),\"♕\",\"D\"),\"♖\",\"T\"),\"♗\",\"A\"),\"♘\",\"C\"),\n\"♚\",\"R\"),\"♛\",\"D\"),\"♜\",\"T\"),\"♝\",\"A\"),\"♞\",\"C\"),\n\"R\",INDEX(TablaPiezas[],1,miIdioma)),\n\"D\",INDEX(TablaPiezas[],2,miIdioma)),\n\"T\",INDEX(TablaPiezas[],3,miIdioma)),\n\"A\",INDEX(TablaPiezas[],4,miIdioma)),\n\"C\",INDEX(TablaPiezas[],5,miIdioma)),\nGames!$A30)","v":""},"","","","","","","",{"$f":"IF(G22=\"\",\"\",$A22&\". \"&\nSUBSTITUTE(SUBSTITUTE(SUBSTITUTE(SUBSTITUTE(SUBSTITUTE(G22,\nINDEX(TablaPiezas[],1,miIdioma),\"♔\"),\nINDEX(TablaPiezas[],2,miIdioma),\"♕\"),\nINDEX(TablaPiezas[],3,miIdioma),\"♖\"),\nINDEX(TablaPiezas[],4,miIdioma),\"♗\"),\nINDEX(TablaPiezas[],5,miIdioma),\"♘\")&\" \"&\nSUBSTITUTE(SUBSTITUTE(SUBSTITUTE(SUBSTITUTE(SUBSTITUTE(H22,\nINDEX(TablaPiezas[],1,miIdioma),\"♚\"),\nINDEX(TablaPiezas[],2,miIdioma),\"♛\"),\nINDEX(TablaPiezas[],3,miIdioma),\"♜\"),\nINDEX(TablaPiezas[],4,miIdioma),\"♝\"),\nINDEX(TablaPiezas[],5,miIdioma),\"♞\"))","v":""},"","",{"$f":"Games!$A30","v":""},"",""]
[21,null,null,{"$f":"Numerical!$A31","v":""},"","",null,null,{"$f":"IF(IFERROR(FIND(\". \",Games!$A31),0)>0,\nSUBSTITUTE(SUBSTITUTE(SUBSTITUTE(SUBSTITUTE(SUBSTITUTE(SUBSTITUTE(SUBSTITUTE(SUBSTITUTE(SUBSTITUTE(SUBSTITUTE(SUBSTITUTE(SUBSTITUTE(SUBSTITUTE(SUBSTITUTE(SUBSTITUTE(Games!$A31,\n\"♔\",\"R\"),\"♕\",\"D\"),\"♖\",\"T\"),\"♗\",\"A\"),\"♘\",\"C\"),\n\"♚\",\"R\"),\"♛\",\"D\"),\"♜\",\"T\"),\"♝\",\"A\"),\"♞\",\"C\"),\n\"R\",INDEX(TablaPiezas[],1,miIdioma)),\n\"D\",INDEX(TablaPiezas[],2,miIdioma)),\n\"T\",INDEX(TablaPiezas[],3,miIdioma)),\n\"A\",INDEX(TablaPiezas[],4,miIdioma)),\n\"C\",INDEX(TablaPiezas[],5,miIdioma)),\nGames!$A31)","v":""},"","","","","","","",{"$f":"IF(G23=\"\",\"\",$A23&\". \"&\nSUBSTITUTE(SUBSTITUTE(SUBSTITUTE(SUBSTITUTE(SUBSTITUTE(G23,\nINDEX(TablaPiezas[],1,miIdioma),\"♔\"),\nINDEX(TablaPiezas[],2,miIdioma),\"♕\"),\nINDEX(TablaPiezas[],3,miIdioma),\"♖\"),\nINDEX(TablaPiezas[],4,miIdioma),\"♗\"),\nINDEX(TablaPiezas[],5,miIdioma),\"♘\")&\" \"&\nSUBSTITUTE(SUBSTITUTE(SUBSTITUTE(SUBSTITUTE(SUBSTITUTE(H23,\nINDEX(TablaPiezas[],1,miIdioma),\"♚\"),\nINDEX(TablaPiezas[],2,miIdioma),\"♛\"),\nINDEX(TablaPiezas[],3,miIdioma),\"♜\"),\nINDEX(TablaPiezas[],4,miIdioma),\"♝\"),\nINDEX(TablaPiezas[],5,miIdioma),\"♞\"))","v":""},"","",{"$f":"Games!$A31","v":""},"",""]
[22,null,null,{"$f":"Numerical!$A32","v":""},"","",null,null,{"$f":"IF(IFERROR(FIND(\". \",Games!$A32),0)>0,\nSUBSTITUTE(SUBSTITUTE(SUBSTITUTE(SUBSTITUTE(SUBSTITUTE(SUBSTITUTE(SUBSTITUTE(SUBSTITUTE(SUBSTITUTE(SUBSTITUTE(SUBSTITUTE(SUBSTITUTE(SUBSTITUTE(SUBSTITUTE(SUBSTITUTE(Games!$A32,\n\"♔\",\"R\"),\"♕\",\"D\"),\"♖\",\"T\"),\"♗\",\"A\"),\"♘\",\"C\"),\n\"♚\",\"R\"),\"♛\",\"D\"),\"♜\",\"T\"),\"♝\",\"A\"),\"♞\",\"C\"),\n\"R\",INDEX(TablaPiezas[],1,miIdioma)),\n\"D\",INDEX(TablaPiezas[],2,miIdioma)),\n\"T\",INDEX(TablaPiezas[],3,miIdioma)),\n\"A\",INDEX(TablaPiezas[],4,miIdioma)),\n\"C\",INDEX(TablaPiezas[],5,miIdioma)),\nGames!$A32)","v":""},"","","","","","","",{"$f":"IF(G24=\"\",\"\",$A24&\". \"&\nSUBSTITUTE(SUBSTITUTE(SUBSTITUTE(SUBSTITUTE(SUBSTITUTE(G24,\nINDEX(TablaPiezas[],1,miIdioma),\"♔\"),\nINDEX(TablaPiezas[],2,miIdioma),\"♕\"),\nINDEX(TablaPiezas[],3,miIdioma),\"♖\"),\nINDEX(TablaPiezas[],4,miIdioma),\"♗\"),\nINDEX(TablaPiezas[],5,miIdioma),\"♘\")&\" \"&\nSUBSTITUTE(SUBSTITUTE(SUBSTITUTE(SUBSTITUTE(SUBSTITUTE(H24,\nINDEX(TablaPiezas[],1,miIdioma),\"♚\"),\nINDEX(TablaPiezas[],2,miIdioma),\"♛\"),\nINDEX(TablaPiezas[],3,miIdioma),\"♜\"),\nINDEX(TablaPiezas[],4,miIdioma),\"♝\"),\nINDEX(TablaPiezas[],5,miIdioma),\"♞\"))","v":""},"","",{"$f":"Games!$A32","v":""},"",""]
[23,null,null,{"$f":"Numerical!$A33","v":""},"","",null,null,{"$f":"IF(IFERROR(FIND(\". \",Games!$A33),0)>0,\nSUBSTITUTE(SUBSTITUTE(SUBSTITUTE(SUBSTITUTE(SUBSTITUTE(SUBSTITUTE(SUBSTITUTE(SUBSTITUTE(SUBSTITUTE(SUBSTITUTE(SUBSTITUTE(SUBSTITUTE(SUBSTITUTE(SUBSTITUTE(SUBSTITUTE(Games!$A33,\n\"♔\",\"R\"),\"♕\",\"D\"),\"♖\",\"T\"),\"♗\",\"A\"),\"♘\",\"C\"),\n\"♚\",\"R\"),\"♛\",\"D\"),\"♜\",\"T\"),\"♝\",\"A\"),\"♞\",\"C\"),\n\"R\",INDEX(TablaPiezas[],1,miIdioma)),\n\"D\",INDEX(TablaPiezas[],2,miIdioma)),\n\"T\",INDEX(TablaPiezas[],3,miIdioma)),\n\"A\",INDEX(TablaPiezas[],4,miIdioma)),\n\"C\",INDEX(TablaPiezas[],5,miIdioma)),\nGames!$A33)","v":""},"","","","","","","",{"$f":"IF(G25=\"\",\"\",$A25&\". \"&\nSUBSTITUTE(SUBSTITUTE(SUBSTITUTE(SUBSTITUTE(SUBSTITUTE(G25,\nINDEX(TablaPiezas[],1,miIdioma),\"♔\"),\nINDEX(TablaPiezas[],2,miIdioma),\"♕\"),\nINDEX(TablaPiezas[],3,miIdioma),\"♖\"),\nINDEX(TablaPiezas[],4,miIdioma),\"♗\"),\nINDEX(TablaPiezas[],5,miIdioma),\"♘\")&\" \"&\nSUBSTITUTE(SUBSTITUTE(SUBSTITUTE(SUBSTITUTE(SUBSTITUTE(H25,\nINDEX(TablaPiezas[],1,miIdioma),\"♚\"),\nINDEX(TablaPiezas[],2,miIdioma),\"♛\"),\nINDEX(TablaPiezas[],3,miIdioma),\"♜\"),\nINDEX(TablaPiezas[],4,miIdioma),\"♝\"),\nINDEX(TablaPiezas[],5,miIdioma),\"♞\"))","v":""},"","",{"$f":"Games!$A33","v":""},"",""]
[24,null,null,{"$f":"Numerical!$A34","v":""},"","",null,null,{"$f":"IF(IFERROR(FIND(\". \",Games!$A34),0)>0,\nSUBSTITUTE(SUBSTITUTE(SUBSTITUTE(SUBSTITUTE(SUBSTITUTE(SUBSTITUTE(SUBSTITUTE(SUBSTITUTE(SUBSTITUTE(SUBSTITUTE(SUBSTITUTE(SUBSTITUTE(SUBSTITUTE(SUBSTITUTE(SUBSTITUTE(Games!$A34,\n\"♔\",\"R\"),\"♕\",\"D\"),\"♖\",\"T\"),\"♗\",\"A\"),\"♘\",\"C\"),\n\"♚\",\"R\"),\"♛\",\"D\"),\"♜\",\"T\"),\"♝\",\"A\"),\"♞\",\"C\"),\n\"R\",INDEX(TablaPiezas[],1,miIdioma)),\n\"D\",INDEX(TablaPiezas[],2,miIdioma)),\n\"T\",INDEX(TablaPiezas[],3,miIdioma)),\n\"A\",INDEX(TablaPiezas[],4,miIdioma)),\n\"C\",INDEX(TablaPiezas[],5,miIdioma)),\nGames!$A34)","v":""},"","","","","","","",{"$f":"IF(G26=\"\",\"\",$A26&\". \"&\nSUBSTITUTE(SUBSTITUTE(SUBSTITUTE(SUBSTITUTE(SUBSTITUTE(G26,\nINDEX(TablaPiezas[],1,miIdioma),\"♔\"),\nINDEX(TablaPiezas[],2,miIdioma),\"♕\"),\nINDEX(TablaPiezas[],3,miIdioma),\"♖\"),\nINDEX(TablaPiezas[],4,miIdioma),\"♗\"),\nINDEX(TablaPiezas[],5,miIdioma),\"♘\")&\" \"&\nSUBSTITUTE(SUBSTITUTE(SUBSTITUTE(SUBSTITUTE(SUBSTITUTE(H26,\nINDEX(TablaPiezas[],1,miIdioma),\"♚\"),\nINDEX(TablaPiezas[],2,miIdioma),\"♛\"),\nINDEX(TablaPiezas[],3,miIdioma),\"♜\"),\nINDEX(TablaPiezas[],4,miIdioma),\"♝\"),\nINDEX(TablaPiezas[],5,miIdioma),\"♞\"))","v":""},"","",{"$f":"Games!$A34","v":""},"",""]
[25,null,null,{"$f":"Numerical!$A35","v":""},"","",null,null,{"$f":"IF(IFERROR(FIND(\". \",Games!$A35),0)>0,\nSUBSTITUTE(SUBSTITUTE(SUBSTITUTE(SUBSTITUTE(SUBSTITUTE(SUBSTITUTE(SUBSTITUTE(SUBSTITUTE(SUBSTITUTE(SUBSTITUTE(SUBSTITUTE(SUBSTITUTE(SUBSTITUTE(SUBSTITUTE(SUBSTITUTE(Games!$A35,\n\"♔\",\"R\"),\"♕\",\"D\"),\"♖\",\"T\"),\"♗\",\"A\"),\"♘\",\"C\"),\n\"♚\",\"R\"),\"♛\",\"D\"),\"♜\",\"T\"),\"♝\",\"A\"),\"♞\",\"C\"),\n\"R\",INDEX(TablaPiezas[],1,miIdioma)),\n\"D\",INDEX(TablaPiezas[],2,miIdioma)),\n\"T\",INDEX(TablaPiezas[],3,miIdioma)),\n\"A\",INDEX(TablaPiezas[],4,miIdioma)),\n\"C\",INDEX(TablaPiezas[],5,miIdioma)),\nGames!$A35)","v":""},"","","","","","","",{"$f":"IF(G27=\"\",\"\",$A27&\". \"&\nSUBSTITUTE(SUBSTITUTE(SUBSTITUTE(SUBSTITUTE(SUBSTITUTE(G27,\nINDEX(TablaPiezas[],1,miIdioma),\"♔\"),\nINDEX(TablaPiezas[],2,miIdioma),\"♕\"),\nINDEX(TablaPiezas[],3,miIdioma),\"♖\"),\nINDEX(TablaPiezas[],4,miIdioma),\"♗\"),\nINDEX(TablaPiezas[],5,miIdioma),\"♘\")&\" \"&\nSUBSTITUTE(SUBSTITUTE(SUBSTITUTE(SUBSTITUTE(SUBSTITUTE(H27,\nINDEX(TablaPiezas[],1,miIdioma),\"♚\"),\nINDEX(TablaPiezas[],2,miIdioma),\"♛\"),\nINDEX(TablaPiezas[],3,miIdioma),\"♜\"),\nINDEX(TablaPiezas[],4,miIdioma),\"♝\"),\nINDEX(TablaPiezas[],5,miIdioma),\"♞\"))","v":""},"","",{"$f":"Games!$A35","v":""},"",""]
[26,null,null,{"$f":"Numerical!$A36","v":""},"","",null,null,{"$f":"IF(IFERROR(FIND(\". \",Games!$A36),0)>0,\nSUBSTITUTE(SUBSTITUTE(SUBSTITUTE(SUBSTITUTE(SUBSTITUTE(SUBSTITUTE(SUBSTITUTE(SUBSTITUTE(SUBSTITUTE(SUBSTITUTE(SUBSTITUTE(SUBSTITUTE(SUBSTITUTE(SUBSTITUTE(SUBSTITUTE(Games!$A36,\n\"♔\",\"R\"),\"♕\",\"D\"),\"♖\",\"T\"),\"♗\",\"A\"),\"♘\",\"C\"),\n\"♚\",\"R\"),\"♛\",\"D\"),\"♜\",\"T\"),\"♝\",\"A\"),\"♞\",\"C\"),\n\"R\",INDEX(TablaPiezas[],1,miIdioma)),\n\"D\",INDEX(TablaPiezas[],2,miIdioma)),\n\"T\",INDEX(TablaPiezas[],3,miIdioma)),\n\"A\",INDEX(TablaPiezas[],4,miIdioma)),\n\"C\",INDEX(TablaPiezas[],5,miIdioma)),\nGames!$A36)","v":""},"","","","","","","",{"$f":"IF(G28=\"\",\"\",$A28&\". \"&\nSUBSTITUTE(SUBSTITUTE(SUBSTITUTE(SUBSTITUTE(SUBSTITUTE(G28,\nINDEX(TablaPiezas[],1,miIdioma),\"♔\"),\nINDEX(TablaPiezas[],2,miIdioma),\"♕\"),\nINDEX(TablaPiezas[],3,miIdioma),\"♖\"),\nINDEX(TablaPiezas[],4,miIdioma),\"♗\"),\nINDEX(TablaPiezas[],5,miIdioma),\"♘\")&\" \"&\nSUBSTITUTE(SUBSTITUTE(SUBSTITUTE(SUBSTITUTE(SUBSTITUTE(H28,\nINDEX(TablaPiezas[],1,miIdioma),\"♚\"),\nINDEX(TablaPiezas[],2,miIdioma),\"♛\"),\nINDEX(TablaPiezas[],3,miIdioma),\"♜\"),\nINDEX(TablaPiezas[],4,miIdioma),\"♝\"),\nINDEX(TablaPiezas[],5,miIdioma),\"♞\"))","v":""},"","",{"$f":"Games!$A36","v":""},"",""]
[27,null,null,{"$f":"Numerical!$A37","v":""},"","",null,null,{"$f":"IF(IFERROR(FIND(\". \",Games!$A37),0)>0,\nSUBSTITUTE(SUBSTITUTE(SUBSTITUTE(SUBSTITUTE(SUBSTITUTE(SUBSTITUTE(SUBSTITUTE(SUBSTITUTE(SUBSTITUTE(SUBSTITUTE(SUBSTITUTE(SUBSTITUTE(SUBSTITUTE(SUBSTITUTE(SUBSTITUTE(Games!$A37,\n\"♔\",\"R\"),\"♕\",\"D\"),\"♖\",\"T\"),\"♗\",\"A\"),\"♘\",\"C\"),\n\"♚\",\"R\"),\"♛\",\"D\"),\"♜\",\"T\"),\"♝\",\"A\"),\"♞\",\"C\"),\n\"R\",INDEX(TablaPiezas[],1,miIdioma)),\n\"D\",INDEX(TablaPiezas[],2,miIdioma)),\n\"T\",INDEX(TablaPiezas[],3,miIdioma)),\n\"A\",INDEX(TablaPiezas[],4,miIdioma)),\n\"C\",INDEX(TablaPiezas[],5,miIdioma)),\nGames!$A37)","v":""},"","","","","","","",{"$f":"IF(G29=\"\",\"\",$A29&\". \"&\nSUBSTITUTE(SUBSTITUTE(SUBSTITUTE(SUBSTITUTE(SUBSTITUTE(G29,\nINDEX(TablaPiezas[],1,miIdioma),\"♔\"),\nINDEX(TablaPiezas[],2,miIdioma),\"♕\"),\nINDEX(TablaPiezas[],3,miIdioma),\"♖\"),\nINDEX(TablaPiezas[],4,miIdioma),\"♗\"),\nINDEX(TablaPiezas[],5,miIdioma),\"♘\")&\" \"&\nSUBSTITUTE(SUBSTITUTE(SUBSTITUTE(SUBSTITUTE(SUBSTITUTE(H29,\nINDEX(TablaPiezas[],1,miIdioma),\"♚\"),\nINDEX(TablaPiezas[],2,miIdioma),\"♛\"),\nINDEX(TablaPiezas[],3,miIdioma),\"♜\"),\nINDEX(TablaPiezas[],4,miIdioma),\"♝\"),\nINDEX(TablaPiezas[],5,miIdioma),\"♞\"))","v":""},"","",{"$f":"Games!$A37","v":""},"",""]
[28,null,null,{"$f":"Numerical!$A38","v":""},"","",null,null,{"$f":"IF(IFERROR(FIND(\". \",Games!$A38),0)>0,\nSUBSTITUTE(SUBSTITUTE(SUBSTITUTE(SUBSTITUTE(SUBSTITUTE(SUBSTITUTE(SUBSTITUTE(SUBSTITUTE(SUBSTITUTE(SUBSTITUTE(SUBSTITUTE(SUBSTITUTE(SUBSTITUTE(SUBSTITUTE(SUBSTITUTE(Games!$A38,\n\"♔\",\"R\"),\"♕\",\"D\"),\"♖\",\"T\"),\"♗\",\"A\"),\"♘\",\"C\"),\n\"♚\",\"R\"),\"♛\",\"D\"),\"♜\",\"T\"),\"♝\",\"A\"),\"♞\",\"C\"),\n\"R\",INDEX(TablaPiezas[],1,miIdioma)),\n\"D\",INDEX(TablaPiezas[],2,miIdioma)),\n\"T\",INDEX(TablaPiezas[],3,miIdioma)),\n\"A\",INDEX(TablaPiezas[],4,miIdioma)),\n\"C\",INDEX(TablaPiezas[],5,miIdioma)),\nGames!$A38)","v":""},"","","","","","","",{"$f":"IF(G30=\"\",\"\",$A30&\". \"&\nSUBSTITUTE(SUBSTITUTE(SUBSTITUTE(SUBSTITUTE(SUBSTITUTE(G30,\nINDEX(TablaPiezas[],1,miIdioma),\"♔\"),\nINDEX(TablaPiezas[],2,miIdioma),\"♕\"),\nINDEX(TablaPiezas[],3,miIdioma),\"♖\"),\nINDEX(TablaPiezas[],4,miIdioma),\"♗\"),\nINDEX(TablaPiezas[],5,miIdioma),\"♘\")&\" \"&\nSUBSTITUTE(SUBSTITUTE(SUBSTITUTE(SUBSTITUTE(SUBSTITUTE(H30,\nINDEX(TablaPiezas[],1,miIdioma),\"♚\"),\nINDEX(TablaPiezas[],2,miIdioma),\"♛\"),\nINDEX(TablaPiezas[],3,miIdioma),\"♜\"),\nINDEX(TablaPiezas[],4,miIdioma),\"♝\"),\nINDEX(TablaPiezas[],5,miIdioma),\"♞\"))","v":""},"","",{"$f":"Games!$A38","v":""},"",""]
[29,null,null,{"$f":"Numerical!$A39","v":""},"","",null,null,{"$f":"IF(IFERROR(FIND(\". \",Games!$A39),0)>0,\nSUBSTITUTE(SUBSTITUTE(SUBSTITUTE(SUBSTITUTE(SUBSTITUTE(SUBSTITUTE(SUBSTITUTE(SUBSTITUTE(SUBSTITUTE(SUBSTITUTE(SUBSTITUTE(SUBSTITUTE(SUBSTITUTE(SUBSTITUTE(SUBSTITUTE(Games!$A39,\n\"♔\",\"R\"),\"♕\",\"D\"),\"♖\",\"T\"),\"♗\",\"A\"),\"♘\",\"C\"),\n\"♚\",\"R\"),\"♛\",\"D\"),\"♜\",\"T\"),\"♝\",\"A\"),\"♞\",\"C\"),\n\"R\",INDEX(TablaPiezas[],1,miIdioma)),\n\"D\",INDEX(TablaPiezas[],2,miIdioma)),\n\"T\",INDEX(TablaPiezas[],3,miIdioma)),\n\"A\",INDEX(TablaPiezas[],4,miIdioma)),\n\"C\",INDEX(TablaPiezas[],5,miIdioma)),\nGames!$A39)","v":""},"","","","","","","",{"$f":"IF(G31=\"\",\"\",$A31&\". \"&\nSUBSTITUTE(SUBSTITUTE(SUBSTITUTE(SUBSTITUTE(SUBSTITUTE(G31,\nINDEX(TablaPiezas[],1,miIdioma),\"♔\"),\nINDEX(TablaPiezas[],2,miIdioma),\"♕\"),\nINDEX(TablaPiezas[],3,miIdioma),\"♖\"),\nINDEX(TablaPiezas[],4,miIdioma),\"♗\"),\nINDEX(TablaPiezas[],5,miIdioma),\"♘\")&\" \"&\nSUBSTITUTE(SUBSTITUTE(SUBSTITUTE(SUBSTITUTE(SUBSTITUTE(H31,\nINDEX(TablaPiezas[],1,miIdioma),\"♚\"),\nINDEX(TablaPiezas[],2,miIdioma),\"♛\"),\nINDEX(TablaPiezas[],3,miIdioma),\"♜\"),\nINDEX(TablaPiezas[],4,miIdioma),\"♝\"),\nINDEX(TablaPiezas[],5,miIdioma),\"♞\"))","v":""},"","",{"$f":"Games!$A39","v":""},"",""]
[30,null,null,{"$f":"Numerical!$A40","v":""},"","",null,null,{"$f":"IF(IFERROR(FIND(\". \",Games!$A40),0)>0,\nSUBSTITUTE(SUBSTITUTE(SUBSTITUTE(SUBSTITUTE(SUBSTITUTE(SUBSTITUTE(SUBSTITUTE(SUBSTITUTE(SUBSTITUTE(SUBSTITUTE(SUBSTITUTE(SUBSTITUTE(SUBSTITUTE(SUBSTITUTE(SUBSTITUTE(Games!$A40,\n\"♔\",\"R\"),\"♕\",\"D\"),\"♖\",\"T\"),\"♗\",\"A\"),\"♘\",\"C\"),\n\"♚\",\"R\"),\"♛\",\"D\"),\"♜\",\"T\"),\"♝\",\"A\"),\"♞\",\"C\"),\n\"R\",INDEX(TablaPiezas[],1,miIdioma)),\n\"D\",INDEX(TablaPiezas[],2,miIdioma)),\n\"T\",INDEX(TablaPiezas[],3,miIdioma)),\n\"A\",INDEX(TablaPiezas[],4,miIdioma)),\n\"C\",INDEX(TablaPiezas[],5,miIdioma)),\nGames!$A40)","v":""},"","","","","","","",{"$f":"IF(G32=\"\",\"\",$A32&\". \"&\nSUBSTITUTE(SUBSTITUTE(SUBSTITUTE(SUBSTITUTE(SUBSTITUTE(G32,\nINDEX(TablaPiezas[],1,miIdioma),\"♔\"),\nINDEX(TablaPiezas[],2,miIdioma),\"♕\"),\nINDEX(TablaPiezas[],3,miIdioma),\"♖\"),\nINDEX(TablaPiezas[],4,miIdioma),\"♗\"),\nINDEX(TablaPiezas[],5,miIdioma),\"♘\")&\" \"&\nSUBSTITUTE(SUBSTITUTE(SUBSTITUTE(SUBSTITUTE(SUBSTITUTE(H32,\nINDEX(TablaPiezas[],1,miIdioma),\"♚\"),\nINDEX(TablaPiezas[],2,miIdioma),\"♛\"),\nINDEX(TablaPiezas[],3,miIdioma),\"♜\"),\nINDEX(TablaPiezas[],4,miIdioma),\"♝\"),\nINDEX(TablaPiezas[],5,miIdioma),\"♞\"))","v":""},"","",{"$f":"Games!$A40","v":""},"",""]
[31,null,null,{"$f":"Numerical!$A41","v":""},"","",null,null,{"$f":"IF(IFERROR(FIND(\". \",Games!$A41),0)>0,\nSUBSTITUTE(SUBSTITUTE(SUBSTITUTE(SUBSTITUTE(SUBSTITUTE(SUBSTITUTE(SUBSTITUTE(SUBSTITUTE(SUBSTITUTE(SUBSTITUTE(SUBSTITUTE(SUBSTITUTE(SUBSTITUTE(SUBSTITUTE(SUBSTITUTE(Games!$A41,\n\"♔\",\"R\"),\"♕\",\"D\"),\"♖\",\"T\"),\"♗\",\"A\"),\"♘\",\"C\"),\n\"♚\",\"R\"),\"♛\",\"D\"),\"♜\",\"T\"),\"♝\",\"A\"),\"♞\",\"C\"),\n\"R\",INDEX(TablaPiezas[],1,miIdioma)),\n\"D\",INDEX(TablaPiezas[],2,miIdioma)),\n\"T\",INDEX(TablaPiezas[],3,miIdioma)),\n\"A\",INDEX(TablaPiezas[],4,miIdioma)),\n\"C\",INDEX(TablaPiezas[],5,miIdioma)),\nGames!$A41)","v":""},"","","","","","","",{"$f":"IF(G33=\"\",\"\",$A33&\". \"&\nSUBSTITUTE(SUBSTITUTE(SUBSTITUTE(SUBSTITUTE(SUBSTITUTE(G33,\nINDEX(TablaPiezas[],1,miIdioma),\"♔\"),\nINDEX(TablaPiezas[],2,miIdioma),\"♕\"),\nINDEX(TablaPiezas[],3,miIdioma),\"♖\"),\nINDEX(TablaPiezas[],4,miIdioma),\"♗\"),\nINDEX(TablaPiezas[],5,miIdioma),\"♘\")&\" \"&\nSUBSTITUTE(SUBSTITUTE(SUBSTITUTE(SUBSTITUTE(SUBSTITUTE(H33,\nINDEX(TablaPiezas[],1,miIdioma),\"♚\"),\nINDEX(TablaPiezas[],2,miIdioma),\"♛\"),\nINDEX(TablaPiezas[],3,miIdioma),\"♜\"),\nINDEX(TablaPiezas[],4,miIdioma),\"♝\"),\nINDEX(TablaPiezas[],5,miIdioma),\"♞\"))","v":""},"","",{"$f":"Games!$A41","v":""},"",""]
[32,null,null,{"$f":"Numerical!$A42","v":""},"","",null,null,{"$f":"IF(IFERROR(FIND(\". \",Games!$A42),0)>0,\nSUBSTITUTE(SUBSTITUTE(SUBSTITUTE(SUBSTITUTE(SUBSTITUTE(SUBSTITUTE(SUBSTITUTE(SUBSTITUTE(SUBSTITUTE(SUBSTITUTE(SUBSTITUTE(SUBSTITUTE(SUBSTITUTE(SUBSTITUTE(SUBSTITUTE(Games!$A42,\n\"♔\",\"R\"),\"♕\",\"D\"),\"♖\",\"T\"),\"♗\",\"A\"),\"♘\",\"C\"),\n\"♚\",\"R\"),\"♛\",\"D\"),\"♜\",\"T\"),\"♝\",\"A\"),\"♞\",\"C\"),\n\"R\",INDEX(TablaPiezas[],1,miIdioma)),\n\"D\",INDEX(TablaPiezas[],2,miIdioma)),\n\"T\",INDEX(TablaPiezas[],3,miIdioma)),\n\"A\",INDEX(TablaPiezas[],4,miIdioma)),\n\"C\",INDEX(TablaPiezas[],5,miIdioma)),\nGames!$A42)","v":""},"","","","","","","",{"$f":"IF(G34=\"\",\"\",$A34&\". \"&\nSUBSTITUTE(SUBSTITUTE(SUBSTITUTE(SUBSTITUTE(SUBSTITUTE(G34,\nINDEX(TablaPiezas[],1,miIdioma),\"♔\"),\nINDEX(TablaPiezas[],2,miIdioma),\"♕\"),\nINDEX(TablaPiezas[],3,miIdioma),\"♖\"),\nINDEX(TablaPiezas[],4,miIdioma),\"♗\"),\nINDEX(TablaPiezas[],5,miIdioma),\"♘\")&\" \"&\nSUBSTITUTE(SUBSTITUTE(SUBSTITUTE(SUBSTITUTE(SUBSTITUTE(H34,\nINDEX(TablaPiezas[],1,miIdioma),\"♚\"),\nINDEX(TablaPiezas[],2,miIdioma),\"♛\"),\nINDEX(TablaPiezas[],3,miIdioma),\"♜\"),\nINDEX(TablaPiezas[],4,miIdioma),\"♝\"),\nINDEX(TablaPiezas[],5,miIdioma),\"♞\"))","v":""},"","",{"$f":"Games!$A42","v":""},"",""]
[33,null,null,{"$f":"Numerical!$A43","v":""},{"$f":"IF(ISNUMBER(--LEFT($D35)),LEFT(SUBSTITUTE($D35,$A35&\". \",\"\"),FIND(\" \",SUBSTITUTE($D35,$A35&\". \",\"\")&\" \")-1),\"\")","v":""},{"$f":"IF(ISNUMBER(--LEFT($D35)),TRIM(SUBSTITUTE($D35,$A35&\". \" & $E35,\"\")),\"\")","v":""},null,null,{"$f":"IF(IFERROR(FIND(\". \",Games!$A43),0)>0,\nSUBSTITUTE(SUBSTITUTE(SUBSTITUTE(SUBSTITUTE(SUBSTITUTE(SUBSTITUTE(SUBSTITUTE(SUBSTITUTE(SUBSTITUTE(SUBSTITUTE(SUBSTITUTE(SUBSTITUTE(SUBSTITUTE(SUBSTITUTE(SUBSTITUTE(Games!$A43,\n\"♔\",\"R\"),\"♕\",\"D\"),\"♖\",\"T\"),\"♗\",\"A\"),\"♘\",\"C\"),\n\"♚\",\"R\"),\"♛\",\"D\"),\"♜\",\"T\"),\"♝\",\"A\"),\"♞\",\"C\"),\n\"R\",INDEX(TablaPiezas[],1,miIdioma)),\n\"D\",INDEX(TablaPiezas[],2,miIdioma)),\n\"T\",INDEX(TablaPiezas[],3,miIdioma)),\n\"A\",INDEX(TablaPiezas[],4,miIdioma)),\n\"C\",INDEX(TablaPiezas[],5,miIdioma)),\nGames!$A43)","v":""},{"$f":"IF(ISNUMBER(--LEFT($I35)),LEFT(SUBSTITUTE($I35,$A35&\". \",\"\"),FIND(\" \",SUBSTITUTE($I35,$A35&\". \",\"\")&\" \")-1),\"\")","v":""},{"$f":"IF(ISNUMBER(--LEFT($I35)),TRIM(SUBSTITUTE($I35,$A35&\". \" & $J35,\"\")),\"\")","v":""},"","",{"$f":"IF(AND($A35=INT((miPiezaMovimiento+2)/4),MOD(miPiezaMovimiento,4)>1),\"M\",\"\")","v":""},{"$f":"IF(AND($A35=INT((miPiezaMovimiento+2)/4),MOD(miPiezaMovimiento,4)<2),\"M\",\"\")","v":""},{"$f":"IF(B35=\"\",\"\",$A35&\". \"&B35&\" \"&C35)","v":""},{"$f":"IF(G35=\"\",\"\",$A35&\". \"&\nSUBSTITUTE(SUBSTITUTE(SUBSTITUTE(SUBSTITUTE(SUBSTITUTE(G35,\nINDEX(TablaPiezas[],1,miIdioma),\"♔\"),\nINDEX(TablaPiezas[],2,miIdioma),\"♕\"),\nINDEX(TablaPiezas[],3,miIdioma),\"♖\"),\nINDEX(TablaPiezas[],4,miIdioma),\"♗\"),\nINDEX(TablaPiezas[],5,miIdioma),\"♘\")&\" \"&\nSUBSTITUTE(SUBSTITUTE(SUBSTITUTE(SUBSTITUTE(SUBSTITUTE(H35,\nINDEX(TablaPiezas[],1,miIdioma),\"♚\"),\nINDEX(TablaPiezas[],2,miIdioma),\"♛\"),\nINDEX(TablaPiezas[],3,miIdioma),\"♜\"),\nINDEX(TablaPiezas[],4,miIdioma),\"♝\"),\nINDEX(TablaPiezas[],5,miIdioma),\"♞\"))","v":""},"",{"$f":"IF(ISNUMBER(--LEFT($Q35)),TRIM(SUBSTITUTE($Q35,$A35&\". \" & $R35,\"\")),\"\")","v":""},{"$f":"Games!$A43","v":""},"",""]
[34,null,null,{"$f":"Numerical!$A44","v":""},"","",null,null,{"$f":"IF(IFERROR(FIND(\". \",Games!$A44),0)>0,\nSUBSTITUTE(SUBSTITUTE(SUBSTITUTE(SUBSTITUTE(SUBSTITUTE(SUBSTITUTE(SUBSTITUTE(SUBSTITUTE(SUBSTITUTE(SUBSTITUTE(SUBSTITUTE(SUBSTITUTE(SUBSTITUTE(SUBSTITUTE(SUBSTITUTE(Games!$A44,\n\"♔\",\"R\"),\"♕\",\"D\"),\"♖\",\"T\"),\"♗\",\"A\"),\"♘\",\"C\"),\n\"♚\",\"R\"),\"♛\",\"D\"),\"♜\",\"T\"),\"♝\",\"A\"),\"♞\",\"C\"),\n\"R\",INDEX(TablaPiezas[],1,miIdioma)),\n\"D\",INDEX(TablaPiezas[],2,miIdioma)),\n\"T\",INDEX(TablaPiezas[],3,miIdioma)),\n\"A\",INDEX(TablaPiezas[],4,miIdioma)),\n\"C\",INDEX(TablaPiezas[],5,miIdioma)),\nGames!$A44)","v":""},"","","","","","","",{"$f":"IF(G36=\"\",\"\",$A36&\". \"&\nSUBSTITUTE(SUBSTITUTE(SUBSTITUTE(SUBSTITUTE(SUBSTITUTE(G36,\nINDEX(TablaPiezas[],1,miIdioma),\"♔\"),\nINDEX(TablaPiezas[],2,miIdioma),\"♕\"),\nINDEX(TablaPiezas[],3,miIdioma),\"♖\"),\nINDEX(TablaPiezas[],4,miIdioma),\"♗\"),\nINDEX(TablaPiezas[],5,miIdioma),\"♘\")&\" \"&\nSUBSTITUTE(SUBSTITUTE(SUBSTITUTE(SUBSTITUTE(SUBSTITUTE(H36,\nINDEX(TablaPiezas[],1,miIdioma),\"♚\"),\nINDEX(TablaPiezas[],2,miIdioma),\"♛\"),\nINDEX(TablaPiezas[],3,miIdioma),\"♜\"),\nINDEX(TablaPiezas[],4,miIdioma),\"♝\"),\nINDEX(TablaPiezas[],5,miIdioma),\"♞\"))","v":""},"","",{"$f":"Games!$A44","v":""},"",""]
[35,null,null,{"$f":"Numerical!$A45","v":""},"","",null,null,{"$f":"IF(IFERROR(FIND(\". \",Games!$A45),0)>0,\nSUBSTITUTE(SUBSTITUTE(SUBSTITUTE(SUBSTITUTE(SUBSTITUTE(SUBSTITUTE(SUBSTITUTE(SUBSTITUTE(SUBSTITUTE(SUBSTITUTE(SUBSTITUTE(SUBSTITUTE(SUBSTITUTE(SUBSTITUTE(SUBSTITUTE(Games!$A45,\n\"♔\",\"R\"),\"♕\",\"D\"),\"♖\",\"T\"),\"♗\",\"A\"),\"♘\",\"C\"),\n\"♚\",\"R\"),\"♛\",\"D\"),\"♜\",\"T\"),\"♝\",\"A\"),\"♞\",\"C\"),\n\"R\",INDEX(TablaPiezas[],1,miIdioma)),\n\"D\",INDEX(TablaPiezas[],2,miIdioma)),\n\"T\",INDEX(TablaPiezas[],3,miIdioma)),\n\"A\",INDEX(TablaPiezas[],4,miIdioma)),\n\"C\",INDEX(TablaPiezas[],5,miIdioma)),\nGames!$A45)","v":""},"","","","","","","",{"$f":"IF(G37=\"\",\"\",$A37&\". \"&\nSUBSTITUTE(SUBSTITUTE(SUBSTITUTE(SUBSTITUTE(SUBSTITUTE(G37,\nINDEX(TablaPiezas[],1,miIdioma),\"♔\"),\nINDEX(TablaPiezas[],2,miIdioma),\"♕\"),\nINDEX(TablaPiezas[],3,miIdioma),\"♖\"),\nINDEX(TablaPiezas[],4,miIdioma),\"♗\"),\nINDEX(TablaPiezas[],5,miIdioma),\"♘\")&\" \"&\nSUBSTITUTE(SUBSTITUTE(SUBSTITUTE(SUBSTITUTE(SUBSTITUTE(H37,\nINDEX(TablaPiezas[],1,miIdioma),\"♚\"),\nINDEX(TablaPiezas[],2,miIdioma),\"♛\"),\nINDEX(TablaPiezas[],3,miIdioma),\"♜\"),\nINDEX(TablaPiezas[],4,miIdioma),\"♝\"),\nINDEX(TablaPiezas[],5,miIdioma),\"♞\"))","v":""},"","",{"$f":"Games!$A45","v":""},"",""]
[36,null,null,{"$f":"Numerical!$A46","v":""},"","",null,null,{"$f":"IF(IFERROR(FIND(\". \",Games!$A46),0)>0,\nSUBSTITUTE(SUBSTITUTE(SUBSTITUTE(SUBSTITUTE(SUBSTITUTE(SUBSTITUTE(SUBSTITUTE(SUBSTITUTE(SUBSTITUTE(SUBSTITUTE(SUBSTITUTE(SUBSTITUTE(SUBSTITUTE(SUBSTITUTE(SUBSTITUTE(Games!$A46,\n\"♔\",\"R\"),\"♕\",\"D\"),\"♖\",\"T\"),\"♗\",\"A\"),\"♘\",\"C\"),\n\"♚\",\"R\"),\"♛\",\"D\"),\"♜\",\"T\"),\"♝\",\"A\"),\"♞\",\"C\"),\n\"R\",INDEX(TablaPiezas[],1,miIdioma)),\n\"D\",INDEX(TablaPiezas[],2,miIdioma)),\n\"T\",INDEX(TablaPiezas[],3,miIdioma)),\n\"A\",INDEX(TablaPiezas[],4,miIdioma)),\n\"C\",INDEX(TablaPiezas[],5,miIdioma)),\nGames!$A46)","v":""},"","","","","","","",{"$f":"IF(G38=\"\",\"\",$A38&\". \"&\nSUBSTITUTE(SUBSTITUTE(SUBSTITUTE(SUBSTITUTE(SUBSTITUTE(G38,\nINDEX(TablaPiezas[],1,miIdioma),\"♔\"),\nINDEX(TablaPiezas[],2,miIdioma),\"♕\"),\nINDEX(TablaPiezas[],3,miIdioma),\"♖\"),\nINDEX(TablaPiezas[],4,miIdioma),\"♗\"),\nINDEX(TablaPiezas[],5,miIdioma),\"♘\")&\" \"&\nSUBSTITUTE(SUBSTITUTE(SUBSTITUTE(SUBSTITUTE(SUBSTITUTE(H38,\nINDEX(TablaPiezas[],1,miIdioma),\"♚\"),\nINDEX(TablaPiezas[],2,miIdioma),\"♛\"),\nINDEX(TablaPiezas[],3,miIdioma),\"♜\"),\nINDEX(TablaPiezas[],4,miIdioma),\"♝\"),\nINDEX(TablaPiezas[],5,miIdioma),\"♞\"))","v":""},"","",{"$f":"Games!$A46","v":""},"",""]
[37,null,null,{"$f":"Numerical!$A47","v":""},"","",null,null,{"$f":"IF(IFERROR(FIND(\". \",Games!$A47),0)>0,\nSUBSTITUTE(SUBSTITUTE(SUBSTITUTE(SUBSTITUTE(SUBSTITUTE(SUBSTITUTE(SUBSTITUTE(SUBSTITUTE(SUBSTITUTE(SUBSTITUTE(SUBSTITUTE(SUBSTITUTE(SUBSTITUTE(SUBSTITUTE(SUBSTITUTE(Games!$A47,\n\"♔\",\"R\"),\"♕\",\"D\"),\"♖\",\"T\"),\"♗\",\"A\"),\"♘\",\"C\"),\n\"♚\",\"R\"),\"♛\",\"D\"),\"♜\",\"T\"),\"♝\",\"A\"),\"♞\",\"C\"),\n\"R\",INDEX(TablaPiezas[],1,miIdioma)),\n\"D\",INDEX(TablaPiezas[],2,miIdioma)),\n\"T\",INDEX(TablaPiezas[],3,miIdioma)),\n\"A\",INDEX(TablaPiezas[],4,miIdioma)),\n\"C\",INDEX(TablaPiezas[],5,miIdioma)),\nGames!$A47)","v":""},"","","","","","","",{"$f":"IF(G39=\"\",\"\",$A39&\". \"&\nSUBSTITUTE(SUBSTITUTE(SUBSTITUTE(SUBSTITUTE(SUBSTITUTE(G39,\nINDEX(TablaPiezas[],1,miIdioma),\"♔\"),\nINDEX(TablaPiezas[],2,miIdioma),\"♕\"),\nINDEX(TablaPiezas[],3,miIdioma),\"♖\"),\nINDEX(TablaPiezas[],4,miIdioma),\"♗\"),\nINDEX(TablaPiezas[],5,miIdioma),\"♘\")&\" \"&\nSUBSTITUTE(SUBSTITUTE(SUBSTITUTE(SUBSTITUTE(SUBSTITUTE(H39,\nINDEX(TablaPiezas[],1,miIdioma),\"♚\"),\nINDEX(TablaPiezas[],2,miIdioma),\"♛\"),\nINDEX(TablaPiezas[],3,miIdioma),\"♜\"),\nINDEX(TablaPiezas[],4,miIdioma),\"♝\"),\nINDEX(TablaPiezas[],5,miIdioma),\"♞\"))","v":""},"","",{"$f":"Games!$A47","v":""},"",""]
[38,null,null,{"$f":"Numerical!$A48","v":""},"","",null,null,{"$f":"IF(IFERROR(FIND(\". \",Games!$A48),0)>0,\nSUBSTITUTE(SUBSTITUTE(SUBSTITUTE(SUBSTITUTE(SUBSTITUTE(SUBSTITUTE(SUBSTITUTE(SUBSTITUTE(SUBSTITUTE(SUBSTITUTE(SUBSTITUTE(SUBSTITUTE(SUBSTITUTE(SUBSTITUTE(SUBSTITUTE(Games!$A48,\n\"♔\",\"R\"),\"♕\",\"D\"),\"♖\",\"T\"),\"♗\",\"A\"),\"♘\",\"C\"),\n\"♚\",\"R\"),\"♛\",\"D\"),\"♜\",\"T\"),\"♝\",\"A\"),\"♞\",\"C\"),\n\"R\",INDEX(TablaPiezas[],1,miIdioma)),\n\"D\",INDEX(TablaPiezas[],2,miIdioma)),\n\"T\",INDEX(TablaPiezas[],3,miIdioma)),\n\"A\",INDEX(TablaPiezas[],4,miIdioma)),\n\"C\",INDEX(TablaPiezas[],5,miIdioma)),\nGames!$A48)","v":""},"","","","","","","",{"$f":"IF(G40=\"\",\"\",$A40&\". \"&\nSUBSTITUTE(SUBSTITUTE(SUBSTITUTE(SUBSTITUTE(SUBSTITUTE(G40,\nINDEX(TablaPiezas[],1,miIdioma),\"♔\"),\nINDEX(TablaPiezas[],2,miIdioma),\"♕\"),\nINDEX(TablaPiezas[],3,miIdioma),\"♖\"),\nINDEX(TablaPiezas[],4,miIdioma),\"♗\"),\nINDEX(TablaPiezas[],5,miIdioma),\"♘\")&\" \"&\nSUBSTITUTE(SUBSTITUTE(SUBSTITUTE(SUBSTITUTE(SUBSTITUTE(H40,\nINDEX(TablaPiezas[],1,miIdioma),\"♚\"),\nINDEX(TablaPiezas[],2,miIdioma),\"♛\"),\nINDEX(TablaPiezas[],3,miIdioma),\"♜\"),\nINDEX(TablaPiezas[],4,miIdioma),\"♝\"),\nINDEX(TablaPiezas[],5,miIdioma),\"♞\"))","v":""},"","",{"$f":"Games!$A48","v":""},"",""]
[39,null,null,{"$f":"Numerical!$A49","v":""},"","",null,null,{"$f":"IF(IFERROR(FIND(\". \",Games!$A49),0)>0,\nSUBSTITUTE(SUBSTITUTE(SUBSTITUTE(SUBSTITUTE(SUBSTITUTE(SUBSTITUTE(SUBSTITUTE(SUBSTITUTE(SUBSTITUTE(SUBSTITUTE(SUBSTITUTE(SUBSTITUTE(SUBSTITUTE(SUBSTITUTE(SUBSTITUTE(Games!$A49,\n\"♔\",\"R\"),\"♕\",\"D\"),\"♖\",\"T\"),\"♗\",\"A\"),\"♘\",\"C\"),\n\"♚\",\"R\"),\"♛\",\"D\"),\"♜\",\"T\"),\"♝\",\"A\"),\"♞\",\"C\"),\n\"R\",INDEX(TablaPiezas[],1,miIdioma)),\n\"D\",INDEX(TablaPiezas[],2,miIdioma)),\n\"T\",INDEX(TablaPiezas[],3,miIdioma)),\n\"A\",INDEX(TablaPiezas[],4,miIdioma)),\n\"C\",INDEX(TablaPiezas[],5,miIdioma)),\nGames!$A49)","v":""},"","","","","","","",{"$f":"IF(G41=\"\",\"\",$A41&\". \"&\nSUBSTITUTE(SUBSTITUTE(SUBSTITUTE(SUBSTITUTE(SUBSTITUTE(G41,\nINDEX(TablaPiezas[],1,miIdioma),\"♔\"),\nINDEX(TablaPiezas[],2,miIdioma),\"♕\"),\nINDEX(TablaPiezas[],3,miIdioma),\"♖\"),\nINDEX(TablaPiezas[],4,miIdioma),\"♗\"),\nINDEX(TablaPiezas[],5,miIdioma),\"♘\")&\" \"&\nSUBSTITUTE(SUBSTITUTE(SUBSTITUTE(SUBSTITUTE(SUBSTITUTE(H41,\nINDEX(TablaPiezas[],1,miIdioma),\"♚\"),\nINDEX(TablaPiezas[],2,miIdioma),\"♛\"),\nINDEX(TablaPiezas[],3,miIdioma),\"♜\"),\nINDEX(TablaPiezas[],4,miIdioma),\"♝\"),\nINDEX(TablaPiezas[],5,miIdioma),\"♞\"))","v":""},"","",{"$f":"Games!$A49","v":""},"",""]
[40,null,null,{"$f":"Numerical!$A50","v":""},"","",null,null,{"$f":"IF(IFERROR(FIND(\". \",Games!$A50),0)>0,\nSUBSTITUTE(SUBSTITUTE(SUBSTITUTE(SUBSTITUTE(SUBSTITUTE(SUBSTITUTE(SUBSTITUTE(SUBSTITUTE(SUBSTITUTE(SUBSTITUTE(SUBSTITUTE(SUBSTITUTE(SUBSTITUTE(SUBSTITUTE(SUBSTITUTE(Games!$A50,\n\"♔\",\"R\"),\"♕\",\"D\"),\"♖\",\"T\"),\"♗\",\"A\"),\"♘\",\"C\"),\n\"♚\",\"R\"),\"♛\",\"D\"),\"♜\",\"T\"),\"♝\",\"A\"),\"♞\",\"C\"),\n\"R\",INDEX(TablaPiezas[],1,miIdioma)),\n\"D\",INDEX(TablaPiezas[],2,miIdioma)),\n\"T\",INDEX(TablaPiezas[],3,miIdioma)),\n\"A\",INDEX(TablaPiezas[],4,miIdioma)),\n\"C\",INDEX(TablaPiezas[],5,miIdioma)),\nGames!$A50)","v":""},"","","","","","","",{"$f":"IF(G42=\"\",\"\",$A42&\". \"&\nSUBSTITUTE(SUBSTITUTE(SUBSTITUTE(SUBSTITUTE(SUBSTITUTE(G42,\nINDEX(TablaPiezas[],1,miIdioma),\"♔\"),\nINDEX(TablaPiezas[],2,miIdioma),\"♕\"),\nINDEX(TablaPiezas[],3,miIdioma),\"♖\"),\nINDEX(TablaPiezas[],4,miIdioma),\"♗\"),\nINDEX(TablaPiezas[],5,miIdioma),\"♘\")&\" \"&\nSUBSTITUTE(SUBSTITUTE(SUBSTITUTE(SUBSTITUTE(SUBSTITUTE(H42,\nINDEX(TablaPiezas[],1,miIdioma),\"♚\"),\nINDEX(TablaPiezas[],2,miIdioma),\"♛\"),\nINDEX(TablaPiezas[],3,miIdioma),\"♜\"),\nINDEX(TablaPiezas[],4,miIdioma),\"♝\"),\nINDEX(TablaPiezas[],5,miIdioma),\"♞\"))","v":""},"","",{"$f":"Games!$A50","v":""},"",""]
[41,null,null,{"$f":"Numerical!$A51","v":""},"","",null,null,{"$f":"IF(IFERROR(FIND(\". \",Games!$A51),0)>0,\nSUBSTITUTE(SUBSTITUTE(SUBSTITUTE(SUBSTITUTE(SUBSTITUTE(SUBSTITUTE(SUBSTITUTE(SUBSTITUTE(SUBSTITUTE(SUBSTITUTE(SUBSTITUTE(SUBSTITUTE(SUBSTITUTE(SUBSTITUTE(SUBSTITUTE(Games!$A51,\n\"♔\",\"R\"),\"♕\",\"D\"),\"♖\",\"T\"),\"♗\",\"A\"),\"♘\",\"C\"),\n\"♚\",\"R\"),\"♛\",\"D\"),\"♜\",\"T\"),\"♝\",\"A\"),\"♞\",\"C\"),\n\"R\",INDEX(TablaPiezas[],1,miIdioma)),\n\"D\",INDEX(TablaPiezas[],2,miIdioma)),\n\"T\",INDEX(TablaPiezas[],3,miIdioma)),\n\"A\",INDEX(TablaPiezas[],4,miIdioma)),\n\"C\",INDEX(TablaPiezas[],5,miIdioma)),\nGames!$A51)","v":""},"","","","","","","",{"$f":"IF(G43=\"\",\"\",$A43&\". \"&\nSUBSTITUTE(SUBSTITUTE(SUBSTITUTE(SUBSTITUTE(SUBSTITUTE(G43,\nINDEX(TablaPiezas[],1,miIdioma),\"♔\"),\nINDEX(TablaPiezas[],2,miIdioma),\"♕\"),\nINDEX(TablaPiezas[],3,miIdioma),\"♖\"),\nINDEX(TablaPiezas[],4,miIdioma),\"♗\"),\nINDEX(TablaPiezas[],5,miIdioma),\"♘\")&\" \"&\nSUBSTITUTE(SUBSTITUTE(SUBSTITUTE(SUBSTITUTE(SUBSTITUTE(H43,\nINDEX(TablaPiezas[],1,miIdioma),\"♚\"),\nINDEX(TablaPiezas[],2,miIdioma),\"♛\"),\nINDEX(TablaPiezas[],3,miIdioma),\"♜\"),\nINDEX(TablaPiezas[],4,miIdioma),\"♝\"),\nINDEX(TablaPiezas[],5,miIdioma),\"♞\"))","v":""},"","",{"$f":"Games!$A51","v":""},"",""]
[42,null,null,{"$f":"Numerical!$A52","v":""},"","",null,null,{"$f":"IF(IFERROR(FIND(\". \",Games!$A52),0)>0,\nSUBSTITUTE(SUBSTITUTE(SUBSTITUTE(SUBSTITUTE(SUBSTITUTE(SUBSTITUTE(SUBSTITUTE(SUBSTITUTE(SUBSTITUTE(SUBSTITUTE(SUBSTITUTE(SUBSTITUTE(SUBSTITUTE(SUBSTITUTE(SUBSTITUTE(Games!$A52,\n\"♔\",\"R\"),\"♕\",\"D\"),\"♖\",\"T\"),\"♗\",\"A\"),\"♘\",\"C\"),\n\"♚\",\"R\"),\"♛\",\"D\"),\"♜\",\"T\"),\"♝\",\"A\"),\"♞\",\"C\"),\n\"R\",INDEX(TablaPiezas[],1,miIdioma)),\n\"D\",INDEX(TablaPiezas[],2,miIdioma)),\n\"T\",INDEX(TablaPiezas[],3,miIdioma)),\n\"A\",INDEX(TablaPiezas[],4,miIdioma)),\n\"C\",INDEX(TablaPiezas[],5,miIdioma)),\nGames!$A52)","v":""},"","","","","","","",{"$f":"IF(G44=\"\",\"\",$A44&\". \"&\nSUBSTITUTE(SUBSTITUTE(SUBSTITUTE(SUBSTITUTE(SUBSTITUTE(G44,\nINDEX(TablaPiezas[],1,miIdioma),\"♔\"),\nINDEX(TablaPiezas[],2,miIdioma),\"♕\"),\nINDEX(TablaPiezas[],3,miIdioma),\"♖\"),\nINDEX(TablaPiezas[],4,miIdioma),\"♗\"),\nINDEX(TablaPiezas[],5,miIdioma),\"♘\")&\" \"&\nSUBSTITUTE(SUBSTITUTE(SUBSTITUTE(SUBSTITUTE(SUBSTITUTE(H44,\nINDEX(TablaPiezas[],1,miIdioma),\"♚\"),\nINDEX(TablaPiezas[],2,miIdioma),\"♛\"),\nINDEX(TablaPiezas[],3,miIdioma),\"♜\"),\nINDEX(TablaPiezas[],4,miIdioma),\"♝\"),\nINDEX(TablaPiezas[],5,miIdioma),\"♞\"))","v":""},"","",{"$f":"Games!$A52","v":""},"",""]
[43,null,null,{"$f":"Numerical!$A53","v":""},"","",null,null,{"$f":"IF(IFERROR(FIND(\". \",Games!$A53),0)>0,\nSUBSTITUTE(SUBSTITUTE(SUBSTITUTE(SUBSTITUTE(SUBSTITUTE(SUBSTITUTE(SUBSTITUTE(SUBSTITUTE(SUBSTITUTE(SUBSTITUTE(SUBSTITUTE(SUBSTITUTE(SUBSTITUTE(SUBSTITUTE(SUBSTITUTE(Games!$A53,\n\"♔\",\"R\"),\"♕\",\"D\"),\"♖\",\"T\"),\"♗\",\"A\"),\"♘\",\"C\"),\n\"♚\",\"R\"),\"♛\",\"D\"),\"♜\",\"T\"),\"♝\",\"A\"),\"♞\",\"C\"),\n\"R\",INDEX(TablaPiezas[],1,miIdioma)),\n\"D\",INDEX(TablaPiezas[],2,miIdioma)),\n\"T\",INDEX(TablaPiezas[],3,miIdioma)),\n\"A\",INDEX(TablaPiezas[],4,miIdioma)),\n\"C\",INDEX(TablaPiezas[],5,miIdioma)),\nGames!$A53)","v":""},"","","","","","","",{"$f":"IF(G45=\"\",\"\",$A45&\". \"&\nSUBSTITUTE(SUBSTITUTE(SUBSTITUTE(SUBSTITUTE(SUBSTITUTE(G45,\nINDEX(TablaPiezas[],1,miIdioma),\"♔\"),\nINDEX(TablaPiezas[],2,miIdioma),\"♕\"),\nINDEX(TablaPiezas[],3,miIdioma),\"♖\"),\nINDEX(TablaPiezas[],4,miIdioma),\"♗\"),\nINDEX(TablaPiezas[],5,miIdioma),\"♘\")&\" \"&\nSUBSTITUTE(SUBSTITUTE(SUBSTITUTE(SUBSTITUTE(SUBSTITUTE(H45,\nINDEX(TablaPiezas[],1,miIdioma),\"♚\"),\nINDEX(TablaPiezas[],2,miIdioma),\"♛\"),\nINDEX(TablaPiezas[],3,miIdioma),\"♜\"),\nINDEX(TablaPiezas[],4,miIdioma),\"♝\"),\nINDEX(TablaPiezas[],5,miIdioma),\"♞\"))","v":""},"","",{"$f":"Games!$A53","v":""},"",""]
[44,null,null,{"$f":"Numerical!$A54","v":""},"","",null,null,{"$f":"IF(IFERROR(FIND(\". \",Games!$A54),0)>0,\nSUBSTITUTE(SUBSTITUTE(SUBSTITUTE(SUBSTITUTE(SUBSTITUTE(SUBSTITUTE(SUBSTITUTE(SUBSTITUTE(SUBSTITUTE(SUBSTITUTE(SUBSTITUTE(SUBSTITUTE(SUBSTITUTE(SUBSTITUTE(SUBSTITUTE(Games!$A54,\n\"♔\",\"R\"),\"♕\",\"D\"),\"♖\",\"T\"),\"♗\",\"A\"),\"♘\",\"C\"),\n\"♚\",\"R\"),\"♛\",\"D\"),\"♜\",\"T\"),\"♝\",\"A\"),\"♞\",\"C\"),\n\"R\",INDEX(TablaPiezas[],1,miIdioma)),\n\"D\",INDEX(TablaPiezas[],2,miIdioma)),\n\"T\",INDEX(TablaPiezas[],3,miIdioma)),\n\"A\",INDEX(TablaPiezas[],4,miIdioma)),\n\"C\",INDEX(TablaPiezas[],5,miIdioma)),\nGames!$A54)","v":""},"","","","","","","",{"$f":"IF(G46=\"\",\"\",$A46&\". \"&\nSUBSTITUTE(SUBSTITUTE(SUBSTITUTE(SUBSTITUTE(SUBSTITUTE(G46,\nINDEX(TablaPiezas[],1,miIdioma),\"♔\"),\nINDEX(TablaPiezas[],2,miIdioma),\"♕\"),\nINDEX(TablaPiezas[],3,miIdioma),\"♖\"),\nINDEX(TablaPiezas[],4,miIdioma),\"♗\"),\nINDEX(TablaPiezas[],5,miIdioma),\"♘\")&\" \"&\nSUBSTITUTE(SUBSTITUTE(SUBSTITUTE(SUBSTITUTE(SUBSTITUTE(H46,\nINDEX(TablaPiezas[],1,miIdioma),\"♚\"),\nINDEX(TablaPiezas[],2,miIdioma),\"♛\"),\nINDEX(TablaPiezas[],3,miIdioma),\"♜\"),\nINDEX(TablaPiezas[],4,miIdioma),\"♝\"),\nINDEX(TablaPiezas[],5,miIdioma),\"♞\"))","v":""},"","",{"$f":"Games!$A54","v":""},"",""]
[45,null,null,{"$f":"Numerical!$A55","v":""},"","",null,null,{"$f":"IF(IFERROR(FIND(\". \",Games!$A55),0)>0,\nSUBSTITUTE(SUBSTITUTE(SUBSTITUTE(SUBSTITUTE(SUBSTITUTE(SUBSTITUTE(SUBSTITUTE(SUBSTITUTE(SUBSTITUTE(SUBSTITUTE(SUBSTITUTE(SUBSTITUTE(SUBSTITUTE(SUBSTITUTE(SUBSTITUTE(Games!$A55,\n\"♔\",\"R\"),\"♕\",\"D\"),\"♖\",\"T\"),\"♗\",\"A\"),\"♘\",\"C\"),\n\"♚\",\"R\"),\"♛\",\"D\"),\"♜\",\"T\"),\"♝\",\"A\"),\"♞\",\"C\"),\n\"R\",INDEX(TablaPiezas[],1,miIdioma)),\n\"D\",INDEX(TablaPiezas[],2,miIdioma)),\n\"T\",INDEX(TablaPiezas[],3,miIdioma)),\n\"A\",INDEX(TablaPiezas[],4,miIdioma)),\n\"C\",INDEX(TablaPiezas[],5,miIdioma)),\nGames!$A55)","v":""},"","","","","","","",{"$f":"IF(G47=\"\",\"\",$A47&\". \"&\nSUBSTITUTE(SUBSTITUTE(SUBSTITUTE(SUBSTITUTE(SUBSTITUTE(G47,\nINDEX(TablaPiezas[],1,miIdioma),\"♔\"),\nINDEX(TablaPiezas[],2,miIdioma),\"♕\"),\nINDEX(TablaPiezas[],3,miIdioma),\"♖\"),\nINDEX(TablaPiezas[],4,miIdioma),\"♗\"),\nINDEX(TablaPiezas[],5,miIdioma),\"♘\")&\" \"&\nSUBSTITUTE(SUBSTITUTE(SUBSTITUTE(SUBSTITUTE(SUBSTITUTE(H47,\nINDEX(TablaPiezas[],1,miIdioma),\"♚\"),\nINDEX(TablaPiezas[],2,miIdioma),\"♛\"),\nINDEX(TablaPiezas[],3,miIdioma),\"♜\"),\nINDEX(TablaPiezas[],4,miIdioma),\"♝\"),\nINDEX(TablaPiezas[],5,miIdioma),\"♞\"))","v":""},"","",{"$f":"Games!$A55","v":""},"",""]
[46,null,null,{"$f":"Numerical!$A56","v":""},"","",null,null,{"$f":"IF(IFERROR(FIND(\". \",Games!$A56),0)>0,\nSUBSTITUTE(SUBSTITUTE(SUBSTITUTE(SUBSTITUTE(SUBSTITUTE(SUBSTITUTE(SUBSTITUTE(SUBSTITUTE(SUBSTITUTE(SUBSTITUTE(SUBSTITUTE(SUBSTITUTE(SUBSTITUTE(SUBSTITUTE(SUBSTITUTE(Games!$A56,\n\"♔\",\"R\"),\"♕\",\"D\"),\"♖\",\"T\"),\"♗\",\"A\"),\"♘\",\"C\"),\n\"♚\",\"R\"),\"♛\",\"D\"),\"♜\",\"T\"),\"♝\",\"A\"),\"♞\",\"C\"),\n\"R\",INDEX(TablaPiezas[],1,miIdioma)),\n\"D\",INDEX(TablaPiezas[],2,miIdioma)),\n\"T\",INDEX(TablaPiezas[],3,miIdioma)),\n\"A\",INDEX(TablaPiezas[],4,miIdioma)),\n\"C\",INDEX(TablaPiezas[],5,miIdioma)),\nGames!$A56)","v":""},"","","","","","","",{"$f":"IF(G48=\"\",\"\",$A48&\". \"&\nSUBSTITUTE(SUBSTITUTE(SUBSTITUTE(SUBSTITUTE(SUBSTITUTE(G48,\nINDEX(TablaPiezas[],1,miIdioma),\"♔\"),\nINDEX(TablaPiezas[],2,miIdioma),\"♕\"),\nINDEX(TablaPiezas[],3,miIdioma),\"♖\"),\nINDEX(TablaPiezas[],4,miIdioma),\"♗\"),\nINDEX(TablaPiezas[],5,miIdioma),\"♘\")&\" \"&\nSUBSTITUTE(SUBSTITUTE(SUBSTITUTE(SUBSTITUTE(SUBSTITUTE(H48,\nINDEX(TablaPiezas[],1,miIdioma),\"♚\"),\nINDEX(TablaPiezas[],2,miIdioma),\"♛\"),\nINDEX(TablaPiezas[],3,miIdioma),\"♜\"),\nINDEX(TablaPiezas[],4,miIdioma),\"♝\"),\nINDEX(TablaPiezas[],5,miIdioma),\"♞\"))","v":""},"","",{"$f":"Games!$A56","v":""},"",""]
[47,null,null,{"$f":"Numerical!$A57","v":""},"","",null,null,{"$f":"IF(IFERROR(FIND(\". \",Games!$A57),0)>0,\nSUBSTITUTE(SUBSTITUTE(SUBSTITUTE(SUBSTITUTE(SUBSTITUTE(SUBSTITUTE(SUBSTITUTE(SUBSTITUTE(SUBSTITUTE(SUBSTITUTE(SUBSTITUTE(SUBSTITUTE(SUBSTITUTE(SUBSTITUTE(SUBSTITUTE(Games!$A57,\n\"♔\",\"R\"),\"♕\",\"D\"),\"♖\",\"T\"),\"♗\",\"A\"),\"♘\",\"C\"),\n\"♚\",\"R\"),\"♛\",\"D\"),\"♜\",\"T\"),\"♝\",\"A\"),\"♞\",\"C\"),\n\"R\",INDEX(TablaPiezas[],1,miIdioma)),\n\"D\",INDEX(TablaPiezas[],2,miIdioma)),\n\"T\",INDEX(TablaPiezas[],3,miIdioma)),\n\"A\",INDEX(TablaPiezas[],4,miIdioma)),\n\"C\",INDEX(TablaPiezas[],5,miIdioma)),\nGames!$A57)","v":""},"","","","","","","",{"$f":"IF(G49=\"\",\"\",$A49&\". \"&\nSUBSTITUTE(SUBSTITUTE(SUBSTITUTE(SUBSTITUTE(SUBSTITUTE(G49,\nINDEX(TablaPiezas[],1,miIdioma),\"♔\"),\nINDEX(TablaPiezas[],2,miIdioma),\"♕\"),\nINDEX(TablaPiezas[],3,miIdioma),\"♖\"),\nINDEX(TablaPiezas[],4,miIdioma),\"♗\"),\nINDEX(TablaPiezas[],5,miIdioma),\"♘\")&\" \"&\nSUBSTITUTE(SUBSTITUTE(SUBSTITUTE(SUBSTITUTE(SUBSTITUTE(H49,\nINDEX(TablaPiezas[],1,miIdioma),\"♚\"),\nINDEX(TablaPiezas[],2,miIdioma),\"♛\"),\nINDEX(TablaPiezas[],3,miIdioma),\"♜\"),\nINDEX(TablaPiezas[],4,miIdioma),\"♝\"),\nINDEX(TablaPiezas[],5,miIdioma),\"♞\"))","v":""},"","",{"$f":"Games!$A57","v":""},"",""]
[48,null,null,{"$f":"Numerical!$A58","v":""},"","",null,null,{"$f":"IF(IFERROR(FIND(\". \",Games!$A58),0)>0,\nSUBSTITUTE(SUBSTITUTE(SUBSTITUTE(SUBSTITUTE(SUBSTITUTE(SUBSTITUTE(SUBSTITUTE(SUBSTITUTE(SUBSTITUTE(SUBSTITUTE(SUBSTITUTE(SUBSTITUTE(SUBSTITUTE(SUBSTITUTE(SUBSTITUTE(Games!$A58,\n\"♔\",\"R\"),\"♕\",\"D\"),\"♖\",\"T\"),\"♗\",\"A\"),\"♘\",\"C\"),\n\"♚\",\"R\"),\"♛\",\"D\"),\"♜\",\"T\"),\"♝\",\"A\"),\"♞\",\"C\"),\n\"R\",INDEX(TablaPiezas[],1,miIdioma)),\n\"D\",INDEX(TablaPiezas[],2,miIdioma)),\n\"T\",INDEX(TablaPiezas[],3,miIdioma)),\n\"A\",INDEX(TablaPiezas[],4,miIdioma)),\n\"C\",INDEX(TablaPiezas[],5,miIdioma)),\nGames!$A58)","v":""},"","","","","","","",{"$f":"IF(G50=\"\",\"\",$A50&\". \"&\nSUBSTITUTE(SUBSTITUTE(SUBSTITUTE(SUBSTITUTE(SUBSTITUTE(G50,\nINDEX(TablaPiezas[],1,miIdioma),\"♔\"),\nINDEX(TablaPiezas[],2,miIdioma),\"♕\"),\nINDEX(TablaPiezas[],3,miIdioma),\"♖\"),\nINDEX(TablaPiezas[],4,miIdioma),\"♗\"),\nINDEX(TablaPiezas[],5,miIdioma),\"♘\")&\" \"&\nSUBSTITUTE(SUBSTITUTE(SUBSTITUTE(SUBSTITUTE(SUBSTITUTE(H50,\nINDEX(TablaPiezas[],1,miIdioma),\"♚\"),\nINDEX(TablaPiezas[],2,miIdioma),\"♛\"),\nINDEX(TablaPiezas[],3,miIdioma),\"♜\"),\nINDEX(TablaPiezas[],4,miIdioma),\"♝\"),\nINDEX(TablaPiezas[],5,miIdioma),\"♞\"))","v":""},"","",{"$f":"Games!$A58","v":""},"",""]
[49,null,null,{"$f":"Numerical!$A59","v":""},"","",null,null,{"$f":"IF(IFERROR(FIND(\". \",Games!$A59),0)>0,\nSUBSTITUTE(SUBSTITUTE(SUBSTITUTE(SUBSTITUTE(SUBSTITUTE(SUBSTITUTE(SUBSTITUTE(SUBSTITUTE(SUBSTITUTE(SUBSTITUTE(SUBSTITUTE(SUBSTITUTE(SUBSTITUTE(SUBSTITUTE(SUBSTITUTE(Games!$A59,\n\"♔\",\"R\"),\"♕\",\"D\"),\"♖\",\"T\"),\"♗\",\"A\"),\"♘\",\"C\"),\n\"♚\",\"R\"),\"♛\",\"D\"),\"♜\",\"T\"),\"♝\",\"A\"),\"♞\",\"C\"),\n\"R\",INDEX(TablaPiezas[],1,miIdioma)),\n\"D\",INDEX(TablaPiezas[],2,miIdioma)),\n\"T\",INDEX(TablaPiezas[],3,miIdioma)),\n\"A\",INDEX(TablaPiezas[],4,miIdioma)),\n\"C\",INDEX(TablaPiezas[],5,miIdioma)),\nGames!$A59)","v":""},"","","","","","","",{"$f":"IF(G51=\"\",\"\",$A51&\". \"&\nSUBSTITUTE(SUBSTITUTE(SUBSTITUTE(SUBSTITUTE(SUBSTITUTE(G51,\nINDEX(TablaPiezas[],1,miIdioma),\"♔\"),\nINDEX(TablaPiezas[],2,miIdioma),\"♕\"),\nINDEX(TablaPiezas[],3,miIdioma),\"♖\"),\nINDEX(TablaPiezas[],4,miIdioma),\"♗\"),\nINDEX(TablaPiezas[],5,miIdioma),\"♘\")&\" \"&\nSUBSTITUTE(SUBSTITUTE(SUBSTITUTE(SUBSTITUTE(SUBSTITUTE(H51,\nINDEX(TablaPiezas[],1,miIdioma),\"♚\"),\nINDEX(TablaPiezas[],2,miIdioma),\"♛\"),\nINDEX(TablaPiezas[],3,miIdioma),\"♜\"),\nINDEX(TablaPiezas[],4,miIdioma),\"♝\"),\nINDEX(TablaPiezas[],5,miIdioma),\"♞\"))","v":""},"","",{"$f":"Games!$A59","v":""},"",""]
[50,null,null,{"$f":"Numerical!$A60","v":""},"","",null,null,{"$f":"IF(IFERROR(FIND(\". \",Games!$A60),0)>0,\nSUBSTITUTE(SUBSTITUTE(SUBSTITUTE(SUBSTITUTE(SUBSTITUTE(SUBSTITUTE(SUBSTITUTE(SUBSTITUTE(SUBSTITUTE(SUBSTITUTE(SUBSTITUTE(SUBSTITUTE(SUBSTITUTE(SUBSTITUTE(SUBSTITUTE(Games!$A60,\n\"♔\",\"R\"),\"♕\",\"D\"),\"♖\",\"T\"),\"♗\",\"A\"),\"♘\",\"C\"),\n\"♚\",\"R\"),\"♛\",\"D\"),\"♜\",\"T\"),\"♝\",\"A\"),\"♞\",\"C\"),\n\"R\",INDEX(TablaPiezas[],1,miIdioma)),\n\"D\",INDEX(TablaPiezas[],2,miIdioma)),\n\"T\",INDEX(TablaPiezas[],3,miIdioma)),\n\"A\",INDEX(TablaPiezas[],4,miIdioma)),\n\"C\",INDEX(TablaPiezas[],5,miIdioma)),\nGames!$A60)","v":""},"","","","","","","",{"$f":"IF(G52=\"\",\"\",$A52&\". \"&\nSUBSTITUTE(SUBSTITUTE(SUBSTITUTE(SUBSTITUTE(SUBSTITUTE(G52,\nINDEX(TablaPiezas[],1,miIdioma),\"♔\"),\nINDEX(TablaPiezas[],2,miIdioma),\"♕\"),\nINDEX(TablaPiezas[],3,miIdioma),\"♖\"),\nINDEX(TablaPiezas[],4,miIdioma),\"♗\"),\nINDEX(TablaPiezas[],5,miIdioma),\"♘\")&\" \"&\nSUBSTITUTE(SUBSTITUTE(SUBSTITUTE(SUBSTITUTE(SUBSTITUTE(H52,\nINDEX(TablaPiezas[],1,miIdioma),\"♚\"),\nINDEX(TablaPiezas[],2,miIdioma),\"♛\"),\nINDEX(TablaPiezas[],3,miIdioma),\"♜\"),\nINDEX(TablaPiezas[],4,miIdioma),\"♝\"),\nINDEX(TablaPiezas[],5,miIdioma),\"♞\"))","v":""},"","",{"$f":"Games!$A60","v":""},"",""]
[51,null,null,{"$f":"Numerical!$A61","v":""},"","",null,null,{"$f":"IF(IFERROR(FIND(\". \",Games!$A61),0)>0,\nSUBSTITUTE(SUBSTITUTE(SUBSTITUTE(SUBSTITUTE(SUBSTITUTE(SUBSTITUTE(SUBSTITUTE(SUBSTITUTE(SUBSTITUTE(SUBSTITUTE(SUBSTITUTE(SUBSTITUTE(SUBSTITUTE(SUBSTITUTE(SUBSTITUTE(Games!$A61,\n\"♔\",\"R\"),\"♕\",\"D\"),\"♖\",\"T\"),\"♗\",\"A\"),\"♘\",\"C\"),\n\"♚\",\"R\"),\"♛\",\"D\"),\"♜\",\"T\"),\"♝\",\"A\"),\"♞\",\"C\"),\n\"R\",INDEX(TablaPiezas[],1,miIdioma)),\n\"D\",INDEX(TablaPiezas[],2,miIdioma)),\n\"T\",INDEX(TablaPiezas[],3,miIdioma)),\n\"A\",INDEX(TablaPiezas[],4,miIdioma)),\n\"C\",INDEX(TablaPiezas[],5,miIdioma)),\nGames!$A61)","v":""},"","","","","","","",{"$f":"IF(G53=\"\",\"\",$A53&\". \"&\nSUBSTITUTE(SUBSTITUTE(SUBSTITUTE(SUBSTITUTE(SUBSTITUTE(G53,\nINDEX(TablaPiezas[],1,miIdioma),\"♔\"),\nINDEX(TablaPiezas[],2,miIdioma),\"♕\"),\nINDEX(TablaPiezas[],3,miIdioma),\"♖\"),\nINDEX(TablaPiezas[],4,miIdioma),\"♗\"),\nINDEX(TablaPiezas[],5,miIdioma),\"♘\")&\" \"&\nSUBSTITUTE(SUBSTITUTE(SUBSTITUTE(SUBSTITUTE(SUBSTITUTE(H53,\nINDEX(TablaPiezas[],1,miIdioma),\"♚\"),\nINDEX(TablaPiezas[],2,miIdioma),\"♛\"),\nINDEX(TablaPiezas[],3,miIdioma),\"♜\"),\nINDEX(TablaPiezas[],4,miIdioma),\"♝\"),\nINDEX(TablaPiezas[],5,miIdioma),\"♞\"))","v":""},"","",{"$f":"Games!$A61","v":""},"",""]
[52,null,null,{"$f":"Numerical!$A62","v":""},"","",null,null,{"$f":"IF(IFERROR(FIND(\". \",Games!$A62),0)>0,\nSUBSTITUTE(SUBSTITUTE(SUBSTITUTE(SUBSTITUTE(SUBSTITUTE(SUBSTITUTE(SUBSTITUTE(SUBSTITUTE(SUBSTITUTE(SUBSTITUTE(SUBSTITUTE(SUBSTITUTE(SUBSTITUTE(SUBSTITUTE(SUBSTITUTE(Games!$A62,\n\"♔\",\"R\"),\"♕\",\"D\"),\"♖\",\"T\"),\"♗\",\"A\"),\"♘\",\"C\"),\n\"♚\",\"R\"),\"♛\",\"D\"),\"♜\",\"T\"),\"♝\",\"A\"),\"♞\",\"C\"),\n\"R\",INDEX(TablaPiezas[],1,miIdioma)),\n\"D\",INDEX(TablaPiezas[],2,miIdioma)),\n\"T\",INDEX(TablaPiezas[],3,miIdioma)),\n\"A\",INDEX(TablaPiezas[],4,miIdioma)),\n\"C\",INDEX(TablaPiezas[],5,miIdioma)),\nGames!$A62)","v":""},"","","","","","","",{"$f":"IF(G54=\"\",\"\",$A54&\". \"&\nSUBSTITUTE(SUBSTITUTE(SUBSTITUTE(SUBSTITUTE(SUBSTITUTE(G54,\nINDEX(TablaPiezas[],1,miIdioma),\"♔\"),\nINDEX(TablaPiezas[],2,miIdioma),\"♕\"),\nINDEX(TablaPiezas[],3,miIdioma),\"♖\"),\nINDEX(TablaPiezas[],4,miIdioma),\"♗\"),\nINDEX(TablaPiezas[],5,miIdioma),\"♘\")&\" \"&\nSUBSTITUTE(SUBSTITUTE(SUBSTITUTE(SUBSTITUTE(SUBSTITUTE(H54,\nINDEX(TablaPiezas[],1,miIdioma),\"♚\"),\nINDEX(TablaPiezas[],2,miIdioma),\"♛\"),\nINDEX(TablaPiezas[],3,miIdioma),\"♜\"),\nINDEX(TablaPiezas[],4,miIdioma),\"♝\"),\nINDEX(TablaPiezas[],5,miIdioma),\"♞\"))","v":""},"","",{"$f":"Games!$A62","v":""},"",""]
[53,null,null,{"$f":"Numerical!$A63","v":""},"","",null,null,{"$f":"IF(IFERROR(FIND(\". \",Games!$A63),0)>0,\nSUBSTITUTE(SUBSTITUTE(SUBSTITUTE(SUBSTITUTE(SUBSTITUTE(SUBSTITUTE(SUBSTITUTE(SUBSTITUTE(SUBSTITUTE(SUBSTITUTE(SUBSTITUTE(SUBSTITUTE(SUBSTITUTE(SUBSTITUTE(SUBSTITUTE(Games!$A63,\n\"♔\",\"R\"),\"♕\",\"D\"),\"♖\",\"T\"),\"♗\",\"A\"),\"♘\",\"C\"),\n\"♚\",\"R\"),\"♛\",\"D\"),\"♜\",\"T\"),\"♝\",\"A\"),\"♞\",\"C\"),\n\"R\",INDEX(TablaPiezas[],1,miIdioma)),\n\"D\",INDEX(TablaPiezas[],2,miIdioma)),\n\"T\",INDEX(TablaPiezas[],3,miIdioma)),\n\"A\",INDEX(TablaPiezas[],4,miIdioma)),\n\"C\",INDEX(TablaPiezas[],5,miIdioma)),\nGames!$A63)","v":""},"","","","","","","",{"$f":"IF(G55=\"\",\"\",$A55&\". \"&\nSUBSTITUTE(SUBSTITUTE(SUBSTITUTE(SUBSTITUTE(SUBSTITUTE(G55,\nINDEX(TablaPiezas[],1,miIdioma),\"♔\"),\nINDEX(TablaPiezas[],2,miIdioma),\"♕\"),\nINDEX(TablaPiezas[],3,miIdioma),\"♖\"),\nINDEX(TablaPiezas[],4,miIdioma),\"♗\"),\nINDEX(TablaPiezas[],5,miIdioma),\"♘\")&\" \"&\nSUBSTITUTE(SUBSTITUTE(SUBSTITUTE(SUBSTITUTE(SUBSTITUTE(H55,\nINDEX(TablaPiezas[],1,miIdioma),\"♚\"),\nINDEX(TablaPiezas[],2,miIdioma),\"♛\"),\nINDEX(TablaPiezas[],3,miIdioma),\"♜\"),\nINDEX(TablaPiezas[],4,miIdioma),\"♝\"),\nINDEX(TablaPiezas[],5,miIdioma),\"♞\"))","v":""},"","",{"$f":"Games!$A63","v":""},"",""]
[54,null,null,{"$f":"Numerical!$A64","v":""},"","",null,null,{"$f":"IF(IFERROR(FIND(\". \",Games!$A64),0)>0,\nSUBSTITUTE(SUBSTITUTE(SUBSTITUTE(SUBSTITUTE(SUBSTITUTE(SUBSTITUTE(SUBSTITUTE(SUBSTITUTE(SUBSTITUTE(SUBSTITUTE(SUBSTITUTE(SUBSTITUTE(SUBSTITUTE(SUBSTITUTE(SUBSTITUTE(Games!$A64,\n\"♔\",\"R\"),\"♕\",\"D\"),\"♖\",\"T\"),\"♗\",\"A\"),\"♘\",\"C\"),\n\"♚\",\"R\"),\"♛\",\"D\"),\"♜\",\"T\"),\"♝\",\"A\"),\"♞\",\"C\"),\n\"R\",INDEX(TablaPiezas[],1,miIdioma)),\n\"D\",INDEX(TablaPiezas[],2,miIdioma)),\n\"T\",INDEX(TablaPiezas[],3,miIdioma)),\n\"A\",INDEX(TablaPiezas[],4,miIdioma)),\n\"C\",INDEX(TablaPiezas[],5,miIdioma)),\nGames!$A64)","v":""},"","","","","","","",{"$f":"IF(G56=\"\",\"\",$A56&\". \"&\nSUBSTITUTE(SUBSTITUTE(SUBSTITUTE(SUBSTITUTE(SUBSTITUTE(G56,\nINDEX(TablaPiezas[],1,miIdioma),\"♔\"),\nINDEX(TablaPiezas[],2,miIdioma),\"♕\"),\nINDEX(TablaPiezas[],3,miIdioma),\"♖\"),\nINDEX(TablaPiezas[],4,miIdioma),\"♗\"),\nINDEX(TablaPiezas[],5,miIdioma),\"♘\")&\" \"&\nSUBSTITUTE(SUBSTITUTE(SUBSTITUTE(SUBSTITUTE(SUBSTITUTE(H56,\nINDEX(TablaPiezas[],1,miIdioma),\"♚\"),\nINDEX(TablaPiezas[],2,miIdioma),\"♛\"),\nINDEX(TablaPiezas[],3,miIdioma),\"♜\"),\nINDEX(TablaPiezas[],4,miIdioma),\"♝\"),\nINDEX(TablaPiezas[],5,miIdioma),\"♞\"))","v":""},"","",{"$f":"Games!$A64","v":""},"",""]
[55,null,null,{"$f":"Numerical!$A65","v":""},"","",null,null,{"$f":"IF(IFERROR(FIND(\". \",Games!$A65),0)>0,\nSUBSTITUTE(SUBSTITUTE(SUBSTITUTE(SUBSTITUTE(SUBSTITUTE(SUBSTITUTE(SUBSTITUTE(SUBSTITUTE(SUBSTITUTE(SUBSTITUTE(SUBSTITUTE(SUBSTITUTE(SUBSTITUTE(SUBSTITUTE(SUBSTITUTE(Games!$A65,\n\"♔\",\"R\"),\"♕\",\"D\"),\"♖\",\"T\"),\"♗\",\"A\"),\"♘\",\"C\"),\n\"♚\",\"R\"),\"♛\",\"D\"),\"♜\",\"T\"),\"♝\",\"A\"),\"♞\",\"C\"),\n\"R\",INDEX(TablaPiezas[],1,miIdioma)),\n\"D\",INDEX(TablaPiezas[],2,miIdioma)),\n\"T\",INDEX(TablaPiezas[],3,miIdioma)),\n\"A\",INDEX(TablaPiezas[],4,miIdioma)),\n\"C\",INDEX(TablaPiezas[],5,miIdioma)),\nGames!$A65)","v":""},"","","","","","","",{"$f":"IF(G57=\"\",\"\",$A57&\". \"&\nSUBSTITUTE(SUBSTITUTE(SUBSTITUTE(SUBSTITUTE(SUBSTITUTE(G57,\nINDEX(TablaPiezas[],1,miIdioma),\"♔\"),\nINDEX(TablaPiezas[],2,miIdioma),\"♕\"),\nINDEX(TablaPiezas[],3,miIdioma),\"♖\"),\nINDEX(TablaPiezas[],4,miIdioma),\"♗\"),\nINDEX(TablaPiezas[],5,miIdioma),\"♘\")&\" \"&\nSUBSTITUTE(SUBSTITUTE(SUBSTITUTE(SUBSTITUTE(SUBSTITUTE(H57,\nINDEX(TablaPiezas[],1,miIdioma),\"♚\"),\nINDEX(TablaPiezas[],2,miIdioma),\"♛\"),\nINDEX(TablaPiezas[],3,miIdioma),\"♜\"),\nINDEX(TablaPiezas[],4,miIdioma),\"♝\"),\nINDEX(TablaPiezas[],5,miIdioma),\"♞\"))","v":""},"","",{"$f":"Games!$A65","v":""},"",""]
[56,null,null,{"$f":"Numerical!$A66","v":""},"","",null,null,{"$f":"IF(IFERROR(FIND(\". \",Games!$A66),0)>0,\nSUBSTITUTE(SUBSTITUTE(SUBSTITUTE(SUBSTITUTE(SUBSTITUTE(SUBSTITUTE(SUBSTITUTE(SUBSTITUTE(SUBSTITUTE(SUBSTITUTE(SUBSTITUTE(SUBSTITUTE(SUBSTITUTE(SUBSTITUTE(SUBSTITUTE(Games!$A66,\n\"♔\",\"R\"),\"♕\",\"D\"),\"♖\",\"T\"),\"♗\",\"A\"),\"♘\",\"C\"),\n\"♚\",\"R\"),\"♛\",\"D\"),\"♜\",\"T\"),\"♝\",\"A\"),\"♞\",\"C\"),\n\"R\",INDEX(TablaPiezas[],1,miIdioma)),\n\"D\",INDEX(TablaPiezas[],2,miIdioma)),\n\"T\",INDEX(TablaPiezas[],3,miIdioma)),\n\"A\",INDEX(TablaPiezas[],4,miIdioma)),\n\"C\",INDEX(TablaPiezas[],5,miIdioma)),\nGames!$A66)","v":""},"","","","","","","",{"$f":"IF(G58=\"\",\"\",$A58&\". \"&\nSUBSTITUTE(SUBSTITUTE(SUBSTITUTE(SUBSTITUTE(SUBSTITUTE(G58,\nINDEX(TablaPiezas[],1,miIdioma),\"♔\"),\nINDEX(TablaPiezas[],2,miIdioma),\"♕\"),\nINDEX(TablaPiezas[],3,miIdioma),\"♖\"),\nINDEX(TablaPiezas[],4,miIdioma),\"♗\"),\nINDEX(TablaPiezas[],5,miIdioma),\"♘\")&\" \"&\nSUBSTITUTE(SUBSTITUTE(SUBSTITUTE(SUBSTITUTE(SUBSTITUTE(H58,\nINDEX(TablaPiezas[],1,miIdioma),\"♚\"),\nINDEX(TablaPiezas[],2,miIdioma),\"♛\"),\nINDEX(TablaPiezas[],3,miIdioma),\"♜\"),\nINDEX(TablaPiezas[],4,miIdioma),\"♝\"),\nINDEX(TablaPiezas[],5,miIdioma),\"♞\"))","v":""},"","",{"$f":"Games!$A66","v":""},"",""]
[57,null,null,{"$f":"Numerical!$A67","v":""},"","",null,null,{"$f":"IF(IFERROR(FIND(\". \",Games!$A67),0)>0,\nSUBSTITUTE(SUBSTITUTE(SUBSTITUTE(SUBSTITUTE(SUBSTITUTE(SUBSTITUTE(SUBSTITUTE(SUBSTITUTE(SUBSTITUTE(SUBSTITUTE(SUBSTITUTE(SUBSTITUTE(SUBSTITUTE(SUBSTITUTE(SUBSTITUTE(Games!$A67,\n\"♔\",\"R\"),\"♕\",\"D\"),\"♖\",\"T\"),\"♗\",\"A\"),\"♘\",\"C\"),\n\"♚\",\"R\"),\"♛\",\"D\"),\"♜\",\"T\"),\"♝\",\"A\"),\"♞\",\"C\"),\n\"R\",INDEX(TablaPiezas[],1,miIdioma)),\n\"D\",INDEX(TablaPiezas[],2,miIdioma)),\n\"T\",INDEX(TablaPiezas[],3,miIdioma)),\n\"A\",INDEX(TablaPiezas[],4,miIdioma)),\n\"C\",INDEX(TablaPiezas[],5,miIdioma)),\nGames!$A67)","v":""},"","","","","","","",{"$f":"IF(G59=\"\",\"\",$A59&\". \"&\nSUBSTITUTE(SUBSTITUTE(SUBSTITUTE(SUBSTITUTE(SUBSTITUTE(G59,\nINDEX(TablaPiezas[],1,miIdioma),\"♔\"),\nINDEX(TablaPiezas[],2,miIdioma),\"♕\"),\nINDEX(TablaPiezas[],3,miIdioma),\"♖\"),\nINDEX(TablaPiezas[],4,miIdioma),\"♗\"),\nINDEX(TablaPiezas[],5,miIdioma),\"♘\")&\" \"&\nSUBSTITUTE(SUBSTITUTE(SUBSTITUTE(SUBSTITUTE(SUBSTITUTE(H59,\nINDEX(TablaPiezas[],1,miIdioma),\"♚\"),\nINDEX(TablaPiezas[],2,miIdioma),\"♛\"),\nINDEX(TablaPiezas[],3,miIdioma),\"♜\"),\nINDEX(TablaPiezas[],4,miIdioma),\"♝\"),\nINDEX(TablaPiezas[],5,miIdioma),\"♞\"))","v":""},"","",{"$f":"Games!$A67","v":""},"",""]
[58,null,null,{"$f":"Numerical!$A68","v":""},"","",null,null,{"$f":"IF(IFERROR(FIND(\". \",Games!$A68),0)>0,\nSUBSTITUTE(SUBSTITUTE(SUBSTITUTE(SUBSTITUTE(SUBSTITUTE(SUBSTITUTE(SUBSTITUTE(SUBSTITUTE(SUBSTITUTE(SUBSTITUTE(SUBSTITUTE(SUBSTITUTE(SUBSTITUTE(SUBSTITUTE(SUBSTITUTE(Games!$A68,\n\"♔\",\"R\"),\"♕\",\"D\"),\"♖\",\"T\"),\"♗\",\"A\"),\"♘\",\"C\"),\n\"♚\",\"R\"),\"♛\",\"D\"),\"♜\",\"T\"),\"♝\",\"A\"),\"♞\",\"C\"),\n\"R\",INDEX(TablaPiezas[],1,miIdioma)),\n\"D\",INDEX(TablaPiezas[],2,miIdioma)),\n\"T\",INDEX(TablaPiezas[],3,miIdioma)),\n\"A\",INDEX(TablaPiezas[],4,miIdioma)),\n\"C\",INDEX(TablaPiezas[],5,miIdioma)),\nGames!$A68)","v":""},"","","","","","","",{"$f":"IF(G60=\"\",\"\",$A60&\". \"&\nSUBSTITUTE(SUBSTITUTE(SUBSTITUTE(SUBSTITUTE(SUBSTITUTE(G60,\nINDEX(TablaPiezas[],1,miIdioma),\"♔\"),\nINDEX(TablaPiezas[],2,miIdioma),\"♕\"),\nINDEX(TablaPiezas[],3,miIdioma),\"♖\"),\nINDEX(TablaPiezas[],4,miIdioma),\"♗\"),\nINDEX(TablaPiezas[],5,miIdioma),\"♘\")&\" \"&\nSUBSTITUTE(SUBSTITUTE(SUBSTITUTE(SUBSTITUTE(SUBSTITUTE(H60,\nINDEX(TablaPiezas[],1,miIdioma),\"♚\"),\nINDEX(TablaPiezas[],2,miIdioma),\"♛\"),\nINDEX(TablaPiezas[],3,miIdioma),\"♜\"),\nINDEX(TablaPiezas[],4,miIdioma),\"♝\"),\nINDEX(TablaPiezas[],5,miIdioma),\"♞\"))","v":""},"","",{"$f":"Games!$A68","v":""},"",""]
[59,null,null,{"$f":"Numerical!$A69","v":""},"","",null,null,{"$f":"IF(IFERROR(FIND(\". \",Games!$A69),0)>0,\nSUBSTITUTE(SUBSTITUTE(SUBSTITUTE(SUBSTITUTE(SUBSTITUTE(SUBSTITUTE(SUBSTITUTE(SUBSTITUTE(SUBSTITUTE(SUBSTITUTE(SUBSTITUTE(SUBSTITUTE(SUBSTITUTE(SUBSTITUTE(SUBSTITUTE(Games!$A69,\n\"♔\",\"R\"),\"♕\",\"D\"),\"♖\",\"T\"),\"♗\",\"A\"),\"♘\",\"C\"),\n\"♚\",\"R\"),\"♛\",\"D\"),\"♜\",\"T\"),\"♝\",\"A\"),\"♞\",\"C\"),\n\"R\",INDEX(TablaPiezas[],1,miIdioma)),\n\"D\",INDEX(TablaPiezas[],2,miIdioma)),\n\"T\",INDEX(TablaPiezas[],3,miIdioma)),\n\"A\",INDEX(TablaPiezas[],4,miIdioma)),\n\"C\",INDEX(TablaPiezas[],5,miIdioma)),\nGames!$A69)","v":""},"","","","","","","",{"$f":"IF(G61=\"\",\"\",$A61&\". \"&\nSUBSTITUTE(SUBSTITUTE(SUBSTITUTE(SUBSTITUTE(SUBSTITUTE(G61,\nINDEX(TablaPiezas[],1,miIdioma),\"♔\"),\nINDEX(TablaPiezas[],2,miIdioma),\"♕\"),\nINDEX(TablaPiezas[],3,miIdioma),\"♖\"),\nINDEX(TablaPiezas[],4,miIdioma),\"♗\"),\nINDEX(TablaPiezas[],5,miIdioma),\"♘\")&\" \"&\nSUBSTITUTE(SUBSTITUTE(SUBSTITUTE(SUBSTITUTE(SUBSTITUTE(H61,\nINDEX(TablaPiezas[],1,miIdioma),\"♚\"),\nINDEX(TablaPiezas[],2,miIdioma),\"♛\"),\nINDEX(TablaPiezas[],3,miIdioma),\"♜\"),\nINDEX(TablaPiezas[],4,miIdioma),\"♝\"),\nINDEX(TablaPiezas[],5,miIdioma),\"♞\"))","v":""},"","",{"$f":"Games!$A69","v":""},"",""]
[60,null,null,{"$f":"Numerical!$A70","v":""},"","",null,null,{"$f":"IF(IFERROR(FIND(\". \",Games!$A70),0)>0,\nSUBSTITUTE(SUBSTITUTE(SUBSTITUTE(SUBSTITUTE(SUBSTITUTE(SUBSTITUTE(SUBSTITUTE(SUBSTITUTE(SUBSTITUTE(SUBSTITUTE(SUBSTITUTE(SUBSTITUTE(SUBSTITUTE(SUBSTITUTE(SUBSTITUTE(Games!$A70,\n\"♔\",\"R\"),\"♕\",\"D\"),\"♖\",\"T\"),\"♗\",\"A\"),\"♘\",\"C\"),\n\"♚\",\"R\"),\"♛\",\"D\"),\"♜\",\"T\"),\"♝\",\"A\"),\"♞\",\"C\"),\n\"R\",INDEX(TablaPiezas[],1,miIdioma)),\n\"D\",INDEX(TablaPiezas[],2,miIdioma)),\n\"T\",INDEX(TablaPiezas[],3,miIdioma)),\n\"A\",INDEX(TablaPiezas[],4,miIdioma)),\n\"C\",INDEX(TablaPiezas[],5,miIdioma)),\nGames!$A70)","v":""},"","","","","","","",{"$f":"IF(G62=\"\",\"\",$A62&\". \"&\nSUBSTITUTE(SUBSTITUTE(SUBSTITUTE(SUBSTITUTE(SUBSTITUTE(G62,\nINDEX(TablaPiezas[],1,miIdioma),\"♔\"),\nINDEX(TablaPiezas[],2,miIdioma),\"♕\"),\nINDEX(TablaPiezas[],3,miIdioma),\"♖\"),\nINDEX(TablaPiezas[],4,miIdioma),\"♗\"),\nINDEX(TablaPiezas[],5,miIdioma),\"♘\")&\" \"&\nSUBSTITUTE(SUBSTITUTE(SUBSTITUTE(SUBSTITUTE(SUBSTITUTE(H62,\nINDEX(TablaPiezas[],1,miIdioma),\"♚\"),\nINDEX(TablaPiezas[],2,miIdioma),\"♛\"),\nINDEX(TablaPiezas[],3,miIdioma),\"♜\"),\nINDEX(TablaPiezas[],4,miIdioma),\"♝\"),\nINDEX(TablaPiezas[],5,miIdioma),\"♞\"))","v":""},"","",{"$f":"Games!$A70","v":""},"",""]
[61,null,null,{"$f":"Numerical!$A71","v":""},"","",null,null,{"$f":"IF(IFERROR(FIND(\". \",Games!$A71),0)>0,\nSUBSTITUTE(SUBSTITUTE(SUBSTITUTE(SUBSTITUTE(SUBSTITUTE(SUBSTITUTE(SUBSTITUTE(SUBSTITUTE(SUBSTITUTE(SUBSTITUTE(SUBSTITUTE(SUBSTITUTE(SUBSTITUTE(SUBSTITUTE(SUBSTITUTE(Games!$A71,\n\"♔\",\"R\"),\"♕\",\"D\"),\"♖\",\"T\"),\"♗\",\"A\"),\"♘\",\"C\"),\n\"♚\",\"R\"),\"♛\",\"D\"),\"♜\",\"T\"),\"♝\",\"A\"),\"♞\",\"C\"),\n\"R\",INDEX(TablaPiezas[],1,miIdioma)),\n\"D\",INDEX(TablaPiezas[],2,miIdioma)),\n\"T\",INDEX(TablaPiezas[],3,miIdioma)),\n\"A\",INDEX(TablaPiezas[],4,miIdioma)),\n\"C\",INDEX(TablaPiezas[],5,miIdioma)),\nGames!$A71)","v":""},"","","","","","","",{"$f":"IF(G63=\"\",\"\",$A63&\". \"&\nSUBSTITUTE(SUBSTITUTE(SUBSTITUTE(SUBSTITUTE(SUBSTITUTE(G63,\nINDEX(TablaPiezas[],1,miIdioma),\"♔\"),\nINDEX(TablaPiezas[],2,miIdioma),\"♕\"),\nINDEX(TablaPiezas[],3,miIdioma),\"♖\"),\nINDEX(TablaPiezas[],4,miIdioma),\"♗\"),\nINDEX(TablaPiezas[],5,miIdioma),\"♘\")&\" \"&\nSUBSTITUTE(SUBSTITUTE(SUBSTITUTE(SUBSTITUTE(SUBSTITUTE(H63,\nINDEX(TablaPiezas[],1,miIdioma),\"♚\"),\nINDEX(TablaPiezas[],2,miIdioma),\"♛\"),\nINDEX(TablaPiezas[],3,miIdioma),\"♜\"),\nINDEX(TablaPiezas[],4,miIdioma),\"♝\"),\nINDEX(TablaPiezas[],5,miIdioma),\"♞\"))","v":""},"","",{"$f":"Games!$A71","v":""},"",""]
[62,null,null,{"$f":"Numerical!$A72","v":""},"","",null,null,{"$f":"IF(IFERROR(FIND(\". \",Games!$A72),0)>0,\nSUBSTITUTE(SUBSTITUTE(SUBSTITUTE(SUBSTITUTE(SUBSTITUTE(SUBSTITUTE(SUBSTITUTE(SUBSTITUTE(SUBSTITUTE(SUBSTITUTE(SUBSTITUTE(SUBSTITUTE(SUBSTITUTE(SUBSTITUTE(SUBSTITUTE(Games!$A72,\n\"♔\",\"R\"),\"♕\",\"D\"),\"♖\",\"T\"),\"♗\",\"A\"),\"♘\",\"C\"),\n\"♚\",\"R\"),\"♛\",\"D\"),\"♜\",\"T\"),\"♝\",\"A\"),\"♞\",\"C\"),\n\"R\",INDEX(TablaPiezas[],1,miIdioma)),\n\"D\",INDEX(TablaPiezas[],2,miIdioma)),\n\"T\",INDEX(TablaPiezas[],3,miIdioma)),\n\"A\",INDEX(TablaPiezas[],4,miIdioma)),\n\"C\",INDEX(TablaPiezas[],5,miIdioma)),\nGames!$A72)","v":""},"","","","","","","",{"$f":"IF(G64=\"\",\"\",$A64&\". \"&\nSUBSTITUTE(SUBSTITUTE(SUBSTITUTE(SUBSTITUTE(SUBSTITUTE(G64,\nINDEX(TablaPiezas[],1,miIdioma),\"♔\"),\nINDEX(TablaPiezas[],2,miIdioma),\"♕\"),\nINDEX(TablaPiezas[],3,miIdioma),\"♖\"),\nINDEX(TablaPiezas[],4,miIdioma),\"♗\"),\nINDEX(TablaPiezas[],5,miIdioma),\"♘\")&\" \"&\nSUBSTITUTE(SUBSTITUTE(SUBSTITUTE(SUBSTITUTE(SUBSTITUTE(H64,\nINDEX(TablaPiezas[],1,miIdioma),\"♚\"),\nINDEX(TablaPiezas[],2,miIdioma),\"♛\"),\nINDEX(TablaPiezas[],3,miIdioma),\"♜\"),\nINDEX(TablaPiezas[],4,miIdioma),\"♝\"),\nINDEX(TablaPiezas[],5,miIdioma),\"♞\"))","v":""},"","",{"$f":"Games!$A72","v":""},"",""]
[63,null,null,{"$f":"Numerical!$A73","v":""},"","",null,null,{"$f":"IF(IFERROR(FIND(\". \",Games!$A73),0)>0,\nSUBSTITUTE(SUBSTITUTE(SUBSTITUTE(SUBSTITUTE(SUBSTITUTE(SUBSTITUTE(SUBSTITUTE(SUBSTITUTE(SUBSTITUTE(SUBSTITUTE(SUBSTITUTE(SUBSTITUTE(SUBSTITUTE(SUBSTITUTE(SUBSTITUTE(Games!$A73,\n\"♔\",\"R\"),\"♕\",\"D\"),\"♖\",\"T\"),\"♗\",\"A\"),\"♘\",\"C\"),\n\"♚\",\"R\"),\"♛\",\"D\"),\"♜\",\"T\"),\"♝\",\"A\"),\"♞\",\"C\"),\n\"R\",INDEX(TablaPiezas[],1,miIdioma)),\n\"D\",INDEX(TablaPiezas[],2,miIdioma)),\n\"T\",INDEX(TablaPiezas[],3,miIdioma)),\n\"A\",INDEX(TablaPiezas[],4,miIdioma)),\n\"C\",INDEX(TablaPiezas[],5,miIdioma)),\nGames!$A73)","v":""},"","","","","","","",{"$f":"IF(G65=\"\",\"\",$A65&\". \"&\nSUBSTITUTE(SUBSTITUTE(SUBSTITUTE(SUBSTITUTE(SUBSTITUTE(G65,\nINDEX(TablaPiezas[],1,miIdioma),\"♔\"),\nINDEX(TablaPiezas[],2,miIdioma),\"♕\"),\nINDEX(TablaPiezas[],3,miIdioma),\"♖\"),\nINDEX(TablaPiezas[],4,miIdioma),\"♗\"),\nINDEX(TablaPiezas[],5,miIdioma),\"♘\")&\" \"&\nSUBSTITUTE(SUBSTITUTE(SUBSTITUTE(SUBSTITUTE(SUBSTITUTE(H65,\nINDEX(TablaPiezas[],1,miIdioma),\"♚\"),\nINDEX(TablaPiezas[],2,miIdioma),\"♛\"),\nINDEX(TablaPiezas[],3,miIdioma),\"♜\"),\nINDEX(TablaPiezas[],4,miIdioma),\"♝\"),\nINDEX(TablaPiezas[],5,miIdioma),\"♞\"))","v":""},"","",{"$f":"Games!$A73","v":""},"",""]
[64,null,null,{"$f":"Numerical!$A74","v":""},"","",null,null,{"$f":"IF(IFERROR(FIND(\". \",Games!$A74),0)>0,\nSUBSTITUTE(SUBSTITUTE(SUBSTITUTE(SUBSTITUTE(SUBSTITUTE(SUBSTITUTE(SUBSTITUTE(SUBSTITUTE(SUBSTITUTE(SUBSTITUTE(SUBSTITUTE(SUBSTITUTE(SUBSTITUTE(SUBSTITUTE(SUBSTITUTE(Games!$A74,\n\"♔\",\"R\"),\"♕\",\"D\"),\"♖\",\"T\"),\"♗\",\"A\"),\"♘\",\"C\"),\n\"♚\",\"R\"),\"♛\",\"D\"),\"♜\",\"T\"),\"♝\",\"A\"),\"♞\",\"C\"),\n\"R\",INDEX(TablaPiezas[],1,miIdioma)),\n\"D\",INDEX(TablaPiezas[],2,miIdioma)),\n\"T\",INDEX(TablaPiezas[],3,miIdioma)),\n\"A\",INDEX(TablaPiezas[],4,miIdioma)),\n\"C\",INDEX(TablaPiezas[],5,miIdioma)),\nGames!$A74)","v":""},"","","","","","","",{"$f":"IF(G66=\"\",\"\",$A66&\". \"&\nSUBSTITUTE(SUBSTITUTE(SUBSTITUTE(SUBSTITUTE(SUBSTITUTE(G66,\nINDEX(TablaPiezas[],1,miIdioma),\"♔\"),\nINDEX(TablaPiezas[],2,miIdioma),\"♕\"),\nINDEX(TablaPiezas[],3,miIdioma),\"♖\"),\nINDEX(TablaPiezas[],4,miIdioma),\"♗\"),\nINDEX(TablaPiezas[],5,miIdioma),\"♘\")&\" \"&\nSUBSTITUTE(SUBSTITUTE(SUBSTITUTE(SUBSTITUTE(SUBSTITUTE(H66,\nINDEX(TablaPiezas[],1,miIdioma),\"♚\"),\nINDEX(TablaPiezas[],2,miIdioma),\"♛\"),\nINDEX(TablaPiezas[],3,miIdioma),\"♜\"),\nINDEX(TablaPiezas[],4,miIdioma),\"♝\"),\nINDEX(TablaPiezas[],5,miIdioma),\"♞\"))","v":""},"","",{"$f":"Games!$A74","v":""},"",""]
[65,null,null,{"$f":"Numerical!$A75","v":""},{"$f":"IF(ISNUMBER(--LEFT($D67)),LEFT(SUBSTITUTE($D67,$A67&\". \",\"\"),FIND(\" \",SUBSTITUTE($D67,$A67&\". \",\"\")&\" \")-1),\"\")","v":""},{"$f":"IF(ISNUMBER(--LEFT($D67)),TRIM(SUBSTITUTE($D67,$A67&\". \" & $E67,\"\")),\"\")","v":""},null,null,{"$f":"IF(IFERROR(FIND(\". \",Games!$A75),0)>0,\nSUBSTITUTE(SUBSTITUTE(SUBSTITUTE(SUBSTITUTE(SUBSTITUTE(SUBSTITUTE(SUBSTITUTE(SUBSTITUTE(SUBSTITUTE(SUBSTITUTE(SUBSTITUTE(SUBSTITUTE(SUBSTITUTE(SUBSTITUTE(SUBSTITUTE(Games!$A75,\n\"♔\",\"R\"),\"♕\",\"D\"),\"♖\",\"T\"),\"♗\",\"A\"),\"♘\",\"C\"),\n\"♚\",\"R\"),\"♛\",\"D\"),\"♜\",\"T\"),\"♝\",\"A\"),\"♞\",\"C\"),\n\"R\",INDEX(TablaPiezas[],1,miIdioma)),\n\"D\",INDEX(TablaPiezas[],2,miIdioma)),\n\"T\",INDEX(TablaPiezas[],3,miIdioma)),\n\"A\",INDEX(TablaPiezas[],4,miIdioma)),\n\"C\",INDEX(TablaPiezas[],5,miIdioma)),\nGames!$A75)","v":""},{"$f":"IF(ISNUMBER(--LEFT($I67)),LEFT(SUBSTITUTE($I67,$A67&\". \",\"\"),FIND(\" \",SUBSTITUTE($I67,$A67&\". \",\"\")&\" \")-1),\"\")","v":""},"","","",{"$f":"IF(AND($A67=INT((miPiezaMovimiento+2)/4),MOD(miPiezaMovimiento,4)>1),\"M\",\"\")","v":""},{"$f":"IF(AND($A67=INT((miPiezaMovimiento+2)/4),MOD(miPiezaMovimiento,4)<2),\"M\",\"\")","v":""},{"$f":"IF(B67=\"\",\"\",$A67&\". \"&B67&\" \"&C67)","v":""},{"$f":"IF(G67=\"\",\"\",$A67&\". \"&\nSUBSTITUTE(SUBSTITUTE(SUBSTITUTE(SUBSTITUTE(SUBSTITUTE(G67,\nINDEX(TablaPiezas[],1,miIdioma),\"♔\"),\nINDEX(TablaPiezas[],2,miIdioma),\"♕\"),\nINDEX(TablaPiezas[],3,miIdioma),\"♖\"),\nINDEX(TablaPiezas[],4,miIdioma),\"♗\"),\nINDEX(TablaPiezas[],5,miIdioma),\"♘\")&\" \"&\nSUBSTITUTE(SUBSTITUTE(SUBSTITUTE(SUBSTITUTE(SUBSTITUTE(H67,\nINDEX(TablaPiezas[],1,miIdioma),\"♚\"),\nINDEX(TablaPiezas[],2,miIdioma),\"♛\"),\nINDEX(TablaPiezas[],3,miIdioma),\"♜\"),\nINDEX(TablaPiezas[],4,miIdioma),\"♝\"),\nINDEX(TablaPiezas[],5,miIdioma),\"♞\"))","v":""},"",{"$f":"IF(ISNUMBER(--LEFT($Q67)),TRIM(SUBSTITUTE($Q67,$A67&\". \" & $R67,\"\")),\"\")","v":""},{"$f":"Games!$A75","v":""},"",""]
[66,null,null,{"$f":"Numerical!$A76","v":""},"","",null,null,{"$f":"IF(IFERROR(FIND(\". \",Games!$A76),0)>0,\nSUBSTITUTE(SUBSTITUTE(SUBSTITUTE(SUBSTITUTE(SUBSTITUTE(SUBSTITUTE(SUBSTITUTE(SUBSTITUTE(SUBSTITUTE(SUBSTITUTE(SUBSTITUTE(SUBSTITUTE(SUBSTITUTE(SUBSTITUTE(SUBSTITUTE(Games!$A76,\n\"♔\",\"R\"),\"♕\",\"D\"),\"♖\",\"T\"),\"♗\",\"A\"),\"♘\",\"C\"),\n\"♚\",\"R\"),\"♛\",\"D\"),\"♜\",\"T\"),\"♝\",\"A\"),\"♞\",\"C\"),\n\"R\",INDEX(TablaPiezas[],1,miIdioma)),\n\"D\",INDEX(TablaPiezas[],2,miIdioma)),\n\"T\",INDEX(TablaPiezas[],3,miIdioma)),\n\"A\",INDEX(TablaPiezas[],4,miIdioma)),\n\"C\",INDEX(TablaPiezas[],5,miIdioma)),\nGames!$A76)","v":""},"","",{"$f":"IF(OR(J68=\"\",G68=\"\",G68=IFERROR(LEFT(J68,FIND(\" \",J68)-1),J68)),\"\",IF(LEFT(G68)&RIGHT(G68,LEN(G68)-2)=J68,\"NOTA\",IF(AND(RIGHT(G68)=\"+\",RIGHT(J68)=\"#\"),\"NOTA\",\"ERROR\")))","v":""},{"$f":"IF(OR(K68=\"\",H68=\"\",H68=IFERROR(LEFT(K68,FIND(\" \",K68)-1),K68)),\"\",IF(LEFT(H68)&RIGHT(H68,LEN(H68)-2)=K68,\"NOTA\",IF(AND(RIGHT(H68)=\"+\",RIGHT(K68)=\"#\"),\"NOTA\",\"ERROR\")))","v":""},"","","",{"$f":"IF(G68=\"\",\"\",$A68&\". \"&\nSUBSTITUTE(SUBSTITUTE(SUBSTITUTE(SUBSTITUTE(SUBSTITUTE(G68,\nINDEX(TablaPiezas[],1,miIdioma),\"♔\"),\nINDEX(TablaPiezas[],2,miIdioma),\"♕\"),\nINDEX(TablaPiezas[],3,miIdioma),\"♖\"),\nINDEX(TablaPiezas[],4,miIdioma),\"♗\"),\nINDEX(TablaPiezas[],5,miIdioma),\"♘\")&\" \"&\nSUBSTITUTE(SUBSTITUTE(SUBSTITUTE(SUBSTITUTE(SUBSTITUTE(H68,\nINDEX(TablaPiezas[],1,miIdioma),\"♚\"),\nINDEX(TablaPiezas[],2,miIdioma),\"♛\"),\nINDEX(TablaPiezas[],3,miIdioma),\"♜\"),\nINDEX(TablaPiezas[],4,miIdioma),\"♝\"),\nINDEX(TablaPiezas[],5,miIdioma),\"♞\"))","v":""},{"$f":"IF(ISNUMBER(--LEFT($Q68)),LEFT(SUBSTITUTE($Q68,$A68&\". \",\"\"),FIND(\" \",SUBSTITUTE($Q68,$A68&\". \",\"\")&\" \")-1),\"\")","v":""},"",{"$f":"Games!$A76","v":""},{"$f":"IF(ISNUMBER(--LEFT($T68)),LEFT(SUBSTITUTE($T68,$A68&\". \",\"\"),FIND(\" \",SUBSTITUTE($T68,$A68&\". \",\"\")&\" \")-1),\"\")","v":""},{"$f":"IF(ISNUMBER(--LEFT($T68)),TRIM(SUBSTITUTE($T68,$A68&\". \" & $U68,\"\")),\"\")","v":""}]
[67,null,null,{"$f":"Numerical!$A77","v":""},"","",null,null,{"$f":"IF(IFERROR(FIND(\". \",Games!$A77),0)>0,\nSUBSTITUTE(SUBSTITUTE(SUBSTITUTE(SUBSTITUTE(SUBSTITUTE(SUBSTITUTE(SUBSTITUTE(SUBSTITUTE(SUBSTITUTE(SUBSTITUTE(SUBSTITUTE(SUBSTITUTE(SUBSTITUTE(SUBSTITUTE(SUBSTITUTE(Games!$A77,\n\"♔\",\"R\"),\"♕\",\"D\"),\"♖\",\"T\"),\"♗\",\"A\"),\"♘\",\"C\"),\n\"♚\",\"R\"),\"♛\",\"D\"),\"♜\",\"T\"),\"♝\",\"A\"),\"♞\",\"C\"),\n\"R\",INDEX(TablaPiezas[],1,miIdioma)),\n\"D\",INDEX(TablaPiezas[],2,miIdioma)),\n\"T\",INDEX(TablaPiezas[],3,miIdioma)),\n\"A\",INDEX(TablaPiezas[],4,miIdioma)),\n\"C\",INDEX(TablaPiezas[],5,miIdioma)),\nGames!$A77)","v":""},"","","","","","","",{"$f":"IF(G69=\"\",\"\",$A69&\". \"&\nSUBSTITUTE(SUBSTITUTE(SUBSTITUTE(SUBSTITUTE(SUBSTITUTE(G69,\nINDEX(TablaPiezas[],1,miIdioma),\"♔\"),\nINDEX(TablaPiezas[],2,miIdioma),\"♕\"),\nINDEX(TablaPiezas[],3,miIdioma),\"♖\"),\nINDEX(TablaPiezas[],4,miIdioma),\"♗\"),\nINDEX(TablaPiezas[],5,miIdioma),\"♘\")&\" \"&\nSUBSTITUTE(SUBSTITUTE(SUBSTITUTE(SUBSTITUTE(SUBSTITUTE(H69,\nINDEX(TablaPiezas[],1,miIdioma),\"♚\"),\nINDEX(TablaPiezas[],2,miIdioma),\"♛\"),\nINDEX(TablaPiezas[],3,miIdioma),\"♜\"),\nINDEX(TablaPiezas[],4,miIdioma),\"♝\"),\nINDEX(TablaPiezas[],5,miIdioma),\"♞\"))","v":""},"","",{"$f":"Games!$A77","v":""},"",""]
[68,null,null,{"$f":"Numerical!$A78","v":""},"","",null,null,{"$f":"IF(IFERROR(FIND(\". \",Games!$A78),0)>0,\nSUBSTITUTE(SUBSTITUTE(SUBSTITUTE(SUBSTITUTE(SUBSTITUTE(SUBSTITUTE(SUBSTITUTE(SUBSTITUTE(SUBSTITUTE(SUBSTITUTE(SUBSTITUTE(SUBSTITUTE(SUBSTITUTE(SUBSTITUTE(SUBSTITUTE(Games!$A78,\n\"♔\",\"R\"),\"♕\",\"D\"),\"♖\",\"T\"),\"♗\",\"A\"),\"♘\",\"C\"),\n\"♚\",\"R\"),\"♛\",\"D\"),\"♜\",\"T\"),\"♝\",\"A\"),\"♞\",\"C\"),\n\"R\",INDEX(TablaPiezas[],1,miIdioma)),\n\"D\",INDEX(TablaPiezas[],2,miIdioma)),\n\"T\",INDEX(TablaPiezas[],3,miIdioma)),\n\"A\",INDEX(TablaPiezas[],4,miIdioma)),\n\"C\",INDEX(TablaPiezas[],5,miIdioma)),\nGames!$A78)","v":""},"","","","","","","",{"$f":"IF(G70=\"\",\"\",$A70&\". \"&\nSUBSTITUTE(SUBSTITUTE(SUBSTITUTE(SUBSTITUTE(SUBSTITUTE(G70,\nINDEX(TablaPiezas[],1,miIdioma),\"♔\"),\nINDEX(TablaPiezas[],2,miIdioma),\"♕\"),\nINDEX(TablaPiezas[],3,miIdioma),\"♖\"),\nINDEX(TablaPiezas[],4,miIdioma),\"♗\"),\nINDEX(TablaPiezas[],5,miIdioma),\"♘\")&\" \"&\nSUBSTITUTE(SUBSTITUTE(SUBSTITUTE(SUBSTITUTE(SUBSTITUTE(H70,\nINDEX(TablaPiezas[],1,miIdioma),\"♚\"),\nINDEX(TablaPiezas[],2,miIdioma),\"♛\"),\nINDEX(TablaPiezas[],3,miIdioma),\"♜\"),\nINDEX(TablaPiezas[],4,miIdioma),\"♝\"),\nINDEX(TablaPiezas[],5,miIdioma),\"♞\"))","v":""},"","",{"$f":"Games!$A78","v":""},"",""]
[69,null,null,{"$f":"Numerical!$A79","v":""},"","",null,null,{"$f":"IF(IFERROR(FIND(\". \",Games!$A79),0)>0,\nSUBSTITUTE(SUBSTITUTE(SUBSTITUTE(SUBSTITUTE(SUBSTITUTE(SUBSTITUTE(SUBSTITUTE(SUBSTITUTE(SUBSTITUTE(SUBSTITUTE(SUBSTITUTE(SUBSTITUTE(SUBSTITUTE(SUBSTITUTE(SUBSTITUTE(Games!$A79,\n\"♔\",\"R\"),\"♕\",\"D\"),\"♖\",\"T\"),\"♗\",\"A\"),\"♘\",\"C\"),\n\"♚\",\"R\"),\"♛\",\"D\"),\"♜\",\"T\"),\"♝\",\"A\"),\"♞\",\"C\"),\n\"R\",INDEX(TablaPiezas[],1,miIdioma)),\n\"D\",INDEX(TablaPiezas[],2,miIdioma)),\n\"T\",INDEX(TablaPiezas[],3,miIdioma)),\n\"A\",INDEX(TablaPiezas[],4,miIdioma)),\n\"C\",INDEX(TablaPiezas[],5,miIdioma)),\nGames!$A79)","v":""},"","","","","","","",{"$f":"IF(G71=\"\",\"\",$A71&\". \"&\nSUBSTITUTE(SUBSTITUTE(SUBSTITUTE(SUBSTITUTE(SUBSTITUTE(G71,\nINDEX(TablaPiezas[],1,miIdioma),\"♔\"),\nINDEX(TablaPiezas[],2,miIdioma),\"♕\"),\nINDEX(TablaPiezas[],3,miIdioma),\"♖\"),\nINDEX(TablaPiezas[],4,miIdioma),\"♗\"),\nINDEX(TablaPiezas[],5,miIdioma),\"♘\")&\" \"&\nSUBSTITUTE(SUBSTITUTE(SUBSTITUTE(SUBSTITUTE(SUBSTITUTE(H71,\nINDEX(TablaPiezas[],1,miIdioma),\"♚\"),\nINDEX(TablaPiezas[],2,miIdioma),\"♛\"),\nINDEX(TablaPiezas[],3,miIdioma),\"♜\"),\nINDEX(TablaPiezas[],4,miIdioma),\"♝\"),\nINDEX(TablaPiezas[],5,miIdioma),\"♞\"))","v":""},"","",{"$f":"Games!$A79","v":""},"",""]
[70,null,null,{"$f":"Numerical!$A80","v":""},"","",null,null,{"$f":"IF(IFERROR(FIND(\". \",Games!$A80),0)>0,\nSUBSTITUTE(SUBSTITUTE(SUBSTITUTE(SUBSTITUTE(SUBSTITUTE(SUBSTITUTE(SUBSTITUTE(SUBSTITUTE(SUBSTITUTE(SUBSTITUTE(SUBSTITUTE(SUBSTITUTE(SUBSTITUTE(SUBSTITUTE(SUBSTITUTE(Games!$A80,\n\"♔\",\"R\"),\"♕\",\"D\"),\"♖\",\"T\"),\"♗\",\"A\"),\"♘\",\"C\"),\n\"♚\",\"R\"),\"♛\",\"D\"),\"♜\",\"T\"),\"♝\",\"A\"),\"♞\",\"C\"),\n\"R\",INDEX(TablaPiezas[],1,miIdioma)),\n\"D\",INDEX(TablaPiezas[],2,miIdioma)),\n\"T\",INDEX(TablaPiezas[],3,miIdioma)),\n\"A\",INDEX(TablaPiezas[],4,miIdioma)),\n\"C\",INDEX(TablaPiezas[],5,miIdioma)),\nGames!$A80)","v":""},"","","","","","","",{"$f":"IF(G72=\"\",\"\",$A72&\". \"&\nSUBSTITUTE(SUBSTITUTE(SUBSTITUTE(SUBSTITUTE(SUBSTITUTE(G72,\nINDEX(TablaPiezas[],1,miIdioma),\"♔\"),\nINDEX(TablaPiezas[],2,miIdioma),\"♕\"),\nINDEX(TablaPiezas[],3,miIdioma),\"♖\"),\nINDEX(TablaPiezas[],4,miIdioma),\"♗\"),\nINDEX(TablaPiezas[],5,miIdioma),\"♘\")&\" \"&\nSUBSTITUTE(SUBSTITUTE(SUBSTITUTE(SUBSTITUTE(SUBSTITUTE(H72,\nINDEX(TablaPiezas[],1,miIdioma),\"♚\"),\nINDEX(TablaPiezas[],2,miIdioma),\"♛\"),\nINDEX(TablaPiezas[],3,miIdioma),\"♜\"),\nINDEX(TablaPiezas[],4,miIdioma),\"♝\"),\nINDEX(TablaPiezas[],5,miIdioma),\"♞\"))","v":""},"","",{"$f":"Games!$A80","v":""},"",""]
[71,null,null,{"$f":"Numerical!$A81","v":""},"","",null,null,{"$f":"IF(IFERROR(FIND(\". \",Games!$A81),0)>0,\nSUBSTITUTE(SUBSTITUTE(SUBSTITUTE(SUBSTITUTE(SUBSTITUTE(SUBSTITUTE(SUBSTITUTE(SUBSTITUTE(SUBSTITUTE(SUBSTITUTE(SUBSTITUTE(SUBSTITUTE(SUBSTITUTE(SUBSTITUTE(SUBSTITUTE(Games!$A81,\n\"♔\",\"R\"),\"♕\",\"D\"),\"♖\",\"T\"),\"♗\",\"A\"),\"♘\",\"C\"),\n\"♚\",\"R\"),\"♛\",\"D\"),\"♜\",\"T\"),\"♝\",\"A\"),\"♞\",\"C\"),\n\"R\",INDEX(TablaPiezas[],1,miIdioma)),\n\"D\",INDEX(TablaPiezas[],2,miIdioma)),\n\"T\",INDEX(TablaPiezas[],3,miIdioma)),\n\"A\",INDEX(TablaPiezas[],4,miIdioma)),\n\"C\",INDEX(TablaPiezas[],5,miIdioma)),\nGames!$A81)","v":""},"","","","","","","",{"$f":"IF(G73=\"\",\"\",$A73&\". \"&\nSUBSTITUTE(SUBSTITUTE(SUBSTITUTE(SUBSTITUTE(SUBSTITUTE(G73,\nINDEX(TablaPiezas[],1,miIdioma),\"♔\"),\nINDEX(TablaPiezas[],2,miIdioma),\"♕\"),\nINDEX(TablaPiezas[],3,miIdioma),\"♖\"),\nINDEX(TablaPiezas[],4,miIdioma),\"♗\"),\nINDEX(TablaPiezas[],5,miIdioma),\"♘\")&\" \"&\nSUBSTITUTE(SUBSTITUTE(SUBSTITUTE(SUBSTITUTE(SUBSTITUTE(H73,\nINDEX(TablaPiezas[],1,miIdioma),\"♚\"),\nINDEX(TablaPiezas[],2,miIdioma),\"♛\"),\nINDEX(TablaPiezas[],3,miIdioma),\"♜\"),\nINDEX(TablaPiezas[],4,miIdioma),\"♝\"),\nINDEX(TablaPiezas[],5,miIdioma),\"♞\"))","v":""},"","",{"$f":"Games!$A81","v":""},"",""]
[72,null,null,{"$f":"Numerical!$A82","v":""},"","",null,null,{"$f":"IF(IFERROR(FIND(\". \",Games!$A82),0)>0,\nSUBSTITUTE(SUBSTITUTE(SUBSTITUTE(SUBSTITUTE(SUBSTITUTE(SUBSTITUTE(SUBSTITUTE(SUBSTITUTE(SUBSTITUTE(SUBSTITUTE(SUBSTITUTE(SUBSTITUTE(SUBSTITUTE(SUBSTITUTE(SUBSTITUTE(Games!$A82,\n\"♔\",\"R\"),\"♕\",\"D\"),\"♖\",\"T\"),\"♗\",\"A\"),\"♘\",\"C\"),\n\"♚\",\"R\"),\"♛\",\"D\"),\"♜\",\"T\"),\"♝\",\"A\"),\"♞\",\"C\"),\n\"R\",INDEX(TablaPiezas[],1,miIdioma)),\n\"D\",INDEX(TablaPiezas[],2,miIdioma)),\n\"T\",INDEX(TablaPiezas[],3,miIdioma)),\n\"A\",INDEX(TablaPiezas[],4,miIdioma)),\n\"C\",INDEX(TablaPiezas[],5,miIdioma)),\nGames!$A82)","v":""},"","","","","","","",{"$f":"IF(G74=\"\",\"\",$A74&\". \"&\nSUBSTITUTE(SUBSTITUTE(SUBSTITUTE(SUBSTITUTE(SUBSTITUTE(G74,\nINDEX(TablaPiezas[],1,miIdioma),\"♔\"),\nINDEX(TablaPiezas[],2,miIdioma),\"♕\"),\nINDEX(TablaPiezas[],3,miIdioma),\"♖\"),\nINDEX(TablaPiezas[],4,miIdioma),\"♗\"),\nINDEX(TablaPiezas[],5,miIdioma),\"♘\")&\" \"&\nSUBSTITUTE(SUBSTITUTE(SUBSTITUTE(SUBSTITUTE(SUBSTITUTE(H74,\nINDEX(TablaPiezas[],1,miIdioma),\"♚\"),\nINDEX(TablaPiezas[],2,miIdioma),\"♛\"),\nINDEX(TablaPiezas[],3,miIdioma),\"♜\"),\nINDEX(TablaPiezas[],4,miIdioma),\"♝\"),\nINDEX(TablaPiezas[],5,miIdioma),\"♞\"))","v":""},"","",{"$f":"Games!$A82","v":""},"",""]
[73,null,null,{"$f":"Numerical!$A83","v":""},"","",null,null,{"$f":"IF(IFERROR(FIND(\". \",Games!$A83),0)>0,\nSUBSTITUTE(SUBSTITUTE(SUBSTITUTE(SUBSTITUTE(SUBSTITUTE(SUBSTITUTE(SUBSTITUTE(SUBSTITUTE(SUBSTITUTE(SUBSTITUTE(SUBSTITUTE(SUBSTITUTE(SUBSTITUTE(SUBSTITUTE(SUBSTITUTE(Games!$A83,\n\"♔\",\"R\"),\"♕\",\"D\"),\"♖\",\"T\"),\"♗\",\"A\"),\"♘\",\"C\"),\n\"♚\",\"R\"),\"♛\",\"D\"),\"♜\",\"T\"),\"♝\",\"A\"),\"♞\",\"C\"),\n\"R\",INDEX(TablaPiezas[],1,miIdioma)),\n\"D\",INDEX(TablaPiezas[],2,miIdioma)),\n\"T\",INDEX(TablaPiezas[],3,miIdioma)),\n\"A\",INDEX(TablaPiezas[],4,miIdioma)),\n\"C\",INDEX(TablaPiezas[],5,miIdioma)),\nGames!$A83)","v":""},"","","","","","","",{"$f":"IF(G75=\"\",\"\",$A75&\". \"&\nSUBSTITUTE(SUBSTITUTE(SUBSTITUTE(SUBSTITUTE(SUBSTITUTE(G75,\nINDEX(TablaPiezas[],1,miIdioma),\"♔\"),\nINDEX(TablaPiezas[],2,miIdioma),\"♕\"),\nINDEX(TablaPiezas[],3,miIdioma),\"♖\"),\nINDEX(TablaPiezas[],4,miIdioma),\"♗\"),\nINDEX(TablaPiezas[],5,miIdioma),\"♘\")&\" \"&\nSUBSTITUTE(SUBSTITUTE(SUBSTITUTE(SUBSTITUTE(SUBSTITUTE(H75,\nINDEX(TablaPiezas[],1,miIdioma),\"♚\"),\nINDEX(TablaPiezas[],2,miIdioma),\"♛\"),\nINDEX(TablaPiezas[],3,miIdioma),\"♜\"),\nINDEX(TablaPiezas[],4,miIdioma),\"♝\"),\nINDEX(TablaPiezas[],5,miIdioma),\"♞\"))","v":""},"","",{"$f":"Games!$A83","v":""},"",""]
[74,null,null,{"$f":"Numerical!$A84","v":""},"","",null,null,{"$f":"IF(IFERROR(FIND(\". \",Games!$A84),0)>0,\nSUBSTITUTE(SUBSTITUTE(SUBSTITUTE(SUBSTITUTE(SUBSTITUTE(SUBSTITUTE(SUBSTITUTE(SUBSTITUTE(SUBSTITUTE(SUBSTITUTE(SUBSTITUTE(SUBSTITUTE(SUBSTITUTE(SUBSTITUTE(SUBSTITUTE(Games!$A84,\n\"♔\",\"R\"),\"♕\",\"D\"),\"♖\",\"T\"),\"♗\",\"A\"),\"♘\",\"C\"),\n\"♚\",\"R\"),\"♛\",\"D\"),\"♜\",\"T\"),\"♝\",\"A\"),\"♞\",\"C\"),\n\"R\",INDEX(TablaPiezas[],1,miIdioma)),\n\"D\",INDEX(TablaPiezas[],2,miIdioma)),\n\"T\",INDEX(TablaPiezas[],3,miIdioma)),\n\"A\",INDEX(TablaPiezas[],4,miIdioma)),\n\"C\",INDEX(TablaPiezas[],5,miIdioma)),\nGames!$A84)","v":""},"","","","","","","",{"$f":"IF(G76=\"\",\"\",$A76&\". \"&\nSUBSTITUTE(SUBSTITUTE(SUBSTITUTE(SUBSTITUTE(SUBSTITUTE(G76,\nINDEX(TablaPiezas[],1,miIdioma),\"♔\"),\nINDEX(TablaPiezas[],2,miIdioma),\"♕\"),\nINDEX(TablaPiezas[],3,miIdioma),\"♖\"),\nINDEX(TablaPiezas[],4,miIdioma),\"♗\"),\nINDEX(TablaPiezas[],5,miIdioma),\"♘\")&\" \"&\nSUBSTITUTE(SUBSTITUTE(SUBSTITUTE(SUBSTITUTE(SUBSTITUTE(H76,\nINDEX(TablaPiezas[],1,miIdioma),\"♚\"),\nINDEX(TablaPiezas[],2,miIdioma),\"♛\"),\nINDEX(TablaPiezas[],3,miIdioma),\"♜\"),\nINDEX(TablaPiezas[],4,miIdioma),\"♝\"),\nINDEX(TablaPiezas[],5,miIdioma),\"♞\"))","v":""},"","",{"$f":"Games!$A84","v":""},"",""]
[75,null,null,{"$f":"Numerical!$A85","v":""},"","",null,null,{"$f":"IF(IFERROR(FIND(\". \",Games!$A85),0)>0,\nSUBSTITUTE(SUBSTITUTE(SUBSTITUTE(SUBSTITUTE(SUBSTITUTE(SUBSTITUTE(SUBSTITUTE(SUBSTITUTE(SUBSTITUTE(SUBSTITUTE(SUBSTITUTE(SUBSTITUTE(SUBSTITUTE(SUBSTITUTE(SUBSTITUTE(Games!$A85,\n\"♔\",\"R\"),\"♕\",\"D\"),\"♖\",\"T\"),\"♗\",\"A\"),\"♘\",\"C\"),\n\"♚\",\"R\"),\"♛\",\"D\"),\"♜\",\"T\"),\"♝\",\"A\"),\"♞\",\"C\"),\n\"R\",INDEX(TablaPiezas[],1,miIdioma)),\n\"D\",INDEX(TablaPiezas[],2,miIdioma)),\n\"T\",INDEX(TablaPiezas[],3,miIdioma)),\n\"A\",INDEX(TablaPiezas[],4,miIdioma)),\n\"C\",INDEX(TablaPiezas[],5,miIdioma)),\nGames!$A85)","v":""},"","","","","","","",{"$f":"IF(G77=\"\",\"\",$A77&\". \"&\nSUBSTITUTE(SUBSTITUTE(SUBSTITUTE(SUBSTITUTE(SUBSTITUTE(G77,\nINDEX(TablaPiezas[],1,miIdioma),\"♔\"),\nINDEX(TablaPiezas[],2,miIdioma),\"♕\"),\nINDEX(TablaPiezas[],3,miIdioma),\"♖\"),\nINDEX(TablaPiezas[],4,miIdioma),\"♗\"),\nINDEX(TablaPiezas[],5,miIdioma),\"♘\")&\" \"&\nSUBSTITUTE(SUBSTITUTE(SUBSTITUTE(SUBSTITUTE(SUBSTITUTE(H77,\nINDEX(TablaPiezas[],1,miIdioma),\"♚\"),\nINDEX(TablaPiezas[],2,miIdioma),\"♛\"),\nINDEX(TablaPiezas[],3,miIdioma),\"♜\"),\nINDEX(TablaPiezas[],4,miIdioma),\"♝\"),\nINDEX(TablaPiezas[],5,miIdioma),\"♞\"))","v":""},"","",{"$f":"Games!$A85","v":""},"",""]
[76,null,null,{"$f":"Numerical!$A86","v":""},"","",null,null,{"$f":"IF(IFERROR(FIND(\". \",Games!$A86),0)>0,\nSUBSTITUTE(SUBSTITUTE(SUBSTITUTE(SUBSTITUTE(SUBSTITUTE(SUBSTITUTE(SUBSTITUTE(SUBSTITUTE(SUBSTITUTE(SUBSTITUTE(SUBSTITUTE(SUBSTITUTE(SUBSTITUTE(SUBSTITUTE(SUBSTITUTE(Games!$A86,\n\"♔\",\"R\"),\"♕\",\"D\"),\"♖\",\"T\"),\"♗\",\"A\"),\"♘\",\"C\"),\n\"♚\",\"R\"),\"♛\",\"D\"),\"♜\",\"T\"),\"♝\",\"A\"),\"♞\",\"C\"),\n\"R\",INDEX(TablaPiezas[],1,miIdioma)),\n\"D\",INDEX(TablaPiezas[],2,miIdioma)),\n\"T\",INDEX(TablaPiezas[],3,miIdioma)),\n\"A\",INDEX(TablaPiezas[],4,miIdioma)),\n\"C\",INDEX(TablaPiezas[],5,miIdioma)),\nGames!$A86)","v":""},"","","","","","","",{"$f":"IF(G78=\"\",\"\",$A78&\". \"&\nSUBSTITUTE(SUBSTITUTE(SUBSTITUTE(SUBSTITUTE(SUBSTITUTE(G78,\nINDEX(TablaPiezas[],1,miIdioma),\"♔\"),\nINDEX(TablaPiezas[],2,miIdioma),\"♕\"),\nINDEX(TablaPiezas[],3,miIdioma),\"♖\"),\nINDEX(TablaPiezas[],4,miIdioma),\"♗\"),\nINDEX(TablaPiezas[],5,miIdioma),\"♘\")&\" \"&\nSUBSTITUTE(SUBSTITUTE(SUBSTITUTE(SUBSTITUTE(SUBSTITUTE(H78,\nINDEX(TablaPiezas[],1,miIdioma),\"♚\"),\nINDEX(TablaPiezas[],2,miIdioma),\"♛\"),\nINDEX(TablaPiezas[],3,miIdioma),\"♜\"),\nINDEX(TablaPiezas[],4,miIdioma),\"♝\"),\nINDEX(TablaPiezas[],5,miIdioma),\"♞\"))","v":""},"","",{"$f":"Games!$A86","v":""},"",""]
[77,null,null,{"$f":"Numerical!$A87","v":""},"","",null,null,{"$f":"IF(IFERROR(FIND(\". \",Games!$A87),0)>0,\nSUBSTITUTE(SUBSTITUTE(SUBSTITUTE(SUBSTITUTE(SUBSTITUTE(SUBSTITUTE(SUBSTITUTE(SUBSTITUTE(SUBSTITUTE(SUBSTITUTE(SUBSTITUTE(SUBSTITUTE(SUBSTITUTE(SUBSTITUTE(SUBSTITUTE(Games!$A87,\n\"♔\",\"R\"),\"♕\",\"D\"),\"♖\",\"T\"),\"♗\",\"A\"),\"♘\",\"C\"),\n\"♚\",\"R\"),\"♛\",\"D\"),\"♜\",\"T\"),\"♝\",\"A\"),\"♞\",\"C\"),\n\"R\",INDEX(TablaPiezas[],1,miIdioma)),\n\"D\",INDEX(TablaPiezas[],2,miIdioma)),\n\"T\",INDEX(TablaPiezas[],3,miIdioma)),\n\"A\",INDEX(TablaPiezas[],4,miIdioma)),\n\"C\",INDEX(TablaPiezas[],5,miIdioma)),\nGames!$A87)","v":""},"","","","","","","",{"$f":"IF(G79=\"\",\"\",$A79&\". \"&\nSUBSTITUTE(SUBSTITUTE(SUBSTITUTE(SUBSTITUTE(SUBSTITUTE(G79,\nINDEX(TablaPiezas[],1,miIdioma),\"♔\"),\nINDEX(TablaPiezas[],2,miIdioma),\"♕\"),\nINDEX(TablaPiezas[],3,miIdioma),\"♖\"),\nINDEX(TablaPiezas[],4,miIdioma),\"♗\"),\nINDEX(TablaPiezas[],5,miIdioma),\"♘\")&\" \"&\nSUBSTITUTE(SUBSTITUTE(SUBSTITUTE(SUBSTITUTE(SUBSTITUTE(H79,\nINDEX(TablaPiezas[],1,miIdioma),\"♚\"),\nINDEX(TablaPiezas[],2,miIdioma),\"♛\"),\nINDEX(TablaPiezas[],3,miIdioma),\"♜\"),\nINDEX(TablaPiezas[],4,miIdioma),\"♝\"),\nINDEX(TablaPiezas[],5,miIdioma),\"♞\"))","v":""},"","",{"$f":"Games!$A87","v":""},"",""]
[78,null,null,{"$f":"Numerical!$A88","v":""},"","",null,null,{"$f":"IF(IFERROR(FIND(\". \",Games!$A88),0)>0,\nSUBSTITUTE(SUBSTITUTE(SUBSTITUTE(SUBSTITUTE(SUBSTITUTE(SUBSTITUTE(SUBSTITUTE(SUBSTITUTE(SUBSTITUTE(SUBSTITUTE(SUBSTITUTE(SUBSTITUTE(SUBSTITUTE(SUBSTITUTE(SUBSTITUTE(Games!$A88,\n\"♔\",\"R\"),\"♕\",\"D\"),\"♖\",\"T\"),\"♗\",\"A\"),\"♘\",\"C\"),\n\"♚\",\"R\"),\"♛\",\"D\"),\"♜\",\"T\"),\"♝\",\"A\"),\"♞\",\"C\"),\n\"R\",INDEX(TablaPiezas[],1,miIdioma)),\n\"D\",INDEX(TablaPiezas[],2,miIdioma)),\n\"T\",INDEX(TablaPiezas[],3,miIdioma)),\n\"A\",INDEX(TablaPiezas[],4,miIdioma)),\n\"C\",INDEX(TablaPiezas[],5,miIdioma)),\nGames!$A88)","v":""},"","","","","","","",{"$f":"IF(G80=\"\",\"\",$A80&\". \"&\nSUBSTITUTE(SUBSTITUTE(SUBSTITUTE(SUBSTITUTE(SUBSTITUTE(G80,\nINDEX(TablaPiezas[],1,miIdioma),\"♔\"),\nINDEX(TablaPiezas[],2,miIdioma),\"♕\"),\nINDEX(TablaPiezas[],3,miIdioma),\"♖\"),\nINDEX(TablaPiezas[],4,miIdioma),\"♗\"),\nINDEX(TablaPiezas[],5,miIdioma),\"♘\")&\" \"&\nSUBSTITUTE(SUBSTITUTE(SUBSTITUTE(SUBSTITUTE(SUBSTITUTE(H80,\nINDEX(TablaPiezas[],1,miIdioma),\"♚\"),\nINDEX(TablaPiezas[],2,miIdioma),\"♛\"),\nINDEX(TablaPiezas[],3,miIdioma),\"♜\"),\nINDEX(TablaPiezas[],4,miIdioma),\"♝\"),\nINDEX(TablaPiezas[],5,miIdioma),\"♞\"))","v":""},"","",{"$f":"Games!$A88","v":""},"",""]
[79,null,null,{"$f":"Numerical!$A89","v":""},"","",null,null,{"$f":"IF(IFERROR(FIND(\". \",Games!$A89),0)>0,\nSUBSTITUTE(SUBSTITUTE(SUBSTITUTE(SUBSTITUTE(SUBSTITUTE(SUBSTITUTE(SUBSTITUTE(SUBSTITUTE(SUBSTITUTE(SUBSTITUTE(SUBSTITUTE(SUBSTITUTE(SUBSTITUTE(SUBSTITUTE(SUBSTITUTE(Games!$A89,\n\"♔\",\"R\"),\"♕\",\"D\"),\"♖\",\"T\"),\"♗\",\"A\"),\"♘\",\"C\"),\n\"♚\",\"R\"),\"♛\",\"D\"),\"♜\",\"T\"),\"♝\",\"A\"),\"♞\",\"C\"),\n\"R\",INDEX(TablaPiezas[],1,miIdioma)),\n\"D\",INDEX(TablaPiezas[],2,miIdioma)),\n\"T\",INDEX(TablaPiezas[],3,miIdioma)),\n\"A\",INDEX(TablaPiezas[],4,miIdioma)),\n\"C\",INDEX(TablaPiezas[],5,miIdioma)),\nGames!$A89)","v":""},"","","","","","","",{"$f":"IF(G81=\"\",\"\",$A81&\". \"&\nSUBSTITUTE(SUBSTITUTE(SUBSTITUTE(SUBSTITUTE(SUBSTITUTE(G81,\nINDEX(TablaPiezas[],1,miIdioma),\"♔\"),\nINDEX(TablaPiezas[],2,miIdioma),\"♕\"),\nINDEX(TablaPiezas[],3,miIdioma),\"♖\"),\nINDEX(TablaPiezas[],4,miIdioma),\"♗\"),\nINDEX(TablaPiezas[],5,miIdioma),\"♘\")&\" \"&\nSUBSTITUTE(SUBSTITUTE(SUBSTITUTE(SUBSTITUTE(SUBSTITUTE(H81,\nINDEX(TablaPiezas[],1,miIdioma),\"♚\"),\nINDEX(TablaPiezas[],2,miIdioma),\"♛\"),\nINDEX(TablaPiezas[],3,miIdioma),\"♜\"),\nINDEX(TablaPiezas[],4,miIdioma),\"♝\"),\nINDEX(TablaPiezas[],5,miIdioma),\"♞\"))","v":""},"","",{"$f":"Games!$A89","v":""},"",""]
[80,null,null,{"$f":"Numerical!$A90","v":""},"","",null,null,{"$f":"IF(IFERROR(FIND(\". \",Games!$A90),0)>0,\nSUBSTITUTE(SUBSTITUTE(SUBSTITUTE(SUBSTITUTE(SUBSTITUTE(SUBSTITUTE(SUBSTITUTE(SUBSTITUTE(SUBSTITUTE(SUBSTITUTE(SUBSTITUTE(SUBSTITUTE(SUBSTITUTE(SUBSTITUTE(SUBSTITUTE(Games!$A90,\n\"♔\",\"R\"),\"♕\",\"D\"),\"♖\",\"T\"),\"♗\",\"A\"),\"♘\",\"C\"),\n\"♚\",\"R\"),\"♛\",\"D\"),\"♜\",\"T\"),\"♝\",\"A\"),\"♞\",\"C\"),\n\"R\",INDEX(TablaPiezas[],1,miIdioma)),\n\"D\",INDEX(TablaPiezas[],2,miIdioma)),\n\"T\",INDEX(TablaPiezas[],3,miIdioma)),\n\"A\",INDEX(TablaPiezas[],4,miIdioma)),\n\"C\",INDEX(TablaPiezas[],5,miIdioma)),\nGames!$A90)","v":""},"","","","","","","",{"$f":"IF(G82=\"\",\"\",$A82&\". \"&\nSUBSTITUTE(SUBSTITUTE(SUBSTITUTE(SUBSTITUTE(SUBSTITUTE(G82,\nINDEX(TablaPiezas[],1,miIdioma),\"♔\"),\nINDEX(TablaPiezas[],2,miIdioma),\"♕\"),\nINDEX(TablaPiezas[],3,miIdioma),\"♖\"),\nINDEX(TablaPiezas[],4,miIdioma),\"♗\"),\nINDEX(TablaPiezas[],5,miIdioma),\"♘\")&\" \"&\nSUBSTITUTE(SUBSTITUTE(SUBSTITUTE(SUBSTITUTE(SUBSTITUTE(H82,\nINDEX(TablaPiezas[],1,miIdioma),\"♚\"),\nINDEX(TablaPiezas[],2,miIdioma),\"♛\"),\nINDEX(TablaPiezas[],3,miIdioma),\"♜\"),\nINDEX(TablaPiezas[],4,miIdioma),\"♝\"),\nINDEX(TablaPiezas[],5,miIdioma),\"♞\"))","v":""},"","",{"$f":"Games!$A90","v":""},"",""]
[81,null,null,{"$f":"Numerical!$A91","v":""},"","",null,null,{"$f":"IF(IFERROR(FIND(\". \",Games!$A91),0)>0,\nSUBSTITUTE(SUBSTITUTE(SUBSTITUTE(SUBSTITUTE(SUBSTITUTE(SUBSTITUTE(SUBSTITUTE(SUBSTITUTE(SUBSTITUTE(SUBSTITUTE(SUBSTITUTE(SUBSTITUTE(SUBSTITUTE(SUBSTITUTE(SUBSTITUTE(Games!$A91,\n\"♔\",\"R\"),\"♕\",\"D\"),\"♖\",\"T\"),\"♗\",\"A\"),\"♘\",\"C\"),\n\"♚\",\"R\"),\"♛\",\"D\"),\"♜\",\"T\"),\"♝\",\"A\"),\"♞\",\"C\"),\n\"R\",INDEX(TablaPiezas[],1,miIdioma)),\n\"D\",INDEX(TablaPiezas[],2,miIdioma)),\n\"T\",INDEX(TablaPiezas[],3,miIdioma)),\n\"A\",INDEX(TablaPiezas[],4,miIdioma)),\n\"C\",INDEX(TablaPiezas[],5,miIdioma)),\nGames!$A91)","v":""},"","","","","","","",{"$f":"IF(G83=\"\",\"\",$A83&\". \"&\nSUBSTITUTE(SUBSTITUTE(SUBSTITUTE(SUBSTITUTE(SUBSTITUTE(G83,\nINDEX(TablaPiezas[],1,miIdioma),\"♔\"),\nINDEX(TablaPiezas[],2,miIdioma),\"♕\"),\nINDEX(TablaPiezas[],3,miIdioma),\"♖\"),\nINDEX(TablaPiezas[],4,miIdioma),\"♗\"),\nINDEX(TablaPiezas[],5,miIdioma),\"♘\")&\" \"&\nSUBSTITUTE(SUBSTITUTE(SUBSTITUTE(SUBSTITUTE(SUBSTITUTE(H83,\nINDEX(TablaPiezas[],1,miIdioma),\"♚\"),\nINDEX(TablaPiezas[],2,miIdioma),\"♛\"),\nINDEX(TablaPiezas[],3,miIdioma),\"♜\"),\nINDEX(TablaPiezas[],4,miIdioma),\"♝\"),\nINDEX(TablaPiezas[],5,miIdioma),\"♞\"))","v":""},"","",{"$f":"Games!$A91","v":""},"",""]
[82,null,null,{"$f":"Numerical!$A92","v":""},"","",null,null,{"$f":"IF(IFERROR(FIND(\". \",Games!$A92),0)>0,\nSUBSTITUTE(SUBSTITUTE(SUBSTITUTE(SUBSTITUTE(SUBSTITUTE(SUBSTITUTE(SUBSTITUTE(SUBSTITUTE(SUBSTITUTE(SUBSTITUTE(SUBSTITUTE(SUBSTITUTE(SUBSTITUTE(SUBSTITUTE(SUBSTITUTE(Games!$A92,\n\"♔\",\"R\"),\"♕\",\"D\"),\"♖\",\"T\"),\"♗\",\"A\"),\"♘\",\"C\"),\n\"♚\",\"R\"),\"♛\",\"D\"),\"♜\",\"T\"),\"♝\",\"A\"),\"♞\",\"C\"),\n\"R\",INDEX(TablaPiezas[],1,miIdioma)),\n\"D\",INDEX(TablaPiezas[],2,miIdioma)),\n\"T\",INDEX(TablaPiezas[],3,miIdioma)),\n\"A\",INDEX(TablaPiezas[],4,miIdioma)),\n\"C\",INDEX(TablaPiezas[],5,miIdioma)),\nGames!$A92)","v":""},"","","","","","","",{"$f":"IF(G84=\"\",\"\",$A84&\". \"&\nSUBSTITUTE(SUBSTITUTE(SUBSTITUTE(SUBSTITUTE(SUBSTITUTE(G84,\nINDEX(TablaPiezas[],1,miIdioma),\"♔\"),\nINDEX(TablaPiezas[],2,miIdioma),\"♕\"),\nINDEX(TablaPiezas[],3,miIdioma),\"♖\"),\nINDEX(TablaPiezas[],4,miIdioma),\"♗\"),\nINDEX(TablaPiezas[],5,miIdioma),\"♘\")&\" \"&\nSUBSTITUTE(SUBSTITUTE(SUBSTITUTE(SUBSTITUTE(SUBSTITUTE(H84,\nINDEX(TablaPiezas[],1,miIdioma),\"♚\"),\nINDEX(TablaPiezas[],2,miIdioma),\"♛\"),\nINDEX(TablaPiezas[],3,miIdioma),\"♜\"),\nINDEX(TablaPiezas[],4,miIdioma),\"♝\"),\nINDEX(TablaPiezas[],5,miIdioma),\"♞\"))","v":""},"","",{"$f":"Games!$A92","v":""},"",""]
[83,null,null,{"$f":"Numerical!$A93","v":""},"","",null,null,{"$f":"IF(IFERROR(FIND(\". \",Games!$A93),0)>0,\nSUBSTITUTE(SUBSTITUTE(SUBSTITUTE(SUBSTITUTE(SUBSTITUTE(SUBSTITUTE(SUBSTITUTE(SUBSTITUTE(SUBSTITUTE(SUBSTITUTE(SUBSTITUTE(SUBSTITUTE(SUBSTITUTE(SUBSTITUTE(SUBSTITUTE(Games!$A93,\n\"♔\",\"R\"),\"♕\",\"D\"),\"♖\",\"T\"),\"♗\",\"A\"),\"♘\",\"C\"),\n\"♚\",\"R\"),\"♛\",\"D\"),\"♜\",\"T\"),\"♝\",\"A\"),\"♞\",\"C\"),\n\"R\",INDEX(TablaPiezas[],1,miIdioma)),\n\"D\",INDEX(TablaPiezas[],2,miIdioma)),\n\"T\",INDEX(TablaPiezas[],3,miIdioma)),\n\"A\",INDEX(TablaPiezas[],4,miIdioma)),\n\"C\",INDEX(TablaPiezas[],5,miIdioma)),\nGames!$A93)","v":""},"","","","","","","",{"$f":"IF(G85=\"\",\"\",$A85&\". \"&\nSUBSTITUTE(SUBSTITUTE(SUBSTITUTE(SUBSTITUTE(SUBSTITUTE(G85,\nINDEX(TablaPiezas[],1,miIdioma),\"♔\"),\nINDEX(TablaPiezas[],2,miIdioma),\"♕\"),\nINDEX(TablaPiezas[],3,miIdioma),\"♖\"),\nINDEX(TablaPiezas[],4,miIdioma),\"♗\"),\nINDEX(TablaPiezas[],5,miIdioma),\"♘\")&\" \"&\nSUBSTITUTE(SUBSTITUTE(SUBSTITUTE(SUBSTITUTE(SUBSTITUTE(H85,\nINDEX(TablaPiezas[],1,miIdioma),\"♚\"),\nINDEX(TablaPiezas[],2,miIdioma),\"♛\"),\nINDEX(TablaPiezas[],3,miIdioma),\"♜\"),\nINDEX(TablaPiezas[],4,miIdioma),\"♝\"),\nINDEX(TablaPiezas[],5,miIdioma),\"♞\"))","v":""},"","",{"$f":"Games!$A93","v":""},"",""]
[84,null,null,{"$f":"Numerical!$A94","v":""},"","",null,null,{"$f":"IF(IFERROR(FIND(\". \",Games!$A94),0)>0,\nSUBSTITUTE(SUBSTITUTE(SUBSTITUTE(SUBSTITUTE(SUBSTITUTE(SUBSTITUTE(SUBSTITUTE(SUBSTITUTE(SUBSTITUTE(SUBSTITUTE(SUBSTITUTE(SUBSTITUTE(SUBSTITUTE(SUBSTITUTE(SUBSTITUTE(Games!$A94,\n\"♔\",\"R\"),\"♕\",\"D\"),\"♖\",\"T\"),\"♗\",\"A\"),\"♘\",\"C\"),\n\"♚\",\"R\"),\"♛\",\"D\"),\"♜\",\"T\"),\"♝\",\"A\"),\"♞\",\"C\"),\n\"R\",INDEX(TablaPiezas[],1,miIdioma)),\n\"D\",INDEX(TablaPiezas[],2,miIdioma)),\n\"T\",INDEX(TablaPiezas[],3,miIdioma)),\n\"A\",INDEX(TablaPiezas[],4,miIdioma)),\n\"C\",INDEX(TablaPiezas[],5,miIdioma)),\nGames!$A94)","v":""},"","","","","","","",{"$f":"IF(G86=\"\",\"\",$A86&\". \"&\nSUBSTITUTE(SUBSTITUTE(SUBSTITUTE(SUBSTITUTE(SUBSTITUTE(G86,\nINDEX(TablaPiezas[],1,miIdioma),\"♔\"),\nINDEX(TablaPiezas[],2,miIdioma),\"♕\"),\nINDEX(TablaPiezas[],3,miIdioma),\"♖\"),\nINDEX(TablaPiezas[],4,miIdioma),\"♗\"),\nINDEX(TablaPiezas[],5,miIdioma),\"♘\")&\" \"&\nSUBSTITUTE(SUBSTITUTE(SUBSTITUTE(SUBSTITUTE(SUBSTITUTE(H86,\nINDEX(TablaPiezas[],1,miIdioma),\"♚\"),\nINDEX(TablaPiezas[],2,miIdioma),\"♛\"),\nINDEX(TablaPiezas[],3,miIdioma),\"♜\"),\nINDEX(TablaPiezas[],4,miIdioma),\"♝\"),\nINDEX(TablaPiezas[],5,miIdioma),\"♞\"))","v":""},"","",{"$f":"Games!$A94","v":""},"",""]
[85,null,null,{"$f":"Numerical!$A95","v":""},"","",null,null,{"$f":"IF(IFERROR(FIND(\". \",Games!$A95),0)>0,\nSUBSTITUTE(SUBSTITUTE(SUBSTITUTE(SUBSTITUTE(SUBSTITUTE(SUBSTITUTE(SUBSTITUTE(SUBSTITUTE(SUBSTITUTE(SUBSTITUTE(SUBSTITUTE(SUBSTITUTE(SUBSTITUTE(SUBSTITUTE(SUBSTITUTE(Games!$A95,\n\"♔\",\"R\"),\"♕\",\"D\"),\"♖\",\"T\"),\"♗\",\"A\"),\"♘\",\"C\"),\n\"♚\",\"R\"),\"♛\",\"D\"),\"♜\",\"T\"),\"♝\",\"A\"),\"♞\",\"C\"),\n\"R\",INDEX(TablaPiezas[],1,miIdioma)),\n\"D\",INDEX(TablaPiezas[],2,miIdioma)),\n\"T\",INDEX(TablaPiezas[],3,miIdioma)),\n\"A\",INDEX(TablaPiezas[],4,miIdioma)),\n\"C\",INDEX(TablaPiezas[],5,miIdioma)),\nGames!$A95)","v":""},"","","","","","","",{"$f":"IF(G87=\"\",\"\",$A87&\". \"&\nSUBSTITUTE(SUBSTITUTE(SUBSTITUTE(SUBSTITUTE(SUBSTITUTE(G87,\nINDEX(TablaPiezas[],1,miIdioma),\"♔\"),\nINDEX(TablaPiezas[],2,miIdioma),\"♕\"),\nINDEX(TablaPiezas[],3,miIdioma),\"♖\"),\nINDEX(TablaPiezas[],4,miIdioma),\"♗\"),\nINDEX(TablaPiezas[],5,miIdioma),\"♘\")&\" \"&\nSUBSTITUTE(SUBSTITUTE(SUBSTITUTE(SUBSTITUTE(SUBSTITUTE(H87,\nINDEX(TablaPiezas[],1,miIdioma),\"♚\"),\nINDEX(TablaPiezas[],2,miIdioma),\"♛\"),\nINDEX(TablaPiezas[],3,miIdioma),\"♜\"),\nINDEX(TablaPiezas[],4,miIdioma),\"♝\"),\nINDEX(TablaPiezas[],5,miIdioma),\"♞\"))","v":""},"","",{"$f":"Games!$A95","v":""},"",""]
[86,null,null,{"$f":"Numerical!$A96","v":""},"","",null,null,{"$f":"IF(IFERROR(FIND(\". \",Games!$A96),0)>0,\nSUBSTITUTE(SUBSTITUTE(SUBSTITUTE(SUBSTITUTE(SUBSTITUTE(SUBSTITUTE(SUBSTITUTE(SUBSTITUTE(SUBSTITUTE(SUBSTITUTE(SUBSTITUTE(SUBSTITUTE(SUBSTITUTE(SUBSTITUTE(SUBSTITUTE(Games!$A96,\n\"♔\",\"R\"),\"♕\",\"D\"),\"♖\",\"T\"),\"♗\",\"A\"),\"♘\",\"C\"),\n\"♚\",\"R\"),\"♛\",\"D\"),\"♜\",\"T\"),\"♝\",\"A\"),\"♞\",\"C\"),\n\"R\",INDEX(TablaPiezas[],1,miIdioma)),\n\"D\",INDEX(TablaPiezas[],2,miIdioma)),\n\"T\",INDEX(TablaPiezas[],3,miIdioma)),\n\"A\",INDEX(TablaPiezas[],4,miIdioma)),\n\"C\",INDEX(TablaPiezas[],5,miIdioma)),\nGames!$A96)","v":""},"","","","","","","",{"$f":"IF(G88=\"\",\"\",$A88&\". \"&\nSUBSTITUTE(SUBSTITUTE(SUBSTITUTE(SUBSTITUTE(SUBSTITUTE(G88,\nINDEX(TablaPiezas[],1,miIdioma),\"♔\"),\nINDEX(TablaPiezas[],2,miIdioma),\"♕\"),\nINDEX(TablaPiezas[],3,miIdioma),\"♖\"),\nINDEX(TablaPiezas[],4,miIdioma),\"♗\"),\nINDEX(TablaPiezas[],5,miIdioma),\"♘\")&\" \"&\nSUBSTITUTE(SUBSTITUTE(SUBSTITUTE(SUBSTITUTE(SUBSTITUTE(H88,\nINDEX(TablaPiezas[],1,miIdioma),\"♚\"),\nINDEX(TablaPiezas[],2,miIdioma),\"♛\"),\nINDEX(TablaPiezas[],3,miIdioma),\"♜\"),\nINDEX(TablaPiezas[],4,miIdioma),\"♝\"),\nINDEX(TablaPiezas[],5,miIdioma),\"♞\"))","v":""},"","",{"$f":"Games!$A96","v":""},"",""]
[87,null,null,{"$f":"Numerical!$A97","v":""},"","",null,null,{"$f":"IF(IFERROR(FIND(\". \",Games!$A97),0)>0,\nSUBSTITUTE(SUBSTITUTE(SUBSTITUTE(SUBSTITUTE(SUBSTITUTE(SUBSTITUTE(SUBSTITUTE(SUBSTITUTE(SUBSTITUTE(SUBSTITUTE(SUBSTITUTE(SUBSTITUTE(SUBSTITUTE(SUBSTITUTE(SUBSTITUTE(Games!$A97,\n\"♔\",\"R\"),\"♕\",\"D\"),\"♖\",\"T\"),\"♗\",\"A\"),\"♘\",\"C\"),\n\"♚\",\"R\"),\"♛\",\"D\"),\"♜\",\"T\"),\"♝\",\"A\"),\"♞\",\"C\"),\n\"R\",INDEX(TablaPiezas[],1,miIdioma)),\n\"D\",INDEX(TablaPiezas[],2,miIdioma)),\n\"T\",INDEX(TablaPiezas[],3,miIdioma)),\n\"A\",INDEX(TablaPiezas[],4,miIdioma)),\n\"C\",INDEX(TablaPiezas[],5,miIdioma)),\nGames!$A97)","v":""},"","","","","","","",{"$f":"IF(G89=\"\",\"\",$A89&\". \"&\nSUBSTITUTE(SUBSTITUTE(SUBSTITUTE(SUBSTITUTE(SUBSTITUTE(G89,\nINDEX(TablaPiezas[],1,miIdioma),\"♔\"),\nINDEX(TablaPiezas[],2,miIdioma),\"♕\"),\nINDEX(TablaPiezas[],3,miIdioma),\"♖\"),\nINDEX(TablaPiezas[],4,miIdioma),\"♗\"),\nINDEX(TablaPiezas[],5,miIdioma),\"♘\")&\" \"&\nSUBSTITUTE(SUBSTITUTE(SUBSTITUTE(SUBSTITUTE(SUBSTITUTE(H89,\nINDEX(TablaPiezas[],1,miIdioma),\"♚\"),\nINDEX(TablaPiezas[],2,miIdioma),\"♛\"),\nINDEX(TablaPiezas[],3,miIdioma),\"♜\"),\nINDEX(TablaPiezas[],4,miIdioma),\"♝\"),\nINDEX(TablaPiezas[],5,miIdioma),\"♞\"))","v":""},"","",{"$f":"Games!$A97","v":""},"",""]
[88,null,null,{"$f":"Numerical!$A98","v":""},"","",null,null,{"$f":"IF(IFERROR(FIND(\". \",Games!$A98),0)>0,\nSUBSTITUTE(SUBSTITUTE(SUBSTITUTE(SUBSTITUTE(SUBSTITUTE(SUBSTITUTE(SUBSTITUTE(SUBSTITUTE(SUBSTITUTE(SUBSTITUTE(SUBSTITUTE(SUBSTITUTE(SUBSTITUTE(SUBSTITUTE(SUBSTITUTE(Games!$A98,\n\"♔\",\"R\"),\"♕\",\"D\"),\"♖\",\"T\"),\"♗\",\"A\"),\"♘\",\"C\"),\n\"♚\",\"R\"),\"♛\",\"D\"),\"♜\",\"T\"),\"♝\",\"A\"),\"♞\",\"C\"),\n\"R\",INDEX(TablaPiezas[],1,miIdioma)),\n\"D\",INDEX(TablaPiezas[],2,miIdioma)),\n\"T\",INDEX(TablaPiezas[],3,miIdioma)),\n\"A\",INDEX(TablaPiezas[],4,miIdioma)),\n\"C\",INDEX(TablaPiezas[],5,miIdioma)),\nGames!$A98)","v":""},"","","","","","","",{"$f":"IF(G90=\"\",\"\",$A90&\". \"&\nSUBSTITUTE(SUBSTITUTE(SUBSTITUTE(SUBSTITUTE(SUBSTITUTE(G90,\nINDEX(TablaPiezas[],1,miIdioma),\"♔\"),\nINDEX(TablaPiezas[],2,miIdioma),\"♕\"),\nINDEX(TablaPiezas[],3,miIdioma),\"♖\"),\nINDEX(TablaPiezas[],4,miIdioma),\"♗\"),\nINDEX(TablaPiezas[],5,miIdioma),\"♘\")&\" \"&\nSUBSTITUTE(SUBSTITUTE(SUBSTITUTE(SUBSTITUTE(SUBSTITUTE(H90,\nINDEX(TablaPiezas[],1,miIdioma),\"♚\"),\nINDEX(TablaPiezas[],2,miIdioma),\"♛\"),\nINDEX(TablaPiezas[],3,miIdioma),\"♜\"),\nINDEX(TablaPiezas[],4,miIdioma),\"♝\"),\nINDEX(TablaPiezas[],5,miIdioma),\"♞\"))","v":""},"","",{"$f":"Games!$A98","v":""},"",""]
[89,null,null,{"$f":"Numerical!$A99","v":""},"","",null,null,{"$f":"IF(IFERROR(FIND(\". \",Games!$A99),0)>0,\nSUBSTITUTE(SUBSTITUTE(SUBSTITUTE(SUBSTITUTE(SUBSTITUTE(SUBSTITUTE(SUBSTITUTE(SUBSTITUTE(SUBSTITUTE(SUBSTITUTE(SUBSTITUTE(SUBSTITUTE(SUBSTITUTE(SUBSTITUTE(SUBSTITUTE(Games!$A99,\n\"♔\",\"R\"),\"♕\",\"D\"),\"♖\",\"T\"),\"♗\",\"A\"),\"♘\",\"C\"),\n\"♚\",\"R\"),\"♛\",\"D\"),\"♜\",\"T\"),\"♝\",\"A\"),\"♞\",\"C\"),\n\"R\",INDEX(TablaPiezas[],1,miIdioma)),\n\"D\",INDEX(TablaPiezas[],2,miIdioma)),\n\"T\",INDEX(TablaPiezas[],3,miIdioma)),\n\"A\",INDEX(TablaPiezas[],4,miIdioma)),\n\"C\",INDEX(TablaPiezas[],5,miIdioma)),\nGames!$A99)","v":""},"","","","","","","",{"$f":"IF(G91=\"\",\"\",$A91&\". \"&\nSUBSTITUTE(SUBSTITUTE(SUBSTITUTE(SUBSTITUTE(SUBSTITUTE(G91,\nINDEX(TablaPiezas[],1,miIdioma),\"♔\"),\nINDEX(TablaPiezas[],2,miIdioma),\"♕\"),\nINDEX(TablaPiezas[],3,miIdioma),\"♖\"),\nINDEX(TablaPiezas[],4,miIdioma),\"♗\"),\nINDEX(TablaPiezas[],5,miIdioma),\"♘\")&\" \"&\nSUBSTITUTE(SUBSTITUTE(SUBSTITUTE(SUBSTITUTE(SUBSTITUTE(H91,\nINDEX(TablaPiezas[],1,miIdioma),\"♚\"),\nINDEX(TablaPiezas[],2,miIdioma),\"♛\"),\nINDEX(TablaPiezas[],3,miIdioma),\"♜\"),\nINDEX(TablaPiezas[],4,miIdioma),\"♝\"),\nINDEX(TablaPiezas[],5,miIdioma),\"♞\"))","v":""},"","",{"$f":"Games!$A99","v":""},"",""]
[90,null,null,{"$f":"Numerical!$A100","v":""},"","",null,null,{"$f":"IF(IFERROR(FIND(\". \",Games!$A100),0)>0,\nSUBSTITUTE(SUBSTITUTE(SUBSTITUTE(SUBSTITUTE(SUBSTITUTE(SUBSTITUTE(SUBSTITUTE(SUBSTITUTE(SUBSTITUTE(SUBSTITUTE(SUBSTITUTE(SUBSTITUTE(SUBSTITUTE(SUBSTITUTE(SUBSTITUTE(Games!$A100,\n\"♔\",\"R\"),\"♕\",\"D\"),\"♖\",\"T\"),\"♗\",\"A\"),\"♘\",\"C\"),\n\"♚\",\"R\"),\"♛\",\"D\"),\"♜\",\"T\"),\"♝\",\"A\"),\"♞\",\"C\"),\n\"R\",INDEX(TablaPiezas[],1,miIdioma)),\n\"D\",INDEX(TablaPiezas[],2,miIdioma)),\n\"T\",INDEX(TablaPiezas[],3,miIdioma)),\n\"A\",INDEX(TablaPiezas[],4,miIdioma)),\n\"C\",INDEX(TablaPiezas[],5,miIdioma)),\nGames!$A100)","v":""},"","","","","","","",{"$f":"IF(G92=\"\",\"\",$A92&\". \"&\nSUBSTITUTE(SUBSTITUTE(SUBSTITUTE(SUBSTITUTE(SUBSTITUTE(G92,\nINDEX(TablaPiezas[],1,miIdioma),\"♔\"),\nINDEX(TablaPiezas[],2,miIdioma),\"♕\"),\nINDEX(TablaPiezas[],3,miIdioma),\"♖\"),\nINDEX(TablaPiezas[],4,miIdioma),\"♗\"),\nINDEX(TablaPiezas[],5,miIdioma),\"♘\")&\" \"&\nSUBSTITUTE(SUBSTITUTE(SUBSTITUTE(SUBSTITUTE(SUBSTITUTE(H92,\nINDEX(TablaPiezas[],1,miIdioma),\"♚\"),\nINDEX(TablaPiezas[],2,miIdioma),\"♛\"),\nINDEX(TablaPiezas[],3,miIdioma),\"♜\"),\nINDEX(TablaPiezas[],4,miIdioma),\"♝\"),\nINDEX(TablaPiezas[],5,miIdioma),\"♞\"))","v":""},"","",{"$f":"Games!$A100","v":""},"",""]
[91,null,null,{"$f":"Numerical!$A101","v":""},"","",null,null,{"$f":"IF(IFERROR(FIND(\". \",Games!$A101),0)>0,\nSUBSTITUTE(SUBSTITUTE(SUBSTITUTE(SUBSTITUTE(SUBSTITUTE(SUBSTITUTE(SUBSTITUTE(SUBSTITUTE(SUBSTITUTE(SUBSTITUTE(SUBSTITUTE(SUBSTITUTE(SUBSTITUTE(SUBSTITUTE(SUBSTITUTE(Games!$A101,\n\"♔\",\"R\"),\"♕\",\"D\"),\"♖\",\"T\"),\"♗\",\"A\"),\"♘\",\"C\"),\n\"♚\",\"R\"),\"♛\",\"D\"),\"♜\",\"T\"),\"♝\",\"A\"),\"♞\",\"C\"),\n\"R\",INDEX(TablaPiezas[],1,miIdioma)),\n\"D\",INDEX(TablaPiezas[],2,miIdioma)),\n\"T\",INDEX(TablaPiezas[],3,miIdioma)),\n\"A\",INDEX(TablaPiezas[],4,miIdioma)),\n\"C\",INDEX(TablaPiezas[],5,miIdioma)),\nGames!$A101)","v":""},"","","","","","","",{"$f":"IF(G93=\"\",\"\",$A93&\". \"&\nSUBSTITUTE(SUBSTITUTE(SUBSTITUTE(SUBSTITUTE(SUBSTITUTE(G93,\nINDEX(TablaPiezas[],1,miIdioma),\"♔\"),\nINDEX(TablaPiezas[],2,miIdioma),\"♕\"),\nINDEX(TablaPiezas[],3,miIdioma),\"♖\"),\nINDEX(TablaPiezas[],4,miIdioma),\"♗\"),\nINDEX(TablaPiezas[],5,miIdioma),\"♘\")&\" \"&\nSUBSTITUTE(SUBSTITUTE(SUBSTITUTE(SUBSTITUTE(SUBSTITUTE(H93,\nINDEX(TablaPiezas[],1,miIdioma),\"♚\"),\nINDEX(TablaPiezas[],2,miIdioma),\"♛\"),\nINDEX(TablaPiezas[],3,miIdioma),\"♜\"),\nINDEX(TablaPiezas[],4,miIdioma),\"♝\"),\nINDEX(TablaPiezas[],5,miIdioma),\"♞\"))","v":""},"","",{"$f":"Games!$A101","v":""},"",""]
[92,null,null,{"$f":"Numerical!$A102","v":""},"","",null,null,{"$f":"IF(IFERROR(FIND(\". \",Games!$A102),0)>0,\nSUBSTITUTE(SUBSTITUTE(SUBSTITUTE(SUBSTITUTE(SUBSTITUTE(SUBSTITUTE(SUBSTITUTE(SUBSTITUTE(SUBSTITUTE(SUBSTITUTE(SUBSTITUTE(SUBSTITUTE(SUBSTITUTE(SUBSTITUTE(SUBSTITUTE(Games!$A102,\n\"♔\",\"R\"),\"♕\",\"D\"),\"♖\",\"T\"),\"♗\",\"A\"),\"♘\",\"C\"),\n\"♚\",\"R\"),\"♛\",\"D\"),\"♜\",\"T\"),\"♝\",\"A\"),\"♞\",\"C\"),\n\"R\",INDEX(TablaPiezas[],1,miIdioma)),\n\"D\",INDEX(TablaPiezas[],2,miIdioma)),\n\"T\",INDEX(TablaPiezas[],3,miIdioma)),\n\"A\",INDEX(TablaPiezas[],4,miIdioma)),\n\"C\",INDEX(TablaPiezas[],5,miIdioma)),\nGames!$A102)","v":""},"","","","","","","",{"$f":"IF(G94=\"\",\"\",$A94&\". \"&\nSUBSTITUTE(SUBSTITUTE(SUBSTITUTE(SUBSTITUTE(SUBSTITUTE(G94,\nINDEX(TablaPiezas[],1,miIdioma),\"♔\"),\nINDEX(TablaPiezas[],2,miIdioma),\"♕\"),\nINDEX(TablaPiezas[],3,miIdioma),\"♖\"),\nINDEX(TablaPiezas[],4,miIdioma),\"♗\"),\nINDEX(TablaPiezas[],5,miIdioma),\"♘\")&\" \"&\nSUBSTITUTE(SUBSTITUTE(SUBSTITUTE(SUBSTITUTE(SUBSTITUTE(H94,\nINDEX(TablaPiezas[],1,miIdioma),\"♚\"),\nINDEX(TablaPiezas[],2,miIdioma),\"♛\"),\nINDEX(TablaPiezas[],3,miIdioma),\"♜\"),\nINDEX(TablaPiezas[],4,miIdioma),\"♝\"),\nINDEX(TablaPiezas[],5,miIdioma),\"♞\"))","v":""},"","",{"$f":"Games!$A102","v":""},"",""]
[93,null,null,{"$f":"Numerical!$A103","v":""},"","",null,null,{"$f":"IF(IFERROR(FIND(\". \",Games!$A103),0)>0,\nSUBSTITUTE(SUBSTITUTE(SUBSTITUTE(SUBSTITUTE(SUBSTITUTE(SUBSTITUTE(SUBSTITUTE(SUBSTITUTE(SUBSTITUTE(SUBSTITUTE(SUBSTITUTE(SUBSTITUTE(SUBSTITUTE(SUBSTITUTE(SUBSTITUTE(Games!$A103,\n\"♔\",\"R\"),\"♕\",\"D\"),\"♖\",\"T\"),\"♗\",\"A\"),\"♘\",\"C\"),\n\"♚\",\"R\"),\"♛\",\"D\"),\"♜\",\"T\"),\"♝\",\"A\"),\"♞\",\"C\"),\n\"R\",INDEX(TablaPiezas[],1,miIdioma)),\n\"D\",INDEX(TablaPiezas[],2,miIdioma)),\n\"T\",INDEX(TablaPiezas[],3,miIdioma)),\n\"A\",INDEX(TablaPiezas[],4,miIdioma)),\n\"C\",INDEX(TablaPiezas[],5,miIdioma)),\nGames!$A103)","v":""},"","","","","","","",{"$f":"IF(G95=\"\",\"\",$A95&\". \"&\nSUBSTITUTE(SUBSTITUTE(SUBSTITUTE(SUBSTITUTE(SUBSTITUTE(G95,\nINDEX(TablaPiezas[],1,miIdioma),\"♔\"),\nINDEX(TablaPiezas[],2,miIdioma),\"♕\"),\nINDEX(TablaPiezas[],3,miIdioma),\"♖\"),\nINDEX(TablaPiezas[],4,miIdioma),\"♗\"),\nINDEX(TablaPiezas[],5,miIdioma),\"♘\")&\" \"&\nSUBSTITUTE(SUBSTITUTE(SUBSTITUTE(SUBSTITUTE(SUBSTITUTE(H95,\nINDEX(TablaPiezas[],1,miIdioma),\"♚\"),\nINDEX(TablaPiezas[],2,miIdioma),\"♛\"),\nINDEX(TablaPiezas[],3,miIdioma),\"♜\"),\nINDEX(TablaPiezas[],4,miIdioma),\"♝\"),\nINDEX(TablaPiezas[],5,miIdioma),\"♞\"))","v":""},"","",{"$f":"Games!$A103","v":""},"",""]
[94,null,null,{"$f":"Numerical!$A104","v":""},"","",null,null,{"$f":"IF(IFERROR(FIND(\". \",Games!$A104),0)>0,\nSUBSTITUTE(SUBSTITUTE(SUBSTITUTE(SUBSTITUTE(SUBSTITUTE(SUBSTITUTE(SUBSTITUTE(SUBSTITUTE(SUBSTITUTE(SUBSTITUTE(SUBSTITUTE(SUBSTITUTE(SUBSTITUTE(SUBSTITUTE(SUBSTITUTE(Games!$A104,\n\"♔\",\"R\"),\"♕\",\"D\"),\"♖\",\"T\"),\"♗\",\"A\"),\"♘\",\"C\"),\n\"♚\",\"R\"),\"♛\",\"D\"),\"♜\",\"T\"),\"♝\",\"A\"),\"♞\",\"C\"),\n\"R\",INDEX(TablaPiezas[],1,miIdioma)),\n\"D\",INDEX(TablaPiezas[],2,miIdioma)),\n\"T\",INDEX(TablaPiezas[],3,miIdioma)),\n\"A\",INDEX(TablaPiezas[],4,miIdioma)),\n\"C\",INDEX(TablaPiezas[],5,miIdioma)),\nGames!$A104)","v":""},"","","","","","","",{"$f":"IF(G96=\"\",\"\",$A96&\". \"&\nSUBSTITUTE(SUBSTITUTE(SUBSTITUTE(SUBSTITUTE(SUBSTITUTE(G96,\nINDEX(TablaPiezas[],1,miIdioma),\"♔\"),\nINDEX(TablaPiezas[],2,miIdioma),\"♕\"),\nINDEX(TablaPiezas[],3,miIdioma),\"♖\"),\nINDEX(TablaPiezas[],4,miIdioma),\"♗\"),\nINDEX(TablaPiezas[],5,miIdioma),\"♘\")&\" \"&\nSUBSTITUTE(SUBSTITUTE(SUBSTITUTE(SUBSTITUTE(SUBSTITUTE(H96,\nINDEX(TablaPiezas[],1,miIdioma),\"♚\"),\nINDEX(TablaPiezas[],2,miIdioma),\"♛\"),\nINDEX(TablaPiezas[],3,miIdioma),\"♜\"),\nINDEX(TablaPiezas[],4,miIdioma),\"♝\"),\nINDEX(TablaPiezas[],5,miIdioma),\"♞\"))","v":""},"","",{"$f":"Games!$A104","v":""},"",""]
[95,null,null,{"$f":"Numerical!$A105","v":""},"","",null,null,{"$f":"IF(IFERROR(FIND(\". \",Games!$A105),0)>0,\nSUBSTITUTE(SUBSTITUTE(SUBSTITUTE(SUBSTITUTE(SUBSTITUTE(SUBSTITUTE(SUBSTITUTE(SUBSTITUTE(SUBSTITUTE(SUBSTITUTE(SUBSTITUTE(SUBSTITUTE(SUBSTITUTE(SUBSTITUTE(SUBSTITUTE(Games!$A105,\n\"♔\",\"R\"),\"♕\",\"D\"),\"♖\",\"T\"),\"♗\",\"A\"),\"♘\",\"C\"),\n\"♚\",\"R\"),\"♛\",\"D\"),\"♜\",\"T\"),\"♝\",\"A\"),\"♞\",\"C\"),\n\"R\",INDEX(TablaPiezas[],1,miIdioma)),\n\"D\",INDEX(TablaPiezas[],2,miIdioma)),\n\"T\",INDEX(TablaPiezas[],3,miIdioma)),\n\"A\",INDEX(TablaPiezas[],4,miIdioma)),\n\"C\",INDEX(TablaPiezas[],5,miIdioma)),\nGames!$A105)","v":""},"","","","","","","",{"$f":"IF(G97=\"\",\"\",$A97&\". \"&\nSUBSTITUTE(SUBSTITUTE(SUBSTITUTE(SUBSTITUTE(SUBSTITUTE(G97,\nINDEX(TablaPiezas[],1,miIdioma),\"♔\"),\nINDEX(TablaPiezas[],2,miIdioma),\"♕\"),\nINDEX(TablaPiezas[],3,miIdioma),\"♖\"),\nINDEX(TablaPiezas[],4,miIdioma),\"♗\"),\nINDEX(TablaPiezas[],5,miIdioma),\"♘\")&\" \"&\nSUBSTITUTE(SUBSTITUTE(SUBSTITUTE(SUBSTITUTE(SUBSTITUTE(H97,\nINDEX(TablaPiezas[],1,miIdioma),\"♚\"),\nINDEX(TablaPiezas[],2,miIdioma),\"♛\"),\nINDEX(TablaPiezas[],3,miIdioma),\"♜\"),\nINDEX(TablaPiezas[],4,miIdioma),\"♝\"),\nINDEX(TablaPiezas[],5,miIdioma),\"♞\"))","v":""},"","",{"$f":"Games!$A105","v":""},"",""]
[96,null,null,{"$f":"Numerical!$A106","v":""},"","",null,null,{"$f":"IF(IFERROR(FIND(\". \",Games!$A106),0)>0,\nSUBSTITUTE(SUBSTITUTE(SUBSTITUTE(SUBSTITUTE(SUBSTITUTE(SUBSTITUTE(SUBSTITUTE(SUBSTITUTE(SUBSTITUTE(SUBSTITUTE(SUBSTITUTE(SUBSTITUTE(SUBSTITUTE(SUBSTITUTE(SUBSTITUTE(Games!$A106,\n\"♔\",\"R\"),\"♕\",\"D\"),\"♖\",\"T\"),\"♗\",\"A\"),\"♘\",\"C\"),\n\"♚\",\"R\"),\"♛\",\"D\"),\"♜\",\"T\"),\"♝\",\"A\"),\"♞\",\"C\"),\n\"R\",INDEX(TablaPiezas[],1,miIdioma)),\n\"D\",INDEX(TablaPiezas[],2,miIdioma)),\n\"T\",INDEX(TablaPiezas[],3,miIdioma)),\n\"A\",INDEX(TablaPiezas[],4,miIdioma)),\n\"C\",INDEX(TablaPiezas[],5,miIdioma)),\nGames!$A106)","v":""},"","","","","","","",{"$f":"IF(G98=\"\",\"\",$A98&\". \"&\nSUBSTITUTE(SUBSTITUTE(SUBSTITUTE(SUBSTITUTE(SUBSTITUTE(G98,\nINDEX(TablaPiezas[],1,miIdioma),\"♔\"),\nINDEX(TablaPiezas[],2,miIdioma),\"♕\"),\nINDEX(TablaPiezas[],3,miIdioma),\"♖\"),\nINDEX(TablaPiezas[],4,miIdioma),\"♗\"),\nINDEX(TablaPiezas[],5,miIdioma),\"♘\")&\" \"&\nSUBSTITUTE(SUBSTITUTE(SUBSTITUTE(SUBSTITUTE(SUBSTITUTE(H98,\nINDEX(TablaPiezas[],1,miIdioma),\"♚\"),\nINDEX(TablaPiezas[],2,miIdioma),\"♛\"),\nINDEX(TablaPiezas[],3,miIdioma),\"♜\"),\nINDEX(TablaPiezas[],4,miIdioma),\"♝\"),\nINDEX(TablaPiezas[],5,miIdioma),\"♞\"))","v":""},"","",{"$f":"Games!$A106","v":""},"",""]
[97,null,null,{"$f":"Numerical!$A107","v":""},"","",null,null,{"$f":"IF(IFERROR(FIND(\". \",Games!$A107),0)>0,\nSUBSTITUTE(SUBSTITUTE(SUBSTITUTE(SUBSTITUTE(SUBSTITUTE(SUBSTITUTE(SUBSTITUTE(SUBSTITUTE(SUBSTITUTE(SUBSTITUTE(SUBSTITUTE(SUBSTITUTE(SUBSTITUTE(SUBSTITUTE(SUBSTITUTE(Games!$A107,\n\"♔\",\"R\"),\"♕\",\"D\"),\"♖\",\"T\"),\"♗\",\"A\"),\"♘\",\"C\"),\n\"♚\",\"R\"),\"♛\",\"D\"),\"♜\",\"T\"),\"♝\",\"A\"),\"♞\",\"C\"),\n\"R\",INDEX(TablaPiezas[],1,miIdioma)),\n\"D\",INDEX(TablaPiezas[],2,miIdioma)),\n\"T\",INDEX(TablaPiezas[],3,miIdioma)),\n\"A\",INDEX(TablaPiezas[],4,miIdioma)),\n\"C\",INDEX(TablaPiezas[],5,miIdioma)),\nGames!$A107)","v":""},"",{"$f":"IF(ISNUMBER(--LEFT($I99)),TRIM(SUBSTITUTE($I99,$A99&\". \" & $J99,\"\")),\"\")","v":""},"","","","","",{"$f":"IF(G99=\"\",\"\",$A99&\". \"&\nSUBSTITUTE(SUBSTITUTE(SUBSTITUTE(SUBSTITUTE(SUBSTITUTE(G99,\nINDEX(TablaPiezas[],1,miIdioma),\"♔\"),\nINDEX(TablaPiezas[],2,miIdioma),\"♕\"),\nINDEX(TablaPiezas[],3,miIdioma),\"♖\"),\nINDEX(TablaPiezas[],4,miIdioma),\"♗\"),\nINDEX(TablaPiezas[],5,miIdioma),\"♘\")&\" \"&\nSUBSTITUTE(SUBSTITUTE(SUBSTITUTE(SUBSTITUTE(SUBSTITUTE(H99,\nINDEX(TablaPiezas[],1,miIdioma),\"♚\"),\nINDEX(TablaPiezas[],2,miIdioma),\"♛\"),\nINDEX(TablaPiezas[],3,miIdioma),\"♜\"),\nINDEX(TablaPiezas[],4,miIdioma),\"♝\"),\nINDEX(TablaPiezas[],5,miIdioma),\"♞\"))","v":""},"","",{"$f":"Games!$A107","v":""},"",""]
[98,null,null,{"$f":"Numerical!$A108","v":""},"","",null,null,{"$f":"IF(IFERROR(FIND(\". \",Games!$A108),0)>0,\nSUBSTITUTE(SUBSTITUTE(SUBSTITUTE(SUBSTITUTE(SUBSTITUTE(SUBSTITUTE(SUBSTITUTE(SUBSTITUTE(SUBSTITUTE(SUBSTITUTE(SUBSTITUTE(SUBSTITUTE(SUBSTITUTE(SUBSTITUTE(SUBSTITUTE(Games!$A108,\n\"♔\",\"R\"),\"♕\",\"D\"),\"♖\",\"T\"),\"♗\",\"A\"),\"♘\",\"C\"),\n\"♚\",\"R\"),\"♛\",\"D\"),\"♜\",\"T\"),\"♝\",\"A\"),\"♞\",\"C\"),\n\"R\",INDEX(TablaPiezas[],1,miIdioma)),\n\"D\",INDEX(TablaPiezas[],2,miIdioma)),\n\"T\",INDEX(TablaPiezas[],3,miIdioma)),\n\"A\",INDEX(TablaPiezas[],4,miIdioma)),\n\"C\",INDEX(TablaPiezas[],5,miIdioma)),\nGames!$A108)","v":""},"","","","","","","",{"$f":"IF(G100=\"\",\"\",$A100&\". \"&\nSUBSTITUTE(SUBSTITUTE(SUBSTITUTE(SUBSTITUTE(SUBSTITUTE(G100,\nINDEX(TablaPiezas[],1,miIdioma),\"♔\"),\nINDEX(TablaPiezas[],2,miIdioma),\"♕\"),\nINDEX(TablaPiezas[],3,miIdioma),\"♖\"),\nINDEX(TablaPiezas[],4,miIdioma),\"♗\"),\nINDEX(TablaPiezas[],5,miIdioma),\"♘\")&\" \"&\nSUBSTITUTE(SUBSTITUTE(SUBSTITUTE(SUBSTITUTE(SUBSTITUTE(H100,\nINDEX(TablaPiezas[],1,miIdioma),\"♚\"),\nINDEX(TablaPiezas[],2,miIdioma),\"♛\"),\nINDEX(TablaPiezas[],3,miIdioma),\"♜\"),\nINDEX(TablaPiezas[],4,miIdioma),\"♝\"),\nINDEX(TablaPiezas[],5,miIdioma),\"♞\"))","v":""},"","",{"$f":"Games!$A108","v":""},"",""]
[99,null,null,{"$f":"Numerical!$A109","v":""},"","",null,null,{"$f":"IF(IFERROR(FIND(\". \",Games!$A109),0)>0,\nSUBSTITUTE(SUBSTITUTE(SUBSTITUTE(SUBSTITUTE(SUBSTITUTE(SUBSTITUTE(SUBSTITUTE(SUBSTITUTE(SUBSTITUTE(SUBSTITUTE(SUBSTITUTE(SUBSTITUTE(SUBSTITUTE(SUBSTITUTE(SUBSTITUTE(Games!$A109,\n\"♔\",\"R\"),\"♕\",\"D\"),\"♖\",\"T\"),\"♗\",\"A\"),\"♘\",\"C\"),\n\"♚\",\"R\"),\"♛\",\"D\"),\"♜\",\"T\"),\"♝\",\"A\"),\"♞\",\"C\"),\n\"R\",INDEX(TablaPiezas[],1,miIdioma)),\n\"D\",INDEX(TablaPiezas[],2,miIdioma)),\n\"T\",INDEX(TablaPiezas[],3,miIdioma)),\n\"A\",INDEX(TablaPiezas[],4,miIdioma)),\n\"C\",INDEX(TablaPiezas[],5,miIdioma)),\nGames!$A109)","v":""},"","","","","","","",{"$f":"IF(G101=\"\",\"\",$A101&\". \"&\nSUBSTITUTE(SUBSTITUTE(SUBSTITUTE(SUBSTITUTE(SUBSTITUTE(G101,\nINDEX(TablaPiezas[],1,miIdioma),\"♔\"),\nINDEX(TablaPiezas[],2,miIdioma),\"♕\"),\nINDEX(TablaPiezas[],3,miIdioma),\"♖\"),\nINDEX(TablaPiezas[],4,miIdioma),\"♗\"),\nINDEX(TablaPiezas[],5,miIdioma),\"♘\")&\" \"&\nSUBSTITUTE(SUBSTITUTE(SUBSTITUTE(SUBSTITUTE(SUBSTITUTE(H101,\nINDEX(TablaPiezas[],1,miIdioma),\"♚\"),\nINDEX(TablaPiezas[],2,miIdioma),\"♛\"),\nINDEX(TablaPiezas[],3,miIdioma),\"♜\"),\nINDEX(TablaPiezas[],4,miIdioma),\"♝\"),\nINDEX(TablaPiezas[],5,miIdioma),\"♞\"))","v":""},"","",{"$f":"Games!$A109","v":""},"",""]
[100,null,null,{"$f":"Numerical!$A110","v":""},"","",null,null,{"$f":"IF(IFERROR(FIND(\". \",Games!$A110),0)>0,\nSUBSTITUTE(SUBSTITUTE(SUBSTITUTE(SUBSTITUTE(SUBSTITUTE(SUBSTITUTE(SUBSTITUTE(SUBSTITUTE(SUBSTITUTE(SUBSTITUTE(SUBSTITUTE(SUBSTITUTE(SUBSTITUTE(SUBSTITUTE(SUBSTITUTE(Games!$A110,\n\"♔\",\"R\"),\"♕\",\"D\"),\"♖\",\"T\"),\"♗\",\"A\"),\"♘\",\"C\"),\n\"♚\",\"R\"),\"♛\",\"D\"),\"♜\",\"T\"),\"♝\",\"A\"),\"♞\",\"C\"),\n\"R\",INDEX(TablaPiezas[],1,miIdioma)),\n\"D\",INDEX(TablaPiezas[],2,miIdioma)),\n\"T\",INDEX(TablaPiezas[],3,miIdioma)),\n\"A\",INDEX(TablaPiezas[],4,miIdioma)),\n\"C\",INDEX(TablaPiezas[],5,miIdioma)),\nGames!$A110)","v":""},"","","","","","","",{"$f":"IF(G102=\"\",\"\",$A102&\". \"&\nSUBSTITUTE(SUBSTITUTE(SUBSTITUTE(SUBSTITUTE(SUBSTITUTE(G102,\nINDEX(TablaPiezas[],1,miIdioma),\"♔\"),\nINDEX(TablaPiezas[],2,miIdioma),\"♕\"),\nINDEX(TablaPiezas[],3,miIdioma),\"♖\"),\nINDEX(TablaPiezas[],4,miIdioma),\"♗\"),\nINDEX(TablaPiezas[],5,miIdioma),\"♘\")&\" \"&\nSUBSTITUTE(SUBSTITUTE(SUBSTITUTE(SUBSTITUTE(SUBSTITUTE(H102,\nINDEX(TablaPiezas[],1,miIdioma),\"♚\"),\nINDEX(TablaPiezas[],2,miIdioma),\"♛\"),\nINDEX(TablaPiezas[],3,miIdioma),\"♜\"),\nINDEX(TablaPiezas[],4,miIdioma),\"♝\"),\nINDEX(TablaPiezas[],5,miIdioma),\"♞\"))","v":""},"","",{"$f":"Games!$A110","v":""},"",""]

{"sheet":"Series","index":2,"n_rows":84,"n_cols":96,"rows_kept":84,"cut":false,"hidden":true,"merged":[[14,42,14,43],[17,6,17,12],[16,6,16,12],[15,6,15,12],[13,6,13,12],[14,6,14,12]]}
[]
[]
[null,null,null,{"$f":"INDEX(TablaIdiomas[],39,miIdioma)","v":"Tablero de ajedrez - Gráfico de columnas apiladas"},null,null,null,null,null,null,null,null,null,null,null,null,null,null,null,null,null,null,null,null,null,null,null,null,null,null,null,null,null,null,null,null,null,null,null,null,null,null,null,null,{"$f":"INDEX(TablaIdiomas[],40,miIdioma)","v":"Piezas blancas - Gráfico de líneas con marcadores pero sin líneas"},null,null,null,null,null,null,null,null,null,null,null,null,null,null,null,{"$f":"INDEX(TablaIdiomas[],41,miIdioma)","v":"Piezas negras - Gráfico de líneas con marcadores pero sin líneas"},null,null,null,null,null,null,null,null,null,null,null,null,null,null,null,{"$f":"INDEX(TablaIdiomas[],42,miIdioma)","v":"Mover piezas blancas - Gráfico de dispersión"},null,null,null,null,null,{"$f":"INDEX(TablaIdiomas[],43,miIdioma)","v":"Mover piezas negras - Gráfico de dispersión"},null,null,null,null,null,{"$f":"INDEX(TablaIdiomas[],44,miIdioma)","v":"Marcas en el tablero - Gráfico de dispersión"}]
[null,null,null,{"$f":"INDEX(TablaIdiomas[],137,miIdioma)","v":"Eje X"},"Serie1a","Serie1b","Serie10","Serie11","Serie12","Serie2a","Serie2b","Serie20","Serie21","Serie22","Serie3a","Serie3b","Serie30","Serie31","Serie32","Serie4a","Serie4b","Serie40","Serie41","Serie42","Serie5a","Serie5b","Serie50","Serie51","Serie52","Serie6a","Serie6b","Serie60","Serie61","Serie62","Serie7a","Serie7b","Serie70","Serie71","Serie72","Serie8a","Serie8b","Serie80","Serie81","Serie82",{"$f":"VLOOKUP(LEFT(AS13,2),TablaIdiomas[],miIdioma,FALSE)&MID(AS13,3,1)","v":"Ab1"},{"$f":"VLOOKUP(LEFT(AT13,2),TablaIdiomas[],miIdioma,FALSE)&MID(AT13,3,1)","v":"Ab2"},{"$f":"VLOOKUP(LEFT(AU13,2),TablaIdiomas[],miIdioma,FALSE)&MID(AU13,3,1)","v":"Rb"},{"$f":"VLOOKUP(LEFT(AV13,2),TablaIdiomas[],miIdioma,FALSE)&MID(AV13,3,1)","v":"Cb1"},{"$f":"VLOOKUP(LEFT(AW13,2),TablaIdiomas[],miIdioma,FALSE)&MID(AW13,3,1)","v":"Cb2"},{"$f":"VLOOKUP(LEFT(AX13,2),TablaIdiomas[],miIdioma,FALSE)&MID(AX13,3,1)","v":"Db"},{"$f":"VLOOKUP(LEFT(AY13,2),TablaIdiomas[],miIdioma,FALSE)&MID(AY13,3,1)","v":"Tb1"},{"$f":"VLOOKUP(LEFT(AZ13,2),TablaIdiomas[],miIdioma,FALSE)&MID(AZ13,3,1)","v":"Tb2"},{"$f":"VLOOKUP(LEFT(BA13,2),TablaIdiomas[],miIdioma,FALSE)&MID(BA13,3,1)","v":"Pb1"},{"$f":"VLOOKUP(LEFT(BB13,2),TablaIdiomas[],miIdioma,FALSE)&MID(BB13,3,1)","v":"Pb2"},{"$f":"VLOOKUP(LEFT(BC13,2),TablaIdiomas[],miIdioma,FALSE)&MID(BC13,3,1)","v":"Pb3"},{"$f":"VLOOKUP(LEFT(BD13,2),TablaIdiomas[],miIdioma,FALSE)&MID(BD13,3,1)","v":"Pb4"},{"$f":"VLOOKUP(LEFT(BE13,2),TablaIdiomas[],miIdioma,FALSE)&MID(BE13,3,1)","v":"Pb5"},{"$f":"VLOOKUP(LEFT(BF13,2),TablaIdiomas[],miIdioma,FALSE)&MID(BF13,3,1)","v":"Pb6"},{"$f":"VLOOKUP(LEFT(BG13,2),TablaIdiomas[],miIdioma,FALSE)&MID(BG13,3,1)","v":"Pb7"},{"$f":"VLOOKUP(LEFT(BH13,2),TablaIdiomas[],miIdioma,FALSE)&MID(BH13,3,1)","v":"Pb8"},{"$f":"VLOOKUP(LEFT(BI13,2),TablaIdiomas[],miIdioma,FALSE)&MID(BI13,3,1)","v":"An1"},{"$f":"VLOOKUP(LEFT(BJ13,2),TablaIdiomas[],miIdioma,FALSE)&MID(BJ13,3,1)","v":"An2"},{"$f":"VLOOKUP(LEFT(BK13,2),TablaIdiomas[],miIdioma,FALSE)&MID(BK13,3,1)","v":"Rn"},{"$f":"VLOOKUP(LEFT(BL13,2),TablaIdiomas[],miIdioma,FALSE)&MID(BL13,3,1)","v":"Cn1"},{"$f":"VLOOKUP(LEFT(BM13,2),TablaIdiomas[],miIdioma,FALSE)&MID(BM13,3,1)","v":"Cn2"},{"$f":"VLOOKUP(LEFT(BN13,2),TablaIdiomas[],miIdioma,FALSE)&MID(BN13,3,1)","v":"Dn"},{"$f":"VLOOKUP(LEFT(BO13,2),TablaIdiomas[],miIdioma,FALSE)&MID(BO13,3,1)","v":"Tn1"},{"$f":"VLOOKUP(LEFT(BP13,2),TablaIdiomas[],miIdioma,FALSE)&MID(BP13,3,1)","v":"Tn2"},{"$f":"VLOOKUP(LEFT(BQ13,2),TablaIdiomas[],miIdioma,FALSE)&MID(BQ13,3,1)","v":"Pn1"},{"$f":"VLOOKUP(LEFT(BR13,2),TablaIdiomas[],miIdioma,FALSE)&MID(BR13,3,1)","v":"Pn2"},{"$f":"VLOOKUP(LEFT(BS13,2),TablaIdiomas[],miIdioma,FALSE)&MID(BS13,3,1)","v":"Pn3"},{"$f":"VLOOKUP(LEFT(BT13,2),TablaIdiomas[],miIdioma,FALSE)&MID(BT13,3,1)","v":"Pn4"},{"$f":"VLOOKUP(LEFT(BU13,2),TablaIdiomas[],miIdioma,FALSE)&MID(BU13,3,1)","v":"Pn5"},{"$f":"VLOOKUP(LEFT(BV13,2),TablaIdiomas[],miIdioma,FALSE)&MID(BV13,3,1)","v":"Pn6"},{"$f":"VLOOKUP(LEFT(BW13,2),TablaIdiomas[],miIdioma,FALSE)&MID(BW13,3,1)","v":"Pn7"},{"$f":"VLOOKUP(LEFT(BX13,2),TablaIdiomas[],miIdioma,FALSE)&MID(BX13,3,1)","v":"Pn8"},{"$f":"INDEX(TablaIdiomas[],151,miIdioma)","v":"MoverPb"},{"$f":"INDEX(TablaIdiomas[],152,miIdioma)","v":"MoverAb"},{"$f":"INDEX(TablaIdiomas[],153,miIdioma)","v":"MoverTb"},{"$f":"INDEX(TablaIdiomas[],154,miIdioma)","v":"MoverCb"},{"$f":"INDEX(TablaIdiomas[],155,miIdioma)","v":"MoverDb"},{"$f":"INDEX(TablaIdiomas[],156,miIdioma)","v":"MoverRb"},{"$f":"INDEX(TablaIdiomas[],157,miIdioma)","v":"MoverPn"},{"$f":"INDEX(TablaIdiomas[],158,miIdioma)","v":"MoverAn"},{"$f":"INDEX(TablaIdiomas[],159,miIdioma)","v":"MoverTn"},{"$f":"INDEX(TablaIdiomas[],160,miIdioma)","v":"MoverCn"},{"$f":"INDEX(TablaIdiomas[],161,miIdioma)","v":"MoverDn"},{"$f":"INDEX(TablaIdiomas[],162,miIdioma)","v":"MoverRn"},{"$f":"INDEX(TablaIdiomas[],138,miIdioma)&CK13","v":"Fila1"},{"$f":"INDEX(TablaIdiomas[],138,miIdioma)&CL13","v":"Fila2"},{"$f":"INDEX(TablaIdiomas[],138,miIdioma)&CM13","v":"Fila3"},{"$f":"INDEX(TablaIdiomas[],138,miIdioma)&CN13","v":"Fila4"},{"$f":"INDEX(TablaIdiomas[],138,miIdioma)&CO13","v":"Fila5"},{"$f":"INDEX(TablaIdiomas[],138,miIdioma)&CP13","v":"Fila6"},{"$f":"INDEX(TablaIdiomas[],138,miIdioma)&CQ13","v":"Fila7"},{"$f":"INDEX(TablaIdiomas[],138,miIdioma)&CR13","v":"Fila8"}]
[null,null,1,{"$f":"CHOOSE(Tipo_Notación,C5,CHAR(96+C5),CHAR(96+C5))","v":1},{"$f":"IF(AND(E$4=aSerie,$C5=aCol),1,0)","v":0},{"$f":"IF(AND(F$4=bSerie,$C5=bCol),1,0)","v":0},0,{"$f":"--(Tipo_Tablero=1)*(1-E5-F5-G5)","v":0},{"$f":"--(Tipo_Tablero=2)*(1-E5-F5-G5)","v":1},{"$f":"IF(AND(J$4=aSerie,$C5=aCol),1,0)","v":0},{"$f":"IF(AND(K$4=bSerie,$C5=bCol),1,0)","v":0},{"$f":"1-J5-K5","v":1},{"$f":"--(Tipo_Tablero=1)*(1-J5-K5-L5)","v":0},{"$f":"--(Tipo_Tablero=2)*(1-J5-K5-L5)","v":0},{"$f":"IF(AND(O$4=aSerie,$C5=aCol),1,0)","v":0},{"$f":"IF(AND(P$4=bSerie,$C5=bCol),1,0)","v":0},0,{"$f":"--(Tipo_Tablero=1)*(1-O5-P5-Q5)","v":0},{"$f":"--(Tipo_Tablero=2)*(1-O5-P5-Q5)","v":1},{"$f":"IF(AND(T$4=aSerie,$C5=aCol),1,0)","v":0},{"$f":"IF(AND(U$4=bSerie,$C5=bCol),1,0)","v":0},{"$f":"1-T5-U5","v":1},{"$f":"--(Tipo_Tablero=1)*(1-T5-U5-V5)","v":0},{"$f":"--(Tipo_Tablero=2)*(1-T5-U5-V5)","v":0},{"$f":"IF(AND(Y$4=aSerie,$C5=aCol),1,0)","v":0},{"$f":"IF(AND(Z$4=bSerie,$C5=bCol),1,0)","v":0},0,{"$f":"--(Tipo_Tablero=1)*(1-Y5-Z5-AA5)","v":0},{"$f":"--(Tipo_Tablero=2)*(1-Y5-Z5-AA5)","v":1},{"$f":"IF(AND(AD$4=aSerie,$C5=aCol),1,0)","v":0},{"$f":"IF(AND(AE$4=bSerie,$C5=bCol),1,0)","v":0},{"$f":"1-AD5-AE5","v":1},{"$f":"--(Tipo_Tablero=1)*(1-AD5-AE5-AF5)","v":0},{"$f":"--(Tipo_Tablero=2)*(1-AD5-AE5-AF5)","v":0},{"$f":"IF(AND(AI$4=aSerie,$C5=aCol),1,0)","v":0},{"$f":"IF(AND(AJ$4=bSerie,$C5=bCol),1,0)","v":0},0,{"$f":"--(Tipo_Tablero=1)*(1-AI5-AJ5-AK5)","v":0},{"$f":"--(Tipo_Tablero=2)*(1-AI5-AJ5-AK5)","v":1},{"$f":"IF(AND(AN$4=aSerie,$C5=aCol),1,0)","v":0},{"$f":"IF(AND(AO$4=bSerie,$C5=bCol),1,0)","v":0},{"$f":"1-AN5-AO5","v":1},{"$f":"--(Tipo_Tablero=1)*(1-AN5-AO5-AP5)","v":0},{"$f":"--(Tipo_Tablero=2)*(1-AN5-AO5-AP5)","v":0},{"$f":"IF($C5=INT(AS$14/10),MOD(AS$14,10)-0.5,NA())","v":{"$error":"#N/A"}},{"$error":"#N/A"},{"$error":"#N/A"},{"$error":"#N/A"},{"$error":"#N/A"},{"$error":"#N/A"},{"$error":"#N/A"},{"$error":"#N/A"},{"$error":"#N/A"},{"$error":"#N/A"},{"$error":"#N/A"},{"$error":"#N/A"},{"$error":"#N/A"},{"$error":"#N/A"},{"$error":"#N/A"},{"$error":"#N/A"},{"$f":"IF($C5=INT(BI$14/10),MOD(BI$14,10)-0.5,NA())","v":{"$error":"#N/A"}},{"$error":"#N/A"},{"$error":"#N/A"},{"$error":"#N/A"},{"$error":"#N/A"},{"$error":"#N/A"},{"$error":"#N/A"},{"$error":"#N/A"},{"$error":"#N/A"},{"$error":"#N/A"},{"$error":"#N/A"},{"$error":"#N/A"},{"$error":"#N/A"},{"$error":"#N/A"},{"$error":"#N/A"},{"$error":"#N/A"},{"$f":"IF(AND(miPosPieza=BY$4,miPosB>0,Valor_Moviendo=1),miPosX,0.1)","v":0.1},0.1,0.1,0.1,0.1,0.1,0.1,0.1,0.1,0.1,0.1,0.1,{"$f":"IF(AND(Tipo_MovVálido=1,miPosB=0,MATCH((10*$C5+CK$13)&\"\",misMarcas,0)>0),CK$13-0.5,NA())","v":{"$error":"#N/A"}},{"$f":"IF(AND(Tipo_MovVálido=1,miPosB=0,MATCH((10*$C5+CL$13)&\"\",misMarcas,0)>0),CL$13-0.5,NA())","v":{"$error":"#N/A"}},{"$f":"IF(AND(Tipo_MovVálido=1,miPosB=0,MATCH((10*$C5+CM$13)&\"\",misMarcas,0)>0),CM$13-0.5,NA())","v":{"$error":"#N/A"}},{"$f":"IF(AND(Tipo_MovVálido=1,miPosB=0,MATCH((10*$C5+CN$13)&\"\",misMarcas,0)>0),CN$13-0.5,NA())","v":{"$error":"#N/A"}},{"$f":"IF(AND(Tipo_MovVálido=1,miPosB=0,MATCH((10*$C5+CO$13)&\"\",misMarcas,0)>0),CO$13-0.5,NA())","v":{"$error":"#N/A"}},{"$f":"IF(AND(Tipo_MovVálido=1,miPosB=0,MATCH((10*$C5+CP$13)&\"\",misMarcas,0)>0),CP$13-0.5,NA())","v":{"$error":"#N/A"}},{"$f":"IF(AND(Tipo_MovVálido=1,miPosB=0,MATCH((10*$C5+CQ$13)&\"\",misMarcas,0)>0),CQ$13-0.5,NA())","v":{"$error":"#N/A"}},{"$f":"IF(AND(Tipo_MovVálido=1,miPosB=0,MATCH((10*$C5+CR$13)&\"\",misMarcas,0)>0),CR$13-0.5,NA())","v":{"$error":"#N/A"}}]
[null,null,2,2,0,{"$f":"IF(AND(F$4=bSerie,$C6=bCol),1,0)","v":0},{"$f":"1-E6-F6","v":1},0,0,0,{"$f":"IF(AND(K$4=bSerie,$C6=bCol),1,0)","v":0},0,0,1,0,{"$f":"IF(AND(P$4=bSerie,$C6=bCol),1,0)","v":0},{"$f":"1-O6-P6","v":1},0,0,0,{"$f":"IF(AND(U$4=bSerie,$C6=bCol),1,0)","v":0},0,0,1,0,{"$f":"IF(AND(Z$4=bSerie,$C6=bCol),1,0)","v":0},{"$f":"1-Y6-Z6","v":1},0,0,0,{"$f":"IF(AND(AE$4=bSerie,$C6=bCol),1,0)","v":0},0,0,1,0,{"$f":"IF(AND(AJ$4=bSerie,$C6=bCol),1,0)","v":0},{"$f":"1-AI6-AJ6","v":1},0,0,0,{"$f":"IF(AND(AO$4=bSerie,$C6=bCol),1,0)","v":0},0,0,1,{"$error":"#N/A"},{"$error":"#N/A"},{"$error":"#N/A"},{"$error":"#N/A"},{"$error":"#N/A"},{"$error":"#N/A"},{"$error":"#N/A"},{"$error":"#N/A"},{"$error":"#N/A"},{"$error":"#N/A"},{"$error":"#N/A"},{"$error":"#N/A"},{"$error":"#N/A"},{"$error":"#N/A"},{"$error":"#N/A"},{"$error":"#N/A"},{"$error":"#N/A"},{"$error":"#N/A"},{"$error":"#N/A"},{"$error":"#N/A"},{"$error":"#N/A"},{"$error":"#N/A"},{"$error":"#N/A"},{"$error":"#N/A"},{"$error":"#N/A"},{"$error":"#N/A"},{"$error":"#N/A"},{"$error":"#N/A"},{"$error":"#N/A"},{"$error":"#N/A"},{"$error":"#N/A"},{"$error":"#N/A"},{"$f":"IF(AND(miPosPieza=BY$4,miPosB>0,Valor_Moviendo=1),miPosY,0.1)","v":0.1},0.1,0.1,0.1,0.1,0.1,0.1,0.1,0.1,0.1,0.1,0.1,{"$f":"IF(AND(Tipo_MovVálido=1,miPosB=0,MATCH((10*$C6+CK$13)&\"\",misMarcas,0)>0),CK$13-0.5,NA())","v":{"$error":"#N/A"}},{"$f":"IF(AND(Tipo_MovVálido=1,miPosB=0,MATCH((10*$C6+CL$13)&\"\",misMarcas,0)>0),CL$13-0.5,NA())","v":{"$error":"#N/A"}},{"$f":"IF(AND(Tipo_MovVálido=1,miPosB=0,MATCH((10*$C6+CM$13)&\"\",misMarcas,0)>0),CM$13-0.5,NA())","v":{"$error":"#N/A"}},{"$f":"IF(AND(Tipo_MovVálido=1,miPosB=0,MATCH((10*$C6+CN$13)&\"\",misMarcas,0)>0),CN$13-0.5,NA())","v":{"$error":"#N/A"}},{"$f":"IF(AND(Tipo_MovVálido=1,miPosB=0,MATCH((10*$C6+CO$13)&\"\",misMarcas,0)>0),CO$13-0.5,NA())","v":{"$error":"#N/A"}},{"$f":"IF(AND(Tipo_MovVálido=1,miPosB=0,MATCH((10*$C6+CP$13)&\"\",misMarcas,0)>0),CP$13-0.5,NA())","v":{"$error":"#N/A"}},{"$f":"IF(AND(Tipo_MovVálido=1,miPosB=0,MATCH((10*$C6+CQ$13)&\"\",misMarcas,0)>0),CQ$13-0.5,NA())","v":{"$error":"#N/A"}},{"$f":"IF(AND(Tipo_MovVálido=1,miPosB=0,MATCH((10*$C6+CR$13)&\"\",misMarcas,0)>0),CR$13-0.5,NA())","v":{"$error":"#N/A"}}]
[null,null,3,3,0,{"$f":"IF(AND(F$4=bSerie,$C7=bCol),1,0)","v":0},0,0,1,0,{"$f":"IF(AND(K$4=bSerie,$C7=bCol),1,0)","v":0},{"$f":"1-J7-K7","v":1},0,0,0,{"$f":"IF(AND(P$4=bSerie,$C7=bCol),1,0)","v":0},0,0,1,0,{"$f":"IF(AND(U$4=bSerie,$C7=bCol),1,0)","v":0},{"$f":"1-T7-U7","v":1},0,0,0,{"$f":"IF(AND(Z$4=bSerie,$C7=bCol),1,0)","v":0},0,0,1,0,{"$f":"IF(AND(AE$4=bSerie,$C7=bCol),1,0)","v":0},{"$f":"1-AD7-AE7","v":1},0,0,0,{"$f":"IF(AND(AJ$4=bSerie,$C7=bCol),1,0)","v":0},0,0,1,0,{"$f":"IF(AND(AO$4=bSerie,$C7=bCol),1,0)","v":0},{"$f":"1-AN7-AO7","v":1},0,0,{"$error":"#N/A"},{"$error":"#N/A"},{"$error":"#N/A"},{"$error":"#N/A"},{"$error":"#N/A"},{"$error":"#N/A"},{"$error":"#N/A"},{"$error":"#N/A"},{"$error":"#N/A"},{"$error":"#N/A"},{"$error":"#N/A"},{"$error":"#N/A"},{"$error":"#N/A"},{"$error":"#N/A"},{"$error":"#N/A"},{"$error":"#N/A"},{"$error":"#N/A"},{"$error":"#N/A"},{"$error":"#N/A"},{"$error":"#N/A"},{"$error":"#N/A"},{"$error":"#N/A"},{"$error":"#N/A"},{"$error":"#N/A"},{"$error":"#N/A"},{"$error":"#N/A"},{"$error":"#N/A"},{"$error":"#N/A"},{"$error":"#N/A"},{"$error":"#N/A"},{"$error":"#N/A"},{"$error":"#N/A"},null,null,null,null,null,null,null,null,null,null,null,null,{"$f":"IF(AND(Tipo_MovVálido=1,miPosB=0,MATCH((10*$C7+CK$13)&\"\",misMarcas,0)>0),CK$13-0.5,NA())","v":{"$error":"#N/A"}},{"$f":"IF(AND(Tipo_MovVálido=1,miPosB=0,MATCH((10*$C7+CL$13)&\"\",misMarcas,0)>0),CL$13-0.5,NA())","v":{"$error":"#N/A"}},{"$f":"IF(AND(Tipo_MovVálido=1,miPosB=0,MATCH((10*$C7+CM$13)&\"\",misMarcas,0)>0),CM$13-0.5,NA())","v":{"$error":"#N/A"}},{"$f":"IF(AND(Tipo_MovVálido=1,miPosB=0,MATCH((10*$C7+CN$13)&\"\",misMarcas,0)>0),CN$13-0.5,NA())","v":{"$error":"#N/A"}},{"$f":"IF(AND(Tipo_MovVálido=1,miPosB=0,MATCH((10*$C7+CO$13)&\"\",misMarcas,0)>0),CO$13-0.5,NA())","v":{"$error":"#N/A"}},{"$f":"IF(AND(Tipo_MovVálido=1,miPosB=0,MATCH((10*$C7+CP$13)&\"\",misMarcas,0)>0),CP$13-0.5,NA())","v":{"$error":"#N/A"}},{"$f":"IF(AND(Tipo_MovVálido=1,miPosB=0,MATCH((10*$C7+CQ$13)&\"\",misMarcas,0)>0),CQ$13-0.5,NA())","v":{"$error":"#N/A"}},{"$f":"IF(AND(Tipo_MovVálido=1,miPosB=0,MATCH((10*$C7+CR$13)&\"\",misMarcas,0)>0),CR$13-0.5,NA())","v":{"$error":"#N/A"}}]
[null,null,4,4,0,{"$f":"IF(AND(F$4=bSerie,$C8=bCol),1,0)","v":0},{"$f":"1-E8-F8","v":1},0,0,0,{"$f":"IF(AND(K$4=bSerie,$C8=bCol),1,0)","v":0},0,0,1,0,{"$f":"IF(AND(P$4=bSerie,$C8=bCol),1,0)","v":0},{"$f":"1-O8-P8","v":1},0,0,0,{"$f":"IF(AND(U$4=bSerie,$C8=bCol),1,0)","v":0},0,0,1,0,{"$f":"IF(AND(Z$4=bSerie,$C8=bCol),1,0)","v":0},{"$f":"1-Y8-Z8","v":1},0,0,0,{"$f":"IF(AND(AE$4=bSerie,$C8=bCol),1,0)","v":0},0,0,1,0,{"$f":"IF(AND(AJ$4=bSerie,$C8=bCol),1,0)","v":0},{"$f":"1-AI8-AJ8","v":1},0,0,0,{"$f":"IF(AND(AO$4=bSerie,$C8=bCol),1,0)","v":0},0,0,1,{"$error":"#N/A"},{"$error":"#N/A"},{"$error":"#N/A"},{"$error":"#N/A"},{"$error":"#N/A"},{"$error":"#N/A"},{"$error":"#N/A"},{"$error":"#N/A"},{"$error":"#N/A"},{"$error":"#N/A"},{"$error":"#N/A"},{"$error":"#N/A"},{"$error":"#N/A"},{"$error":"#N/A"},{"$error":"#N/A"},{"$error":"#N/A"},{"$error":"#N/A"},{"$error":"#N/A"},{"$error":"#N/A"},{"$error":"#N/A"},{"$error":"#N/A"},{"$error":"#N/A"},{"$error":"#N/A"},{"$error":"#N/A"},{"$error":"#N/A"},{"$error":"#N/A"},{"$error":"#N/A"},{"$error":"#N/A"},{"$error":"#N/A"},{"$error":"#N/A"},{"$error":"#N/A"},{"$error":"#N/A"},null,null,null,null,null,null,null,null,null,null,null,null,{"$f":"IF(AND(Tipo_MovVálido=1,miPosB=0,MATCH((10*$C8+CK$13)&\"\",misMarcas,0)>0),CK$13-0.5,NA())","v":{"$error":"#N/A"}},{"$f":"IF(AND(Tipo_MovVálido=1,miPosB=0,MATCH((10*$C8+CL$13)&\"\",misMarcas,0)>0),CL$13-0.5,NA())","v":{"$error":"#N/A"}},{"$f":"IF(AND(Tipo_MovVálido=1,miPosB=0,MATCH((10*$C8+CM$13)&\"\",misMarcas,0)>0),CM$13-0.5,NA())","v":{"$error":"#N/A"}},{"$f":"IF(AND(Tipo_MovVálido=1,miPosB=0,MATCH((10*$C8+CN$13)&\"\",misMarcas,0)>0),CN$13-0.5,NA())","v":{"$error":"#N/A"}},{"$f":"IF(AND(Tipo_MovVálido=1,miPosB=0,MATCH((10*$C8+CO$13)&\"\",misMarcas,0)>0),CO$13-0.5,NA())","v":{"$error":"#N/A"}},{"$f":"IF(AND(Tipo_MovVálido=1,miPosB=0,MATCH((10*$C8+CP$13)&\"\",misMarcas,0)>0),CP$13-0.5,NA())","v":{"$error":"#N/A"}},{"$f":"IF(AND(Tipo_MovVálido=1,miPosB=0,MATCH((10*$C8+CQ$13)&\"\",misMarcas,0)>0),CQ$13-0.5,NA())","v":{"$error":"#N/A"}},{"$f":"IF(AND(Tipo_MovVálido=1,miPosB=0,MATCH((10*$C8+CR$13)&\"\",misMarcas,0)>0),CR$13-0.5,NA())","v":{"$error":"#N/A"}}]
[null,null,5,5,0,{"$f":"IF(AND(F$4=bSerie,$C9=bCol),1,0)","v":0},0,0,1,0,{"$f":"IF(AND(K$4=bSerie,$C9=bCol),1,0)","v":0},{"$f":"1-J9-K9","v":1},0,0,0,{"$f":"IF(AND(P$4=bSerie,$C9=bCol),1,0)","v":0},0,0,1,0,{"$f":"IF(AND(U$4=bSerie,$C9=bCol),1,0)","v":0},{"$f":"1-T9-U9","v":1},0,0,0,{"$f":"IF(AND(Z$4=bSerie,$C9=bCol),1,0)","v":0},0,0,1,0,{"$f":"IF(AND(AE$4=bSerie,$C9=bCol),1,0)","v":0},{"$f":"1-AD9-AE9","v":1},0,0,0,{"$f":"IF(AND(AJ$4=bSerie,$C9=bCol),1,0)","v":0},0,0,1,0,{"$f":"IF(AND(AO$4=bSerie,$C9=bCol),1,0)","v":0},{"$f":"1-AN9-AO9","v":1},0,0,{"$error":"#N/A"},{"$error":"#N/A"},{"$error":"#N/A"},{"$error":"#N/A"},{"$error":"#N/A"},{"$error":"#N/A"},{"$error":"#N/A"},{"$error":"#N/A"},{"$error":"#N/A"},{"$error":"#N/A"},{"$error":"#N/A"},{"$error":"#N/A"},{"$error":"#N/A"},{"$error":"#N/A"},{"$error":"#N/A"},{"$error":"#N/A"},{"$error":"#N/A"},{"$error":"#N/A"},{"$error":"#N/A"},{"$error":"#N/A"},{"$error":"#N/A"},{"$error":"#N/A"},{"$error":"#N/A"},{"$error":"#N/A"},{"$error":"#N/A"},{"$error":"#N/A"},{"$error":"#N/A"},{"$error":"#N/A"},{"$error":"#N/A"},{"$error":"#N/A"},{"$error":"#N/A"},{"$error":"#N/A"},null,null,null,null,null,null,null,null,null,null,null,null,{"$f":"IF(AND(Tipo_MovVálido=1,miPosB=0,MATCH((10*$C9+CK$13)&\"\",misMarcas,0)>0),CK$13-0.5,NA())","v":{"$error":"#N/A"}},{"$f":"IF(AND(Tipo_MovVálido=1,miPosB=0,MATCH((10*$C9+CL$13)&\"\",misMarcas,0)>0),CL$13-0.5,NA())","v":{"$error":"#N/A"}},{"$f":"IF(AND(Tipo_MovVálido=1,miPosB=0,MATCH((10*$C9+CM$13)&\"\",misMarcas,0)>0),CM$13-0.5,NA())","v":{"$error":"#N/A"}},{"$f":"IF(AND(Tipo_MovVálido=1,miPosB=0,MATCH((10*$C9+CN$13)&\"\",misMarcas,0)>0),CN$13-0.5,NA())","v":{"$error":"#N/A"}},{"$f":"IF(AND(Tipo_MovVálido=1,miPosB=0,MATCH((10*$C9+CO$13)&\"\",misMarcas,0)>0),CO$13-0.5,NA())","v":{"$error":"#N/A"}},{"$f":"IF(AND(Tipo_MovVálido=1,miPosB=0,MATCH((10*$C9+CP$13)&\"\",misMarcas,0)>0),CP$13-0.5,NA())","v":{"$error":"#N/A"}},{"$f":"IF(AND(Tipo_MovVálido=1,miPosB=0,MATCH((10*$C9+CQ$13)&\"\",misMarcas,0)>0),CQ$13-0.5,NA())","v":{"$error":"#N/A"}},{"$f":"IF(AND(Tipo_MovVálido=1,miPosB=0,MATCH((10*$C9+CR$13)&\"\",misMarcas,0)>0),CR$13-0.5,NA())","v":{"$error":"#N/A"}}]
[null,null,6,6,0,{"$f":"IF(AND(F$4=bSerie,$C10=bCol),1,0)","v":0},{"$f":"1-E10-F10","v":1},0,0,0,{"$f":"IF(AND(K$4=bSerie,$C10=bCol),1,0)","v":0},0,0,1,0,{"$f":"IF(AND(P$4=bSerie,$C10=bCol),1,0)","v":0},{"$f":"1-O10-P10","v":1},0,0,0,{"$f":"IF(AND(U$4=bSerie,$C10=bCol),1,0)","v":0},0,0,1,0,{"$f":"IF(AND(Z$4=bSerie,$C10=bCol),1,0)","v":0},{"$f":"1-Y10-Z10","v":1},0,0,0,{"$f":"IF(AND(AE$4=bSerie,$C10=bCol),1,0)","v":0},0,0,1,0,{"$f":"IF(AND(AJ$4=bSerie,$C10=bCol),1,0)","v":0},{"$f":"1-AI10-AJ10","v":1},0,0,0,{"$f":"IF(AND(AO$4=bSerie,$C10=bCol),1,0)","v":0},0,0,1,{"$error":"#N/A"},{"$error":"#N/A"},{"$error":"#N/A"},{"$error":"#N/A"},{"$error":"#N/A"},{"$error":"#N/A"},{"$error":"#N/A"},{"$error":"#N/A"},{"$error":"#N/A"},{"$error":"#N/A"},{"$error":"#N/A"},{"$error":"#N/A"},{"$error":"#N/A"},{"$error":"#N/A"},{"$error":"#N/A"},{"$error":"#N/A"},{"$error":"#N/A"},{"$error":"#N/A"},{"$error":"#N/A"},{"$error":"#N/A"},{"$error":"#N/A"},{"$error":"#N/A"},{"$error":"#N/A"},{"$error":"#N/A"},{"$error":"#N/A"},{"$error":"#N/A"},{"$error":"#N/A"},{"$error":"#N/A"},{"$error":"#N/A"},{"$error":"#N/A"},{"$error":"#N/A"},{"$error":"#N/A"},null,null,null,null,null,null,null,null,null,null,null,null,{"$f":"IF(AND(Tipo_MovVálido=1,miPosB=0,MATCH((10*$C10+CK$13)&\"\",misMarcas,0)>0),CK$13-0.5,NA())","v":{"$error":"#N/A"}},{"$f":"IF(AND(Tipo_MovVálido=1,miPosB=0,MATCH((10*$C10+CL$13)&\"\",misMarcas,0)>0),CL$13-0.5,NA())","v":{"$error":"#N/A"}},{"$f":"IF(AND(Tipo_MovVálido=1,miPosB=0,MATCH((10*$C10+CM$13)&\"\",misMarcas,0)>0),CM$13-0.5,NA())","v":{"$error":"#N/A"}},{"$f":"IF(AND(Tipo_MovVálido=1,miPosB=0,MATCH((10*$C10+CN$13)&\"\",misMarcas,0)>0),CN$13-0.5,NA())","v":{"$error":"#N/A"}},{"$f":"IF(AND(Tipo_MovVálido=1,miPosB=0,MATCH((10*$C10+CO$13)&\"\",misMarcas,0)>0),CO$13-0.5,NA())","v":{"$error":"#N/A"}},{"$f":"IF(AND(Tipo_MovVálido=1,miPosB=0,MATCH((10*$C10+CP$13)&\"\",misMarcas,0)>0),CP$13-0.5,NA())","v":{"$error":"#N/A"}},{"$f":"IF(AND(Tipo_MovVálido=1,miPosB=0,MATCH((10*$C10+CQ$13)&\"\",misMarcas,0)>0),CQ$13-0.5,NA())","v":{"$error":"#N/A"}},{"$f":"IF(AND(Tipo_MovVálido=1,miPosB=0,MATCH((10*$C10+CR$13)&\"\",misMarcas,0)>0),CR$13-0.5,NA())","v":{"$error":"#N/A"}}]
[null,null,7,7,0,{"$f":"IF(AND(F$4=bSerie,$C11=bCol),1,0)","v":0},0,0,1,0,{"$f":"IF(AND(K$4=bSerie,$C11=bCol),1,0)","v":0},{"$f":"1-J11-K11","v":1},0,0,0,{"$f":"IF(AND(P$4=bSerie,$C11=bCol),1,0)","v":0},0,0,1,0,{"$f":"IF(AND(U$4=bSerie,$C11=bCol),1,0)","v":0},{"$f":"1-T11-U11","v":1},0,0,0,{"$f":"IF(AND(Z$4=bSerie,$C11=bCol),1,0)","v":0},0,0,1,0,{"$f":"IF(AND(AE$4=bSerie,$C11=bCol),1,0)","v":0},{"$f":"1-AD11-AE11","v":1},0,0,0,{"$f":"IF(AND(AJ$4=bSerie,$C11=bCol),1,0)","v":0},0,0,1,0,{"$f":"IF(AND(AO$4=bSerie,$C11=bCol),1,0)","v":0},{"$f":"1-AN11-AO11","v":1},0,0,{"$error":"#N/A"},{"$error":"#N/A"},{"$error":"#N/A"},{"$error":"#N/A"},{"$error":"#N/A"},{"$error":"#N/A"},{"$error":"#N/A"},{"$error":"#N/A"},{"$error":"#N/A"},{"$error":"#N/A"},{"$error":"#N/A"},{"$error":"#N/A"},{"$error":"#N/A"},{"$error":"#N/A"},{"$error":"#N/A"},{"$error":"#N/A"},{"$error":"#N/A"},{"$error":"#N/A"},{"$error":"#N/A"},{"$error":"#N/A"},{"$error":"#N/A"},{"$error":"#N/A"},{"$error":"#N/A"},{"$error":"#N/A"},{"$error":"#N/A"},{"$error":"#N/A"},{"$error":"#N/A"},{"$error":"#N/A"},{"$error":"#N/A"},{"$error":"#N/A"},{"$error":"#N/A"},{"$error":"#N/A"},null,null,null,null,null,null,null,null,null,null,null,null,{"$f":"IF(AND(Tipo_MovVálido=1,miPosB=0,MATCH((10*$C11+CK$13)&\"\",misMarcas,0)>0),CK$13-0.5,NA())","v":{"$error":"#N/A"}},{"$f":"IF(AND(Tipo_MovVálido=1,miPosB=0,MATCH((10*$C11+CL$13)&\"\",misMarcas,0)>0),CL$13-0.5,NA())","v":{"$error":"#N/A"}},{"$f":"IF(AND(Tipo_MovVálido=1,miPosB=0,MATCH((10*$C11+CM$13)&\"\",misMarcas,0)>0),CM$13-0.5,NA())","v":{"$error":"#N/A"}},{"$f":"IF(AND(Tipo_MovVálido=1,miPosB=0,MATCH((10*$C11+CN$13)&\"\",misMarcas,0)>0),CN$13-0.5,NA())","v":{"$error":"#N/A"}},{"$f":"IF(AND(Tipo_MovVálido=1,miPosB=0,MATCH((10*$C11+CO$13)&\"\",misMarcas,0)>0),CO$13-0.5,NA())","v":{"$error":"#N/A"}},{"$f":"IF(AND(Tipo_MovVálido=1,miPosB=0,MATCH((10*$C11+CP$13)&\"\",misMarcas,0)>0),CP$13-0.5,NA())","v":{"$error":"#N/A"}},{"$f":"IF(AND(Tipo_MovVálido=1,miPosB=0,MATCH((10*$C11+CQ$13)&\"\",misMarcas,0)>0),CQ$13-0.5,NA())","v":{"$error":"#N/A"}},{"$f":"IF(AND(Tipo_MovVálido=1,miPosB=0,MATCH((10*$C11+CR$13)&\"\",misMarcas,0)>0),CR$13-0.5,NA())","v":{"$error":"#N/A"}}]
[null,null,8,8,0,{"$f":"IF(AND(F$4=bSerie,$C12=bCol),1,0)","v":0},{"$f":"1-E12-F12","v":1},0,0,0,{"$f":"IF(AND(K$4=bSerie,$C12=bCol),1,0)","v":0},0,0,1,0,{"$f":"IF(AND(P$4=bSerie,$C12=bCol),1,0)","v":0},{"$f":"1-O12-P12","v":1},0,0,0,{"$f":"IF(AND(U$4=bSerie,$C12=bCol),1,0)","v":0},0,0,1,0,{"$f":"IF(AND(Z$4=bSerie,$C12=bCol),1,0)","v":0},{"$f":"1-Y12-Z12","v":1},0,0,0,{"$f":"IF(AND(AE$4=bSerie,$C12=bCol),1,0)","v":0},0,0,1,0,{"$f":"IF(AND(AJ$4=bSerie,$C12=bCol),1,0)","v":0},{"$f":"1-AI12-AJ12","v":1},0,0,0,{"$f":"IF(AND(AO$4=bSerie,$C12=bCol),1,0)","v":0},0,0,1,{"$error":"#N/A"},{"$error":"#N/A"},{"$error":"#N/A"},{"$error":"#N/A"},{"$error":"#N/A"},{"$error":"#N/A"},{"$error":"#N/A"},{"$error":"#N/A"},{"$error":"#N/A"},{"$error":"#N/A"},{"$error":"#N/A"},{"$error":"#N/A"},{"$error":"#N/A"},{"$error":"#N/A"},{"$error":"#N/A"},{"$error":"#N/A"},{"$error":"#N/A"},{"$error":"#N/A"},{"$error":"#N/A"},{"$error":"#N/A"},{"$error":"#N/A"},{"$error":"#N/A"},{"$error":"#N/A"},{"$error":"#N/A"},{"$error":"#N/A"},{"$error":"#N/A"},{"$error":"#N/A"},{"$error":"#N/A"},{"$error":"#N/A"},{"$error":"#N/A"},{"$error":"#N/A"},{"$error":"#N/A"},null,null,null,null,null,null,null,null,null,null,null,null,{"$f":"IF(AND(Tipo_MovVálido=1,miPosB=0,MATCH((10*$C12+CK$13)&\"\",misMarcas,0)>0),CK$13-0.5,NA())","v":{"$error":"#N/A"}},{"$f":"IF(AND(Tipo_MovVálido=1,miPosB=0,MATCH((10*$C12+CL$13)&\"\",misMarcas,0)>0),CL$13-0.5,NA())","v":{"$error":"#N/A"}},{"$f":"IF(AND(Tipo_MovVálido=1,miPosB=0,MATCH((10*$C12+CM$13)&\"\",misMarcas,0)>0),CM$13-0.5,NA())","v":{"$error":"#N/A"}},{"$f":"IF(AND(Tipo_MovVálido=1,miPosB=0,MATCH((10*$C12+CN$13)&\"\",misMarcas,0)>0),CN$13-0.5,NA())","v":{"$error":"#N/A"}},{"$f":"IF(AND(Tipo_MovVálido=1,miPosB=0,MATCH((10*$C12+CO$13)&\"\",misMarcas,0)>0),CO$13-0.5,NA())","v":{"$error":"#N/A"}},{"$f":"IF(AND(Tipo_MovVálido=1,miPosB=0,MATCH((10*$C12+CP$13)&\"\",misMarcas,0)>0),CP$13-0.5,NA())","v":{"$error":"#N/A"}},{"$f":"IF(AND(Tipo_MovVálido=1,miPosB=0,MATCH((10*$C12+CQ$13)&\"\",misMarcas,0)>0),CQ$13-0.5,NA())","v":{"$error":"#N/A"}},{"$f":"IF(AND(Tipo_MovVálido=1,miPosB=0,MATCH((10*$C12+CR$13)&\"\",misMarcas,0)>0),CR$13-0.5,NA())","v":{"$error":"#N/A"}}]
[null,null,null,null,null,null,null,null,null,null,null,null,null,null,null,null,null,null,null,null,null,null,null,null,null,null,null,null,null,null,null,null,null,null,null,null,null,null,null,null,null,null,null,null,"Ab1","Ab2","Rb","Cb1","Cb2","Db","Tb1","Tb2","Pb1","Pb2","Pb3","Pb4","Pb5","Pb6","Pb7","Pb8","An1","An2","Rn","Cn1","Cn2","Dn","Tn1","Tn2","Pn1","Pn2","Pn3","Pn4","Pn5","Pn6","Pn7","Pn8",null,null,null,null,null,null,null,null,null,null,null,null,1,2,3,4,5,6,7,8]
[null,null,{"$f":"INDEX(TablaIdiomas[],23,miIdioma)","v":"Autor del blog:"},null,"Pedro Wave",null,"Learn Chess with Excel | #ExcelPedroWave"]
[null,null,{"$f":"INDEX(TablaIdiomas[],24,miIdioma)","v":"Canal de YouTube:"},null,"Pedro Wave",null,"Ajedrez en Excel - YouTube | #ExcelPedroWave",null,null,null,null,null,null,null,null,null,null,null,{"$f":"INDEX(TablaIdiomas[],8,miIdioma)","v":"Movimiento"},{"$f":"INDEX(TablaIdiomas[],46,miIdioma)","v":"Celda"},{"$f":"INDEX(TablaIdiomas[],47,miIdioma)","v":"Columna"},{"$f":"INDEX(TablaIdiomas[],48,miIdioma)","v":"Serie"},null,null,null,null,null,null,null,null,null,null,null,null,null,null,null,null,null,null,null,null,"Vacía",null,{"$f":"VLOOKUP(\"Piezas Blancas\",TablaIdiomas[],miIdioma,FALSE)","v":"Piezas Blancas"},null,null,null,null,null,null,null,null,null,null,null,null,null,null,null,{"$f":"VLOOKUP(\"Piezas Negras\",TablaIdiomas[],miIdioma,FALSE)","v":"Piezas Negras"}]
[null,null,{"$f":"INDEX(TablaIdiomas[],25,miIdioma)","v":"Idea original de:"},null,"Daniel Ferry",null,"Excel 2007 Chess Game Viewer - Excel Hero Blog",null,null,null,null,null,null,null,null,null,null,null,"a",{"$f":"miPosA","v":0},{"$f":"IFERROR(--LEFT($T16,1),0)","v":0},{"$f":"IF(Tipo_Movimiento=1,\"Serie\" & RIGHT($T16,1) & $S16,\"\")","v":"Serie0a"},null,null,null,null,null,null,null,null,null,null,null,null,null,null,null,null,null,null,null,null,null,{"$f":"INDEX(TablaIdiomas[],67,miIdioma)","v":"Vacía"}]
[null,null,{"$f":"INDEX(TablaIdiomas[],26,miIdioma)","v":"Imagen piezas ajedrez:"},null,"Maurizio Monge",null,"Category:SVG chess pieces/Maurizio Monge - Wikimedia Commons",null,null,null,null,null,null,null,null,null,null,null,"b",{"$f":"miPosB","v":0},{"$f":"IFERROR(--LEFT($T17,1),0)","v":0},{"$f":"IF(Tipo_Movimiento=1,\"Serie\" & RIGHT($T17,1) & $S17,\"\")","v":"Serie0b"},null,null,null,null,null,null,null,null,null,null,null,null,null,null,null,null,null,null,null,null,null,{"$f":"INDEX(TablaIdiomas[],68,miIdioma)","v":"Reyes"},null,null,51,null,null,null,null,null,null,null,null,null,null,null,null,null,null,null,58]
[null,null,{"$f":"INDEX(TablaIdiomas[],136,miIdioma)","v":"COPYRIGHT:"},null,null,null,"Creative Commons — Atribución-NoComercial-CompartirIgual 3.0 No portada",null,null,null,null,null,null,null,null,null,null,null,null,null,null,null,null,null,null,null,null,null,null,null,null,null,null,null,null,null,null,null,null,null,null,null,null,{"$f":"INDEX(TablaIdiomas[],69,miIdioma)","v":"Torres"},null,null,51,null,null,null,11,81,null,null,null,null,null,null,null,null,null,null,58,null,null,null,18,88]
[null,null,null,null,null,null,null,null,null,null,null,null,null,null,null,null,null,null,null,null,null,null,null,null,null,null,null,null,null,null,null,null,null,null,null,null,null,null,null,null,null,null,null,{"$f":"INDEX(TablaIdiomas[],70,miIdioma)","v":"Alfiles"},31,61,51,null,null,41,null,null,null,null,null,null,null,null,null,null,38,68,58,null,null,48]
[null,null,"#",{"$f":"INDEX(TablaIdiomas[],46,miIdioma)","v":"Celda"},{"$f":"INDEX(TablaIdiomas[],61,miIdioma)","v":"Aleatorio"},{"$f":"INDEX(TablaIdiomas[],62,miIdioma)","v":"Número"},{"$f":"INDEX(TablaIdiomas[],51,miIdioma)","v":"Casilla"},{"$f":"INDEX(TablaIdiomas[],63,miIdioma)","v":"Color1"},{"$f":"INDEX(TablaIdiomas[],64,miIdioma)","v":"Color2"},{"$f":"INDEX(TablaIdiomas[],70,miIdioma)","v":"Alfiles"},{"$f":"INDEX(TablaIdiomas[],66,miIdioma)","v":"Piezas"},null,null,null,null,null,null,null,{"$f":"INDEX(TablaIdiomas[],49,miIdioma)","v":"Valor X"},{"$f":"INDEX(TablaIdiomas[],50,miIdioma)","v":"Valor Y"},{"$f":"INDEX(TablaIdiomas[],51,miIdioma)","v":"Casilla"},{"$f":"INDEX(TablaIdiomas[],52,miIdioma)","v":"Serie Pieza"},{"$f":"INDEX(TablaIdiomas[],53,miIdioma)","v":"Color"},null,null,null,null,null,null,null,null,null,null,null,null,null,null,null,null,null,null,null,null,{"$f":"INDEX(TablaIdiomas[],71,miIdioma)","v":"Damas"},null,null,51,null,null,41,null,null,null,null,null,null,null,null,null,null,null,null,58,null,null,48]
[null,null,1,11,{"$f":"RAND()","v":0.9335349548408044},{"$f":"_xlfn.RANK.EQ(Series!$E21,Series!$E$21:$E$84,0)","v":11},{"$f":"INDEX(Series!$D$21:$D$84,MATCH(Series!$F21,Series!$C$21:$C$84,0))","v":23},1,{"$f":"INDEX(Series!$H$21:$H$84,MATCH(Series!$G21,Series!$D$21:$D$84,0))","v":0},{"$f":"SUBSTITUTE(SUBSTITUTE(Series!$G21,51,\"\"),58,\"\")","v":"23"},{"$f":"SUBSTITUTE(SUBSTITUTE(Series!$G21,51,\"\"),58,\"\")","v":"23"},null,null,null,null,null,null,null,0,8,{"$f":"10*valX+valY","v":8},{"$f":"IFERROR(INDEX(misSeriesPiezas,MATCH(miCasilla,misPosicionesNuevas,0)),\"\")","v":""},{"$f":"IF(LEFT(miPiezaColor)=MID(miSeriePieza,2,1),1,0)","v":0},null,null,null,null,null,null,null,null,null,null,null,null,null,null,null,null,null,null,null,null,{"$f":"INDEX(TablaIdiomas[],72,miIdioma)","v":"Caballos"},null,null,51,21,71,null,null,null,null,null,null,null,null,null,null,null,null,null,58,28,78]
[null,null,2,12,0.50729516237043015,{"$f":"_xlfn.RANK.EQ(Series!$E22,Series!$E$21:$E$84,0)","v":40},{"$f":"INDEX(Series!$D$21:$D$84,MATCH(Series!$F22,Series!$C$21:$C$84,0))","v":58},0,{"$f":"INDEX(Series!$H$21:$H$84,MATCH(Series!$G22,Series!$D$21:$D$84,0))","v":0},{"$f":"SUBSTITUTE(SUBSTITUTE(IF(I21<>Series!$I22,Series!$G22,SMALL(IF(Series!$I$21:$I$84<>I21,Series!$G$21:$G$84,99),10)),51,\"\"),58,\"\")","v":"33"},{"$f":"SUBSTITUTE(SUBSTITUTE(Series!$G22,51,\"\"),58,\"\")","v":""},null,null,null,null,null,null,null,null,null,null,null,null,null,null,null,null,null,null,null,null,null,null,null,null,null,null,null,null,null,null,null,null,{"$f":"INDEX(TablaIdiomas[],73,miIdioma)","v":"Peones"},null,null,51,null,null,null,null,null,12,22,32,42,52,62,72,82,null,null,58,null,null,null,null,null,17,27,37,47,57,67,77,87]
[null,null,3,13,0.93410234809550674,{"$f":"_xlfn.RANK.EQ(Series!$E23,Series!$E$21:$E$84,0)","v":10},{"$f":"INDEX(Series!$D$21:$D$84,MATCH(Series!$F23,Series!$C$21:$C$84,0))","v":22},1,{"$f":"INDEX(Series!$H$21:$H$84,MATCH(Series!$G23,Series!$D$21:$D$84,0))","v":1},{"$f":"SUBSTITUTE(SUBSTITUTE(Series!$G23,51,\"\"),58,\"\")","v":"22"},{"$f":"SUBSTITUTE(SUBSTITUTE(Series!$G23,51,\"\"),58,\"\")","v":"22"},null,null,null,null,null,null,null,null,null,null,null,null,null,null,null,null,null,null,null,null,null,null,null,null,null,null,null,null,null,null,null,null,{"$f":"INDEX(TablaIdiomas[],74,miIdioma)","v":"Captura al paso"},null,null,51,null,null,null,null,null,null,null,null,45,52,null,null,null,null,null,58,null,null,null,null,null,null,null,null,null,57,64]
[null,null,4,14,0.98463357235236482,{"$f":"_xlfn.RANK.EQ(Series!$E24,Series!$E$21:$E$84,0)","v":3},{"$f":"INDEX(Series!$D$21:$D$84,MATCH(Series!$F24,Series!$C$21:$C$84,0))","v":13},0,{"$f":"INDEX(Series!$H$21:$H$84,MATCH(Series!$G24,Series!$D$21:$D$84,0))","v":1},{"$f":"SUBSTITUTE(SUBSTITUTE(IF(I23<>Series!$I24,Series!$G24,LARGE(IF(Series!$I$21:$I$84<>I23,Series!$G$21:$G$84,0),10)),51,\"\"),58,\"\")","v":"65"},{"$f":"SUBSTITUTE(SUBSTITUTE(Series!$G24,51,\"\"),58,\"\")","v":"13"},null,null,null,null,null,null,null,{"$f":"INDEX(TablaIdiomas[],165,miIdioma)","v":"Pieza"},{"$f":"INDEX(TablaIdiomas[],52,miIdioma)","v":"Serie Pieza"},{"$f":"INDEX(TablaIdiomas[],54,miIdioma)","v":"Serie Captura"},null,null,null,null,null,null,null,null,null,null,null,null,null,null,null,null,null,null,null,null,null,null,{"$f":"INDEX(TablaIdiomas[],75,miIdioma)","v":"Enroque"},null,null,51,null,null,41,11,81,null,null,null,null,null,null,null,null,null,null,58,null,null,48,18,88]
[null,null,5,15,6.0609179395293089E-2,{"$f":"_xlfn.RANK.EQ(Series!$E25,Series!$E$21:$E$84,0)","v":62},{"$f":"INDEX(Series!$D$21:$D$84,MATCH(Series!$F25,Series!$C$21:$C$84,0))","v":86},1,{"$f":"INDEX(Series!$H$21:$H$84,MATCH(Series!$G25,Series!$D$21:$D$84,0))","v":1},null,null,null,null,null,null,null,null,null,null,{"$f":"IFERROR(MATCH(miPiezaMovida,misSeriesPiezas,0),0)","v":0},{"$f":"IF(IFERROR(MATCH(miSeriePieza,misSeriesPiezas,0),0)=miSeriePos,0,IFERROR(MATCH(miSeriePieza,misSeriesPiezas,0),0))","v":0},null,null,null,null,null,null,null,null,null,null,null,null,null,null,null,null,null,null,null,null,null,null,{"$f":"INDEX(TablaIdiomas[],76,miIdioma)","v":"Promoción de peón"},null,null,56,null,null,null,null,null,17,27,37,47,57,67,77,87,null,null,53,null,null,null,null,null,12,22,32,42,52,62,72,82]
[null,null,6,16,0.8069500001245129,{"$f":"_xlfn.RANK.EQ(Series!$E26,Series!$E$21:$E$84,0)","v":19},{"$f":"INDEX(Series!$D$21:$D$84,MATCH(Series!$F26,Series!$C$21:$C$84,0))","v":33},0,{"$f":"INDEX(Series!$H$21:$H$84,MATCH(Series!$G26,Series!$D$21:$D$84,0))","v":1},null,null,null,null,null,null,null,null,{"$f":"INDEX(TablaIdiomas[],55,miIdioma)","v":"Mover"},null,"X","Y",null,null,null,null,null,null,null,null,null,null,null,null,null,null,null,null,null,null,null,null,null,null,{"$f":"INDEX(TablaIdiomas[],77,miIdioma)","v":"Sin orden"},{"$f":"TRANSPOSE($G$21:$G$52)","v":23},58,22,13,86,33,15,56,85,55,12,43,18,53,74,42,62,54,84,75,27,65,45,77,57,26,72,82,88,52,34,66]
[null,null,7,17,0.96614911414116655,{"$f":"_xlfn.RANK.EQ(Series!$E27,Series!$E$21:$E$84,0)","v":5},{"$f":"INDEX(Series!$D$21:$D$84,MATCH(Series!$F27,Series!$C$21:$C$84,0))","v":15},1,{"$f":"INDEX(Series!$H$21:$H$84,MATCH(Series!$G27,Series!$D$21:$D$84,0))","v":1},null,null,null,null,null,null,null,null,"a",null,8,4.5,null,null,null,null,null,null,null,null,null,null,null,null,null,null,null,null,null,null,null,null,null,null,{"$f":"INDEX(TablaIdiomas[],78,miIdioma)","v":"Jaque al rey"},74,null,46,45,null,68,53,null,null,null,null,null,null,null,null,null,null,null,16]
[null,null,8,18,0.54401566790455969,{"$f":"_xlfn.RANK.EQ(Series!$E28,Series!$E$21:$E$84,0)","v":38},{"$f":"INDEX(Series!$D$21:$D$84,MATCH(Series!$F28,Series!$C$21:$C$84,0))","v":56},0,{"$f":"INDEX(Series!$H$21:$H$84,MATCH(Series!$G28,Series!$D$21:$D$84,0))","v":0},null,null,null,null,null,null,null,null,"b",null,6,6.5,null,null,null,null,null,null,null,null,null,null,null,null,null,null,null,null,null,null,null,null,null,null,{"$f":"INDEX(TablaIdiomas[],79,miIdioma)","v":"Rey ahogado"},null,null,46,45,null,null,23,null,null,null,null,null,null,null,null,null,null,null,17,null,null,null,null,null,null,null,null,47]
[null,null,9,21,6.149675893254325E-2,{"$f":"_xlfn.RANK.EQ(Series!$E29,Series!$E$21:$E$84,0)","v":61},{"$f":"INDEX(Series!$D$21:$D$84,MATCH(Series!$F29,Series!$C$21:$C$84,0))","v":85},0,{"$f":"INDEX(Series!$H$21:$H$84,MATCH(Series!$G29,Series!$D$21:$D$84,0))","v":0},null,null,null,null,null,null,null,null,{"$f":"INDEX(TablaIdiomas[],56,miIdioma)","v":"Coordenadas"},{"$f":"CHOOSE(LEFT(IF(miCasilla>0,miCasilla,miPosB)),\"a\",\"b\",\"c\",\"d\",\"e\",\"f\",\"g\",\"h\") & RIGHT(IF(miCasilla>0,miCasilla,miPosB))","v":"h8"},5.9999999999999982,6.5000000000000018,null,null,null,null,null,null,null,null,null,null,null,null,null,null,null,null,null,null,null,null,null,null,{"$f":"INDEX(TablaIdiomas[],80,miIdioma)","v":"Inicial"},31,61,51,21,71,41,11,81,12,22,32,42,52,62,72,82,38,68,58,28,78,48,18,88,17,27,37,47,57,67,77,87]
[null,null,10,22,0.5681052565577932,{"$f":"_xlfn.RANK.EQ(Series!$E30,Series!$E$21:$E$84,0)","v":37},{"$f":"INDEX(Series!$D$21:$D$84,MATCH(Series!$F30,Series!$C$21:$C$84,0))","v":55},1,{"$f":"INDEX(Series!$H$21:$H$84,MATCH(Series!$G30,Series!$D$21:$D$84,0))","v":1},null,null,null,null,null,null,null,null,{"$f":"INDEX(TablaIdiomas[],33,miIdioma)","v":"Algebraica"},{"$f":"IF(LEFT(miPiezaMovida)=\"P\",IF($S$31=\"\",SUBSTITUTE(CHOOSE(LEFT(miPosA),\"a\",\"b\",\"c\",\"d\",\"e\",\"f\",\"g\",\"h\"),LEFT(miPosCoordenadas),\"\"),\"\"),LEFT(miPiezaMovida))&$S$31&miPosComida&miPosCoordenadas","v":"xh8"},"x"]
[null,null,11,23,0.99163638090422257,{"$f":"_xlfn.RANK.EQ(Series!$E31,Series!$E$21:$E$84,0)","v":2},{"$f":"INDEX(Series!$D$21:$D$84,MATCH(Series!$F31,Series!$C$21:$C$84,0))","v":12},0,{"$f":"INDEX(Series!$H$21:$H$84,MATCH(Series!$G31,Series!$D$21:$D$84,0))","v":0},null,null,null,null,null,null,null,null,{"$f":"INDEX(TablaIdiomas[],57,miIdioma)","v":"Desambiguación"},{"$f":"SUBSTITUTE(IF(OR(miPiezaAmbigua=0,miEnroqueT=1),\"\",IF(AND(LEFT(miPosA)<>LEFT(miPiezaAmbigua),LEFT(miPosA)<>LEFT(miPosB)),CHOOSE(LEFT(miPosA),\"a\",\"b\",\"c\",\"d\",\"e\",\"f\",\"g\",\"h\"),RIGHT(miPosA))),LEFT(miPosCoordenadas),\"\")","v":""},null,null,null,null,null,null,null,null,null,null,null,null,null,null,null,null,null,null,null,null,null,null,null,null,{"$f":"INDEX(TablaIdiomas[],81,miIdioma)","v":"Posición anterior"}]
[null,null,12,24,0.6977754576317502,{"$f":"_xlfn.RANK.EQ(Series!$E32,Series!$E$21:$E$84,0)","v":27},{"$f":"INDEX(Series!$D$21:$D$84,MATCH(Series!$F32,Series!$C$21:$C$84,0))","v":43},1,{"$f":"INDEX(Series!$H$21:$H$84,MATCH(Series!$G32,Series!$D$21:$D$84,0))","v":0},null,null,null,null,null,null,null,null,null,{"$f":"INDEX(TablaIdiomas[],59,miIdioma)","v":"Corona"},{"$f":"INDEX(TablaIdiomas[],174,miIdioma)","v":"Color blanco"},{"$f":"INDEX(TablaPiezas[],2,miIdioma)","v":"D"},{"$f":"INDEX(TablaPiezas[],3,miIdioma)","v":"T"},{"$f":"INDEX(TablaPiezas[],4,miIdioma)","v":"A"},{"$f":"INDEX(TablaPiezas[],5,miIdioma)","v":"C"},{"$f":"INDEX(TablaIdiomas[],60,miIdioma)","v":"Promo"}]
[null,null,13,25,0.9532743066787045,{"$f":"_xlfn.RANK.EQ(Series!$E33,Series!$E$21:$E$84,0)","v":8},{"$f":"INDEX(Series!$D$21:$D$84,MATCH(Series!$F33,Series!$C$21:$C$84,0))","v":18},0,{"$f":"INDEX(Series!$H$21:$H$84,MATCH(Series!$G33,Series!$D$21:$D$84,0))","v":0},null,null,null,null,null,null,null,null,{"$f":"INDEX(TablaIdiomas[],58,miIdioma)","v":"Promoción de peón"},{"$f":"IF(AND(LEFT(miPiezaMovida)=\"P\",RIGHT(miPosB)=IF($T$33,\"8\",\"1\")),1,0)","v":0},{"$f":"MID(miPiezaMovida,2,1)=INDEX(TablaIdiomas[],172,miIdioma)","v":false},{"$f":"IF($T$33,IF($AX$14=\"\",$AX$4,\"\"),IF($BN$14=\"\",$BN$4,\"\"))","v":"Dn"},{"$f":"IF($T$33,IF(miInicioTb1=\"\",$AY$4,IF(miInicioTb2=\"\",$AZ$4,\"\")),IF(miInicioTn1=\"\",$BO$4,IF(miInicioTn2=\"\",$BP$4,\"\")))","v":"Tn1"},{"$f":"IF($T$33,IF($AS$14=\"\",$AS$4,IF($AT$14=\"\",$AT$4,\"\")),IF($BI$14=\"\",$BI$4,IF($BJ$14=\"\",$BJ$4,\"\")))","v":"An1"},{"$f":"IF($T$33,IF($AV$14=\"\",$AV$4,IF($AW$14=\"\",$AW$4,\"\")),IF($BL$14=\"\",$BL$4,IF($BM$14=\"\",$BM$4,\"\")))","v":"Cn1"},{"$f":"IF($S$33=1,SUBSTITUTE(TRIM(U33&\" \"&V33&\" \"&W33&\" \"&X33),\" \",\"-\"),\"\")","v":""}]
[null,null,14,26,0.58678113881350702,{"$f":"_xlfn.RANK.EQ(Series!$E34,Series!$E$21:$E$84,0)","v":35},{"$f":"INDEX(Series!$D$21:$D$84,MATCH(Series!$F34,Series!$C$21:$C$84,0))","v":53},1,{"$f":"INDEX(Series!$H$21:$H$84,MATCH(Series!$G34,Series!$D$21:$D$84,0))","v":1},null,null,null,null,null,null,null,null,null,null,null,null,null,null,null,null,null,null,null,null,null,null,null,null,null,null,null,null,null,null,null,null,null,null,null,{"$f":"INDEX(TablaIdiomas[],40,miIdioma)","v":"Piezas blancas - Gráfico de líneas con marcadores pero sin líneas"},null,null,null,null,null,null,null,null,null,null,null,null,null,null,null,{"$f":"INDEX(TablaIdiomas[],41,miIdioma)","v":"Piezas negras - Gráfico de líneas con marcadores pero sin líneas"}]
[null,null,15,27,0.2532672703003096,{"$f":"_xlfn.RANK.EQ(Series!$E35,Series!$E$21:$E$84,0)","v":52},{"$f":"INDEX(Series!$D$21:$D$84,MATCH(Series!$F35,Series!$C$21:$C$84,0))","v":74},0,{"$f":"INDEX(Series!$H$21:$H$84,MATCH(Series!$G35,Series!$D$21:$D$84,0))","v":0},null,null,null,null,null,null,null,null,null,null,null,null,null,null,null,null,null,null,null,null,null,null,null,null,null,null,null,null,null,null,null,null,null,null,null,{"$f":"AS4","v":"Ab1"},{"$f":"AT4","v":"Ab2"},"Rb","Cb1","Cb2","Db","Tb1","Tb2","Pb1","Pb2","Pb3","Pb4","Pb5","Pb6","Pb7","Pb8","An1","An2","Rn","Cn1","Cn2","Dn","Tn1","Tn2","Pn1","Pn2","Pn3","Pn4","Pn5","Pn6","Pn7","Pn8"]
[null,null,16,28,0.71132965816618199,{"$f":"_xlfn.RANK.EQ(Series!$E36,Series!$E$21:$E$84,0)","v":26},{"$f":"INDEX(Series!$D$21:$D$84,MATCH(Series!$F36,Series!$C$21:$C$84,0))","v":42},1,{"$f":"INDEX(Series!$H$21:$H$84,MATCH(Series!$G36,Series!$D$21:$D$84,0))","v":1},null,null,null,null,null,null,null,null,null,null,null,null,null,null,null,null,null,null,null,null,null,null,null,null,null,null,null,null,null,null,null,null,null,null,1,{"$f":"IF($AR36=INT(AS$38/10),MOD(AS$38,10)-0.5,NA())","v":5.5},{"$f":"IF($AR36=INT(AT$38/10),MOD(AT$38,10)-0.5,NA())","v":{"$error":"#N/A"}},{"$error":"#N/A"},4.5,{"$error":"#N/A"},7.5,6.5,{"$error":"#N/A"},3.5,{"$error":"#N/A"},2.5,{"$error":"#N/A"},1.5,{"$error":"#N/A"},0.5,{"$error":"#N/A"},5.5,{"$f":"IF($AR36=INT(BJ$38/10),MOD(BJ$38,10)-0.5,NA())","v":{"$error":"#N/A"}},{"$error":"#N/A"},4.5,{"$error":"#N/A"},7.5,6.5,{"$error":"#N/A"},3.5,{"$error":"#N/A"},2.5,{"$error":"#N/A"},1.5,{"$error":"#N/A"},0.5,{"$error":"#N/A"}]
[null,null,17,31,0.49459269419394414,{"$f":"_xlfn.RANK.EQ(Series!$E37,Series!$E$21:$E$84,0)","v":42},{"$f":"INDEX(Series!$D$21:$D$84,MATCH(Series!$F37,Series!$C$21:$C$84,0))","v":62},1,{"$f":"INDEX(Series!$H$21:$H$84,MATCH(Series!$G37,Series!$D$21:$D$84,0))","v":1},null,null,null,null,null,null,null,null,null,null,null,null,null,null,null,null,null,null,null,null,null,null,null,null,null,null,null,null,null,null,null,null,null,null,2,{"$f":"IF($AR37=INT(AS$38/10),MOD(AS$38,10)-0.5,NA())","v":{"$error":"#N/A"}},5.5,7.5,{"$error":"#N/A"},4.5,{"$error":"#N/A"},{"$error":"#N/A"},6.5,{"$error":"#N/A"},3.5,{"$error":"#N/A"},2.5,{"$error":"#N/A"},1.5,{"$error":"#N/A"},{"$f":"IF($AR37=INT(BH$38/10),MOD(BH$38,10)-0.5,NA())","v":0.5},{"$error":"#N/A"},5.5,7.5,{"$error":"#N/A"},4.5,{"$error":"#N/A"},{"$error":"#N/A"},6.5,{"$error":"#N/A"},3.5,{"$error":"#N/A"},2.5,{"$error":"#N/A"},1.5,{"$error":"#N/A"},0.5]
[null,null,18,32,0.5867411574735556,{"$f":"_xlfn.RANK.EQ(Series!$E38,Series!$E$21:$E$84,0)","v":36},{"$f":"INDEX(Series!$D$21:$D$84,MATCH(Series!$F38,Series!$C$21:$C$84,0))","v":54},0,{"$f":"INDEX(Series!$H$21:$H$84,MATCH(Series!$G38,Series!$D$21:$D$84,0))","v":0},null,null,null,null,null,null,null,null,null,null,null,null,null,null,null,null,null,null,null,null,null,null,null,null,null,null,null,null,null,null,null,null,null,null,0,{"$f":"IF(OR(AS$14<>\"\",AND(miPiezaMovida=AS$35,Valor_Moviendo=1)),0,AS$39)","v":16},26,28,15,25,18,17,27,14,24,13,23,12,22,11,21,16,26,28,15,25,18,17,27,14,24,13,23,12,22,11,21]
[null,null,19,33,8.0768227586428099E-2,{"$f":"_xlfn.RANK.EQ(Series!$E39,Series!$E$21:$E$84,0)","v":60},{"$f":"INDEX(Series!$D$21:$D$84,MATCH(Series!$F39,Series!$C$21:$C$84,0))","v":84},1,{"$f":"INDEX(Series!$H$21:$H$84,MATCH(Series!$G39,Series!$D$21:$D$84,0))","v":1},null,null,null,null,null,null,null,null,null,null,null,null,null,null,null,null,null,null,null,null,null,null,null,null,null,null,null,null,null,null,null,null,null,null,{"$f":"INDEX(TablaIdiomas[],84,miIdioma)","v":"Capturas"},16,26,28,15,25,18,17,27,14,24,13,23,12,22,11,21,16,26,28,15,25,18,17,27,14,24,13,23,12,22,11,21]
[null,null,20,34,0.23536960114553529,{"$f":"_xlfn.RANK.EQ(Series!$E40,Series!$E$21:$E$84,0)","v":53},{"$f":"INDEX(Series!$D$21:$D$84,MATCH(Series!$F40,Series!$C$21:$C$84,0))","v":75},0,{"$f":"INDEX(Series!$H$21:$H$84,MATCH(Series!$G40,Series!$D$21:$D$84,0))","v":1}]
[null,null,21,35,0.90262496880558496,{"$f":"_xlfn.RANK.EQ(Series!$E41,Series!$E$21:$E$84,0)","v":15},{"$f":"INDEX(Series!$D$21:$D$84,MATCH(Series!$F41,Series!$C$21:$C$84,0))","v":27},1,{"$f":"INDEX(Series!$H$21:$H$84,MATCH(Series!$G41,Series!$D$21:$D$84,0))","v":0}]
[null,null,22,36,0.41076767538064196,{"$f":"_xlfn.RANK.EQ(Series!$E42,Series!$E$21:$E$84,0)","v":45},{"$f":"INDEX(Series!$D$21:$D$84,MATCH(Series!$F42,Series!$C$21:$C$84,0))","v":65},0,{"$f":"INDEX(Series!$H$21:$H$84,MATCH(Series!$G42,Series!$D$21:$D$84,0))","v":0}]
[null,null,23,37,0.67691263255969525,{"$f":"_xlfn.RANK.EQ(Series!$E43,Series!$E$21:$E$84,0)","v":29},{"$f":"INDEX(Series!$D$21:$D$84,MATCH(Series!$F43,Series!$C$21:$C$84,0))","v":45},1,{"$f":"INDEX(Series!$H$21:$H$84,MATCH(Series!$G43,Series!$D$21:$D$84,0))","v":0}]
[null,null,24,38,0.21726594784947595,{"$f":"_xlfn.RANK.EQ(Series!$E44,Series!$E$21:$E$84,0)","v":55},{"$f":"INDEX(Series!$D$21:$D$84,MATCH(Series!$F44,Series!$C$21:$C$84,0))","v":77},0,{"$f":"INDEX(Series!$H$21:$H$84,MATCH(Series!$G44,Series!$D$21:$D$84,0))","v":1}]
[null,null,25,41,0.54168507753942396,{"$f":"_xlfn.RANK.EQ(Series!$E45,Series!$E$21:$E$84,0)","v":39},{"$f":"INDEX(Series!$D$21:$D$84,MATCH(Series!$F45,Series!$C$21:$C$84,0))","v":57},0,{"$f":"INDEX(Series!$H$21:$H$84,MATCH(Series!$G45,Series!$D$21:$D$84,0))","v":1}]
[null,null,26,42,0.90455548213112646,{"$f":"_xlfn.RANK.EQ(Series!$E46,Series!$E$21:$E$84,0)","v":14},{"$f":"INDEX(Series!$D$21:$D$84,MATCH(Series!$F46,Series!$C$21:$C$84,0))","v":26},1,{"$f":"INDEX(Series!$H$21:$H$84,MATCH(Series!$G46,Series!$D$21:$D$84,0))","v":1}]
[null,null,27,43,0.30209448992586074,{"$f":"_xlfn.RANK.EQ(Series!$E47,Series!$E$21:$E$84,0)","v":50},{"$f":"INDEX(Series!$D$21:$D$84,MATCH(Series!$F47,Series!$C$21:$C$84,0))","v":72},0,{"$f":"INDEX(Series!$H$21:$H$84,MATCH(Series!$G47,Series!$D$21:$D$84,0))","v":0}]
[null,null,28,44,9.401480451476818E-2,{"$f":"_xlfn.RANK.EQ(Series!$E48,Series!$E$21:$E$84,0)","v":58},{"$f":"INDEX(Series!$D$21:$D$84,MATCH(Series!$F48,Series!$C$21:$C$84,0))","v":82},1,{"$f":"INDEX(Series!$H$21:$H$84,MATCH(Series!$G48,Series!$D$21:$D$84,0))","v":1}]
[null,null,29,45,2.1987192761949603E-2,{"$f":"_xlfn.RANK.EQ(Series!$E49,Series!$E$21:$E$84,0)","v":64},{"$f":"INDEX(Series!$D$21:$D$84,MATCH(Series!$F49,Series!$C$21:$C$84,0))","v":88},0,{"$f":"INDEX(Series!$H$21:$H$84,MATCH(Series!$G49,Series!$D$21:$D$84,0))","v":1}]
[null,null,30,46,0.58737527658135069,{"$f":"_xlfn.RANK.EQ(Series!$E50,Series!$E$21:$E$84,0)","v":34},{"$f":"INDEX(Series!$D$21:$D$84,MATCH(Series!$F50,Series!$C$21:$C$84,0))","v":52},1,{"$f":"INDEX(Series!$H$21:$H$84,MATCH(Series!$G50,Series!$D$21:$D$84,0))","v":0}]
[null,null,31,47,0.79564081845571122,{"$f":"_xlfn.RANK.EQ(Series!$E51,Series!$E$21:$E$84,0)","v":20},{"$f":"INDEX(Series!$D$21:$D$84,MATCH(Series!$F51,Series!$C$21:$C$84,0))","v":34},0,{"$f":"INDEX(Series!$H$21:$H$84,MATCH(Series!$G51,Series!$D$21:$D$84,0))","v":0}]
[null,null,32,48,0.38124156836651835,{"$f":"_xlfn.RANK.EQ(Series!$E52,Series!$E$21:$E$84,0)","v":46},{"$f":"INDEX(Series!$D$21:$D$84,MATCH(Series!$F52,Series!$C$21:$C$84,0))","v":66},1,{"$f":"INDEX(Series!$H$21:$H$84,MATCH(Series!$G52,Series!$D$21:$D$84,0))","v":1}]
[null,null,33,51,{"$f":"RAND()","v":0.3748815792918867},{"$f":"_xlfn.RANK.EQ(Series!$E53,Series!$E$21:$E$84,0)","v":47},{"$f":"INDEX(Series!$D$21:$D$84,MATCH(Series!$F53,Series!$C$21:$C$84,0))","v":67},1,{"$f":"INDEX(Series!$H$21:$H$84,MATCH(Series!$G53,Series!$D$21:$D$84,0))","v":0}]
[null,null,34,52,0.95359076771134421,{"$f":"_xlfn.RANK.EQ(Series!$E54,Series!$E$21:$E$84,0)","v":7},{"$f":"INDEX(Series!$D$21:$D$84,MATCH(Series!$F54,Series!$C$21:$C$84,0))","v":17},0,{"$f":"INDEX(Series!$H$21:$H$84,MATCH(Series!$G54,Series!$D$21:$D$84,0))","v":1}]
[null,null,35,53,0.78539180743181058,{"$f":"_xlfn.RANK.EQ(Series!$E55,Series!$E$21:$E$84,0)","v":21},{"$f":"INDEX(Series!$D$21:$D$84,MATCH(Series!$F55,Series!$C$21:$C$84,0))","v":35},1,{"$f":"INDEX(Series!$H$21:$H$84,MATCH(Series!$G55,Series!$D$21:$D$84,0))","v":1}]
[null,null,36,54,0.20346970147480103,{"$f":"_xlfn.RANK.EQ(Series!$E56,Series!$E$21:$E$84,0)","v":56},{"$f":"INDEX(Series!$D$21:$D$84,MATCH(Series!$F56,Series!$C$21:$C$84,0))","v":78},0,{"$f":"INDEX(Series!$H$21:$H$84,MATCH(Series!$G56,Series!$D$21:$D$84,0))","v":0}]
[null,null,37,55,4.0263300613251674E-2,{"$f":"_xlfn.RANK.EQ(Series!$E57,Series!$E$21:$E$84,0)","v":63},{"$f":"INDEX(Series!$D$21:$D$84,MATCH(Series!$F57,Series!$C$21:$C$84,0))","v":87},1,{"$f":"INDEX(Series!$H$21:$H$84,MATCH(Series!$G57,Series!$D$21:$D$84,0))","v":0}]
[null,null,38,56,0.71754501191538733,{"$f":"_xlfn.RANK.EQ(Series!$E58,Series!$E$21:$E$84,0)","v":25},{"$f":"INDEX(Series!$D$21:$D$84,MATCH(Series!$F58,Series!$C$21:$C$84,0))","v":41},0,{"$f":"INDEX(Series!$H$21:$H$84,MATCH(Series!$G58,Series!$D$21:$D$84,0))","v":0}]
[null,null,39,57,0.22919921512862274,{"$f":"_xlfn.RANK.EQ(Series!$E59,Series!$E$21:$E$84,0)","v":54},{"$f":"INDEX(Series!$D$21:$D$84,MATCH(Series!$F59,Series!$C$21:$C$84,0))","v":76},1,{"$f":"INDEX(Series!$H$21:$H$84,MATCH(Series!$G59,Series!$D$21:$D$84,0))","v":0}]
[null,null,40,58,0.84138997467008958,{"$f":"_xlfn.RANK.EQ(Series!$E60,Series!$E$21:$E$84,0)","v":18},{"$f":"INDEX(Series!$D$21:$D$84,MATCH(Series!$F60,Series!$C$21:$C$84,0))","v":32},0,{"$f":"INDEX(Series!$H$21:$H$84,MATCH(Series!$G60,Series!$D$21:$D$84,0))","v":0}]
[null,null,41,61,0.73182140931830908,{"$f":"_xlfn.RANK.EQ(Series!$E61,Series!$E$21:$E$84,0)","v":24},{"$f":"INDEX(Series!$D$21:$D$84,MATCH(Series!$F61,Series!$C$21:$C$84,0))","v":38},0,{"$f":"INDEX(Series!$H$21:$H$84,MATCH(Series!$G61,Series!$D$21:$D$84,0))","v":0}]
[null,null,42,62,0.77516123313843166,{"$f":"_xlfn.RANK.EQ(Series!$E62,Series!$E$21:$E$84,0)","v":22},{"$f":"INDEX(Series!$D$21:$D$84,MATCH(Series!$F62,Series!$C$21:$C$84,0))","v":36},1,{"$f":"INDEX(Series!$H$21:$H$84,MATCH(Series!$G62,Series!$D$21:$D$84,0))","v":0}]
[null,null,43,63,0.97352058489301485,{"$f":"_xlfn.RANK.EQ(Series!$E63,Series!$E$21:$E$84,0)","v":4},{"$f":"INDEX(Series!$D$21:$D$84,MATCH(Series!$F63,Series!$C$21:$C$84,0))","v":14},0,{"$f":"INDEX(Series!$H$21:$H$84,MATCH(Series!$G63,Series!$D$21:$D$84,0))","v":0}]
[null,null,44,64,0.99892957701257157,{"$f":"_xlfn.RANK.EQ(Series!$E64,Series!$E$21:$E$84,0)","v":1},{"$f":"INDEX(Series!$D$21:$D$84,MATCH(Series!$F64,Series!$C$21:$C$84,0))","v":11},1,{"$f":"INDEX(Series!$H$21:$H$84,MATCH(Series!$G64,Series!$D$21:$D$84,0))","v":1}]
[null,null,45,65,0.48173635675766513,{"$f":"_xlfn.RANK.EQ(Series!$E65,Series!$E$21:$E$84,0)","v":43},{"$f":"INDEX(Series!$D$21:$D$84,MATCH(Series!$F65,Series!$C$21:$C$84,0))","v":63},0,{"$f":"INDEX(Series!$H$21:$H$84,MATCH(Series!$G65,Series!$D$21:$D$84,0))","v":0}]
[null,null,46,66,0.9436335895211565,{"$f":"_xlfn.RANK.EQ(Series!$E66,Series!$E$21:$E$84,0)","v":9},{"$f":"INDEX(Series!$D$21:$D$84,MATCH(Series!$F66,Series!$C$21:$C$84,0))","v":21},1,{"$f":"INDEX(Series!$H$21:$H$84,MATCH(Series!$G66,Series!$D$21:$D$84,0))","v":0}]
[null,null,47,67,0.61573515937705592,{"$f":"_xlfn.RANK.EQ(Series!$E67,Series!$E$21:$E$84,0)","v":32},{"$f":"INDEX(Series!$D$21:$D$84,MATCH(Series!$F67,Series!$C$21:$C$84,0))","v":48},0,{"$f":"INDEX(Series!$H$21:$H$84,MATCH(Series!$G67,Series!$D$21:$D$84,0))","v":1}]
[null,null,48,68,0.11860336819599071,{"$f":"_xlfn.RANK.EQ(Series!$E68,Series!$E$21:$E$84,0)","v":57},{"$f":"INDEX(Series!$D$21:$D$84,MATCH(Series!$F68,Series!$C$21:$C$84,0))","v":81},1,{"$f":"INDEX(Series!$H$21:$H$84,MATCH(Series!$G68,Series!$D$21:$D$84,0))","v":0}]
[null,null,49,71,0.85634698215273086,{"$f":"_xlfn.RANK.EQ(Series!$E69,Series!$E$21:$E$84,0)","v":17},{"$f":"INDEX(Series!$D$21:$D$84,MATCH(Series!$F69,Series!$C$21:$C$84,0))","v":31},1,{"$f":"INDEX(Series!$H$21:$H$84,MATCH(Series!$G69,Series!$D$21:$D$84,0))","v":1}]
[null,null,50,72,0.27076780235108755,{"$f":"_xlfn.RANK.EQ(Series!$E70,Series!$E$21:$E$84,0)","v":51},{"$f":"INDEX(Series!$D$21:$D$84,MATCH(Series!$F70,Series!$C$21:$C$84,0))","v":73},0,{"$f":"INDEX(Series!$H$21:$H$84,MATCH(Series!$G70,Series!$D$21:$D$84,0))","v":1}]
[null,null,51,73,0.3538127389790181,{"$f":"_xlfn.RANK.EQ(Series!$E71,Series!$E$21:$E$84,0)","v":48},{"$f":"INDEX(Series!$D$21:$D$84,MATCH(Series!$F71,Series!$C$21:$C$84,0))","v":68},1,{"$f":"INDEX(Series!$H$21:$H$84,MATCH(Series!$G71,Series!$D$21:$D$84,0))","v":1}]
[null,null,52,74,0.65836116293530456,{"$f":"_xlfn.RANK.EQ(Series!$E72,Series!$E$21:$E$84,0)","v":30},{"$f":"INDEX(Series!$D$21:$D$84,MATCH(Series!$F72,Series!$C$21:$C$84,0))","v":46},0,{"$f":"INDEX(Series!$H$21:$H$84,MATCH(Series!$G72,Series!$D$21:$D$84,0))","v":1}]
[null,null,53,75,0.47899909375574079,{"$f":"_xlfn.RANK.EQ(Series!$E73,Series!$E$21:$E$84,0)","v":44},{"$f":"INDEX(Series!$D$21:$D$84,MATCH(Series!$F73,Series!$C$21:$C$84,0))","v":64},1,{"$f":"INDEX(Series!$H$21:$H$84,MATCH(Series!$G73,Series!$D$21:$D$84,0))","v":1}]
[null,null,54,76,0.95887538582778364,{"$f":"_xlfn.RANK.EQ(Series!$E74,Series!$E$21:$E$84,0)","v":6},{"$f":"INDEX(Series!$D$21:$D$84,MATCH(Series!$F74,Series!$C$21:$C$84,0))","v":16},0,{"$f":"INDEX(Series!$H$21:$H$84,MATCH(Series!$G74,Series!$D$21:$D$84,0))","v":0}]
[null,null,55,77,0.3434904174033454,{"$f":"_xlfn.RANK.EQ(Series!$E75,Series!$E$21:$E$84,0)","v":49},{"$f":"INDEX(Series!$D$21:$D$84,MATCH(Series!$F75,Series!$C$21:$C$84,0))","v":71},1,{"$f":"INDEX(Series!$H$21:$H$84,MATCH(Series!$G75,Series!$D$21:$D$84,0))","v":1}]
[null,null,56,78,0.75473535190593966,{"$f":"_xlfn.RANK.EQ(Series!$E76,Series!$E$21:$E$84,0)","v":23},{"$f":"INDEX(Series!$D$21:$D$84,MATCH(Series!$F76,Series!$C$21:$C$84,0))","v":37},0,{"$f":"INDEX(Series!$H$21:$H$84,MATCH(Series!$G76,Series!$D$21:$D$84,0))","v":1}]
[null,null,57,81,0.60132662255653224,{"$f":"_xlfn.RANK.EQ(Series!$E77,Series!$E$21:$E$84,0)","v":33},{"$f":"INDEX(Series!$D$21:$D$84,MATCH(Series!$F77,Series!$C$21:$C$84,0))","v":51},0,{"$f":"INDEX(Series!$H$21:$H$84,MATCH(Series!$G77,Series!$D$21:$D$84,0))","v":1}]
[null,null,58,82,0.92705286639879292,{"$f":"_xlfn.RANK.EQ(Series!$E78,Series!$E$21:$E$84,0)","v":12},{"$f":"INDEX(Series!$D$21:$D$84,MATCH(Series!$F78,Series!$C$21:$C$84,0))","v":24},1,{"$f":"INDEX(Series!$H$21:$H$84,MATCH(Series!$G78,Series!$D$21:$D$84,0))","v":1}]
[null,null,59,83,0.68910589081998641,{"$f":"_xlfn.RANK.EQ(Series!$E79,Series!$E$21:$E$84,0)","v":28},{"$f":"INDEX(Series!$D$21:$D$84,MATCH(Series!$F79,Series!$C$21:$C$84,0))","v":44},0,{"$f":"INDEX(Series!$H$21:$H$84,MATCH(Series!$G79,Series!$D$21:$D$84,0))","v":1}]
[null,null,60,84,0.50585674036609551,{"$f":"_xlfn.RANK.EQ(Series!$E80,Series!$E$21:$E$84,0)","v":41},{"$f":"INDEX(Series!$D$21:$D$84,MATCH(Series!$F80,Series!$C$21:$C$84,0))","v":61},1,{"$f":"INDEX(Series!$H$21:$H$84,MATCH(Series!$G80,Series!$D$21:$D$84,0))","v":0}]
[null,null,61,85,8.7914781761215699E-2,{"$f":"_xlfn.RANK.EQ(Series!$E81,Series!$E$21:$E$84,0)","v":59},{"$f":"INDEX(Series!$D$21:$D$84,MATCH(Series!$F81,Series!$C$21:$C$84,0))","v":83},0,{"$f":"INDEX(Series!$H$21:$H$84,MATCH(Series!$G81,Series!$D$21:$D$84,0))","v":0}]
[null,null,62,86,0.63217499716958636,{"$f":"_xlfn.RANK.EQ(Series!$E82,Series!$E$21:$E$84,0)","v":31},{"$f":"INDEX(Series!$D$21:$D$84,MATCH(Series!$F82,Series!$C$21:$C$84,0))","v":47},1,{"$f":"INDEX(Series!$H$21:$H$84,MATCH(Series!$G82,Series!$D$21:$D$84,0))","v":0}]
[null,null,63,87,0.89857124332196192,{"$f":"_xlfn.RANK.EQ(Series!$E83,Series!$E$21:$E$84,0)","v":16},{"$f":"INDEX(Series!$D$21:$D$84,MATCH(Series!$F83,Series!$C$21:$C$84,0))","v":28},0,{"$f":"INDEX(Series!$H$21:$H$84,MATCH(Series!$G83,Series!$D$21:$D$84,0))","v":1}]
[null,null,64,88,0.90746076418783617,{"$f":"_xlfn.RANK.EQ(Series!$E84,Series!$E$21:$E$84,0)","v":13},{"$f":"INDEX(Series!$D$21:$D$84,MATCH(Series!$F84,Series!$C$21:$C$84,0))","v":25},1,{"$f":"INDEX(Series!$H$21:$H$84,MATCH(Series!$G84,Series!$D$21:$D$84,0))","v":0}]

{"sheet":"Rules","index":3,"n_rows":58,"n_cols":46,"rows_kept":58,"cut":false,"hidden":true,"merged":[]}
[{"$f":"INDEX(TablaPiezas[],3,miIdioma)","v":"T"},{"$f":"miTestPieza","v":0},{"$f":"miTestPos","v":0},{"$f":"IFERROR(MID(B1,2,1),\"\")","v":""},{"$f":"INDEX(TablaIdiomas[],IF(D1=INDEX(TablaIdiomas[],172,miIdioma),173,172),miIdioma)","v":"b"},null,{"$f":"INDEX(TablaPiezas[],4,miIdioma)","v":"A"},{"$f":"miTestPieza","v":0},{"$f":"miTestPos","v":0},{"$f":"IFERROR(MID(H1,2,1),\"\")","v":""},{"$f":"INDEX(TablaIdiomas[],IF(J1=INDEX(TablaIdiomas[],172,miIdioma),173,172),miIdioma)","v":"b"},null,{"$f":"D1","v":""},{"$f":"INDEX(TablaPiezas[],2,miIdioma)","v":"D"},null,{"$f":"INDEX(TablaPiezas[],1,miIdioma)","v":"R"},{"$f":"miTestPieza","v":0},{"$f":"miTestPos","v":0},{"$f":"IFERROR(MID(Q1,2,1),\"\")","v":""},{"$f":"INDEX(TablaIdiomas[],IF(S1=INDEX(TablaIdiomas[],172,miIdioma),173,172),miIdioma)","v":"b"},1,"Dn",null,{"$f":"INDEX(TablaPiezas[],5,miIdioma)","v":"C"},{"$f":"miTestPieza","v":0},{"$f":"miTestPos","v":0},{"$f":"IFERROR(MID(Y1,2,1),\"\")","v":""},{"$f":"INDEX(TablaIdiomas[],IF(AA1=INDEX(TablaIdiomas[],172,miIdioma),173,172),miIdioma)","v":"b"},null,{"$f":"INDEX(TablaPiezas[],6,miIdioma)","v":"P"},{"$f":"miTestPieza","v":0},{"$f":"miTestPos","v":0},{"$f":"IFERROR(MID(AE1,2,1),\"\")","v":""},{"$f":"INDEX(TablaIdiomas[],IF(AG1=INDEX(TablaIdiomas[],172,miIdioma),173,172),miIdioma)","v":"b"},null,{"$f":"INDEX(TablaPiezas[],3,miIdioma)","v":"T"},{"$f":"INDEX(TablaPiezas[],4,miIdioma)","v":"A"},{"$f":"INDEX(TablaPiezas[],2,miIdioma)","v":"D"},{"$f":"INDEX(TablaPiezas[],1,miIdioma)","v":"R"},{"$f":"INDEX(TablaPiezas[],5,miIdioma)","v":"C"},{"$f":"INDEX(TablaPiezas[],6,miIdioma)","v":"P"},null,null,{"$f":"INDEX(TablaIdiomas[],187,miIdioma)","v":"Vale"},{"$f":"INDEX(TablaIdiomas[],188,miIdioma)","v":"PosA"},{"$f":"INDEX(TablaIdiomas[],189,miIdioma)","v":"Ambiguo"}]
[{"$f":"INDEX(TablaIdiomas[],85,miIdioma)","v":"Suma"},{"$f":"INDEX(TablaIdiomas[],86,miIdioma)","v":"Nueva"},{"$f":"INDEX(TablaIdiomas[],87,miIdioma)","v":"Fuera"},{"$f":"INDEX(TablaIdiomas[],88,miIdioma)","v":"Contra"},{"$f":"INDEX(TablaIdiomas[],89,miIdioma)","v":"Válida"},null,{"$f":"INDEX(TablaIdiomas[],85,miIdioma)","v":"Suma"},{"$f":"INDEX(TablaIdiomas[],86,miIdioma)","v":"Nueva"},{"$f":"INDEX(TablaIdiomas[],87,miIdioma)","v":"Fuera"},{"$f":"INDEX(TablaIdiomas[],88,miIdioma)","v":"Contra"},{"$f":"INDEX(TablaIdiomas[],89,miIdioma)","v":"Válida"},null,{"$f":"INDEX(TablaIdiomas[],88,miIdioma)","v":"Contra"},{"$f":"INDEX(TablaIdiomas[],89,miIdioma)","v":"Válida"},null,{"$f":"INDEX(TablaIdiomas[],85,miIdioma)","v":"Suma"},{"$f":"INDEX(TablaIdiomas[],86,miIdioma)","v":"Nueva"},{"$f":"INDEX(TablaIdiomas[],87,miIdioma)","v":"Fuera"},{"$f":"INDEX(TablaIdiomas[],88,miIdioma)","v":"Contra"},{"$f":"INDEX(TablaIdiomas[],89,miIdioma)","v":"Válida"},{"$f":"INDEX(TablaIdiomas[],37,miIdioma)","v":"Test"},{"$f":"INDEX(TablaIdiomas[],90,miIdioma)","v":"Jaque"},null,{"$f":"INDEX(TablaIdiomas[],85,miIdioma)","v":"Suma"},{"$f":"INDEX(TablaIdiomas[],86,miIdioma)","v":"Nueva"},{"$f":"INDEX(TablaIdiomas[],87,miIdioma)","v":"Fuera"},{"$f":"INDEX(TablaIdiomas[],88,miIdioma)","v":"Contra"},{"$f":"INDEX(TablaIdiomas[],89,miIdioma)","v":"Válida"},null,{"$f":"INDEX(TablaIdiomas[],85,miIdioma)","v":"Suma"},{"$f":"INDEX(TablaIdiomas[],86,miIdioma)","v":"Nueva"},{"$f":"INDEX(TablaIdiomas[],87,miIdioma)","v":"Fuera"},{"$f":"INDEX(TablaIdiomas[],88,miIdioma)","v":"Contra"},{"$f":"INDEX(TablaIdiomas[],89,miIdioma)","v":"Válida"},null,null,null,null,null,null,null,{"$f":"IF(miMate=1,0,IFERROR(MATCH(LEFT(miTestPieza),$AJ$1:$AO$1,0),0))","v":0},{"$f":"COUNTIF(misJaques,\"=\" & LEFT(miTestPieza) & IF(MID(miTestPieza,2,1)=$D$1,$E$1,$D$1) & \"*\")","v":0},{"$f":"IF(miPromoción<>\"\",1,IF(COUNTIF(misMarcas,\"=?*\")=0,-1,IF(IFERROR(MATCH(miPosB,misJugadasVálidas,0),0)>0,1,0)))","v":-1},{"$f":"miPosA","v":0},{"$f":"MAX($AT$3:$AT$7)","v":0}]
[10,{"$f":"IF(OR(miTestPieza=0,miTestPos=0,miTestPos+A3>88),\"\",miTestPos+A3)","v":""},{"$f":"IF(B3=\"\",\"\",IF(OR(--LEFT(B3)>8,--RIGHT(B3)>8,--LEFT(B3)<1,--RIGHT(B3)<1),\"\",B3))","v":""},{"$f":"IFERROR(INDEX(misSeriesPiezas,MATCH(C3,misPosicionesNuevas,0)),C3)","v":""},{"$f":"IF(OR(MID(D3,2,1)=$D$1,miEnroqueT=1),\"\",C3)","v":""},null,11,{"$f":"IF(OR(miTestPieza=0,miTestPos=0,miTestPos+G3>88),\"\",miTestPos+G3)","v":""},{"$f":"IF(H3=\"\",\"\",IF(OR(--LEFT(H3)>8,--RIGHT(H3)>8,--LEFT(H3)<1,--RIGHT(H3)<1),\"\",H3))","v":""},{"$f":"IFERROR(INDEX(misSeriesPiezas,MATCH(I3,misPosicionesNuevas,0)),I3)","v":""},{"$f":"IF(OR(MID(J3,2,1)=$J$1,miEnroqueT=1),\"\",I3)","v":""},null,{"$f":"D3","v":""},"",null,10,{"$f":"IF(OR(miTestPieza=0,miTestPos=0,miTestPos+P3>88),\"\",miTestPos+P3)","v":""},{"$f":"IF(Q3=\"\",\"\",IF(OR(--LEFT(Q3)>8,--RIGHT(Q3)>8,--LEFT(Q3)<1,--RIGHT(Q3)<1),\"\",Q3))","v":""},{"$f":"IFERROR(INDEX(misSeriesPiezas,MATCH(R3,misPosicionesNuevas,0)),R3)","v":""},{"$f":"IF(OR(MID(S3,2,1)=$S$1,miEnroqueT=1,AND(miTestJaque=1,V3<>\"\")),\"\",R3)","v":""},68,"Dn",null,21,{"$f":"IF(OR(miTestPieza=0,miTestPos=0,miTestPos+X3>88),\"\",miTestPos+X3)","v":""},{"$f":"IF(Y3=\"\",\"\",IF(OR(--LEFT(Y3)>8,--RIGHT(Y3)>8,--LEFT(Y3)<1,--RIGHT(Y3)<1),\"\",Y3))","v":""},{"$f":"IFERROR(INDEX(misSeriesPiezas,MATCH(Z3,misPosicionesNuevas,0)),Z3)","v":""},{"$f":"IF(OR(MID(AA3,2,1)=$AA$1,miEnroqueT=1),\"\",Z3)","v":""},null,1,{"$f":"IF(OR(miTestPieza=0,miTestPos=0,miTestPos+AD3>88),\"\",miTestPos+AD3)","v":""},{"$f":"IF(AE3=\"\",\"\",IF(OR(--LEFT(AE3)>8,--RIGHT(AE3)>8,--LEFT(AE3)<1,--RIGHT(AE3)<1),\"\",AE3))","v":""},{"$f":"IFERROR(INDEX(misSeriesPiezas,MATCH(AF3,misPosicionesNuevas,0)),AF3)","v":""},{"$f":"IF(OR($AG$1=INDEX(TablaIdiomas[],173,miIdioma),MID(AG3,2,1)=$AG$1,MID(AG3,2,1)=$AH$1,miEnroqueT=1),\"\",AF3)","v":""},null,{"$f":"E3","v":""},{"$f":"K3","v":""},{"$f":"N3","v":""},{"$f":"T3","v":""},{"$f":"AB3","v":""},{"$f":"AH3","v":""},{"$f":"IF($AP$2=0,\"\",SUBSTITUTE(INDEX(AJ3:AO3,$AP$2),0,\"\"))","v":""},{"$f":"IFERROR(INDEX(misSeriesPiezas,MATCH(--AP3,misPosicionesNuevas,0)),\"\")","v":""},null,{"$f":"IFERROR(INDEX(misPosicionesNuevas,MATCH(SUBSTITUTE(IF(LEFT(miTestPieza)=INDEX(TablaPiezas[],5,miIdioma),IFERROR(INDEX($AA$3:$AA$10,MATCH(LEFT(miTestPieza) & $AA$1 & \"*\",$AA$3:$AA$10,0)),\"\"),\"\"),miTestPieza,\"\"),misSeriesPiezas,0)),\"\")","v":""},{"$f":"AS3","v":""}]
[20,"","","",{"$f":"IF(OR(D3=\"\",E3=\"\",MID(D4,2,1)=$D$1,MID(D3,2,1)=$E$1,miEnroqueT=1),\"\",C4)","v":""},null,22,"","","",{"$f":"IF(OR(J3=\"\",K3=\"\",MID(J4,2,1)=$J$1,MID(J3,2,1)=$K$1,miEnroqueT=1),\"\",I4)","v":""},null,"","",null,20,{"$f":"IF(OR(miTestPieza=0,miTestPos=0,miTestPos+P4>88),\"\",miTestPos+P4)","v":""},{"$f":"IF(Q4=\"\",\"\",IF(OR(--LEFT(Q4)>8,--RIGHT(Q4)>8,--LEFT(Q4)<1,--RIGHT(Q4)<1),\"\",Q4))","v":""},"",{"$f":"IF(OR(S3=\"\",T3=\"\",MID(S4,2,1)=$S$1,MID(S3,2,1)=$T$1,IF($S$1=INDEX(TablaIdiomas[],172,miIdioma),miEnroqueCortoTb=0,miEnroqueCortoTn=0),MID($D$6,2,1)=INDEX(TablaIdiomas[],172,miIdioma),MID($D$6,2,1)=INDEX(TablaIdiomas[],173,miIdioma),AND(miTestJaque=1,V4<>\"\"),miJaque<>\"\"),\"\",R4)","v":""},78,"Dn",null,-21,{"$f":"IF(OR(miTestPieza=0,miTestPos=0,miTestPos+X4<11),\"\",miTestPos+X4)","v":""},"","","",null,2,{"$f":"IF(OR(miTestPieza=0,miTestPos=0,miTestPos+AD4<11),\"\",miTestPos+AD4)","v":""},"","",{"$f":"IF(OR(AH3=\"\",$AG$1=INDEX(TablaIdiomas[],173,miIdioma),MID(AG4,2,1)=$AG$1,MID(AG4,2,1)=$AH$1,RIGHT(miTestPos)<>\"2\",miEnroqueT=1),\"\",AF4)","v":""},null,"","","",{"$f":"T5","v":""},"","",{"$f":"IF($AP$2=0,\"\",SUBSTITUTE(INDEX(AJ4:AO4,$AP$2),0,\"\"))","v":""},"",null,{"$f":"IF(LEFT(miTestPieza)=INDEX(TablaPiezas[],3,miIdioma),IFERROR(INDEX(misPosicionesNuevas,MATCH(LEFT(miTestPieza,2) & IF(--RIGHT(miTestPieza)=1,2,1),misSeriesPiezas,0)),\"\"),\"\")","v":""},{"$f":"IF(IF(RIGHT(miPosB)=RIGHT(AS4),SUMPRODUCT(--(RIGHT($C$3:$C$32)=RIGHT(AS4)),--(IFERROR(--$C$3:$C$32,0)>MIN(miPosB,AS4)),--(IFERROR(--$C$3:$C$32,0)<MAX(miPosB,AS4)),--($D$3:$D$32<>\"\"),--IF(ISNUMBER($D$3:$D$32),0,1)),IF(LEFT(miPosB)=LEFT(AS4),SUMPRODUCT(--(LEFT($C$3:$C$32)=LEFT(AS4)),--(IFERROR(--$C$3:$C$32,0)>MIN(miPosB,AS4)),--(IFERROR(--$C$3:$C$32,0)<MAX(miPosB,AS4)),--($D$3:$D$32<>\"\"),--IF(ISNUMBER($D$3:$D$32),0,1)),0))>0,\"\",\nIF(LEFT(miPosB)=LEFT(AS4),IF(LEFT(miPosA)=LEFT(AS4),IF(OR(miPosB>MAX(miPosA,AS4),miPosB<MIN(miPosA,AS4)),\"\",AS4),AS4),\nIF(RIGHT(miPosB)=RIGHT(AS4),IF(RIGHT(miPosA)=RIGHT(AS4),IF(OR(miPosB>MAX(miPosA,AS4),miPosB<MIN(miPosA,AS4)),\"\",AS4),AS4),\"\")))","v":""}]
[30,"","","","",null,33,"","","","",null,"","",null,-10,{"$f":"IF(OR(miTestPieza=0,miTestPos=0,miTestPos+P5<11),\"\",miTestPos+P5)","v":""},"","",{"$f":"IF(OR(MID(S5,2,1)=$S$1,miEnroqueT=1,AND(miTestJaque=1,V5<>\"\")),\"\",R5)","v":""},48,null,null,19,{"$f":"IF(OR(miTestPieza=0,miTestPos=0,miTestPos+X5>88),\"\",miTestPos+X5)","v":""},"","","",null,11,{"$f":"IF(OR(miTestPieza=0,miTestPos=0,miTestPos+AD5>88),\"\",miTestPos+AD5)","v":""},"","",{"$f":"IF($AG$1=INDEX(TablaIdiomas[],172,miIdioma),IF(OR(MID(AG5,2,1)=$AH$1,AND(LEFT(AF5)=$AH$11,$AG$11=INDEX(TablaIdiomas[],173,miIdioma),RIGHT(miTestPos)=\"5\")),IF(miEnroqueT=1,\"\",AF5),\"\"),\"\")","v":""},null,"","","",{"$f":"T7","v":""},"","",{"$f":"IF($AP$2=0,\"\",SUBSTITUTE(INDEX(AJ5:AO5,$AP$2),0,\"\"))","v":""},"",null,{"$f":"IFERROR(INDEX(misPosicionesNuevas,MATCH(SUBSTITUTE(IF(LEFT(miTestPieza)=INDEX(TablaPiezas[],4,miIdioma),IFERROR(INDEX($J$3:$J$30,MATCH(LEFT(miTestPieza) & $J$1 & \"*\",$J$3:$J$30,0)),\"\"),\"\"),miTestPieza,\"\"),miSeriePieza,0))&\"\",\"\")","v":""},{"$f":"AS5","v":""}]
[40,"","","","",null,44,"","","","",null,"","",null,-20,{"$f":"IF(OR(miTestPieza=0,miTestPos=0,miTestPos+P6<11),\"\",miTestPos+P6)","v":""},"","",{"$f":"IF(OR(S5=\"\",T5=\"\",MID(S6,2,1)=$S$1,MID(S5,2,1)=$T$1,IF($S$1=INDEX(TablaIdiomas[],172,miIdioma),miEnroqueLargoTb=0,miEnroqueLargoTn=0),MID($D$12,2,1)=INDEX(TablaIdiomas[],172,miIdioma),MID($D$12,2,1)=INDEX(TablaIdiomas[],173,miIdioma),AND(miTestJaque=1,V6<>\"\"),miJaque<>\"\"),\"\",R6)","v":""},38,null,null,-19,{"$f":"IF(OR(miTestPieza=0,miTestPos=0,miTestPos+X6<11),\"\",miTestPos+X6)","v":""},"","","",null,-9,{"$f":"IF(OR(miTestPieza=0,miTestPos=0,miTestPos+AD6<11),\"\",miTestPos+AD6)","v":""},"","",{"$f":"IF($AG$1=INDEX(TablaIdiomas[],172,miIdioma),IF(OR(MID(AG6,2,1)=$AH$1,AND(LEFT(AF6)=$AH$11,$AG$11=INDEX(TablaIdiomas[],173,miIdioma),RIGHT(miTestPos)=\"5\")),IF(miEnroqueT=1,\"\",AF6),\"\"),\"\")","v":""},null,"","","","","","",{"$f":"IF($AP$2=0,\"\",SUBSTITUTE(INDEX(AJ6:AO6,$AP$2),0,\"\"))","v":""},"",null,{"$f":"IFERROR(INDEX(misPosicionesNuevas,MATCH(SUBSTITUTE(IF(LEFT(miTestPieza)=INDEX(TablaPiezas[],2,miIdioma),IFERROR(INDEX($M$3:$M$58,MATCH(LEFT(miTestPieza) & $M$1 & \"*\",$M$3:$M$58,0)),\"\"),\"\"),miTestPieza,\"\"),miSeriePieza,0))&\"\",\"\")","v":""},""]
[50,"","","","",null,55,"","","","",null,"","",null,1,{"$f":"IF(OR(miTestPieza=0,miTestPos=0,miTestPos+P7>88),\"\",miTestPos+P7)","v":""},"","",{"$f":"IF(OR(MID(S7,2,1)=$S$1,miEnroqueT=1,AND(miTestJaque=1,V7<>\"\")),\"\",R7)","v":""},null,null,null,12,{"$f":"IF(OR(miTestPieza=0,miTestPos=0,miTestPos+X7>88),\"\",miTestPos+X7)","v":""},"","","",null,-1,{"$f":"IF(OR(miTestPieza=0,miTestPos=0,miTestPos+AD7>88),\"\",miTestPos+AD7)","v":""},"","",{"$f":"IF(OR($AG$1=INDEX(TablaIdiomas[],172,miIdioma),MID(AG7,2,1)=$AG$1,MID(AG7,2,1)=$AH$1,miEnroqueT=1),\"\",AF7)","v":""},null,"","","","","","",{"$f":"IF($AP$2=0,\"\",SUBSTITUTE(INDEX(AJ7:AO7,$AP$2),0,\"\"))","v":""},"",null,{"$f":"IFERROR(INDEX(misPosicionesNuevas,MATCH(SUBSTITUTE(IF(AND(LEFT(miTestPieza)=INDEX(TablaPiezas[],6,miIdioma),miPosComida<>\"\"),IFERROR(INDEX($AG$3:$AG$10,MATCH(LEFT(miTestPieza) & $AG$1 & \"*\",$AG$3:$AG$10,0)),\"\"),\"\"),miTestPieza,\"\"),miSeriePieza,0))&\"\",\"\")","v":""},""]
[60,"","","","",null,66,"","","","",null,"","",null,-1,{"$f":"IF(OR(miTestPieza=0,miTestPos=0,miTestPos+P8<11),\"\",miTestPos+P8)","v":""},"","","",57,"Dn",null,-12,{"$f":"IF(OR(miTestPieza=0,miTestPos=0,miTestPos+X8<11),\"\",miTestPos+X8)","v":""},"","","",null,-2,{"$f":"IF(OR(miTestPieza=0,miTestPos=0,miTestPos+AD8<11),\"\",miTestPos+AD8)","v":""},"","",{"$f":"IF(OR(AH7=\"\",$AG$1=INDEX(TablaIdiomas[],172,miIdioma),MID(AG8,2,1)=$AG$1,MID(AG8,2,1)=$AH$1,RIGHT(miTestPos)<>\"7\",miEnroqueT=1),\"\",AF8)","v":""},null,"","","","","","",{"$f":"IF($AP$2=0,\"\",SUBSTITUTE(INDEX(AJ8:AO8,$AP$2),0,\"\"))","v":""},""]
[70,"","","","",null,77,"","","","",null,"","",null,11,{"$f":"IF(OR(miTestPieza=0,miTestPos=0,miTestPos+P9>88),\"\",miTestPos+P9)","v":""},"","","",null,null,null,8,{"$f":"IF(OR(miTestPieza=0,miTestPos=0,miTestPos+X9>88),\"\",miTestPos+X9)","v":""},"","","",null,-11,{"$f":"IF(OR(miTestPieza=0,miTestPos=0,miTestPos+AD9>88),\"\",miTestPos+AD9)","v":""},"","",{"$f":"IF($AG$1=INDEX(TablaIdiomas[],173,miIdioma),IF(OR(MID(AG9,2,1)=$AH$1,AND(LEFT(AF9)=$AH$11,$AG$11=INDEX(TablaIdiomas[],172,miIdioma),RIGHT(miTestPos)=\"4\")),IF(miEnroqueT=1,\"\",AF9),\"\"),\"\")","v":""},null,"","","","","","",{"$f":"IF($AP$2=0,\"\",SUBSTITUTE(INDEX(AJ9:AO9,$AP$2),0,\"\"))","v":""},""]
[-10,{"$f":"IF(OR(miTestPieza=0,miTestPos=0,miTestPos+A10<11),\"\",miTestPos+A10)","v":""},"","",{"$f":"IF(OR(MID(D10,2,1)=$D$1,miEnroqueT=1),\"\",C10)","v":""},null,-11,{"$f":"IF(OR(miTestPieza=0,miTestPos=0,miTestPos+G10<11),\"\",miTestPos+G10)","v":""},"","",{"$f":"IF(OR(MID(J10,2,1)=$J$1,miEnroqueT=1),\"\",I10)","v":""},null,"","",null,-11,{"$f":"IF(OR(miTestPieza=0,miTestPos=0,miTestPos+P10<11),\"\",miTestPos+P10)","v":""},"","","",47,"Dn",null,-8,{"$f":"IF(OR(miTestPieza=0,miTestPos=0,miTestPos+X10<11),\"\",miTestPos+X10)","v":""},"","","",null,9,{"$f":"IF(OR(miTestPieza=0,miTestPos=0,miTestPos+AD10<11),\"\",miTestPos+AD10)","v":""},"","",{"$f":"IF($AG$1=INDEX(TablaIdiomas[],173,miIdioma),IF(OR(MID(AG10,2,1)=$AH$1,AND(LEFT(AF10)=$AH$11,$AG$11=INDEX(TablaIdiomas[],172,miIdioma),RIGHT(miTestPos)=\"4\")),IF(miEnroqueT=1,\"\",AF10),\"\"),\"\")","v":""},null,"","","","","","",{"$f":"IF($AP$2=0,\"\",SUBSTITUTE(INDEX(AJ10:AO10,$AP$2),0,\"\"))","v":""},""]
[-20,"","","",{"$f":"IF(OR(D10=\"\",E10=\"\",MID(D11,2,1)=$D$1,MID(D10,2,1)=$E$1,miEnroqueT=1),\"\",C11)","v":""},null,-22,"","","",{"$f":"IF(OR(J10=\"\",K10=\"\",MID(J11,2,1)=$J$1,MID(J10,2,1)=$K$1,miEnroqueT=1),\"\",I11)","v":""},null,"","",null,9,{"$f":"IF(OR(miTestPieza=0,miTestPos=0,miTestPos+P11>88),\"\",miTestPos+P11)","v":""},"","","",67,"An",null,null,null,null,null,null,null,{"$f":"INDEX(TablaIdiomas[],99,miIdioma)","v":"captura"},{"$f":"IF(AND(LEFT(miTestPieza)=INDEX(TablaPiezas[],6,miIdioma),ABS(miTestPos-miPosB)=2),1,0)","v":0},null,{"$f":"MID(miPeónPaso,2,1)","v":""},{"$f":"LEFT(IFERROR(INDEX(misPosicionesNuevas,MATCH(miPeónPaso,misSeriesPiezas,0)),\"\"))","v":""},null,"","","",{"$f":"T4","v":""},null,null,{"$f":"IF($AP$2=0,\"\",SUBSTITUTE(INDEX(AJ11:AO11,$AP$2),0,\"\"))","v":""},""]
[-30,"","","","",null,-33,"","","","",null,"","",null,-9,{"$f":"IF(OR(miTestPieza=0,miTestPos=0,miTestPos+P12<11),\"\",miTestPos+P12)","v":""},"","","",null,null,null,null,null,null,null,null,null,{"$f":"INDEX(TablaIdiomas[],100,miIdioma)","v":"al paso"},{"$f":"IF(AND(LEFT(miTestPieza)=INDEX(TablaPiezas[],6,miIdioma),OR(ABS(miTestPos-miPosB)=9,ABS(miTestPos-miPosB)=11)),1,0)","v":0},{"$f":"IF($AE$12=1,IFERROR(MATCH(miPeónPaso,misSeriesPiezas,0),0),0)","v":0},null,null,null,"","","",{"$f":"T6","v":""},null,null,{"$f":"IF($AP$2=0,\"\",SUBSTITUTE(INDEX(AJ12:AO12,$AP$2),0,\"\"))","v":""},""]
[-40,"","","","",null,-44,"","","","",null,"","",null,0,{"$f":"INDEX(TablaIdiomas[],200,miIdioma)","v":"TbL"},{"$f":"INDEX(TablaIdiomas[],201,miIdioma)","v":"TbC"},{"$f":"INDEX(TablaIdiomas[],202,miIdioma)","v":"TnL"},{"$f":"INDEX(TablaIdiomas[],203,miIdioma)","v":"TnC"},null,{"$f":"INDEX(TablaIdiomas[],190,miIdioma)","v":"Mate"},null,null,null,null,null,null,null,{"$f":"INDEX(TablaIdiomas[],95,miIdioma)","v":"Primeras 4 filas para Pb"},null,null,null,null,null,"","","",null,null,null,{"$f":"IF($AP$2=0,\"\",SUBSTITUTE(INDEX(AJ13:AO13,$AP$2),0,\"\"))","v":""},""]
[-50,"","","","",null,-55,"","","","",null,"","",null,{"$f":"IF(AND(LEFT(miTestPieza)=$P$1,ABS(miTestPos-miPosB)=20),1,0)","v":0},0,0,0,0,null,0,null,null,null,null,null,null,null,{"$f":"INDEX(TablaIdiomas[],96,miIdioma)","v":"Segundas 4 filas para Pn"},null,null,null,null,null,"","","",null,null,null,{"$f":"IF($AP$2=0,\"\",SUBSTITUTE(INDEX(AJ14:AO14,$AP$2),0,\"\"))","v":""},""]
[-60,"","","","",null,-66,"","","","",null,"","",null,{"$f":"INDEX(TablaIdiomas[],91,miIdioma)","v":"Enroque en filas 2, 4, 11 y 12"},null,null,null,null,null,null,null,null,null,null,null,null,null,{"$f":"INDEX(TablaIdiomas[],97,miIdioma)","v":"Últimas 2 filas para"},null,null,null,null,null,"","","",null,null,null,{"$f":"IF($AP$2=0,\"\",SUBSTITUTE(INDEX(AJ15:AO15,$AP$2),0,\"\"))","v":""},""]
[-70,"","","","",null,-77,"","","","",null,"","",null,{"$f":"INDEX(TablaIdiomas[],93,miIdioma)","v":"NOTA: El rey no puede estar,"},null,null,null,null,null,null,null,null,null,null,null,null,null,{"$f":"INDEX(TablaIdiomas[],98,miIdioma)","v":"captura al paso del peón"},null,null,null,null,null,"","","",null,null,null,{"$f":"IF($AP$2=0,\"\",SUBSTITUTE(INDEX(AJ16:AO16,$AP$2),0,\"\"))","v":""},""]
[1,{"$f":"IF(OR(miTestPieza=0,miTestPos=0,miTestPos+A17>88),\"\",miTestPos+A17)","v":""},"","",{"$f":"IF(OR(MID(D17,2,1)=$D$1,miEnroqueT=1),\"\",C17)","v":""},null,9,{"$f":"IF(OR(miTestPieza=0,miTestPos=0,miTestPos+G17>88),\"\",miTestPos+G17)","v":""},"","",{"$f":"IF(OR(MID(J17,2,1)=$J$1,miEnroqueT=1),\"\",I17)","v":""},null,"","",null,{"$f":"INDEX(TablaIdiomas[],94,miIdioma)","v":"pasar o ir a una casilla en jaque"},null,null,null,null,null,null,null,null,null,null,null,null,null,null,null,null,null,null,null,"","","",null,null,null,{"$f":"IF($AP$2=0,\"\",SUBSTITUTE(INDEX(AJ17:AO17,$AP$2),0,\"\"))","v":""},""]
[2,"","","",{"$f":"IF(OR(D17=\"\",E17=\"\",MID(D18,2,1)=$D$1,MID(D17,2,1)=$E$1,miEnroqueT=1),\"\",C18)","v":""},null,18,"","","",{"$f":"IF(OR(J17=\"\",K17=\"\",MID(J18,2,1)=$J$1,MID(J17,2,1)=$K$1,miEnroqueT=1),\"\",I18)","v":""},null,"","",null,null,null,null,null,null,null,null,null,null,null,null,null,null,null,null,null,null,null,null,null,"","","",null,null,null,{"$f":"IF($AP$2=0,\"\",SUBSTITUTE(INDEX(AJ18:AO18,$AP$2),0,\"\"))","v":""},""]
[3,"","","","",null,27,"","","","",null,"","",null,null,null,null,null,null,null,null,null,null,null,null,null,null,null,null,null,null,null,null,null,"","","",null,null,null,{"$f":"IF($AP$2=0,\"\",SUBSTITUTE(INDEX(AJ19:AO19,$AP$2),0,\"\"))","v":""},""]
[4,"","","","",null,36,"","","","",null,"","",null,null,null,null,null,null,null,null,null,null,null,null,null,null,null,null,null,null,null,null,null,"","","",null,null,null,{"$f":"IF($AP$2=0,\"\",SUBSTITUTE(INDEX(AJ20:AO20,$AP$2),0,\"\"))","v":""},""]
[5,"","","","",null,45,"","","","",null,"","",null,null,null,null,null,null,null,null,null,null,null,null,null,null,null,null,null,null,null,null,null,"","","",null,null,null,{"$f":"IF($AP$2=0,\"\",SUBSTITUTE(INDEX(AJ21:AO21,$AP$2),0,\"\"))","v":""},""]
[6,"","","","",null,54,"","","","",null,"","",null,null,null,null,null,null,null,null,null,null,null,null,null,null,null,null,null,null,null,null,null,"","","",null,null,null,{"$f":"IF($AP$2=0,\"\",SUBSTITUTE(INDEX(AJ22:AO22,$AP$2),0,\"\"))","v":""},""]
[7,"","","","",null,63,"","","","",null,"","",null,null,null,null,null,null,null,null,null,null,null,null,null,null,null,null,null,null,null,null,null,"","","",null,null,null,{"$f":"IF($AP$2=0,\"\",SUBSTITUTE(INDEX(AJ23:AO23,$AP$2),0,\"\"))","v":""},""]
[-1,{"$f":"IF(OR(miTestPieza=0,miTestPos=0,miTestPos+A24<11),\"\",miTestPos+A24)","v":""},"","",{"$f":"IF(OR(MID(D24,2,1)=$D$1,miEnroqueT=1),\"\",C24)","v":""},null,-9,{"$f":"IF(OR(miTestPieza=0,miTestPos=0,miTestPos+G24<11),\"\",miTestPos+G24)","v":""},"","",{"$f":"IF(OR(MID(J24,2,1)=$J$1,miEnroqueT=1),\"\",I24)","v":""},null,"","",null,null,null,null,null,null,null,null,null,null,null,null,null,null,null,null,null,null,null,null,null,"","","",null,null,null,{"$f":"IF($AP$2=0,\"\",SUBSTITUTE(INDEX(AJ24:AO24,$AP$2),0,\"\"))","v":""},""]
[-2,"","","",{"$f":"IF(OR(D24=\"\",E24=\"\",MID(D25,2,1)=$D$1,MID(D24,2,1)=$E$1,miEnroqueT=1),\"\",C25)","v":""},null,-18,"","","",{"$f":"IF(OR(J24=\"\",K24=\"\",MID(J25,2,1)=$J$1,MID(J24,2,1)=$K$1,miEnroqueT=1),\"\",I25)","v":""},null,"","",null,null,null,null,null,null,null,null,null,null,null,null,null,null,null,null,null,null,null,null,null,"","","",null,null,null,{"$f":"IF($AP$2=0,\"\",SUBSTITUTE(INDEX(AJ25:AO25,$AP$2),0,\"\"))","v":""},""]
[-3,"","","","",null,-27,"","","","",null,"","",null,null,null,null,null,null,null,null,null,null,null,null,null,null,null,null,null,null,null,null,null,"","","",null,null,null,{"$f":"IF($AP$2=0,\"\",SUBSTITUTE(INDEX(AJ26:AO26,$AP$2),0,\"\"))","v":""},""]
[-4,"","","","",null,-36,"","","","",null,"","",null,null,null,null,null,null,null,null,null,null,null,null,null,null,null,null,null,null,null,null,null,"","","",null,null,null,{"$f":"IF($AP$2=0,\"\",SUBSTITUTE(INDEX(AJ27:AO27,$AP$2),0,\"\"))","v":""},""]
[-5,"","","","",null,-45,"","","","",null,"","",null,null,null,null,null,null,null,null,null,null,null,null,null,null,null,null,null,null,null,null,null,"","","",null,null,null,{"$f":"IF($AP$2=0,\"\",SUBSTITUTE(INDEX(AJ28:AO28,$AP$2),0,\"\"))","v":""},""]
[-6,"","","","",null,-54,"","","","",null,"","",null,null,null,null,null,null,null,null,null,null,null,null,null,null,null,null,null,null,null,null,null,"","","",null,null,null,{"$f":"IF($AP$2=0,\"\",SUBSTITUTE(INDEX(AJ29:AO29,$AP$2),0,\"\"))","v":""},""]
[-7,"","","","",null,-63,"","","","",null,"","",null,null,null,null,null,null,null,null,null,null,null,null,null,null,null,null,null,null,null,null,null,"","","",null,null,null,{"$f":"IF($AP$2=0,\"\",SUBSTITUTE(INDEX(AJ30:AO30,$AP$2),0,\"\"))","v":""},""]
[30,{"$f":"IF(OR(miTestPieza=0,miTestPos=0,miTestPos+A31>88),\"\",miTestPos+A31)","v":""},"","",{"$f":"IF(OR(MID(D31,2,1)=$D$1,miEnroqueT=0),\"\",C31)","v":""},null,null,null,null,null,null,null,{"$f":"D31","v":""},{"$f":"K3","v":""},null,null,null,null,null,null,null,null,null,null,null,null,null,null,null,null,null,null,null,null,null,"",null,"",null,null,null,{"$f":"IF($AP$2=0,\"\",SUBSTITUTE(INDEX(AJ31:AO31,$AP$2),0,\"\"))","v":""},""]
[-20,{"$f":"IF(OR(miTestPieza=0,miTestPos=0,miTestPos+A32<11),\"\",miTestPos+A32)","v":""},"","",{"$f":"IF(OR(MID(D32,2,1)=$D$1,miEnroqueT=0),\"\",C32)","v":""},null,null,null,null,null,null,null,"","",null,null,null,null,null,null,null,null,null,null,null,null,null,null,null,null,null,null,null,null,null,"",null,"",null,null,null,{"$f":"IF($AP$2=0,\"\",SUBSTITUTE(INDEX(AJ32:AO32,$AP$2),0,\"\"))","v":""},""]
[{"$f":"INDEX(TablaIdiomas[],92,miIdioma)","v":"Últimas 2 filas para enroque"},null,null,null,null,null,null,null,null,null,null,null,"","",null,null,null,null,null,null,null,null,null,null,null,null,null,null,null,null,null,null,null,null,null,null,null,"",null,null,null,{"$f":"IF($AP$2=0,\"\",SUBSTITUTE(INDEX(AJ33:AO33,$AP$2),0,\"\"))","v":""},""]
[null,null,null,null,null,null,null,null,null,null,null,null,"","",null,null,null,null,null,null,null,null,null,null,null,null,null,null,null,null,null,null,null,null,null,null,null,"",null,null,null,{"$f":"IF($AP$2=0,\"\",SUBSTITUTE(INDEX(AJ34:AO34,$AP$2),0,\"\"))","v":""},""]
[null,null,null,null,null,null,null,null,null,null,null,null,"","",null,null,null,null,null,null,null,null,null,null,null,null,null,null,null,null,null,null,null,null,null,null,null,{"$f":"N35","v":""},null,null,null,{"$f":"IF($AP$2=0,\"\",SUBSTITUTE(INDEX(AJ35:AO35,$AP$2),0,\"\"))","v":""},{"$f":"IFERROR(INDEX(misSeriesPiezas,MATCH(--AP35,misPosicionesNuevas,0)),\"\")","v":""}]
[null,null,null,null,null,null,null,null,null,null,null,null,"","",null,null,null,null,null,null,null,null,null,null,null,null,null,null,null,null,null,null,null,null,null,null,null,"",null,null,null,{"$f":"IF($AP$2=0,\"\",SUBSTITUTE(INDEX(AJ36:AO36,$AP$2),0,\"\"))","v":""},""]
[null,null,null,null,null,null,null,null,null,null,null,null,"","",null,null,null,null,null,null,null,null,null,null,null,null,null,null,null,null,null,null,null,null,null,null,null,"",null,null,null,{"$f":"IF($AP$2=0,\"\",SUBSTITUTE(INDEX(AJ37:AO37,$AP$2),0,\"\"))","v":""},""]
[null,null,null,null,null,null,null,null,null,null,null,null,"","",null,null,null,null,null,null,null,null,null,null,null,null,null,null,null,null,null,null,null,null,null,null,null,"",null,null,null,{"$f":"IF($AP$2=0,\"\",SUBSTITUTE(INDEX(AJ38:AO38,$AP$2),0,\"\"))","v":""},""]
[null,null,null,null,null,null,null,null,null,null,null,null,"","",null,null,null,null,null,null,null,null,null,null,null,null,null,null,null,null,null,null,null,null,null,null,null,"",null,null,null,{"$f":"IF($AP$2=0,\"\",SUBSTITUTE(INDEX(AJ39:AO39,$AP$2),0,\"\"))","v":""},""]
[null,null,null,null,null,null,null,null,null,null,null,null,"","",null,null,null,null,null,null,null,null,null,null,null,null,null,null,null,null,null,null,null,null,null,null,null,"",null,null,null,{"$f":"IF($AP$2=0,\"\",SUBSTITUTE(INDEX(AJ40:AO40,$AP$2),0,\"\"))","v":""},""]
[null,null,null,null,null,null,null,null,null,null,null,null,"","",null,null,null,null,null,null,null,null,null,null,null,null,null,null,null,null,null,null,null,null,null,null,null,"",null,null,null,{"$f":"IF($AP$2=0,\"\",SUBSTITUTE(INDEX(AJ41:AO41,$AP$2),0,\"\"))","v":""},""]
[null,null,null,null,null,null,null,null,null,null,null,null,"","",null,null,null,null,null,null,null,null,null,null,null,null,null,null,null,null,null,null,null,null,null,null,null,"",null,null,null,{"$f":"IF($AP$2=0,\"\",SUBSTITUTE(INDEX(AJ42:AO42,$AP$2),0,\"\"))","v":""},""]
[null,null,null,null,null,null,null,null,null,null,null,null,"","",null,null,null,null,null,null,null,null,null,null,null,null,null,null,null,null,null,null,null,null,null,null,null,"",null,null,null,{"$f":"IF($AP$2=0,\"\",SUBSTITUTE(INDEX(AJ43:AO43,$AP$2),0,\"\"))","v":""},""]
[null,null,null,null,null,null,null,null,null,null,null,null,"","",null,null,null,null,null,null,null,null,null,null,null,null,null,null,null,null,null,null,null,null,null,null,null,"",null,null,null,{"$f":"IF($AP$2=0,\"\",SUBSTITUTE(INDEX(AJ44:AO44,$AP$2),0,\"\"))","v":""},""]
[null,null,null,null,null,null,null,null,null,null,null,null,"","",null,null,null,null,null,null,null,null,null,null,null,null,null,null,null,null,null,null,null,null,null,null,null,"",null,null,null,{"$f":"IF($AP$2=0,\"\",SUBSTITUTE(INDEX(AJ45:AO45,$AP$2),0,\"\"))","v":""},""]
[null,null,null,null,null,null,null,null,null,null,null,null,"","",null,null,null,null,null,null,null,null,null,null,null,null,null,null,null,null,null,null,null,null,null,null,null,"",null,null,null,{"$f":"IF($AP$2=0,\"\",SUBSTITUTE(INDEX(AJ46:AO46,$AP$2),0,\"\"))","v":""},""]
[null,null,null,null,null,null,null,null,null,null,null,null,"","",null,null,null,null,null,null,null,null,null,null,null,null,null,null,null,null,null,null,null,null,null,null,null,"",null,null,null,{"$f":"IF($AP$2=0,\"\",SUBSTITUTE(INDEX(AJ47:AO47,$AP$2),0,\"\"))","v":""},""]
[null,null,null,null,null,null,null,null,null,null,null,null,"","",null,null,null,null,null,null,null,null,null,null,null,null,null,null,null,null,null,null,null,null,null,null,null,"",null,null,null,{"$f":"IF($AP$2=0,\"\",SUBSTITUTE(INDEX(AJ48:AO48,$AP$2),0,\"\"))","v":""},""]
[null,null,null,null,null,null,null,null,null,null,null,null,"","",null,null,null,null,null,null,null,null,null,null,null,null,null,null,null,null,null,null,null,null,null,null,null,"",null,null,null,{"$f":"IF($AP$2=0,\"\",SUBSTITUTE(INDEX(AJ49:AO49,$AP$2),0,\"\"))","v":""},""]
[null,null,null,null,null,null,null,null,null,null,null,null,"","",null,null,null,null,null,null,null,null,null,null,null,null,null,null,null,null,null,null,null,null,null,null,null,"",null,null,null,{"$f":"IF($AP$2=0,\"\",SUBSTITUTE(INDEX(AJ50:AO50,$AP$2),0,\"\"))","v":""},""]
[null,null,null,null,null,null,null,null,null,null,null,null,"","",null,null,null,null,null,null,null,null,null,null,null,null,null,null,null,null,null,null,null,null,null,null,null,"",null,null,null,{"$f":"IF($AP$2=0,\"\",SUBSTITUTE(INDEX(AJ51:AO51,$AP$2),0,\"\"))","v":""},""]
[null,null,null,null,null,null,null,null,null,null,null,null,"","",null,null,null,null,null,null,null,null,null,null,null,null,null,null,null,null,null,null,null,null,null,null,null,"",null,null,null,{"$f":"IF($AP$2=0,\"\",SUBSTITUTE(INDEX(AJ52:AO52,$AP$2),0,\"\"))","v":""},""]
[null,null,null,null,null,null,null,null,null,null,null,null,"","",null,null,null,null,null,null,null,null,null,null,null,null,null,null,null,null,null,null,null,null,null,null,null,"",null,null,null,{"$f":"IF($AP$2=0,\"\",SUBSTITUTE(INDEX(AJ53:AO53,$AP$2),0,\"\"))","v":""},""]
[null,null,null,null,null,null,null,null,null,null,null,null,"","",null,null,null,null,null,null,null,null,null,null,null,null,null,null,null,null,null,null,null,null,null,null,null,"",null,null,null,{"$f":"IF($AP$2=0,\"\",SUBSTITUTE(INDEX(AJ54:AO54,$AP$2),0,\"\"))","v":""},""]
[null,null,null,null,null,null,null,null,null,null,null,null,"","",null,null,null,null,null,null,null,null,null,null,null,null,null,null,null,null,null,null,null,null,null,null,null,"",null,null,null,{"$f":"IF($AP$2=0,\"\",SUBSTITUTE(INDEX(AJ55:AO55,$AP$2),0,\"\"))","v":""},""]
[null,null,null,null,null,null,null,null,null,null,null,null,"","",null,null,null,null,null,null,null,null,null,null,null,null,null,null,null,null,null,null,null,null,null,null,null,"",null,null,null,{"$f":"IF($AP$2=0,\"\",SUBSTITUTE(INDEX(AJ56:AO56,$AP$2),0,\"\"))","v":""},""]
[null,null,null,null,null,null,null,null,null,null,null,null,"","",null,null,null,null,null,null,null,null,null,null,null,null,null,null,null,null,null,null,null,null,null,null,null,"",null,null,null,{"$f":"IF($AP$2=0,\"\",SUBSTITUTE(INDEX(AJ57:AO57,$AP$2),0,\"\"))","v":""},""]
[null,null,null,null,null,null,null,null,null,null,null,null,"","",null,null,null,null,null,null,null,null,null,null,null,null,null,null,null,null,null,null,null,null,null,null,null,"",null,null,null,{"$f":"IF($AP$2=0,\"\",SUBSTITUTE(INDEX(AJ58:AO58,$AP$2),0,\"\"))","v":""},""]

{"sheet":"Lessons","index":4,"n_rows":216,"n_cols":9,"rows_kept":216,"cut":false,"hidden":true,"merged":[]}
["#","Español","English",null,"#","Lección - Lesson","Sección - Section","Progreso - Progress","Porcentaje - Percentage"]
["1.0","Aprende ajedrez","Learn chess",null,0,{"$f":"INDEX(TablaIdiomas[],101,miIdioma)","v":"Todas las lecciones"},{"$f":"MAX(IFERROR(--SUBSTITUTE(\" \"&TablaLecciones['#],\" \"&TablaListaLecciones[[#This Row],['#]]&\".\",\"\"),0))","v":0},0,{"$f":"IFERROR(1-(TablaListaLecciones[[#This Row],[Sección - Section]]-TablaListaLecciones[[#This Row],[Progreso - Progress]])/TablaListaLecciones[[#This Row],[Sección - Section]],1)","v":1}]
["1.1","Aprende ajedrez tú, o tus compañeros de clase, con esta aplicación diseñada totalmente con Excel.","Learn chess by yourself, or with your classmates, using this application, entirely designed with Excel.",null,1,{"$f":"VLOOKUP(TablaListaLecciones[[#This Row],['#]]&\".0\",TablaLecciones[],miIdioma+1,FALSE)","v":"Aprende ajedrez"},{"$f":"MAX(IFERROR(--SUBSTITUTE(\" \"&TablaLecciones['#],\" \"&TablaListaLecciones[[#This Row],['#]]&\".\",\"\"),0))","v":7},0,{"$f":"IFERROR(1-(TablaListaLecciones[[#This Row],[Sección - Section]]-TablaListaLecciones[[#This Row],[Progreso - Progress]])/TablaListaLecciones[[#This Row],[Sección - Section]],1)","v":0}]
["1.2","Toca la celda O5 para escuchar las lecciones: si se ve una oreja, puedes escucharlas y leerlas; si se ve un ojo, solamente puedes leerlas.","Click on cell O5 to listen to the lessons: if there is an ear icon, you can listen and read them; if there is an eye icon, you can only read them.",null,2,{"$f":"VLOOKUP(TablaListaLecciones[[#This Row],['#]]&\".0\",TablaLecciones[],miIdioma+1,FALSE)","v":"Ajedrez con Excel"},{"$f":"MAX(IFERROR(--SUBSTITUTE(\" \"&TablaLecciones['#],\" \"&TablaListaLecciones[[#This Row],['#]]&\".\",\"\"),0))","v":7},0,{"$f":"IFERROR(1-(TablaListaLecciones[[#This Row],[Sección - Section]]-TablaListaLecciones[[#This Row],[Progreso - Progress]])/TablaListaLecciones[[#This Row],[Sección - Section]],1)","v":0}]
["1.3","Mientras aprendes las lecciones puedes tocar cualquier casilla del tablero o una de las piezas del ajedrez.","While learning the lessons you can click on any square of the board or one of the chess pieces.",null,3,{"$f":"VLOOKUP(TablaListaLecciones[[#This Row],['#]]&\".0\",TablaLecciones[],miIdioma+1,FALSE)","v":"El tablero"},{"$f":"MAX(IFERROR(--SUBSTITUTE(\" \"&TablaLecciones['#],\" \"&TablaListaLecciones[[#This Row],['#]]&\".\",\"\"),0))","v":15},0,{"$f":"IFERROR(1-(TablaListaLecciones[[#This Row],[Sección - Section]]-TablaListaLecciones[[#This Row],[Progreso - Progress]])/TablaListaLecciones[[#This Row],[Sección - Section]],1)","v":0}]
["1.4","Toca cualquier celda con fondo amarillo para conocer y probar las novedosas características de esta aplicación. ","Click on any cell with a yellow background to learn about and try out the new features of this app.",null,4,{"$f":"VLOOKUP(TablaListaLecciones[[#This Row],['#]]&\".0\",TablaLecciones[],miIdioma+1,FALSE)","v":"Los Reyes"},{"$f":"MAX(IFERROR(--SUBSTITUTE(\" \"&TablaLecciones['#],\" \"&TablaListaLecciones[[#This Row],['#]]&\".\",\"\"),0))","v":18},0,{"$f":"IFERROR(1-(TablaListaLecciones[[#This Row],[Sección - Section]]-TablaListaLecciones[[#This Row],[Progreso - Progress]])/TablaListaLecciones[[#This Row],[Sección - Section]],1)","v":0}]
["1.5","Toca los botones del rango O6:O9 para ir a la lección: primera; anterior; siguiente o última.","Use the buttons in the range O6:O9 to choose a lesson: first; previous; next or last.",null,5,{"$f":"VLOOKUP(TablaListaLecciones[[#This Row],['#]]&\".0\",TablaLecciones[],miIdioma+1,FALSE)","v":"Las Torres"},{"$f":"MAX(IFERROR(--SUBSTITUTE(\" \"&TablaLecciones['#],\" \"&TablaListaLecciones[[#This Row],['#]]&\".\",\"\"),0))","v":11},0,{"$f":"IFERROR(1-(TablaListaLecciones[[#This Row],[Sección - Section]]-TablaListaLecciones[[#This Row],[Progreso - Progress]])/TablaListaLecciones[[#This Row],[Sección - Section]],1)","v":0}]
["1.6","Toca los botones de abajo: botón izquierdo para repetir la lección; botón derecho para pausar o avanzar a la lección siguiente.","Use the buttons below: left button to repeat the lesson; right button to pause or advance to the next lesson.",null,6,{"$f":"VLOOKUP(TablaListaLecciones[[#This Row],['#]]&\".0\",TablaLecciones[],miIdioma+1,FALSE)","v":"Los Alfiles"},{"$f":"MAX(IFERROR(--SUBSTITUTE(\" \"&TablaLecciones['#],\" \"&TablaListaLecciones[[#This Row],['#]]&\".\",\"\"),0))","v":10},0,{"$f":"IFERROR(1-(TablaListaLecciones[[#This Row],[Sección - Section]]-TablaListaLecciones[[#This Row],[Progreso - Progress]])/TablaListaLecciones[[#This Row],[Sección - Section]],1)","v":0}]
["1.7","Comienza escribiendo tu nombre de Jugador en la celda C6. ¡No esperes! ¡Escribe tu nombre ahora mismo!","Start by typing your Player name in cell C6. Time flies! Write your name right now!",null,7,{"$f":"VLOOKUP(TablaListaLecciones[[#This Row],['#]]&\".0\",TablaLecciones[],miIdioma+1,FALSE)","v":"Las Damas"},{"$f":"MAX(IFERROR(--SUBSTITUTE(\" \"&TablaLecciones['#],\" \"&TablaListaLecciones[[#This Row],['#]]&\".\",\"\"),0))","v":12},0,{"$f":"IFERROR(1-(TablaListaLecciones[[#This Row],[Sección - Section]]-TablaListaLecciones[[#This Row],[Progreso - Progress]])/TablaListaLecciones[[#This Row],[Sección - Section]],1)","v":0}]
["2.0","Ajedrez con Excel","Chess with Excel",null,8,{"$f":"VLOOKUP(TablaListaLecciones[[#This Row],['#]]&\".0\",TablaLecciones[],miIdioma+1,FALSE)","v":"Los Caballos"},{"$f":"MAX(IFERROR(--SUBSTITUTE(\" \"&TablaLecciones['#],\" \"&TablaListaLecciones[[#This Row],['#]]&\".\",\"\"),0))","v":8},0,{"$f":"IFERROR(1-(TablaListaLecciones[[#This Row],[Sección - Section]]-TablaListaLecciones[[#This Row],[Progreso - Progress]])/TablaListaLecciones[[#This Row],[Sección - Section]],1)","v":0}]
["2.1","Aprende a jugar al ajedrez con esta aplicación totalmente hecha en una hoja de cálculo de Excel.","Learn to play chess with this application entirely made in an Excel spreadsheet.",null,9,{"$f":"VLOOKUP(TablaListaLecciones[[#This Row],['#]]&\".0\",TablaLecciones[],miIdioma+1,FALSE)","v":"Los Peones"},{"$f":"MAX(IFERROR(--SUBSTITUTE(\" \"&TablaLecciones['#],\" \"&TablaListaLecciones[[#This Row],['#]]&\".\",\"\"),0))","v":12},0,{"$f":"IFERROR(1-(TablaListaLecciones[[#This Row],[Sección - Section]]-TablaListaLecciones[[#This Row],[Progreso - Progress]])/TablaListaLecciones[[#This Row],[Sección - Section]],1)","v":0}]
["2.2","Si aún no sabes jugar al ajedrez, aprenderás las reglas del juego y practicarás los movimientos de las piezas.","If you don't know how to play chess yet, you will learn the rules of the game and practice the movements of the pieces.",null,10,{"$f":"VLOOKUP(TablaListaLecciones[[#This Row],['#]]&\".0\",TablaLecciones[],miIdioma+1,FALSE)","v":"La captura al paso"},{"$f":"MAX(IFERROR(--SUBSTITUTE(\" \"&TablaLecciones['#],\" \"&TablaListaLecciones[[#This Row],['#]]&\".\",\"\"),0))","v":6},0,{"$f":"IFERROR(1-(TablaListaLecciones[[#This Row],[Sección - Section]]-TablaListaLecciones[[#This Row],[Progreso - Progress]])/TablaListaLecciones[[#This Row],[Sección - Section]],1)","v":0}]
["2.3","Si ya sabes jugar, estudiarás las mejores y peores partidas de ajedrez de todos los tiempos, ¡que de todo se aprende!","If you already know how to play, you will study the best and worst chess games of all time. Knowledge is power!",null,11,{"$f":"VLOOKUP(TablaListaLecciones[[#This Row],['#]]&\".0\",TablaLecciones[],miIdioma+1,FALSE)","v":"El enroque"},{"$f":"MAX(IFERROR(--SUBSTITUTE(\" \"&TablaLecciones['#],\" \"&TablaListaLecciones[[#This Row],['#]]&\".\",\"\"),0))","v":14},0,{"$f":"IFERROR(1-(TablaListaLecciones[[#This Row],[Sección - Section]]-TablaListaLecciones[[#This Row],[Progreso - Progress]])/TablaListaLecciones[[#This Row],[Sección - Section]],1)","v":0}]
["2.4","Puedes repetir una lección tantas veces como quieras. Selecciona una lección con el desplegable de la celda M6.","You can repeat a lesson as many times as you want. Select a lesson using the dropdown list in cell M6.",null,12,{"$f":"VLOOKUP(TablaListaLecciones[[#This Row],['#]]&\".0\",TablaLecciones[],miIdioma+1,FALSE)","v":"La promoción de peón"},{"$f":"MAX(IFERROR(--SUBSTITUTE(\" \"&TablaLecciones['#],\" \"&TablaListaLecciones[[#This Row],['#]]&\".\",\"\"),0))","v":10},0,{"$f":"IFERROR(1-(TablaListaLecciones[[#This Row],[Sección - Section]]-TablaListaLecciones[[#This Row],[Progreso - Progress]])/TablaListaLecciones[[#This Row],[Sección - Section]],1)","v":0}]
["2.5","Esta aplicación es una versión educativa. Como no es una versión comercial, no está libre de errores. ¡Aprende de los errores!","This app is an educational version. As it is not a commercial version, it is not bug free. Learn from mistakes!",null,13,{"$f":"VLOOKUP(TablaListaLecciones[[#This Row],['#]]&\".0\",TablaLecciones[],miIdioma+1,FALSE)","v":"Posición sin orden"},{"$f":"MAX(IFERROR(--SUBSTITUTE(\" \"&TablaLecciones['#],\" \"&TablaListaLecciones[[#This Row],['#]]&\".\",\"\"),0))","v":7},0,{"$f":"IFERROR(1-(TablaListaLecciones[[#This Row],[Sección - Section]]-TablaListaLecciones[[#This Row],[Progreso - Progress]])/TablaListaLecciones[[#This Row],[Sección - Section]],1)","v":0}]
["2.6","Si encuentras fallos y me los comunicas, todos aprenderemos y mejoraremos en el conocimiento del ajedrez, incluso Excel.","If you find bugs and report them to me, we will all learn and improve our chess knowledge, even Excel.",null,14,{"$f":"VLOOKUP(TablaListaLecciones[[#This Row],['#]]&\".0\",TablaLecciones[],miIdioma+1,FALSE)","v":"Posición inicial"},{"$f":"MAX(IFERROR(--SUBSTITUTE(\" \"&TablaLecciones['#],\" \"&TablaListaLecciones[[#This Row],['#]]&\".\",\"\"),0))","v":14},0,{"$f":"IFERROR(1-(TablaListaLecciones[[#This Row],[Sección - Section]]-TablaListaLecciones[[#This Row],[Progreso - Progress]])/TablaListaLecciones[[#This Row],[Sección - Section]],1)","v":0}]
["2.7","Tú puedes ayudarme a mejorar esta aplicación, escribiendo un comentario en mi blog o en mi canal de YouTube (enlaces abajo).","You can help me improve this app by writing a comment on my blog or on my YouTube channel (links below).",null,15,{"$f":"VLOOKUP(TablaListaLecciones[[#This Row],['#]]&\".0\",TablaLecciones[],miIdioma+1,FALSE)","v":"Jaque al rey"},{"$f":"MAX(IFERROR(--SUBSTITUTE(\" \"&TablaLecciones['#],\" \"&TablaListaLecciones[[#This Row],['#]]&\".\",\"\"),0))","v":2},0,{"$f":"IFERROR(1-(TablaListaLecciones[[#This Row],[Sección - Section]]-TablaListaLecciones[[#This Row],[Progreso - Progress]])/TablaListaLecciones[[#This Row],[Sección - Section]],1)","v":0}]
["3.0","El tablero","The chessboard",null,16,{"$f":"VLOOKUP(TablaListaLecciones[[#This Row],['#]]&\".0\",TablaLecciones[],miIdioma+1,FALSE)","v":"Rey ahogado"},{"$f":"MAX(IFERROR(--SUBSTITUTE(\" \"&TablaLecciones['#],\" \"&TablaListaLecciones[[#This Row],['#]]&\".\",\"\"),0))","v":2},0,{"$f":"IFERROR(1-(TablaListaLecciones[[#This Row],[Sección - Section]]-TablaListaLecciones[[#This Row],[Progreso - Progress]])/TablaListaLecciones[[#This Row],[Sección - Section]],1)","v":0}]
["3.1","El tablero de ajedrez contiene 64 casillas cuadradas de dos colores, alternando casillas claras y oscuras.","The chessboard contains 64 squares of two colors: alternating light and dark squares.",null,17,{"$f":"VLOOKUP(TablaListaLecciones[[#This Row],['#]]&\".0\",TablaLecciones[],miIdioma+1,FALSE)","v":"Mate del pastor"},{"$f":"MAX(IFERROR(--SUBSTITUTE(\" \"&TablaLecciones['#],\" \"&TablaListaLecciones[[#This Row],['#]]&\".\",\"\"),0))","v":3},0,{"$f":"IFERROR(1-(TablaListaLecciones[[#This Row],[Sección - Section]]-TablaListaLecciones[[#This Row],[Progreso - Progress]])/TablaListaLecciones[[#This Row],[Sección - Section]],1)","v":0}]
["3.2","La casilla de abajo a la derecha siempre es de color claro. Es la casilla 81 en notación numérica y h1 en notación algebraica.","The bottom right square is always light in color. It is square 81 in numerical notation and h1 in algebraic notation.",null,18,{"$f":"VLOOKUP(TablaListaLecciones[[#This Row],['#]]&\".0\",TablaLecciones[],miIdioma+1,FALSE)","v":"Mate del loco"},{"$f":"MAX(IFERROR(--SUBSTITUTE(\" \"&TablaLecciones['#],\" \"&TablaListaLecciones[[#This Row],['#]]&\".\",\"\"),0))","v":3},0,{"$f":"IFERROR(1-(TablaListaLecciones[[#This Row],[Sección - Section]]-TablaListaLecciones[[#This Row],[Progreso - Progress]])/TablaListaLecciones[[#This Row],[Sección - Section]],1)","v":0}]
["3.3","Las 64 casillas, también denominadas \"escaques\", están en 8 filas y en 8 columnas, formando un tablero cuadrado.","The 64 squares are in 8 horizontal ranks and 8 vertical files, forming a square chessboard.",null,19,{"$f":"VLOOKUP(TablaListaLecciones[[#This Row],['#]]&\".0\",TablaLecciones[],miIdioma+1,FALSE)","v":"Mate de Legal"},{"$f":"MAX(IFERROR(--SUBSTITUTE(\" \"&TablaLecciones['#],\" \"&TablaListaLecciones[[#This Row],['#]]&\".\",\"\"),0))","v":3},0,{"$f":"IFERROR(1-(TablaListaLecciones[[#This Row],[Sección - Section]]-TablaListaLecciones[[#This Row],[Progreso - Progress]])/TablaListaLecciones[[#This Row],[Sección - Section]],1)","v":0}]
["3.4","En esta aplicación el tablero está representado por un único gráfico de Excel.","In this application the chessboard is represented by a single Excel chart.",null,20,{"$f":"VLOOKUP(TablaListaLecciones[[#This Row],['#]]&\".0\",TablaLecciones[],miIdioma+1,FALSE)","v":"Mate con celadas"},{"$f":"MAX(IFERROR(--SUBSTITUTE(\" \"&TablaLecciones['#],\" \"&TablaListaLecciones[[#This Row],['#]]&\".\",\"\"),0))","v":3},0,{"$f":"IFERROR(1-(TablaListaLecciones[[#This Row],[Sección - Section]]-TablaListaLecciones[[#This Row],[Progreso - Progress]])/TablaListaLecciones[[#This Row],[Sección - Section]],1)","v":0}]
["3.5","Las 8 filas se cuentan de abajo a arriba, con los números del 1 a 8, tanto en notación numérica como algebraica.","The 8 ranks are counted from bottom to top, with the numbers from 1 to 8, both in numerical and algebraic notation.",null,21,{"$f":"VLOOKUP(TablaListaLecciones[[#This Row],['#]]&\".0\",TablaLecciones[],miIdioma+1,FALSE)","v":"La partida de la Ópera"},{"$f":"MAX(IFERROR(--SUBSTITUTE(\" \"&TablaLecciones['#],\" \"&TablaListaLecciones[[#This Row],['#]]&\".\",\"\"),0))","v":3},0,{"$f":"IFERROR(1-(TablaListaLecciones[[#This Row],[Sección - Section]]-TablaListaLecciones[[#This Row],[Progreso - Progress]])/TablaListaLecciones[[#This Row],[Sección - Section]],1)","v":0}]
["3.6","Cambia la notación numérica o algebraica, tocando la celda P2. También se muestra la notación algebraica con figuras.","Change to numeric or algebraic notation by clicking on cell P2. You can also see the Figurine Algebraic Notation (FAN).",null,22,{"$f":"VLOOKUP(TablaListaLecciones[[#This Row],['#]]&\".0\",TablaLecciones[],miIdioma+1,FALSE)","v":"La Siempreviva"},{"$f":"MAX(IFERROR(--SUBSTITUTE(\" \"&TablaLecciones['#],\" \"&TablaListaLecciones[[#This Row],['#]]&\".\",\"\"),0))","v":2},0,{"$f":"IFERROR(1-(TablaListaLecciones[[#This Row],[Sección - Section]]-TablaListaLecciones[[#This Row],[Progreso - Progress]])/TablaListaLecciones[[#This Row],[Sección - Section]],1)","v":0}]
["3.7","Cuando juegues en campeonatos de ajedrez, debes anotar los movimientos en notación algebraica. ¡Aprende para ser campeón!","When you play in chess championships, you must write down the moves in algebraic notation. Learn it to become a champion!",null,23,{"$f":"VLOOKUP(TablaListaLecciones[[#This Row],['#]]&\".0\",TablaLecciones[],miIdioma+1,FALSE)","v":"La Inmortal de Rubinstein"},{"$f":"MAX(IFERROR(--SUBSTITUTE(\" \"&TablaLecciones['#],\" \"&TablaListaLecciones[[#This Row],['#]]&\".\",\"\"),0))","v":2},0,{"$f":"IFERROR(1-(TablaListaLecciones[[#This Row],[Sección - Section]]-TablaListaLecciones[[#This Row],[Progreso - Progress]])/TablaListaLecciones[[#This Row],[Sección - Section]],1)","v":0}]
["3.8","Si usas la notación numérica, las 8 columnas se numeran de izquierda a derecha con números: 1 2 3 4 5 6 7 8.","If you use numerical notation, the 8 files are numbered from left to right with numbers: 1 2 3 4 5 6 7 8.",null,24,{"$f":"VLOOKUP(TablaListaLecciones[[#This Row],['#]]&\".0\",TablaLecciones[],miIdioma+1,FALSE)","v":"Mi partida favorita"},{"$f":"MAX(IFERROR(--SUBSTITUTE(\" \"&TablaLecciones['#],\" \"&TablaListaLecciones[[#This Row],['#]]&\".\",\"\"),0))","v":2},0,{"$f":"IFERROR(1-(TablaListaLecciones[[#This Row],[Sección - Section]]-TablaListaLecciones[[#This Row],[Progreso - Progress]])/TablaListaLecciones[[#This Row],[Sección - Section]],1)","v":0}]
["3.9","Si usas la notación algebraica, las 8 columnas se identifican de izquierda a derecha con letras: a b c d e f g h.","Using algebraic notation, the 8 files are identified from left to right by letters: a b c d e f g h.",null,25,{"$f":"VLOOKUP(TablaListaLecciones[[#This Row],['#]]&\".0\",TablaLecciones[],miIdioma+1,FALSE)","v":"Combinaciones originales"},{"$f":"MAX(IFERROR(--SUBSTITUTE(\" \"&TablaLecciones['#],\" \"&TablaListaLecciones[[#This Row],['#]]&\".\",\"\"),0))","v":2},0,{"$f":"IFERROR(1-(TablaListaLecciones[[#This Row],[Sección - Section]]-TablaListaLecciones[[#This Row],[Progreso - Progress]])/TablaListaLecciones[[#This Row],[Sección - Section]],1)","v":0}]
["3.10","Toca la celda C25 para traer al frente el tablero. Toca alrededor del tablero para volver a mostrar todos los controles.","Click on cell C25 to bring the board to the front. Click around the board to show all the controls again.",null,26,{"$f":"VLOOKUP(TablaListaLecciones[[#This Row],['#]]&\".0\",TablaLecciones[],miIdioma+1,FALSE)","v":"Karpov-Kasparov"},{"$f":"MAX(IFERROR(--SUBSTITUTE(\" \"&TablaLecciones['#],\" \"&TablaListaLecciones[[#This Row],['#]]&\".\",\"\"),0))","v":2},0,{"$f":"IFERROR(1-(TablaListaLecciones[[#This Row],[Sección - Section]]-TablaListaLecciones[[#This Row],[Progreso - Progress]])/TablaListaLecciones[[#This Row],[Sección - Section]],1)","v":0}]
["3.11","Toca la celda C26 para cambiar el tipo de tablero: clásico o moderno.","Click on cell C26 to change the board theme: classical or modern.",null,27,{"$f":"VLOOKUP(TablaListaLecciones[[#This Row],['#]]&\".0\",TablaLecciones[],miIdioma+1,FALSE)","v":"Partidas guardadas"},{"$f":"MAX(IFERROR(--SUBSTITUTE(\" \"&TablaLecciones['#],\" \"&TablaListaLecciones[[#This Row],['#]]&\".\",\"\"),0))","v":8},0,{"$f":"IFERROR(1-(TablaListaLecciones[[#This Row],[Sección - Section]]-TablaListaLecciones[[#This Row],[Progreso - Progress]])/TablaListaLecciones[[#This Row],[Sección - Section]],1)","v":0}]
["3.12","Toca la celda C27 para cambiar el tipo de pantalla: completa o normal.","Click on cell C27 to change the screen type: full or normal.",null,"Total",{"$f":"SUBTOTAL(103,TablaListaLecciones[Lección - Lesson])","v":28},{"$f":"SUBTOTAL(109,TablaListaLecciones[Sección - Section])","v":188},{"$f":"SUBTOTAL(109,TablaListaLecciones[Progreso - Progress])","v":0},{"$f":"IFERROR(1-(TablaListaLecciones[[#Totals],[Sección - Section]]-TablaListaLecciones[[#Totals],[Progreso - Progress]])/TablaListaLecciones[[#Totals],[Sección - Section]],1)","v":0}]
["3.13","Toca la celda C28 para voltear el tablero de ajedrez y verlo desde la posición de las piezas negras.","Click on cell C28 to flip the chessboard and see it from the perspective of the black pieces."]
["3.14","Escribe en la celda C29 un valor entre 50% y 200% para cambiar el zoom del tablero.","Type in cell C29 a value between 50% and 200% to zoom in or out."]
["3.15","Practica seleccionando una de las 64 casillas, y verás la casilla seleccionada en la celda N3, en notación numérica o algebraica.","By selecting one of the 64 squares, you'll see the selected square in cell N3, in numerical or algebraic notation."]
["4.0","Los Reyes","Kings",null,{"$f":"INDEX(TablaListaLecciones['#],$H$34)","v":1},{"$f":"INDEX(TablaListaLecciones[Lección - Lesson],$H$34)","v":"Aprende ajedrez"},null,{"$f":"MIN(IF(TablaListaLecciones[Porcentaje - Percentage]<1,1,99)*IF(TablaListaLecciones['#]>0,TablaListaLecciones['#],1))+1","v":2},{"$f":"INDEX(TablaListaLecciones[Porcentaje - Percentage],$H$34)","v":0}]
["4.1","En el tablero de ajedrez siempre hay dos reyes: el blanco y el negro. Se identifican con la letra R. Las figuras de los reyes son: ♔ - ♚","On the chessboard there are always two kings: the white and the black. They are identified by the letter K. Kings are represented by: ♔ - ♚"]
["4.2","El rey es la única pieza que no puede ser capturada, ni siquiera haciendo jaque mate. Los reyes siempre están en el tablero.","The king is the only piece that cannot be captured, when it is checkmated. Kings are always on the chessboard.",null,{"$f":"IF($E$34=0,INDEX(TablaIdiomas[],102,miIdioma) & \" \n\" & INDEX(TablaIdiomas[],103,miIdioma),\nIF(AND($I$34=0,miLección>3),INDEX(TablaIdiomas[],104,miIdioma) & \"\n\n\",INDEX(TablaIdiomas[],102,miIdioma) & \"  \n\") & INDEX(TablaIdiomas[],105,miIdioma) & \" \" & $E$34 & \": \n\" & $F$34 & IF($I$34>0,\" \n\" & INDEX(TablaIdiomas[],106,miIdioma) & TEXT($I$34,\" 0% \") & INDEX(TablaIdiomas[],107,miIdioma),\".\"))","v":"Sugerencia:  \nContinua aprendiendo ajedrez con la Lección 1: \nAprende ajedrez."}]
["4.3","Cuando el rey es amenazado está en jaque, símbolo: +. Tu misión es eliminar la amenaza e impedir el jaque mate.","When the king is threatened it is in check, symbol: +. Your mission is to eliminate the threat and prevent checkmate."]
["4.4","Tu objetivo durante el juego es hacer jaque mate al rey contrario. Si no se puede eliminar el jaque, es jaque mate, símbolo: ++ o #","Your goal during the game is to checkmate the opposing king. If check cannot be prevented, it is checkmate, symbol: ++ or #"]
["4.5","El rey únicamente se puede mover a las casillas contiguas que no están ocupadas y que no están amenazadas de jaque.","The king can only be moved to adjacent squares that are not occupied and not threatened with check."]
["4.6","Toca la celda C19 para ver los movimientos válidos marcados con puntos. Las piezas se deben mover a casillas marcadas con un punto.","Click on cell C19 to see the valid moves marked with dots. Pieces must be moved to squares marked with a dot."]
["4.7","Toca la celda C20 para ver en color azul las casillas de origen y destino del último movimiento de una pieza.","Click on cell C20 to see the origin and destination squares (marked in blue) of the last movement of a piece."]
["4.8","Toca la celda C21 para que las piezas se mueven en cada jugada de forma continua entre las casillas.","Click on cell C21 so that the pieces move in each move continuously between the squares."]
["4.9","Toca la celda C22 para elegir la velocidad de movimiento de las piezas: 1-Mínima, 9-Máxima. Depende de la velocidad del procesador.","Click on cell C22 to choose the moving speed of the pieces: 1-Minimum, 9-Maximum. It depends on the speed of the processor."]
["4.10","Si únicamente quedan los dos reyes en el tablero, no se pueden dar jaque y la partida queda en tablas, símbolo: ½ – ½","If only the two kings remain on the board, they cannot be checked and the game is drawn, symbol: ½ – ½"]
["4.11","Si gana la partida el bando del rey blanco, se indica con el símbolo: 1-0. Si gana el bando del rey negro, se indica con el símbolo: 0-1","If the white king's side wins the game, it is indicated by the symbol: 1-0. If the black king's side wins, it is indicated by the symbol: 0-1"]
["4.12","La celda M3 indica el turno de la jugada, indicando si mueven las piezas blancas o las negras.","Cell M3 indicates the turn of the game, indicating whether the white or black pieces move."]
["4.13","La celda N3 indica qué pieza se ha tocado o se ha movido, y qué casilla ocupa, en notación numérica o algebraica.","Cell N3 indicates which piece has been touched or moved, and which square it occupies, in numerical or algebraic notation."]
["4.14","La lista de movimientos que vas haciendo se ven en las columnas Q y R. Es mas profesional verlos en notación algebraica, tocando la celda P2.","The list of moves can be found in the Q and R columns. It is more professional to see them in algebraic notation, clicking on cell P2."]
["4.15","La celda C8 cuenta las jugadas válidas. La celda C9 cuenta las jugadas inválidas, si intentas mover una pieza sin seguir las reglas del ajedrez.","Cell C8 counts valid moves. Cell C9 counts invalid moves, if you try to move a piece without following the chess rules."]
["4.16","La celda C7 indica el porcentaje de aciertos. Cuanto más alto sea el porcentaje, mejor sabrás jugar al ajedrez.","Cell C7 indicates the percentage of hits. The higher the percentage, the better you will know how to play chess."]
["4.17","En la lección 11 aprenderás cómo hacer el enroque con el rey y una de las torres del mismo bando.","In lesson 11 you will learn how to castle with the king and one of the rooks on the same side."]
["4.18","Practica moviendo los reyes, comenzando por el rey blanco. Intenta acercar los reyes entre sí lo más que puedas.","Practice moving the kings, starting with the white king. Try to bring the kings closer to each other as much as possible."]
["5.0","Las Torres","Rooks"]
["5.1","Al iniciar la partida cada rey tiene dos torres. Las torres blancas están en los extremos de la fila 1 y las torres negras en la fila 8.","At the start of the game each king has two rooks. The white rooks are at the ends of rank 1 and the black rooks at rank 8."]
["5.2","Las torres se identifican en notación algebraica con la letra T. Las figuras de las torres son: ♖ - ♜","The rooks are identified in algebraic notation with the letter R. Rooks are represented in Figurine notation by: ♖ - ♜"]
["5.3","En notación numérica: Las torres blancas ocupan las casillas o escaques 11 y 81. Las torres negras ocupan las casillas 18 y 88.","In numerical notation: White rooks occupy squares 11 and 81. Black rooks occupy squares 18 and 88."]
["5.4","En notación algebraica: Las torres blancas ocupan las casillas o escaques a1 y h1. Las torres negras ocupan las casillas a8 y h8.","In algebraic notation: White rooks occupy the squares a1 and h1. Black rooks occupy the a8 and h8 squares."]
["5.5","Puedes mover las torres horizontalmente tantas casillas como quieras, tanto hacia la izquierda como hacia la derecha.","You can move the rooks horizontally as many squares as you want, either to the left or to the right."]
["5.6","Puedes mover las torres verticalmente, tantas casillas como quieras, tanto hacia arriba como hacia abajo.","You can move the rooks vertically, as many squares as you like, both up and down."]
["5.7","Nunca puedes mover las torres en diagonal, únicamente puedes moverlas a casillas de su fila o de su columna.","You can never move rooks diagonally, you can only move them to squares on their rank or file."]
["5.8","Si las torres se encuentran con otra pieza blanca o negra, no pueden pasar por encima, como mucho pueden llegar a su lado.","If the rooks meet another white or black piece, they cannot pass over it, at most they can get to its side."]
["5.9","Si las torres se encuentran en su camino una pieza de distinto color, pueden capturarla, y la pieza capturada desaparece del tablero.","If the rooks find a piece of a different color in their path, they can capture it, and the captured piece disappears from the chessboard."]
["5.10","En la lección 11 aprenderás cómo hacer el enroque con el rey y una de las torres del mismo bando.","In lesson 11 you will learn how to castle with the king and one of the rooks on the same side."]
["5.11","Practica el movimiento de las torres. Comienza moviendo una torre blanca.","Practice the movement of the rooks. Start by moving a white rook."]
["6.0","Los Alfiles","Bishops"]
["6.1","Al iniciar la partida cada rey tiene un alfil colocado a su derecha y cada dama tiene un alfil colocado a su izquierda.","At the start of the game each king has a bishop placed to the right of it and each queen has a bishop placed to the left of it."]
["6.2","Los alfiles se identifican en notación algebraica con la letra A. Las figuras de los alfines son: ♗ - ♝","Bishops are identified in algebraic notation with the letter B. Bishops are represented in Figurine notation by: ♗ - ♝"]
["6.3","En notación numérica: Los alfiles blancos ocupan las casillas o escaques 31 y 61. Los alfiles negros ocupan las casillas 38 y 68.","In numerical notation: White bishops occupy squares 31 and 61. Black bishops occupy squares 38 and 68."]
["6.4","En notación algebraica: Los alfiles blancos ocupan las casillas o escaques c1 y f1. Los alfiles negros ocupan las casillas c8 y f8.","In algebraic notation: White bishops occupy the squares c1 and f1. Black bishops occupy the c8 and f8 squares."]
["6.5","Puedes mover los alfiles diagonalmente, tantas casillas como quieras, en cualquier sentido.","You can move the bishops diagonally, as many squares as you want, in any direction."]
["6.6","Nunca puedes mover los alfiles en horizontal o vertical por la misma fila o columna.","You can never move bishops horizontally or vertically along the same rank or file."]
["6.7","Si los alfiles se encuentran con otra pieza blanca o negra, no pueden pasar por encima, solo pueden llegar diagonalmente a su lado.","If the bishops meet another white or black piece, they cannot pass over it, they can only come diagonally to its side."]
["6.8","Si los alfiles se encuentran en su camino una pieza de distinto color, pueden capturarla, y la pieza capturada desaparece del tablero.","If the bishops find a piece of a different color in their way, they can capture it, and the captured piece disappears from the chessboard."]
["6.9","En la lección 7 aprenderás a mover la dama, que ahora está como espectadora del movimiento de los alfiles.","In lesson 7 you will learn how to move the queen, who is now watching the movement of the bishops."]
["6.10","Practica el movimiento de los alfiles. Comienza moviendo un alfil blanco.","Practice the movement of the bishops. You start by moving a white bishop."]
["7.0","Las Damas","Queens"]
["7.1","Al iniciar la partida cada rey tiene a su dama colocada a su izquierda. Es la pieza más poderosa del ajedrez. ¡Que no te la maten!","At the start of the game each king has his queen placed to its left. It is the most powerful piece in chess. Don't let them kill her!"]
["7.2","En la lección 12, sobre la coronación o promoción de peones, veremos que un rey puede disponer de dos o más damas de su color.","In Lesson 12, on promoting pawns, we will see that a king can have two or more queens of his color."]
["7.3","Las damas, llamadas también reinas, se identifican en notación algebraica con la letra D. Las figuras de las reinas son: ♕ - ♛","The queens are identified in algebraic notation by the letter Q. Queens are represented in Figurine notation by: ♕ - ♛"]
["7.4","En notación numérica: La dama blanca ocupa la casilla o escaque 41. La dama negra ocupa la casilla 48.","In numerical notation: White queen occupies square 41. Black queen occupies square 48."]
["7.5","En notación algebraica: La dama blanca ocupa la casilla o escaque d1. La dama negra ocupa la casilla d8.","In algebraic notation: White queen occupies square d1. Black queen occupies square d8."]
["7.6","Las damas se mueven con la combinación de movimientos de las torres y de los alfiles.","Queens move in a combination of rook and bishop movements."]
["7.7","Puedes mover las damas horizontalmente tantas casillas como quieras, tanto hacia la izquierda como hacia la derecha.","You can move the queens horizontally as many squares as you want, both to the left and to the right."]
["7.8","Puedes mover las damas verticalmente, tantas casillas como quieras, tanto hacia arriba como hacia abajo.","You can move the queens vertically, as many squares as you want, both up and down."]
["7.9","Puedes mover las damas diagonalmente, tantas casillas como quieras, en cualquier sentido.","You can move the queens diagonally, as many squares as you want, in any direction."]
["7.10","Si las damas se encuentran con otra pieza blanca o negra, no pueden pasar por encima, como mucho pueden llegar a su lado.","If the queens meet another white or black piece, they cannot pass over it, at most they can get to its side."]
["7.11","Si las damas se encuentran en su camino una pieza de distinto color, pueden capturarla, y la pieza capturada desaparece del tablero.","If the queens find a piece of a different color in their way, they can capture it, and the captured piece disappears from the chessboard."]
["7.12","Practica el movimiento de las damas. Comienza moviendo la dama blanca.","Practice the queen's move. Start by moving the white queen."]
["8.0","Los Caballos","Knights"]
["8.1","Al iniciar la partida cada rey tiene dos caballos. Los caballos son las únicas piezas que pueden pasar por encima de cualquiera.","At the start of the game each king has two knights. Knights are the only pieces that can go over anyone."]
["8.2","Los caballos se identifican en notación algebraica con la letra C. Las figuras de los caballos son: ♘ - ♞","Knights are identified in algebraic notation with the letter N. Knights are represented in Figurine notation by: ♘ - ♞"]
["8.3","En notación numérica: Los caballos blancos ocupan las casillas o escaques 21 y 71. Los caballos negros ocupan las casillas 28 y 78.","In numerical notation: White knights occupy squares 21 and 71. Black knights occupy squares 28 and 78."]
["8.4","En notación algebraica: Los caballos blancos ocupan las casillas o escaques b1 y g1. Los caballos negros ocupan las casillas b8 y g8.","In algebraic notation: White knights occupy squares b1 and g1. Black knights occupy squares b8 and g8."]
["8.5","El movimiento del caballo es especial. Se mueve una casilla en horizontal y dos en vertical o dos casillas en horizontal y una en vertical.","Knights' movement is special. They move one square horizontally and two vertically or two squares horizontally and one vertically."]
["8.6","El movimiento de los caballos es como si dibujaran una letra L, que puede rotar en cualquier sentido.","Knights' movement is as if they were drawing a letter L, which can rotate in any direction."]
["8.7","Los caballos pueden capturar piezas de distinto color, saltando por encima de otras. La pieza capturada desaparece del tablero.","Knights can capture pieces of different colors by jumping over others. The captured piece disappears from the chessboard."]
["8.8","Practica moviendo los caballos. Comienza moviendo un caballo blanco. Te sorprenderá hasta dónde puedes llegar con un caballo.","Practice moving the knights. Start by moving a white knight. You will be surprised how far you can go with a knight."]
["9.0","Los Peones","Pawns"]
["9.1","Al iniciar la partida cada rey tiene 8 peones, colocados en su fila superior para el rey blanco y en su fila inferior para el rey negro.","At the start of the game, each king has 8 pawns, placed on its top rank for the white king and on its bottom rank for the black king."]
["9.2","En el tablero se han colocado los reyes y los peones. Los peones blancos ocupan la fila 2 y los peones negros ocupan la fila 7.","The kings and pawns have been placed on the chessboard. White pawns occupy rank 2 and black pawns occupy rank 7."]
["9.3","Los peones no se identifican con ninguna letra en notación algebraica. Las figuras de los peones son: ♙ - ♟","Pawns are not identified by any letter in algebraic notation. Pawns are represented in Figurine notation by: ♙ - ♟"]
["9.4","Aprender a mover los peones es difícil, aunque te será más fácil si estudias esta lección repetidas veces.","Learning to move the pawns is difficult, although it will be easier if you study this lesson repeatedly."]
["9.5","Los peones siempre se mueven hacia adelante. Los peones blancos se mueven a filas superiores. Los negros a filas inferiores.","Pawns always move forward. White pawns move to higher ranks. Black pawns do to lower ranks."]
["9.6","Puedes mover los peones con estos 5 tipos de movimiento diferentes:","You can move the pawns with these 5 different types of movement:"]
["9.7","Primer tipo de movimiento: Puedes mover los peones blancos a la casilla superior si está libre. Los negros a la casilla libre inferior.","First move type: You can move the white pawns to the upper square if it is free. Black pawns do to the lower free square."]
["9.8","Segundo tipo de movimiento: La primera vez que muevas un peón blanco puede ir 2 filas hacia arriba. Los negros 2 filas hacia abajo.","Second move type: The first time you move a white pawn it can go 2 ranks up. Black pawns, 2 ranks down."]
["9.9","Tercer tipo de movimiento: Un peón puede capturar una pieza adversaria en cualquiera de los escaques diagonales en frente del peón.","Third move type: A pawn can capture an opponent's piece on any of the diagonal squares in front of the pawn."]
["9.10","Cuarto tipo de movimiento: En la lección 10 aprenderás la captura al paso entre peones.","Fourth move type: In lesson 10 you will learn the en passant capture between pawns."]
["9.11","Quinto tipo de movimiento: En la lección 12 aprenderás la coronación o promoción de peones, si consigues que lleguen a la última fila.","Fifth move type: In lesson 12 you will learn the coronation or promotion of pawns, if you manage to get them to the last opposite rank."]
["9.12","Practica moviendo los peones. Comienza moviendo un peón blanco una o dos filas hacia arriba.","Practice moving the pawns. Start by moving a white pawn one or two ranks up."]
["10.0","La captura al paso","En passant capture"]
["10.1","La captura al paso es una captura especial de un peón del otro bando. Puede ocurrir en cualquier momento durante la partida.","The en passant capture is a special capture of a pawn of the other side. It can happen at any time during the game."]
["10.2","Si un peón acaba de mover 2 filas hacia adelante, desde su posición inicial, un peón del bando contrario puede capturarlo en la siguiente jugada.","If a pawn has just moved 2 ranks forward, from its starting position, an opposing pawn can capture it on the next move."]
["10.3","Puedes capturar al paso un peón del otro bando si acaba de mover 2 filas y tu peón está a la derecha o a la izquierda.","You can en passant capture a pawn from the other side if it just moved 2 ranks and your pawn is on its left or right."]
["10.4","Coloca tu peón en la fila siguiente de la columna del peón capturado al paso, que desaparece del tablero.","Place your pawn on the next rank in the column of the en passant captured pawn, which disappears from the chessboard."]
["10.5","La captura al paso es como si el peón capturado avanza sólo una fila desde su posición inicial, en lugar de avanzar 2 filas.","En passant capture is as if the captured pawn advances only one rank from its starting position, instead of advancing 2 ranks."]
["10.6","Practica la captura al paso de peones. Comienza moviendo el peón blanco 2 filas hacia arriba, desde la casilla e2 hasta la casilla e4.","Practice en passant pawn's capture. Start by moving the white pawn 2 ranks up, from the e2 square to the e4 square."]
["11.0","El enroque","Castling"]
["11.1","El enroque se hace moviendo primero el rey y moviendo a continuación una de las torres del mismo color.","Castling is done by first moving the king and then moving one of the rooks of the same color."]
["11.2","En muchos programas de ajedrez, el enroque de un rey automáticamente mueve la torre a su casilla final de enroque.","In many chess programs, castling a king automatically moves the rook to its final castle square."]
["11.3","Esta aplicación es más real, obligando a mover primero el rey y a continuación la torre, que pasa por encima del rey.","This application is more realistic, forcing the king to move first and then the rook, which passes over the king."]
["11.4","Una de las reglas del enroque es que el rey y su torre no hayan sido movidos anteriormente durante la partida. ","One of the castling rules is that the king and his rook have not been moved before during the game."]
["11.5","No debe haber ninguna pieza entre el rey y la torre que se van a enrocar.","There should be no pieces between the king and the rook to be castled."]
["11.6","El rey con el que se va a hacer el enroque no debe estar en jaque.","The king that is going to be castled must not be in check."]
["11.7","Tampoco puede estar en jaque la casilla por la que pasa el rey durante el enroque.","Neither can the square the king passes through during castling be in check."]
["11.8","Tampoco puede estar en jaque la casilla donde quedará el rey después del enroque.","The square where the king will remain after castling cannot be in check either."]
["11.9","Hay dos tipos de enroque: el enroque corto y el enroque largo.","There are two types of castling: short castling and long castling."]
["11.10","En el enroque corto, el rey se mueve 2 casillas hacia la derecha y la torre se mueve 2 casillas hacia la izquierda.\nSe anota así: O-O","In short castling, the king moves 2 squares to the right and the rook moves 2 squares to the left.\r\nIt is written like this: O-O"]
["11.11","En el enroque largo, el rey se mueve 2 casillas hacia la izquierda y la torre se mueve 3 casillas hacia la derecha.\nSe anota así: O-O-O","In long castling, the king moves 2 squares to the left and the rook moves 3 squares to the right.\r\nIt is written like this: O-O-O"]
["11.12","El enroque únicamente lo puede hacer una vez cada bando. Una vez movido un rey, ya no se puede volver a enrocar.","Castling can only be done once by each side. Once a king has been moved, it can no longer be castled."]
["11.13","El enroque es un movimiento opcional en el juego del ajedrez. Uno o los dos bandos puede que no hagan enroque en toda la partida.","Castling is an optional move in the game of chess. One or both sides may or may not castle for the entire game."]
["11.14","Practica el enroque de cada bando con el rey, su dama y una de sus dos torres.","Practice castling each side with the king, his queen, and one of his two rooks."]
["12.0","La promoción de peón","Pawn promotion"]
["12.1","La coronación o promoción de un peón hace que desaparezca del tablero y sea sustituido por una pieza de mayor valor.","The promotion of a pawn makes the pawn disappear from the chessboard. Then, it is replaced by a piece of higher value."]
["12.2","Si un peón blanco llega a una casilla de la fila 8, tienes que elegir la pieza blanca que sustituye al peón: una dama, torre, alfil o caballo.","If a white pawn reaches a square on rank 8, you have to choose the white piece that replaces the pawn: a queen, rook, bishop or knight."]
["12.3","Si un peón negro llega a una casilla de la fila 1, tienes que elegir la pieza negra que sustituye al peón: una dama, torre, alfil o caballo.","If a black pawn reaches a square on rank 1, you have to choose the black piece that replaces the pawn: a queen, rook, bishop or knight."]
["12.4","La pieza elegida ocupará la misma casilla que el peón promocionado o coronado, y el peón desaparece del tablero.","The chosen piece will occupy the same square as the promoted pawn, and the pawn disappears from the chessboard."]
["12.5","En notación numérica se añade un quinto dígito para indicar la promoción: 1-Dama; 2-Torre; 3-Alfil; 4-Caballo.","In numerical notation a fifth digit is added to indicate the promotion: 1-Queen; 2-Rook; 3-Bishop; 4-Knight."]
["12.6","En notación algebraica se añade el signo igual después de anotar la casilla donde el peón es coronado: =D ó =T ó =A ó =C","In algebraic notation the equals sign is added after noting the square where the pawn is promoted: =Q or =R or =B or =N"]
["12.7","En notación algebraica con figuras se añade el signo igual y la figura promocionada: =♕, =♖, =♗, =♘, =♛, =♜, =♝, =♞","In Figurine Algebraic Notation (FAN), an \"equal\" sign and the promoted piece symbol are added: =♕, =♖, =♗, =♘, =♛, =♜, =♝, =♞"]
["12.8","Si consigues promocionar todos los peones puede haber 9 damas o 10 torres o 10 alfiles o 10 caballos en cada bando.","If you manage to promote all the pawns there can be 9 queens or 10 rooks or 10 bishops or 10 knights on each side."]
["12.9","LIMITACIÓN:  El peón promocionado se sustituye por la pieza de más valor previamente capturada. No se puede elegir la pieza.","LIMITATION: The promoted pawn is replaced by the most valuable piece previously captured. You cannot choose the piece."]
["12.10","Practica la coronación o promoción de peones, moviendo un peón blanco en primer lugar.","Practice promoting pawns, moving a white pawn first."]
["13.0","Posición sin orden","Unordered position"]
["13.1","En esta lección las 16 piezas blancas y las 16 piezas negras están colocadas en el tablero aleatoriamente.","In this lesson the 16 white pieces and the 16 black pieces are randomly placed on the chessboard."]
["13.2","Puede ser que los reyes estén en jaque, lo que hay que tratar de evitar como sea, moviendo el rey o una pieza que elimine la amenaza.","It may be that the kings are in check, which you have to try to avoid at all costs, moving the king or a piece that eliminates the threat."]
["13.3","Aleatoriamente puede haber peones blancos en la fila 8 y peones negros en la fila 1, que no han promocionado y que no se pueden mover.","After randomization, there can be white pawns on rank 8 and black pawns on rank 1, which have not been promoted and cannot be moved."]
["13.4","Con las piezas colocadas aleatoriamente puedes jugar una partida muy loca, con la que practicarás los movimientos de las piezas.","With the randomly placed pieces you can play a very crazy game, with which you will practice the movements of the pieces."]
["13.5","Toca el botón de retroceso, de abajo a la izquierda, para volver a colocar las 32 piezas desordenadas aleatoriamente en el tablero.","Click on the back button, on the bottom left, to re-arrange the 32 randomly scrambled pieces on the chessboard."]
["13.6","Si das jaque mate ya no podrás mover ninguna pieza. Juega otra partida tocando el botón de retroceso, de abajo a la izquierda.","If you give checkmate you will no longer be able to move any pieces. Play another game by clicking on the back button on the bottom left."]
["13.7","Practica el movimiento de cualquier pieza, comenzando por una pieza blanca. ¡Intenta que tu rey no esté en jaque!","Practice moving any piece, starting with a white piece. Try to keep your king out of check!"]
["14.0","Posición inicial","Initial position"]
["14.1","En este tablero puedes observar la posición inicial de cada una de las piezas de cada bando al comienzo de una partida de ajedrez.","On this chessboard you can see the initial position of each of the pieces of each side at the beginning of a chess game."]
["14.2","Aprende y recuerda la posición inicial de cada pieza blanca o negra, pues una partida de ajedrez siempre debe comenzar así.","Learn and remember the starting position of each white or black piece, because a chess game should always start like this."]
["14.3","Las piezas blancas se colocan en la fila 1 y los peones blancos en la fila 2. Las piezas negras en la fila 8 y los peones negros en la fila 7.","White pieces are placed on rank 1 and white pawns on rank 2. Black pieces on rank 8 and black pawns on rank 7."]
["14.4","Los reyes en la quinta columna. El rey blanco en la casilla 51 de la fila 1. El rey negro en la casilla 58 de la fila 8.","The kings are placed in the fifth file. The white king on square 51 of rank 1. The black king on square 58 of rank 8."]
["14.5","Las damas en la cuarta columna. La dama blanca en la casilla 41 de la fila 1. La dama negra en la casilla 48 de la fila 8.","The queens are placed in the fourth file. The white queen on square 41 of rank 1. The black queen on square 48 of rank 8."]
["14.6","Los alfiles en la tercera y sexta columna. Los alfiles blancos en las casillas 31 y 61 de la fila 1. Los negros en 38 y 68 de la fila 8.","The bishops are placed in the third and sixth files. White bishops on squares 31 and 61 of rank 1. Black bishops on squares 38 and 68 of rank 8."]
["14.7","Los caballos en la segunda y séptima columna. Los blancos en las casillas 21 y 71 de la fila 1. Los negros en 28 y 78 de la fila 8.","The knights are placed in the second and seventh files. White knights on squares 21 and 71 of rank 1. Black knights on squares 28 and 78 of rank 8."]
["14.8","Las torres en la primera y octava columna. Las blancas en las casillas 11 y 81 de la fila 1. Las negras en 18 y 88 de la fila 8.","The rooks are placed in the first and eighth files. White rooks on squares 11 and 81 of rank 1. Black rooks on squares 18 and 88 of rank 8."]
["14.9","Los 8 peones se colocan en las 8 columnas. Los peones blancos en la fila 2. Los peones negros en la fila 7.","The 8 pawns are placed on the 8 files. White pawns on rank 2. Black pawns on rank 7."]
["14.10","Una regla básica del ajedrez es: \"Pieza tocada, pieza movida\". Si intentas mover a posiciones inválidas, se incrementa el valor de la celda C9.","A basic rule of chess is: \"Piece touched, piece moved.\" If you try to move to invalid positions, the value of cell C9 is incremented."]
["14.11","Si tocas una pieza que no se puede mover, o tocas una pieza enemiga o una casilla vacía, puedes tocar otra pieza distinta.","If you touch a piece that cannot move, or touch an enemy piece or an empty square, you can touch a different piece."]
["14.12","En cada jugada cambia el turno del juego, alternando movimientos de piezas blancas y negras. La celda M3 avisa si toca jugar blancas o negras.","After each move the turn of the game changes, alternating movements of white and black pieces. Cell M3 warns if it's time for white or black to move."]
["14.13","Comienza siempre así una partida. El primer movimiento debe ser de un peón o de un caballo blanco. ¡Mejor usa la notación algebraica!","This is how a game always starts. The first move must be a white pawn or knight. Better use algebraic notation!"]
["14.14","Para abandonar la partida toca el botón de retroceso, de abajo a la izquierda, y las piezas vuelven a su posición inicial.","To leave the game, touch the back button, from the bottom left, and the pieces return to their initial position."]
["15.0","Jaque al rey","Checking the king"]
["15.1","Tienes 8 posibilidades de dar jaque al rey negro con:\nDama: Da8+ o Dc8+ o Df1+\nTorre: Ta3+\nAlfil: Ae2+ o Ac8+\nCaballo: Cb4+ o Cc7+","You have 8 chances to check the black king with:\r\nQueen: Qa8+ or Qc8+ or Qf1+\r\nRook: Ra3+\r\nBishop: Be2+ or Bc8+\r\nKnight: Nb4+ or Nc7+"]
["15.2","Practica todos los jaques al rey negro. Como el rey aún puede moverse, no es jaque mate. Toca el botón de retroceso para hacer otro jaque distinto.","Practice all checks on the black king. Since the king can still move, it is not checkmate. Tap the back button to make a different check."]
["16.0","Rey ahogado","Stalemate"]
["16.1","El rey ahogado hay que evitarlo. Ocurre si un bando no puede mover ninguna pieza sin estar en jaque. Automáticamente son tablas.","The stalemate must be avoided. It occurs if one side cannot move any pieces without being in check. The game is automatically drawn."]
["16.2","Mueve el caballo a c7, casilla 37. Toca el rey y el peón negros, ¡no puedes moverlos!. El rey no está en jaque, ¡el rey está ahogado! ","Move the knight to c7, square 37. Touch the black king and the pawn. Check that you can't move them! The king is not in check, it is stalemate!"]
["17.0","Mate del pastor","Scholar's Mate"]
["17.1","Cuenta la leyenda que un rey aventurero jugó una partida de ajedrez contra un pastor de ovejas que le dio mate en 4 jugadas.","Legend has it that an adventurous king played a game of chess against a sheep herder who gave him checkmate in 4 moves."]
["17.2","Aprende el mate del pastor jugando los movimientos que aparecen en la celda M27. Comienza moviendo el peón blanco a e4, casilla 54.","Learn the Scholar's Mate by playing the moves that appear in cell M27. Start by moving the white pawn to e4, square 54."]
["17.3","La dama blanca va al lado del rey negro para darle jaque mate. El rey negro no puede capturar a la dama blanca, defendida por el alfil en c4.","The white queen goes to the side of the black king to checkmate him. The black king cannot capture the white queen, defended by the bishop on c4."]
["18.0","Mate del loco","Fool's mate"]
["18.1","El jaque mate del loco es el más rápido de una partida de ajedrez. Las negras lo pueden hacer en 2 jugadas. Las blancas en 3 jugadas.","The fool's mate is the fastest checkmate in a game of chess. Black side can do it in 2 moves. White side in 3 moves."]
["18.2","Practica el mate del loco con 3 jugadas de las blancas. No muevas los peones f y g, dejando la diagonal destapada a la dama contraria.","Practice the fool's mate with 3 moves by white side. Don't move the f and g pawns, leaving the diagonal open to the opposing queen."]
["18.3","Aprende el mate del loco jugando los movimientos que aparecen en la celda M27. Comienza moviendo el peón blanco a e4, casilla 54.","Learn the fool's mate by playing the moves that appear in cell M27. Start by moving the white pawn to e4, square 54."]
["19.0","Mate de Legal","Légall Trap"]
["19.1","El mate de Legal demuestra que puedes perder una partida aunque captures la dama. ¡Mucho cuidado con las piezas enemigas!","Légall trap shows that you can lose a game even if you capture the queen. Be very careful with the enemy pieces!"]
["19.2","Aprende el mate de Legal jugando los movimientos que aparecen en la celda M27. Comienza moviendo el peón blanco a e4, casilla 54.","Learn Légall mate by playing the moves listed in cell M27. He starts by moving the white pawn to e4, square 54."]
["19.3","Las negras capturan a la dama blanca: 5. Cxe5 Axd1, pero el caballo da jaque mate al rey negro en dos jugadas: 6. Axf7+ Re7, 7. Cd5#","Black captures the white queen: 5. Nxe5 Bxd1, but the knight checkmates the black king in two moves: 6. Bxf7+ Ke7, 7. Nd5#"]
["20.0","Mate con celadas","Checkmate traps"]
["20.1","Una celada en ajedrez es caer en la trampa preparada por las piezas enemigas. Por ejemplo, cedes la dama y después das jaque mate.","A trap in chess is to fall into the trap prepared by the enemy pieces. For example, you yield the queen and then give checkmate."]
["20.2","En esta partida las negras regalan un alfil, consiguiendo jaque mate en el siguiente movimiento: 8. axb4 Cd3#","In this game Black gives away a bishop, getting checkmate on the next move: 8. axb4 Nd3#"]
["20.3","El peón en e2 no puede capturar al caballo negro que da jaque mate, pues entonces la dama negra haría jaque mate.","The pawn on e2 cannot capture the checkmating black knight, as the black queen would then checkmate."]
["21.0","La partida de la Ópera","The Opera game"]
["21.1","La partida de la Ópera demuestra lo que es realmente el arte del ajedrez, con un sacrificio excelente y un ataque brutal.","The Opera game demonstrates what the art of chess really is, with an excellent sacrifice and a brutal attack."]
["21.2","A las blancas solamente les queda la torre y el alfil pero son suficientes para dar jaque mate, en una posición excelente e increible.","White only has the rook and the bishop left but they are enough to give checkmate, in an excellent and incredible position."]
["21.3","Con 16. Db8+ Cxb8 ¡es increible el jaque sacrificando la dama blanca! 17.Td8# Jaque mate 1–0 ¡Las negras han pagado cara la osadía!","With 16. Qb8+ Nxb8 the check by sacrificing the white queen is incredible! 17.Rd8# Checkmate 1–0 Black has paid dearly for his daring!"]
["22.0","La Siempreviva","The Evergreen Game"]
["22.1","Esta partida es una de las más famosas de la historia del ajedrez y debería ser de las primeras que debe aprender un aficionado o principiante.","This game is one of the most famous in the history of chess and should be one of the first that an amateur or beginner should learn."]
["22.2","Las blancas dan jaque mate con un alfil, aún sacrificando su dama y una torre, y siendo amenazadas por la dama negra con mate, si captura el peón en g2.","White checkmates with a bishop, still sacrificing his queen and a rook, and being threatened by the black queen with mate, if she captures the pawn on g2."]
["23.0","La Inmortal de Rubinstein","Rubinstein's Immortal Game"]
["23.1","La Inmortal de Rubinstein muestra un dominio magistral de la pareja de alfiles, con la combinación más espectacular de todos los tiempos.","Rubinstein's Immortal game shows a masterful command of the pair of bishops, with the most spectacular combination of all time."]
["23.2","Con 22...Txc3!! y 23...Td2!! Las negras perdieron su dama y casi todas sus piezas están atacadas y, aún así, ganan la partida:\n25. Dg2 Th3 0-1","With 22...Rxc3!! and 23...Rd2!! Black lost his queen and almost all of his pieces are attacked and still wins the game:\r\n25. Qg2 Rh3 0-1"]
["24.0","Mi partida favorita","My favorite game"]
["24.1","La partida Kasparov-Topalov. Defensa Pirc-Ufimtsev (B07), es considerada una de las más hermosas de los últimos tiempos.","The Kasparov-Topalov game. Pirc-Ufimtsev Defense (B07), is considered one of the most beautiful of recent times."]
["24.2","Kasparov, aunque sacrificó muchas piezas en el medio juego, consiguió que las negras abandonaran. ¡Por eso es mi partida favorita!","Kasparov, although sacrificing many pieces in the middlegame, managed to get black to resign. That's why it's my favorite game!"]
["25.0","Combinaciones originales","Original combinations"]
["25.1","Esta partida es de una gran belleza pues, jugada al más alto nivel, contiene varias combinaciones contrarias a la intuición.","This game is of great beauty as, played at the highest level, it contains several counter-intuitive combinations."]
["25.2","Las negras muestran un excepcional ataque, especialmente 16...Cde5!!, pues las piezas negras se abren paso y no pueden contenerse.","Black shows an exceptional attack, especially 16...Nde5!!, as the black pieces break through and cannot hold back."]
["26.0","Karpov-Kasparov","Karpov–Kasparov"]
["26.1","Si estudias esta partida, puede que se te contagien la brillantez y la magia de sus movimientos. Hay mucho que aprender de esta partida.","If you study this game, you might be infected by the brilliance and magic of its moves. There is a lot to learn from this game."]
["26.2","Karpov abandonó ante:\n28 Tg1 Af5+\n29 Rb2 Cd1+\n30 Ra1 Cxb3#\nY verás ¡un tremendo jaque mate entre 4 caballos!","Karpov resigned before:\n28 Rg1 Bf5+\n29 Kb2 Nd1+\n30 Ka1 Nxb3#\nAnd you will see a tremendous checkmate between 4 knights!"]
["27.0","Partidas guardadas","Saved games"]
["27.1","Juega una partida y guárdala para crear tu propia base de datos de partidas de ajedrez.\n¡Como los grandes maestros del ajedrez!","Play a game and save it to create your own chess games database.\nLike the great chess masters!"]
["27.2","Toca los botones del rango O17:O20 para ir a la partida: primera; anterior; siguiente o última. O escribe su número en la celda N16.","Use the buttons in the range O17:O20 to go to the game: first; previous; next or last. Or you can write its number in cell N16."]
["27.3","Reproduce las jugadas de una partida, siguiendo las instrucciones con el siguiente movimiento en la celda M27, o su notación algebraica en la celda M28.","Replay the moves of a game, following the instructions with the next move in cell M27, or their algebraic notation in cell M28."]
["27.4","Oculta o muestra las jugadas, con los movimientos anotados durante la partida, tocando el botón de información en la celda de la columna S, fila 2.","Hide or show the moves, with the moves noted during the game, by touching the info button in the cell in column S, row 2."]
["27.5","Si en la columna S fila 3 hay un botón mano solo puedes ver los movimientos reproducidos hasta ahora. Si hay un botón libro puedes ver toda la partida guardada.","If there is a hand icon in column S, row 3, you can only see the moves played so far. If there is a book icon, you can see the entire saved game."]
["27.6","Escribe un número de jugada en la celda P4 y verás 25 jugadas. Toca los botones de la columna S, filas 4 a 9, para ver 25 jugadas.","Type a move number in cell P4 and you will see 25 moves. Use the buttons in column S, rows 4 to 9, to see 25 moves."]
["27.7","Juega una partida contra ti mismo o contra un adversario, moviendo las piezas por el tablero, y luego podrás guardarla grabándola.","Play a game against yourself or an opponent, moving the pieces around the chessboard, and then you can save it into the database."]
["27.8","Toca el botón de grabación en la celda O16. Escribe el nombre de la partida en la celda M17 y los datos de la partida en el rango M19:M26.","Click on the record button in cell O16. Type the name of the game in cell M17 and the game data in the range M19:M26."]

{"sheet":"Languages","index":5,"n_rows":243,"n_cols":2,"rows_kept":243,"cut":false,"hidden":true,"merged":[]}
["Español","English"]
["Aprende Ajedrez","Learn Chess"]
["con Excel","with Excel"]
["Jugador","Player"]
["Jugadas","Plays"]
["Aciertos","Hit rate"]
["Válidas","Valid"]
["Inválidas","Invalid"]
["Movimiento","Movement"]
["Válido","Valid"]
["Último","Latest"]
["Piezas","Pieces"]
["Velocidad","Speed"]
["Sí","Yes"]
["No","No"]
["Tablero","Chessboard"]
["Al frente","In front"]
["Estilo","Style"]
["Pantalla","Screen"]
["Moderno","Modern"]
["Clásico","Classical"]
["Normal","Normal"]
["Completa","Full"]
["Autor del blog:","Blog Author:"]
["Canal de YouTube:","YouTube channel:"]
["Idea original de:","Original idea by:"]
["Imagen piezas ajedrez:","Image of chess pieces:"]
["Turno","Turn"]
["Pieza Casilla","Piece Square"]
["Blancas","White"]
["Negras","Black"]
["Partida","Game"]
["Numérica","Numeric"]
["Algebraica","Algebraic"]
["Notación","Notation"]
["Notación Numérica","Numerical Notation"]
["Notación Algebraica","Algebraic Notation"]
["Test","Test"]
["Partida Guardada","Game Saved"]
["Tablero de ajedrez - Gráfico de columnas apiladas","Chessboard - Stacked Column Chart"]
["Piezas blancas - Gráfico de líneas con marcadores pero sin líneas","White pieces - Line chart with markers but no lines"]
["Piezas negras - Gráfico de líneas con marcadores pero sin líneas","Black pieces - Line chart with markers but no lines"]
["Mover piezas blancas - Gráfico de dispersión","Move white pieces - Scatter Plot"]
["Mover piezas negras - Gráfico de dispersión","Move black pieces - Scatter Plot"]
["Marcas en el tablero - Gráfico de dispersión","Chessboard marks - Scatter Plot"]
["Movimiento","Movement"]
["Celda","Cell"]
["Columna","Column"]
["Serie","Serie"]
["Valor X","X-Value"]
["Valor Y","Y-Value"]
["Casilla","Square"]
["Serie Pieza","Series Piece"]
["Color","Color"]
["Serie Captura","Capture Series"]
["Mover","Move"]
["Coordenadas","Coordinates"]
["Desambiguación","Disambiguation"]
["Promoción de peón","Pawn promotion"]
["Corona","Crown"]
["Promo","Promo"]
["Aleatorio","Random"]
["Número","Number"]
["Color1","Color1"]
["Color2","Color2"]
["Alfiles","Bishops"]
["Piezas","Pieces"]
["Vacía","Empty"]
["Reyes","Kings"]
["Torres","Rooks"]
["Alfiles","Bishops"]
["Damas","Queens"]
["Caballos","Knights"]
["Peones","Pawns"]
["Captura al paso","En passant capture"]
["Enroque","Castling"]
["Promoción de peón","Pawn promotion"]
["Sin orden","Unordered position"]
["Jaque al rey","Checking the king"]
["Rey ahogado","Stalemate"]
["Inicial","Initial"]
["Posición anterior","Previous position"]
["Piezas blancas - Gráfico de líneas con marcadores pero sin líneas","White pieces - Line chart with markers but without lines"]
["Piezas negras - Gráfico de líneas con marcadores pero sin líneas","Black pieces - Line chart with markers but without lines"]
["Capturas","Captures"]
["Suma","Addition"]
["Nueva","New"]
["Fuera","Outside"]
["Contra","Against"]
["Válida","Valid"]
["Jaque","Check"]
["Enroque en filas 2, 4, 11 y 12","Castling in rows 2, 4, 11 and 12"]
["Últimas 2 filas para enroque","Last 2 rows to castle"]
["NOTA: El rey no puede estar,","NOTE: The king cannot be,"]
["pasar o ir a una casilla en jaque","go through or to a square in check"]
["Primeras 4 filas para Pb","First 4 rows for white pawn"]
["Segundas 4 filas para Pn","Second 4 rows for black pawn"]
["Últimas 2 filas para","Last 2 rows for"]
["captura al paso del peón","en passant capture"]
["captura","capture"]
["al paso","en passant"]
["Todas las lecciones","All lessons"]
["Sugerencia:","Suggestion:"]
["Juega partidas, grábalas y reprodúcelas para seguir aprendiendo a jugar al ajedrez y llegar a ser un gran maestro algún día.","Play games, record them and replay them to continue learning to play chess and become a grandmaster one day."]
["Practica sin ver los movimientos válidos.","Practice without seeing the valid moves."]
["Continua aprendiendo ajedrez con la Lección","Continue learning chess with the Lesson"]
["con un","Progress: "]
["de progreso."]
["Mate del pastor","Scholar's Mate"]
["Mate del loco","Fool's mate"]
["Mate de Legal","Légall Trap"]
["Mate con celadas","Checkmate traps"]
["La partida de la Ópera","The Opera game"]
["La Siempreviva","The Evergreen Game"]
["La inmortal de Rubinstein","Rubinstein's Immortal Game"]
["Mi partida favorita de todos los tiempos","My favorite game of all time"]
["Combinaciones contrarias a la intuición","Counterintuitive Combinations"]
["Karpov-Kasparov en Linares","Karpov-Kasparov in Linares"]
["Carlsen-Niemann en Sinquefield Cup","Carlsen-Niemann at Sinquefield Cup"]
["[Event \"Duque del ajedrez\"]","[Event \"Duke of Chess\"]"]
["[Site \"Camino real\"]","[Site \"Royal road\"]"]
["[White \"Pastor de ovejas\"]","[White \"Sheep Herder\"]"]
["[Black \"Rey aventurero\"]","[Black \"Adventurer King\"]"]
["El alfil protegía a la dama.","The bishop protected the queen."]
["¡El rey ha muerto, larga vida al rey!","The King is dead, long live The King!"]
["El rey no tiene escapatoria.","The king has no escape."]
["Jaque mate tramposo.","Cheating checkmate."]
["Jaque mate con menos piezas.","Checkmate with fewer pieces."]
["El peón defendía al alfil.","The pawn defended the bishop."]
["La Inmortal no será olvidada.","The Immortal will not be forgotten."]
["¡Y las negras se rindieron!","And black surrendered!"]
["¡Y las blancas abandonan!","And white resigns!"]
["Las blancas están perdidas.","White is lost."]
["¿Se habrán hecho trampas?","Will there be cheating?"]
["Idioma","Language"]
["Zoom","Zoom"]
["COPYRIGHT:","COPYRIGHT:"]
["Eje X","X axis"]
["Fila","Rank"]
["Rb","Kw"]
["Rn","Kb"]
["Db","Qw"]
["Dn","Qb"]
["Ab","Bw"]
["An","Bb"]
["Cb","Nw"]
["Cn","Nb"]
["Tb","Rw"]
["Tn","Rb"]
["Pb","Pw"]
["Pn","Pb"]
["MoverPb","MovePw"]
["MoverAb","MoveBw"]
["MoverTb","MoveRw"]
["MoverCb","MoveNw"]
["MoverDb","MoveQw"]
["MoverRb","MoveKw"]
["MoverPn","MovePb"]
["MoverAn","MoveBb"]
["MoverTn","MoveRb"]
["MoverCn","MoveNb"]
["MoverDn","MoveQb"]
["MoverRn","MoveKb"]
["Piezas Blancas","White Pieces"]
["Piezas Negras","Black Pieces"]
["Pieza","Piece"]
["R","K"]
["D","Q"]
["T","R"]
["A","B"]
["C","N"]
["P","P"]
["b","w"]
["n","b"]
["Color blanco","White color"]
["Aprende Ajedrez con Excel","Learn Chess with Excel"]
["Jaque mate","Checkmate"]
["Este movimiento no coindice con el de la partida.","This movement does not coincide with the one in the game."]
["¿Quieres retroceder al movimiento anterior?","Do you want to go back to the previous move?"]
["No puedes grabar esta partida porque","You can't save this game because"]
["no comienza en la posición inicial.","it doesn't start at the starting position."]
["aún no has hecho ningún movimiento.","you haven't made a move yet."]
["aún no has introducido su nombre en la celda M17.","you haven't entered their name in cell M17 yet."]
["¿Quieres grabar la partida?","Do you want to record your game?"]
["¡No funcionan los controles mientras grabas la partida!","The controls do not work while recording a game!"]
["Introduce datos de la partida en el rango M17:M26","Enter game data in the range M17:M26"]
["y toca de nuevo la celda O16 con el botón de grabación.","and click on cell O16 again with the record button."]
["Vale","OK"]
["PosA","PosA"]
["Ambiguo","Ambiguous"]
["Mate","Checkmate"]
["Lección","Lesson"]
["Sección","Section"]
["¡Aprende Ajedrez con Excel!","Learn Chess with Excel!"]
["Elige una de las lecciones con el desplegable de la celda M6.","Choose one of the lessons using the dropdown list in cell M6."]
["O mejor, toca el botón de abajo a la derecha, celda N14, para ir a la Lección 1.","Or even better, click the bottom right button, cell N14, to go to Lesson 1."]
["Aprende a jugar ajedrez con 27 lecciones en una hoja de cálculo de Excel.","Learn to play chess with 27 lessons in an Excel spreadsheet."]
["Comienza por la Lección 1, tocando el botón en N14.","Start with Lesson 1 by clicking the button in N14."]
["Genera","Generate"]
["Instrucciones","Instructions"]
["TbL","RwL"]
["TbC","RwS"]
["TnL","RbL"]
["TnC","RbS"]
["DTAC","QRBN"]
["Rg1Tf1","Kg1Rf1"]
["Rg8Tf8","Kg8Rf8"]
["Rc1Td1","Kc1Rd1"]
["Rc8Td8","Kc8Rd8"]
["Instrucciones traducidas","Translated Instructions"]
["Rey blanco","White king"]
["Dama blanca","White queen"]
["Torre blanca","White rook"]
["Alfil blanco","White bishop"]
["Caballo blanco","White knight"]
["Peón blanco","White pawn"]
["Rey negro","Black king"]
["Dama negra","Black queen"]
["Torre negra","Black rook"]
["Alfil negro","Black bishop"]
["Caballo negro","Black knight"]
["Peón negro","Black pawn"]
["Enroque largo de las blancas","White castling long"]
["Enroque corto de las blancas","White castling short"]
["Enroque largo de las negras","Black castling long"]
["Enroque corto de las negras","Black castling short"]
["¡Jaque mate!","Checkmate!"]
["¡Jaque doble!","Double check!"]
["¡Jaque!","Check!"]
["Promociona a dama","Promote to queen"]
["Promociona a torre","Promote to rook"]
["Promociona a alfil","Promote to bishop"]
["Promociona a caballo","Promote to knight"]
[" de "," from "]
[" a "," to "]
[" por "," by "]
["Partidas guardadas","Saved games"]
["Puedes estudiar partidas a partir de la lección 17","You can study games starting from lesson 17"]
["Notación Algebraica con Figuras","Figurine Algebraic Notation"]
["Notación con Figuras","Figurine Notation"]
["Este movimiento es inválido porque deja al rey propio en jaque","This move is invalid because it leaves your own king in check"]
["Volteado","Flipped"]
["Hojas","Sheets"]

{"sheet":"Pieces","index":6,"n_rows":13,"n_cols":7,"rows_kept":13,"cut":false,"hidden":true,"merged":[]}
["Figurines","Español","English","Française","Italiano","Deutsch","Português"]
["♔","R","K","R","R","K","R"]
["♕","D","Q","D","D","D","D"]
["♖","T","R","T","T","T","T"]
["♗","A","B","F","A","L","B"]
["♘","C","N","C","C","S","C"]
["♙","P","P","P","P","B","P"]
["♚","r","k","r","r","k","r"]
["♛","d","q","d","d","d","d"]
["♜","t","r","t","t","t","t"]
["♝","a","b","f","a","l","b"]
["♞","c","n","c","c","s","c"]
["♟","p","p","p","p","b","p"]

{"sheet":"Games","index":7,"n_rows":110,"n_cols":13,"rows_kept":110,"cut":false,"hidden":true,"merged":[]}
[{"$f":"IF(Valor_Partida=0,\"\",IFERROR(SUBSTITUTE(INDEX(misPartidas,ROW(),Valor_Partida+1),CHAR(160),CHAR(32))&\"\",\"\"))","v":""},{"$f":"INDEX(TablaIdiomas[],108,miIdioma)","v":"Mate del pastor"},{"$f":"INDEX(TablaIdiomas[],109,miIdioma)","v":"Mate del loco"},{"$f":"INDEX(TablaIdiomas[],110,miIdioma)","v":"Mate de Legal"},{"$f":"INDEX(TablaIdiomas[],111,miIdioma)","v":"Mate con celadas"},{"$f":"INDEX(TablaIdiomas[],112,miIdioma)","v":"La partida de la Ópera"},{"$f":"INDEX(TablaIdiomas[],113,miIdioma)","v":"La Siempreviva"},{"$f":"INDEX(TablaIdiomas[],114,miIdioma)","v":"La inmortal de Rubinstein"},{"$f":"INDEX(TablaIdiomas[],115,miIdioma)","v":"Mi partida favorita de todos los tiempos"},{"$f":"INDEX(TablaIdiomas[],116,miIdioma)","v":"Combinaciones contrarias a la intuición"},{"$f":"INDEX(TablaIdiomas[],117,miIdioma)","v":"Karpov-Kasparov en Linares"},{"$f":"INDEX(TablaIdiomas[],118,miIdioma)","v":"Carlsen-Niemann en Sinquefield Cup"},"C. YOO (2.563) - H. NIEMANN (2.699)"]
[{"$f":"IF(Valor_Partida=0,\"\",SUBSTITUTE(SUBSTITUTE(IFERROR(SUBSTITUTE(INDEX(misPartidas,ROW(),Valor_Partida+1),CHAR(160),CHAR(32))&\"\",\"\"),\"[\",\"\"),\"]\",\"\"))","v":""},{"$f":"INDEX(TablaIdiomas[],119,miIdioma)","v":"[Event \"Duque del ajedrez\"]"},"[Event \"\"]","[Event \"\"]","[Event \"\"]","[Event \"Paul Morphy - Duke Karl Count Isouard\"]","[Event \"Evans Gambit (C52)\"]","[Event \"Lodz1\"]","[Event \"It (cat.17)\"]","[Event \"75th Tata Steel GpA\"]","[Event \"Linares 11th (10)\"]","[Event \"Sinquefield Cup (chess24.com)\"]","[Event \"Campeonato EEUU (1). San Luis\"]"]
[{"$f":"IF(Valor_Partida=0,\"\",SUBSTITUTE(SUBSTITUTE(IFERROR(SUBSTITUTE(INDEX(misPartidas,ROW(),Valor_Partida+1),CHAR(160),CHAR(32))&\"\",\"\"),\"[\",\"\"),\"]\",\"\"))","v":""},{"$f":"INDEX(TablaIdiomas[],120,miIdioma)","v":"[Site \"Camino real\"]"},"[Site \"\"]","[Site \"París\"]","[Site \"Budapest\"]","[Site \"Paris (France)\"]","[Site \"Berlín\"]","[Site \"Lodz POL\"]","[Site \"Wijk aan Zee (Netherlands)\"]","[Site \"Wijk aan Zee NED\"]","[Site \"Linares\"]","[Site \" San Luis, Misuri, USA\"]","[White \"C. Yoo (2.563)\"]"]
[{"$f":"IF(Valor_Partida=0,\"\",SUBSTITUTE(SUBSTITUTE(IFERROR(SUBSTITUTE(INDEX(misPartidas,ROW(),Valor_Partida+1),CHAR(160),CHAR(32))&\"\",\"\"),\"[\",\"\"),\"]\",\"\"))","v":""},"[Date \"????.??.??\"]","[Date \"1959.??.??\"]","[Date \"1750.??.??\"]","[Date \"????.??.??\"]","[Date \"1858.??.??\"]","[Date \"1852.??.??\"]","[Date \"1907.??.??\"]","[Date \"1999.??.??\"]","[Date \"2013.01.15\"]","[Date \"1993.03.09\"]","[Date \"2022.09.04\"]","[Black \"H. Niemann (2.699)\"]"]
[{"$f":"IF(Valor_Partida=0,\"\",SUBSTITUTE(SUBSTITUTE(IFERROR(SUBSTITUTE(INDEX(misPartidas,ROW(),Valor_Partida+1),CHAR(160),CHAR(32))&\"\",\"\"),\"[\",\"\"),\"]\",\"\"))","v":""},"[Round \"?\"]","[Round \"?\"]","[Round \"?\"]","[Round \"?\"]","[Round \"?\"]","[Round \"?\"]","[Round \"?\"]","[Round \"?\"]","[Round \"?\"]","[Round \"?\"]","[Round \"3\"]","[Site \"\"]"]
[{"$f":"IF(Valor_Partida=0,\"\",SUBSTITUTE(SUBSTITUTE(IFERROR(SUBSTITUTE(INDEX(misPartidas,ROW(),Valor_Partida+1),CHAR(160),CHAR(32))&\"\",\"\"),\"[\",\"\"),\"]\",\"\"))","v":""},{"$f":"INDEX(TablaIdiomas[],121,miIdioma)","v":"[White \"Pastor de ovejas\"]"},"[White \"Masefield\"]","[White \"Kermur de Legal\"]","[White \"\"]","[White \"Paul Morphy\"]","[White \"Adolf Anderssen\"]","[White \"Rotlewi, Georg\"]","[White \"Garry Kasparov\"]","[White \"Levon Aronian\"]","[White \"Karpov, Anatoly\"]","[White \"Carlsen, Magnus\"]","[Round \"\"]"]
[{"$f":"IF(Valor_Partida=0,\"\",SUBSTITUTE(SUBSTITUTE(IFERROR(SUBSTITUTE(INDEX(misPartidas,ROW(),Valor_Partida+1),CHAR(160),CHAR(32))&\"\",\"\"),\"[\",\"\"),\"]\",\"\"))","v":""},{"$f":"INDEX(TablaIdiomas[],122,miIdioma)","v":"[Black \"Rey aventurero\"]"},"[Black \"Trinka\"]","[Black \"Saint Brie\"]","[Black \"\"]","[Black \"Duke of Brunswick and Count Isouard\"]","[Black \"Jean Dufresne\"]","[Black \"Rubinstein, Akiba\"]","[Black \"Veselin Topalov\"]","[Black \"Viswanathan Anand\"]","[Black \"Kasparov, Garry\"]","[Black \"Niemann, Hans Moke\"]","[Annotator \"\"]"]
[{"$f":"IF(Valor_Partida=0,\"\",SUBSTITUTE(SUBSTITUTE(IFERROR(SUBSTITUTE(INDEX(misPartidas,ROW(),Valor_Partida+1),CHAR(160),CHAR(32))&\"\",\"\"),\"[\",\"\"),\"]\",\"\"))","v":""},"[Result \"1-0\"]","[Result \"1-0\"]","[Result \"1-0\"]","[Result \"0-1\"]","[Result \"1-0\"]","[Result \"1-0\"]","[Result \"0-1\"]","[Result \"1-0\"]","[Result \"0-1\"]","[Result \"0-1\"]","[Result \"0-1\"]","[Result \"0-1\"]"]
[{"$f":"IF(Valor_Partida=0,\"\",SUBSTITUTE(SUBSTITUTE(IFERROR(SUBSTITUTE(INDEX(misPartidas,ROW(),Valor_Partida+1),CHAR(160),CHAR(32))&\"\",\"\"),\"[\",\"\"),\"]\",\"\"))","v":""},null,null,null,null,null,null,"[ECO \"D40q\"]",null,null,null,null,"[Date \"2022.10.05\"]"]
[{"$f":"IF(Valor_Partida=0,\"\",SUBSTITUTE(SUBSTITUTE(IFERROR(SUBSTITUTE(INDEX(misPartidas,ROW(),Valor_Partida+1),CHAR(160),CHAR(32))&\"\",\"\"),\"[\",\"\"),\"]\",\"\"))","v":""},null,null,null,null,null,null,null,null,null,null,null,"[PlyCount \"108\"]"]
[{"$f":"IF(Valor_Partida=0,\"\",SUBSTITUTE(SUBSTITUTE(IFERROR(SUBSTITUTE(INDEX(misPartidas,ROW(),Valor_Partida+1),CHAR(160),CHAR(32))&\"\",\"\"),\"[\",\"\"),\"]\",\"\"))","v":""},"1. e4 e5","1. e4 g5","1. e4 e5","1. d4 ♞f6","1. e4 e5","1. e4 e5","1. d4 d5","1. e4 d6","1. d4 d5","1. d4 ♞f6","1. d4 ♞f6","1. d4 ♞f6"]
[{"$f":"IF(Valor_Partida=0,\"\",SUBSTITUTE(SUBSTITUTE(IFERROR(SUBSTITUTE(INDEX(misPartidas,ROW(),Valor_Partida+1),CHAR(160),CHAR(32))&\"\",\"\"),\"[\",\"\"),\"]\",\"\"))","v":""},"2. ♗c4 ♞c6","2. ♘c3 f5","2. ♗c4 d6","2. c4 e5","2. ♘f3 d6","2. ♘f3 ♞c6","2. ♘f3 e6","2. d4 ♞f6","2. c4 c6","2. c4 g6","2. c4 e6","2. ♘c3 d5"]
[{"$f":"IF(Valor_Partida=0,\"\",SUBSTITUTE(SUBSTITUTE(IFERROR(SUBSTITUTE(INDEX(misPartidas,ROW(),Valor_Partida+1),CHAR(160),CHAR(32))&\"\",\"\"),\"[\",\"\"),\"]\",\"\"))","v":""},"3. ♕h5 ♞f6","3. ♕h5# ","3. ♘f3 ♝g4","3. dxe5 ♞g4","3. d4 ♝g4","3. ♗c4 ♝c5","3. e3 c5","3. ♘c3 g6","3. ♘f3 ♞f6","3. ♘c3 ♝g7","3. ♘c3 ♝b4","3. ♗f4 e6"]
[{"$f":"IF(Valor_Partida=0,\"\",SUBSTITUTE(SUBSTITUTE(IFERROR(SUBSTITUTE(INDEX(misPartidas,ROW(),Valor_Partida+1),CHAR(160),CHAR(32))&\"\",\"\"),\"[\",\"\"),\"]\",\"\"))","v":""},"4. ♕xf7# ",{"$f":"INDEX(TablaIdiomas[],124,miIdioma)","v":"¡El rey ha muerto, larga vida al rey!"},"4. ♘c3 g6","4. ♘f3 ♞c6","4. dxe5 ♝xf3","4. b4 ♝xb4","4. c4 ♞c6","4. ♗e3 ♝g7","4. ♘c3 e6","4. e4 d6","4. g3 O-O","4. ♘b5 ♞a6"]
[{"$f":"IF(Valor_Partida=0,\"\",SUBSTITUTE(SUBSTITUTE(IFERROR(SUBSTITUTE(INDEX(misPartidas,ROW(),Valor_Partida+1),CHAR(160),CHAR(32))&\"\",\"\"),\"[\",\"\"),\"]\",\"\"))","v":""},{"$f":"INDEX(TablaIdiomas[],123,miIdioma)","v":"El alfil protegía a la dama."},null,"5. ♘xe5 ♝xd1","5. ♗f4 ♝b4+","5. ♕xf3 dxe5","5. c3 ♝a5","5. ♘c3 ♞f6","5. ♕d2 c6","5. e3 ♞bd7","5. f3 O-O","5. ♗g2 d5","5. e3 ♝e7"]
[{"$f":"IF(Valor_Partida=0,\"\",SUBSTITUTE(SUBSTITUTE(IFERROR(SUBSTITUTE(INDEX(misPartidas,ROW(),Valor_Partida+1),CHAR(160),CHAR(32))&\"\",\"\"),\"[\",\"\"),\"]\",\"\"))","v":""},null,null,"6. ♗xf7+ ♚e7","6. ♘bd2 ♛e7","6. ♗c4 ♞f6","6. d4 exd4","6. dxc5 ♝xc5","6. f3 b5","6. ♗d3 dxc4","6. ♗e3 e5","6. a3 ♝xc3+","6. ♘f3 O-O"]
[{"$f":"IF(Valor_Partida=0,\"\",SUBSTITUTE(SUBSTITUTE(IFERROR(SUBSTITUTE(INDEX(misPartidas,ROW(),Valor_Partida+1),CHAR(160),CHAR(32))&\"\",\"\"),\"[\",\"\"),\"]\",\"\"))","v":""},null,null,"7. ♘d5# ","7. a3 ♞gxe5","7. ♕b3 ♛e7","7. O-O d3","7. a3 a6","7. ♘ge2 ♞bd7","7. ♗xc4 b5","7. ♘ge2 c6","7. bxc3 dxc4","7. ♗e2 ♞h5"]
[{"$f":"IF(Valor_Partida=0,\"\",SUBSTITUTE(SUBSTITUTE(IFERROR(SUBSTITUTE(INDEX(misPartidas,ROW(),Valor_Partida+1),CHAR(160),CHAR(32))&\"\",\"\"),\"[\",\"\"),\"]\",\"\"))","v":""},null,null,{"$f":"INDEX(TablaIdiomas[],125,miIdioma)","v":"El rey no tiene escapatoria."},"8. axb4 ♞d3#","8. ♘c3 c6","8. ♕b3 ♛f6","8. b4 ♝d6","8. ♗h6 ♝xh6","8. ♗d3 ♝d6","8. ♕d2 ♞bd7","8. ♘f3 c5","8. ♗e5 f6"]
[{"$f":"IF(Valor_Partida=0,\"\",SUBSTITUTE(SUBSTITUTE(IFERROR(SUBSTITUTE(INDEX(misPartidas,ROW(),Valor_Partida+1),CHAR(160),CHAR(32))&\"\",\"\"),\"[\",\"\"),\"]\",\"\"))","v":""},null,null,null,{"$f":"INDEX(TablaIdiomas[],126,miIdioma)","v":"Jaque mate tramposo."},"9. ♗g5 b5","9. e5 ♛g6","9. ♗b2 O-O","9. ♕xh6 ♝b7","9. O-O O-O","9. ♖d1 a6","9. O-O cxd4","9. ♗g3 c6"]
[{"$f":"IF(Valor_Partida=0,\"\",SUBSTITUTE(SUBSTITUTE(IFERROR(SUBSTITUTE(INDEX(misPartidas,ROW(),Valor_Partida+1),CHAR(160),CHAR(32))&\"\",\"\"),\"[\",\"\"),\"]\",\"\"))","v":""},null,null,null,null,"10. ♘xb5 cxb5","10. ♖e1 ♞ge7","10. ♕d2 ♛e7","10. a3 e5","10. ♕c2 ♝b7","10. dxe5 ♞xe5","10. ♕xd4 ♞c6","10. ♘c3 c5"]
[{"$f":"IF(Valor_Partida=0,\"\",SUBSTITUTE(SUBSTITUTE(IFERROR(SUBSTITUTE(INDEX(misPartidas,ROW(),Valor_Partida+1),CHAR(160),CHAR(32))&\"\",\"\"),\"[\",\"\"),\"]\",\"\"))","v":""},null,null,null,null,"11. ♗xb5+ ♞bd7","11. ♗a3 b5","11. ♗d3 dxc4","11. O-O-O ♛e7","11. a3 ♜c8","11. b3 b5","11. ♕xc4 e5","11. O-O ♞xg3"]
[{"$f":"IF(Valor_Partida=0,\"\",SUBSTITUTE(SUBSTITUTE(IFERROR(SUBSTITUTE(INDEX(misPartidas,ROW(),Valor_Partida+1),CHAR(160),CHAR(32))&\"\",\"\"),\"[\",\"\"),\"]\",\"\"))","v":""},null,null,null,null,"12. O-O-O ♜d8","12. ♕xb5 ♜b8","12. ♗xc4 b5","12. ♔b1 a6","12. ♘g5 c5","12. cxb5 axb5","12. ♗g5 h6","12. hxg3 c4"]
[{"$f":"IF(Valor_Partida=0,\"\",SUBSTITUTE(SUBSTITUTE(IFERROR(SUBSTITUTE(INDEX(misPartidas,ROW(),Valor_Partida+1),CHAR(160),CHAR(32))&\"\",\"\"),\"[\",\"\"),\"]\",\"\"))","v":""},null,null,null,null,"13. ♖xd7 ♜xd7","13. ♕a4 ♝b6","13. ♗d3 ♜d8","13. ♘c1 O-O-O","13. ♘xh7 ♞g4","13. ♕xd6 ♞fd7","13. ♖fd1 ♝e6","13. e4 ♝b4"]
[{"$f":"IF(Valor_Partida=0,\"\",SUBSTITUTE(SUBSTITUTE(IFERROR(SUBSTITUTE(INDEX(misPartidas,ROW(),Valor_Partida+1),CHAR(160),CHAR(32))&\"\",\"\"),\"[\",\"\"),\"]\",\"\"))","v":""},null,null,null,null,"14. ♖d1 ♛e6","14. ♘bd2 ♝b7","14. ♕e2 ♝b7","14. ♘b3 exd4","14. f4 cxd4","14. f4 b4","14. ♖xd8 ♝xc4","14. exd5 exd5"]
[{"$f":"IF(Valor_Partida=0,\"\",SUBSTITUTE(SUBSTITUTE(IFERROR(SUBSTITUTE(INDEX(misPartidas,ROW(),Valor_Partida+1),CHAR(160),CHAR(32))&\"\",\"\"),\"[\",\"\"),\"]\",\"\"))","v":""},null,null,null,null,"15. ♗xd7+ ♞xd7","15. ♘e4 ♛f5","15. O-O ♞e5","15. ♖xd4 c5","15. exd4 ♝c5","15. ♘b1 ♞g4","15. ♖xa8 ♜xa8","15. ♘b1 ♞c7"]
[{"$f":"IF(Valor_Partida=0,\"\",SUBSTITUTE(SUBSTITUTE(IFERROR(SUBSTITUTE(INDEX(misPartidas,ROW(),Valor_Partida+1),CHAR(160),CHAR(32))&\"\",\"\"),\"[\",\"\"),\"]\",\"\"))","v":""},null,null,null,null,"16. ♕b8+ ♞xb8","16. ♗xd3 ♛h5","16. ♘xe5 ♝xe5","16. ♖d1 ♞b6","16. ♗e2 ♞de5","16. ♗d4 ♝xd4","16. ♗xf6 gxf6","16. c3 ♝d6"]
[{"$f":"IF(Valor_Partida=0,\"\",SUBSTITUTE(SUBSTITUTE(IFERROR(SUBSTITUTE(INDEX(misPartidas,ROW(),Valor_Partida+1),CHAR(160),CHAR(32))&\"\",\"\"),\"[\",\"\"),\"]\",\"\"))","v":""},null,null,null,null,"17. ♖d8# 1-0","17. ♘f6+ gxf6","17. f4 ♝c7","17. g3 ♚b8","17. ♗xg4 ♝xd4+","17. ♕xd4 ♜xa2","17. ♔f1 ♜d8","17. ♘bd2 b5"]
[{"$f":"IF(Valor_Partida=0,\"\",SUBSTITUTE(SUBSTITUTE(IFERROR(SUBSTITUTE(INDEX(misPartidas,ROW(),Valor_Partida+1),CHAR(160),CHAR(32))&\"\",\"\"),\"[\",\"\"),\"]\",\"\"))","v":""},null,null,null,null,{"$f":"INDEX(TablaIdiomas[],127,miIdioma)","v":"Jaque mate con menos piezas."},"18. exf6 ♜g8","18. e4 ♜ac8","18. ♘a5 ♝a8","18. ♔h1 ♞xg4","18. h3 c5","18. ♔e1 ♞a5","18. ♘e1 ♝e6"]
[{"$f":"IF(Valor_Partida=0,\"\",SUBSTITUTE(SUBSTITUTE(IFERROR(SUBSTITUTE(INDEX(misPartidas,ROW(),Valor_Partida+1),CHAR(160),CHAR(32))&\"\",\"\"),\"[\",\"\"),\"]\",\"\"))","v":""},null,null,null,null,null,"19. ♖ad1 ♛xf3","19. e5 ♝b6+","19. ♗h3 d5","19. ♘xf8 f5","19. ♕g1 ♞gf6","19. ♖d1 ♜c8","19. ♘c2 ♛d7"]
[{"$f":"IF(Valor_Partida=0,\"\",SUBSTITUTE(SUBSTITUTE(IFERROR(SUBSTITUTE(INDEX(misPartidas,ROW(),Valor_Partida+1),CHAR(160),CHAR(32))&\"\",\"\"),\"[\",\"\"),\"]\",\"\"))","v":""},null,null,null,null,null,"20. ♖xe7+ ♞xe7","20. ♔h1 ♞g4","20. ♕f4+ ♚a7","20. ♘g6 ♛f6","20. e5 ♞e4","20. ♘d2 ♝e6","20. ♖e1 a5"]
[{"$f":"IF(Valor_Partida=0,\"\",SUBSTITUTE(SUBSTITUTE(IFERROR(SUBSTITUTE(INDEX(misPartidas,ROW(),Valor_Partida+1),CHAR(160),CHAR(32))&\"\",\"\"),\"[\",\"\"),\"]\",\"\"))","v":""},null,null,null,null,null,"21. ♕xd7+ ♚xd7","21. ♗e4 ♛h4","21. ♖he1 d4","21. h3 ♛xg6","21. h4 c4","21. c4 ♝xc4","21. a3 g6"]
[{"$f":"IF(Valor_Partida=0,\"\",SUBSTITUTE(SUBSTITUTE(IFERROR(SUBSTITUTE(INDEX(misPartidas,ROW(),Valor_Partida+1),CHAR(160),CHAR(32))&\"\",\"\"),\"[\",\"\"),\"]\",\"\"))","v":""},null,null,null,null,null,"22. ♗f5+ ♚e8","22. g3 ♜xc3","22. ♘d5 ♞bxd5","22. ♕e2 ♛h5","22. ♘c1 c3","22. ♘xc4 ♜xc4","22. ♘f1 h5"]
[{"$f":"IF(Valor_Partida=0,\"\",SUBSTITUTE(SUBSTITUTE(IFERROR(SUBSTITUTE(INDEX(misPartidas,ROW(),Valor_Partida+1),CHAR(160),CHAR(32))&\"\",\"\"),\"[\",\"\"),\"]\",\"\"))","v":""},null,null,null,null,null,"23. ♗d7+ ♚f8","23. gxh4 ♜d2","23. exd5 ♛d6","23. ♕d3 ♝e3 0-1","23. ♘xa2 c2","23. ♖d8+ ♚g7","23. ♕d2 ♚g7"]
[{"$f":"IF(Valor_Partida=0,\"\",SUBSTITUTE(SUBSTITUTE(IFERROR(SUBSTITUTE(INDEX(misPartidas,ROW(),Valor_Partida+1),CHAR(160),CHAR(32))&\"\",\"\"),\"[\",\"\"),\"]\",\"\"))","v":""},null,null,null,null,null,"24. ♗xe7# 1-0","24. ♕xd2 ♝xe4+","24. ♖xd4 cxd4",{"$f":"INDEX(TablaIdiomas[],131,miIdioma)","v":"¡Y las blancas abandonan!"},"24. ♕d4 cxd1=♛+","24. ♗d5 ♜c7","24. f4 ♜h8"]
[{"$f":"IF(Valor_Partida=0,\"\",SUBSTITUTE(SUBSTITUTE(IFERROR(SUBSTITUTE(INDEX(misPartidas,ROW(),Valor_Partida+1),CHAR(160),CHAR(32))&\"\",\"\"),\"[\",\"\"),\"]\",\"\"))","v":""},null,null,null,null,null,{"$f":"INDEX(TablaIdiomas[],128,miIdioma)","v":"El peón defendía al alfil."},"25. ♕g2 ♜h3 0-1","25. ♖e7+ ♚b6",null,"25. ♔xd1 ♞dc5","25. ♖a8 a6","25. ♗f3 f5"]
[{"$f":"IF(Valor_Partida=0,\"\",SUBSTITUTE(SUBSTITUTE(IFERROR(SUBSTITUTE(INDEX(misPartidas,ROW(),Valor_Partida+1),CHAR(160),CHAR(32))&\"\",\"\"),\"[\",\"\"),\"]\",\"\"))","v":""},null,null,null,null,null,null,{"$f":"INDEX(TablaIdiomas[],129,miIdioma)","v":"La Inmortal no será olvidada."},"26. ♕xd4+ ♚xa5",null,"26. ♕xd8 ♜xd8+","26. ♖b8 f5","26. ♖e2 ♞e8"]
[{"$f":"IF(Valor_Partida=0,\"\",SUBSTITUTE(SUBSTITUTE(IFERROR(SUBSTITUTE(INDEX(misPartidas,ROW(),Valor_Partida+1),CHAR(160),CHAR(32))&\"\",\"\"),\"[\",\"\"),\"]\",\"\"))","v":""},null,null,null,null,null,null,null,"27. b4+ ♚a4",null,"27. ♔c2 ♞f2 0-1","27. ♖e8 e4","27. ♖ae1 ♝f7"]
[{"$f":"IF(Valor_Partida=0,\"\",SUBSTITUTE(SUBSTITUTE(IFERROR(SUBSTITUTE(INDEX(misPartidas,ROW(),Valor_Partida+1),CHAR(160),CHAR(32))&\"\",\"\"),\"[\",\"\"),\"]\",\"\"))","v":""},null,null,null,null,null,null,null,"28. ♕c3 ♛xd5",null,{"$f":"INDEX(TablaIdiomas[],132,miIdioma)","v":"Las blancas están perdidas."},"28. g4 ♜c5","28. ♖e5 ♞f6"]
[{"$f":"IF(Valor_Partida=0,\"\",SUBSTITUTE(SUBSTITUTE(IFERROR(SUBSTITUTE(INDEX(misPartidas,ROW(),Valor_Partida+1),CHAR(160),CHAR(32))&\"\",\"\"),\"[\",\"\"),\"]\",\"\"))","v":""},null,null,null,null,null,null,null,"29. ♖a7 ♝b7",null,null,"29. ♗a2 ♞c4","29. ♘fe3 h4"]
[{"$f":"IF(Valor_Partida=0,\"\",SUBSTITUTE(SUBSTITUTE(IFERROR(SUBSTITUTE(INDEX(misPartidas,ROW(),Valor_Partida+1),CHAR(160),CHAR(32))&\"\",\"\"),\"[\",\"\"),\"]\",\"\"))","v":""},null,null,null,null,null,null,null,"30. ♖xb7 ♛c4",null,null,"30. a4 ♞d6","30. ♕f2 h3"]
[{"$f":"IF(Valor_Partida=0,\"\",SUBSTITUTE(SUBSTITUTE(IFERROR(SUBSTITUTE(INDEX(misPartidas,ROW(),Valor_Partida+1),CHAR(160),CHAR(32))&\"\",\"\"),\"[\",\"\"),\"]\",\"\"))","v":""},null,null,null,null,null,null,null,"31. ♕xf6 ♚xa3",null,null,"31. ♖e7 fxg4","31. ♖e2 ♜ad8"]
[{"$f":"IF(Valor_Partida=0,\"\",SUBSTITUTE(SUBSTITUTE(IFERROR(SUBSTITUTE(INDEX(misPartidas,ROW(),Valor_Partida+1),CHAR(160),CHAR(32))&\"\",\"\"),\"[\",\"\"),\"]\",\"\"))","v":""},null,null,null,null,null,null,null,"32. ♕xa6+ ♚xb4",null,null,"32. ♖d7 e3","32. ♕e1 ♞e4"]
[{"$f":"IF(Valor_Partida=0,\"\",SUBSTITUTE(SUBSTITUTE(IFERROR(SUBSTITUTE(INDEX(misPartidas,ROW(),Valor_Partida+1),CHAR(160),CHAR(32))&\"\",\"\"),\"[\",\"\"),\"]\",\"\"))","v":""},null,null,null,null,null,null,null,"33. c3+ ♚xc3",null,null,"33. fxe3 ♞e4","33. g4 ♝xe5"]
[{"$f":"IF(Valor_Partida=0,\"\",SUBSTITUTE(SUBSTITUTE(IFERROR(SUBSTITUTE(INDEX(misPartidas,ROW(),Valor_Partida+1),CHAR(160),CHAR(32))&\"\",\"\"),\"[\",\"\"),\"]\",\"\"))","v":""},null,null,null,null,null,null,null,"34. ♕a1+ ♚d2",null,null,"34. ♔f1 ♜c1+","34. dxe5 hxg2"]
[{"$f":"IF(Valor_Partida=0,\"\",SUBSTITUTE(SUBSTITUTE(IFERROR(SUBSTITUTE(INDEX(misPartidas,ROW(),Valor_Partida+1),CHAR(160),CHAR(32))&\"\",\"\"),\"[\",\"\"),\"]\",\"\"))","v":""},null,null,null,null,null,null,null,"35. ♕b2+ ♚d1",null,null,"35. ♔g2 ♜c2","35. ♖xg2 ♜h3"]
[{"$f":"IF(Valor_Partida=0,\"\",SUBSTITUTE(SUBSTITUTE(IFERROR(SUBSTITUTE(INDEX(misPartidas,ROW(),Valor_Partida+1),CHAR(160),CHAR(32))&\"\",\"\"),\"[\",\"\"),\"]\",\"\"))","v":""},null,null,null,null,null,null,null,"36. ♗f1 ♜d2",null,null,"36. ♗xf7 ♜xe2+","36. e6 ♝xe6"]
[{"$f":"IF(Valor_Partida=0,\"\",SUBSTITUTE(SUBSTITUTE(IFERROR(SUBSTITUTE(INDEX(misPartidas,ROW(),Valor_Partida+1),CHAR(160),CHAR(32))&\"\",\"\"),\"[\",\"\"),\"]\",\"\"))","v":""},null,null,null,null,null,null,null,"37. ♖d7 ♜xd7",null,null,"37. ♔g1 ♜e1+","37. gxf5 ♝xf5"]
[{"$f":"IF(Valor_Partida=0,\"\",SUBSTITUTE(SUBSTITUTE(IFERROR(SUBSTITUTE(INDEX(misPartidas,ROW(),Valor_Partida+1),CHAR(160),CHAR(32))&\"\",\"\"),\"[\",\"\"),\"]\",\"\"))","v":""},null,null,null,null,null,null,null,"38. ♗xc4 bxc4",null,null,"38. ♔g2 ♜e2+","38. ♘xf5+ ♛xf5"]
[{"$f":"IF(Valor_Partida=0,\"\",SUBSTITUTE(SUBSTITUTE(IFERROR(SUBSTITUTE(INDEX(misPartidas,ROW(),Valor_Partida+1),CHAR(160),CHAR(32))&\"\",\"\"),\"[\",\"\"),\"]\",\"\"))","v":""},null,null,null,null,null,null,null,"39. ♕xh8 ♜d3",null,null,"39. ♔g1 ♚f6","39. ♘d4 ♛f6"]
[{"$f":"IF(Valor_Partida=0,\"\",SUBSTITUTE(SUBSTITUTE(IFERROR(SUBSTITUTE(INDEX(misPartidas,ROW(),Valor_Partida+1),CHAR(160),CHAR(32))&\"\",\"\"),\"[\",\"\"),\"]\",\"\"))","v":""},null,null,null,null,null,null,null,"40. ♕a8 c3",null,null,"40. ♗d5 ♜d2","40. ♗xe4 ♜e8"]
[{"$f":"IF(Valor_Partida=0,\"\",SUBSTITUTE(SUBSTITUTE(IFERROR(SUBSTITUTE(INDEX(misPartidas,ROW(),Valor_Partida+1),CHAR(160),CHAR(32))&\"\",\"\"),\"[\",\"\"),\"]\",\"\"))","v":""},null,null,null,null,null,null,null,"41. ♕a4+ ♚e1",null,null,"41. ♖f7+ ♚g6","41. f5 ♜xe4"]
[{"$f":"IF(Valor_Partida=0,\"\",SUBSTITUTE(SUBSTITUTE(IFERROR(SUBSTITUTE(INDEX(misPartidas,ROW(),Valor_Partida+1),CHAR(160),CHAR(32))&\"\",\"\"),\"[\",\"\"),\"]\",\"\"))","v":""},null,null,null,null,null,null,null,"42. f4 f5",null,null,"42. ♖d7 ♞g5","42. ♕f2 ♜eh4"]
[{"$f":"IF(Valor_Partida=0,\"\",SUBSTITUTE(SUBSTITUTE(IFERROR(SUBSTITUTE(INDEX(misPartidas,ROW(),Valor_Partida+1),CHAR(160),CHAR(32))&\"\",\"\"),\"[\",\"\"),\"]\",\"\"))","v":""},null,null,null,null,null,null,null,"43. ♔c1 ♜d2",null,null,"43. ♗f7+ ♚f5","43. ♖xg6+ ♛xg6+"]
[{"$f":"IF(Valor_Partida=0,\"\",SUBSTITUTE(SUBSTITUTE(IFERROR(SUBSTITUTE(INDEX(misPartidas,ROW(),Valor_Partida+1),CHAR(160),CHAR(32))&\"\",\"\"),\"[\",\"\"),\"]\",\"\"))","v":""},null,null,null,null,null,null,null,"44. ♕a7 1-0",null,null,"44. ♖xd2 ♞f3+","44. fxg6 ♜h1+"]
[{"$f":"IF(Valor_Partida=0,\"\",SUBSTITUTE(SUBSTITUTE(IFERROR(SUBSTITUTE(INDEX(misPartidas,ROW(),Valor_Partida+1),CHAR(160),CHAR(32))&\"\",\"\"),\"[\",\"\"),\"]\",\"\"))","v":""},null,null,null,null,null,null,null,{"$f":"INDEX(TablaIdiomas[],130,miIdioma)","v":"¡Y las negras se rindieron!"},null,null,"45. ♔g2 ♞xd2","45. ♔g2 ♜4h2+"]
[{"$f":"IF(Valor_Partida=0,\"\",SUBSTITUTE(SUBSTITUTE(IFERROR(SUBSTITUTE(INDEX(misPartidas,ROW(),Valor_Partida+1),CHAR(160),CHAR(32))&\"\",\"\"),\"[\",\"\"),\"]\",\"\"))","v":""},null,null,null,null,null,null,null,null,null,null,"46. a5 ♚e5","46. ♔g3 ♜xf2"]
[{"$f":"IF(Valor_Partida=0,\"\",SUBSTITUTE(SUBSTITUTE(IFERROR(SUBSTITUTE(INDEX(misPartidas,ROW(),Valor_Partida+1),CHAR(160),CHAR(32))&\"\",\"\"),\"[\",\"\"),\"]\",\"\"))","v":""},null,null,null,null,null,null,null,null,null,null,"47. ♔g3 ♞f1+","47. ♔xf2 ♜h2+"]
[{"$f":"IF(Valor_Partida=0,\"\",SUBSTITUTE(SUBSTITUTE(IFERROR(SUBSTITUTE(INDEX(misPartidas,ROW(),Valor_Partida+1),CHAR(160),CHAR(32))&\"\",\"\"),\"[\",\"\"),\"]\",\"\"))","v":""},null,null,null,null,null,null,null,null,null,null,"48. ♔f2 ♞xh2","48. ♔e3 ♜xb2"]
[{"$f":"IF(Valor_Partida=0,\"\",SUBSTITUTE(SUBSTITUTE(IFERROR(SUBSTITUTE(INDEX(misPartidas,ROW(),Valor_Partida+1),CHAR(160),CHAR(32))&\"\",\"\"),\"[\",\"\"),\"]\",\"\"))","v":""},null,null,null,null,null,null,null,null,null,null,"49. e4 ♚xe4","49. ♔f4 ♚xg6"]
[{"$f":"IF(Valor_Partida=0,\"\",SUBSTITUTE(SUBSTITUTE(IFERROR(SUBSTITUTE(INDEX(misPartidas,ROW(),Valor_Partida+1),CHAR(160),CHAR(32))&\"\",\"\"),\"[\",\"\"),\"]\",\"\"))","v":""},null,null,null,null,null,null,null,null,null,null,"50. ♗e6 ♚f4","50. ♔e5 b4"]
[{"$f":"IF(Valor_Partida=0,\"\",SUBSTITUTE(SUBSTITUTE(IFERROR(SUBSTITUTE(INDEX(misPartidas,ROW(),Valor_Partida+1),CHAR(160),CHAR(32))&\"\",\"\"),\"[\",\"\"),\"]\",\"\"))","v":""},null,null,null,null,null,null,null,null,null,null,"51. ♗c8 ♞f3","51. axb4 axb4"]
[{"$f":"IF(Valor_Partida=0,\"\",SUBSTITUTE(SUBSTITUTE(IFERROR(SUBSTITUTE(INDEX(misPartidas,ROW(),Valor_Partida+1),CHAR(160),CHAR(32))&\"\",\"\"),\"[\",\"\"),\"]\",\"\"))","v":""},null,null,null,null,null,null,null,null,null,null,"52. ♗xb7 ♞e5","52. cxb4 c3"]
[{"$f":"IF(Valor_Partida=0,\"\",SUBSTITUTE(SUBSTITUTE(IFERROR(SUBSTITUTE(INDEX(misPartidas,ROW(),Valor_Partida+1),CHAR(160),CHAR(32))&\"\",\"\"),\"[\",\"\"),\"]\",\"\"))","v":""},null,null,null,null,null,null,null,null,null,null,"53. ♗xa6 ♞c6","53. b5 ♜xb5"]
[{"$f":"IF(Valor_Partida=0,\"\",SUBSTITUTE(SUBSTITUTE(IFERROR(SUBSTITUTE(INDEX(misPartidas,ROW(),Valor_Partida+1),CHAR(160),CHAR(32))&\"\",\"\"),\"[\",\"\"),\"]\",\"\"))","v":""},null,null,null,null,null,null,null,null,null,null,"54. ♗b7 ♞xa5","54. ♘xb5 c2 0-1"]
[{"$f":"IF(Valor_Partida=0,\"\",SUBSTITUTE(SUBSTITUTE(IFERROR(SUBSTITUTE(INDEX(misPartidas,ROW(),Valor_Partida+1),CHAR(160),CHAR(32))&\"\",\"\"),\"[\",\"\"),\"]\",\"\"))","v":""},null,null,null,null,null,null,null,null,null,null,"55. ♗d5 h5"]
[{"$f":"IF(Valor_Partida=0,\"\",SUBSTITUTE(SUBSTITUTE(IFERROR(SUBSTITUTE(INDEX(misPartidas,ROW(),Valor_Partida+1),CHAR(160),CHAR(32))&\"\",\"\"),\"[\",\"\"),\"]\",\"\"))","v":""},null,null,null,null,null,null,null,null,null,null,"56. ♗f7 h4"]
[{"$f":"IF(Valor_Partida=0,\"\",SUBSTITUTE(SUBSTITUTE(IFERROR(SUBSTITUTE(INDEX(misPartidas,ROW(),Valor_Partida+1),CHAR(160),CHAR(32))&\"\",\"\"),\"[\",\"\"),\"]\",\"\"))","v":""},null,null,null,null,null,null,null,null,null,null,"57. ♗d5 ♚e5 0-1"]
[{"$f":"IF(Valor_Partida=0,\"\",SUBSTITUTE(SUBSTITUTE(IFERROR(SUBSTITUTE(INDEX(misPartidas,ROW(),Valor_Partida+1),CHAR(160),CHAR(32))&\"\",\"\"),\"[\",\"\"),\"]\",\"\"))","v":""},null,null,null,null,null,null,null,null,null,null,{"$f":"INDEX(TablaIdiomas[],133,miIdioma)","v":"¿Se habrán hecho trampas?"}]
[{"$f":"IF(Valor_Partida=0,\"\",SUBSTITUTE(SUBSTITUTE(IFERROR(SUBSTITUTE(INDEX(misPartidas,ROW(),Valor_Partida+1),CHAR(160),CHAR(32))&\"\",\"\"),\"[\",\"\"),\"]\",\"\"))","v":""}]
[{"$f":"IF(Valor_Partida=0,\"\",SUBSTITUTE(SUBSTITUTE(IFERROR(SUBSTITUTE(INDEX(misPartidas,ROW(),Valor_Partida+1),CHAR(160),CHAR(32))&\"\",\"\"),\"[\",\"\"),\"]\",\"\"))","v":""}]
[{"$f":"IF(Valor_Partida=0,\"\",SUBSTITUTE(SUBSTITUTE(IFERROR(SUBSTITUTE(INDEX(misPartidas,ROW(),Valor_Partida+1),CHAR(160),CHAR(32))&\"\",\"\"),\"[\",\"\"),\"]\",\"\"))","v":""}]
[{"$f":"IF(Valor_Partida=0,\"\",SUBSTITUTE(SUBSTITUTE(IFERROR(SUBSTITUTE(INDEX(misPartidas,ROW(),Valor_Partida+1),CHAR(160),CHAR(32))&\"\",\"\"),\"[\",\"\"),\"]\",\"\"))","v":""}]
[{"$f":"IF(Valor_Partida=0,\"\",SUBSTITUTE(SUBSTITUTE(IFERROR(SUBSTITUTE(INDEX(misPartidas,ROW(),Valor_Partida+1),CHAR(160),CHAR(32))&\"\",\"\"),\"[\",\"\"),\"]\",\"\"))","v":""}]
[{"$f":"IF(Valor_Partida=0,\"\",SUBSTITUTE(SUBSTITUTE(IFERROR(SUBSTITUTE(INDEX(misPartidas,ROW(),Valor_Partida+1),CHAR(160),CHAR(32))&\"\",\"\"),\"[\",\"\"),\"]\",\"\"))","v":""}]
[{"$f":"IF(Valor_Partida=0,\"\",SUBSTITUTE(SUBSTITUTE(IFERROR(SUBSTITUTE(INDEX(misPartidas,ROW(),Valor_Partida+1),CHAR(160),CHAR(32))&\"\",\"\"),\"[\",\"\"),\"]\",\"\"))","v":""}]
[{"$f":"IF(Valor_Partida=0,\"\",SUBSTITUTE(SUBSTITUTE(IFERROR(SUBSTITUTE(INDEX(misPartidas,ROW(),Valor_Partida+1),CHAR(160),CHAR(32))&\"\",\"\"),\"[\",\"\"),\"]\",\"\"))","v":""}]
[{"$f":"IF(Valor_Partida=0,\"\",SUBSTITUTE(SUBSTITUTE(IFERROR(SUBSTITUTE(INDEX(misPartidas,ROW(),Valor_Partida+1),CHAR(160),CHAR(32))&\"\",\"\"),\"[\",\"\"),\"]\",\"\"))","v":""}]
[{"$f":"IF(Valor_Partida=0,\"\",SUBSTITUTE(SUBSTITUTE(IFERROR(SUBSTITUTE(INDEX(misPartidas,ROW(),Valor_Partida+1),CHAR(160),CHAR(32))&\"\",\"\"),\"[\",\"\"),\"]\",\"\"))","v":""}]
[{"$f":"IF(Valor_Partida=0,\"\",SUBSTITUTE(SUBSTITUTE(IFERROR(SUBSTITUTE(INDEX(misPartidas,ROW(),Valor_Partida+1),CHAR(160),CHAR(32))&\"\",\"\"),\"[\",\"\"),\"]\",\"\"))","v":""}]
[{"$f":"IF(Valor_Partida=0,\"\",SUBSTITUTE(SUBSTITUTE(IFERROR(SUBSTITUTE(INDEX(misPartidas,ROW(),Valor_Partida+1),CHAR(160),CHAR(32))&\"\",\"\"),\"[\",\"\"),\"]\",\"\"))","v":""}]
[{"$f":"IF(Valor_Partida=0,\"\",SUBSTITUTE(SUBSTITUTE(IFERROR(SUBSTITUTE(INDEX(misPartidas,ROW(),Valor_Partida+1),CHAR(160),CHAR(32))&\"\",\"\"),\"[\",\"\"),\"]\",\"\"))","v":""}]
[{"$f":"IF(Valor_Partida=0,\"\",SUBSTITUTE(SUBSTITUTE(IFERROR(SUBSTITUTE(INDEX(misPartidas,ROW(),Valor_Partida+1),CHAR(160),CHAR(32))&\"\",\"\"),\"[\",\"\"),\"]\",\"\"))","v":""}]
[{"$f":"IF(Valor_Partida=0,\"\",SUBSTITUTE(SUBSTITUTE(IFERROR(SUBSTITUTE(INDEX(misPartidas,ROW(),Valor_Partida+1),CHAR(160),CHAR(32))&\"\",\"\"),\"[\",\"\"),\"]\",\"\"))","v":""}]
[{"$f":"IF(Valor_Partida=0,\"\",SUBSTITUTE(SUBSTITUTE(IFERROR(SUBSTITUTE(INDEX(misPartidas,ROW(),Valor_Partida+1),CHAR(160),CHAR(32))&\"\",\"\"),\"[\",\"\"),\"]\",\"\"))","v":""}]
[{"$f":"IF(Valor_Partida=0,\"\",SUBSTITUTE(SUBSTITUTE(IFERROR(SUBSTITUTE(INDEX(misPartidas,ROW(),Valor_Partida+1),CHAR(160),CHAR(32))&\"\",\"\"),\"[\",\"\"),\"]\",\"\"))","v":""}]
[{"$f":"IF(Valor_Partida=0,\"\",SUBSTITUTE(SUBSTITUTE(IFERROR(SUBSTITUTE(INDEX(misPartidas,ROW(),Valor_Partida+1),CHAR(160),CHAR(32))&\"\",\"\"),\"[\",\"\"),\"]\",\"\"))","v":""}]
[{"$f":"IF(Valor_Partida=0,\"\",SUBSTITUTE(SUBSTITUTE(IFERROR(SUBSTITUTE(INDEX(misPartidas,ROW(),Valor_Partida+1),CHAR(160),CHAR(32))&\"\",\"\"),\"[\",\"\"),\"]\",\"\"))","v":""}]
[{"$f":"IF(Valor_Partida=0,\"\",SUBSTITUTE(SUBSTITUTE(IFERROR(SUBSTITUTE(INDEX(misPartidas,ROW(),Valor_Partida+1),CHAR(160),CHAR(32))&\"\",\"\"),\"[\",\"\"),\"]\",\"\"))","v":""}]
[{"$f":"IF(Valor_Partida=0,\"\",SUBSTITUTE(SUBSTITUTE(IFERROR(SUBSTITUTE(INDEX(misPartidas,ROW(),Valor_Partida+1),CHAR(160),CHAR(32))&\"\",\"\"),\"[\",\"\"),\"]\",\"\"))","v":""}]
[{"$f":"IF(Valor_Partida=0,\"\",SUBSTITUTE(SUBSTITUTE(IFERROR(SUBSTITUTE(INDEX(misPartidas,ROW(),Valor_Partida+1),CHAR(160),CHAR(32))&\"\",\"\"),\"[\",\"\"),\"]\",\"\"))","v":""}]
[{"$f":"IF(Valor_Partida=0,\"\",SUBSTITUTE(SUBSTITUTE(IFERROR(SUBSTITUTE(INDEX(misPartidas,ROW(),Valor_Partida+1),CHAR(160),CHAR(32))&\"\",\"\"),\"[\",\"\"),\"]\",\"\"))","v":""}]
[{"$f":"IF(Valor_Partida=0,\"\",SUBSTITUTE(SUBSTITUTE(IFERROR(SUBSTITUTE(INDEX(misPartidas,ROW(),Valor_Partida+1),CHAR(160),CHAR(32))&\"\",\"\"),\"[\",\"\"),\"]\",\"\"))","v":""}]
[{"$f":"IF(Valor_Partida=0,\"\",SUBSTITUTE(SUBSTITUTE(IFERROR(SUBSTITUTE(INDEX(misPartidas,ROW(),Valor_Partida+1),CHAR(160),CHAR(32))&\"\",\"\"),\"[\",\"\"),\"]\",\"\"))","v":""}]
[{"$f":"IF(Valor_Partida=0,\"\",SUBSTITUTE(SUBSTITUTE(IFERROR(SUBSTITUTE(INDEX(misPartidas,ROW(),Valor_Partida+1),CHAR(160),CHAR(32))&\"\",\"\"),\"[\",\"\"),\"]\",\"\"))","v":""}]
[{"$f":"IF(Valor_Partida=0,\"\",SUBSTITUTE(SUBSTITUTE(IFERROR(SUBSTITUTE(INDEX(misPartidas,ROW(),Valor_Partida+1),CHAR(160),CHAR(32))&\"\",\"\"),\"[\",\"\"),\"]\",\"\"))","v":""}]
[{"$f":"IF(Valor_Partida=0,\"\",SUBSTITUTE(SUBSTITUTE(IFERROR(SUBSTITUTE(INDEX(misPartidas,ROW(),Valor_Partida+1),CHAR(160),CHAR(32))&\"\",\"\"),\"[\",\"\"),\"]\",\"\"))","v":""}]
[{"$f":"IF(Valor_Partida=0,\"\",SUBSTITUTE(SUBSTITUTE(IFERROR(SUBSTITUTE(INDEX(misPartidas,ROW(),Valor_Partida+1),CHAR(160),CHAR(32))&\"\",\"\"),\"[\",\"\"),\"]\",\"\"))","v":""}]
[{"$f":"IF(Valor_Partida=0,\"\",SUBSTITUTE(SUBSTITUTE(IFERROR(SUBSTITUTE(INDEX(misPartidas,ROW(),Valor_Partida+1),CHAR(160),CHAR(32))&\"\",\"\"),\"[\",\"\"),\"]\",\"\"))","v":""}]
[{"$f":"IF(Valor_Partida=0,\"\",SUBSTITUTE(SUBSTITUTE(IFERROR(SUBSTITUTE(INDEX(misPartidas,ROW(),Valor_Partida+1),CHAR(160),CHAR(32))&\"\",\"\"),\"[\",\"\"),\"]\",\"\"))","v":""}]
[{"$f":"IF(Valor_Partida=0,\"\",SUBSTITUTE(SUBSTITUTE(IFERROR(SUBSTITUTE(INDEX(misPartidas,ROW(),Valor_Partida+1),CHAR(160),CHAR(32))&\"\",\"\"),\"[\",\"\"),\"]\",\"\"))","v":""}]
[{"$f":"IF(Valor_Partida=0,\"\",SUBSTITUTE(SUBSTITUTE(IFERROR(SUBSTITUTE(INDEX(misPartidas,ROW(),Valor_Partida+1),CHAR(160),CHAR(32))&\"\",\"\"),\"[\",\"\"),\"]\",\"\"))","v":""}]
[{"$f":"IF(Valor_Partida=0,\"\",SUBSTITUTE(SUBSTITUTE(IFERROR(SUBSTITUTE(INDEX(misPartidas,ROW(),Valor_Partida+1),CHAR(160),CHAR(32))&\"\",\"\"),\"[\",\"\"),\"]\",\"\"))","v":""}]
[{"$f":"IF(Valor_Partida=0,\"\",SUBSTITUTE(SUBSTITUTE(IFERROR(SUBSTITUTE(INDEX(misPartidas,ROW(),Valor_Partida+1),CHAR(160),CHAR(32))&\"\",\"\"),\"[\",\"\"),\"]\",\"\"))","v":""}]
[{"$f":"IF(Valor_Partida=0,\"\",SUBSTITUTE(SUBSTITUTE(IFERROR(SUBSTITUTE(INDEX(misPartidas,ROW(),Valor_Partida+1),CHAR(160),CHAR(32))&\"\",\"\"),\"[\",\"\"),\"]\",\"\"))","v":""}]
[{"$f":"IF(Valor_Partida=0,\"\",SUBSTITUTE(SUBSTITUTE(IFERROR(SUBSTITUTE(INDEX(misPartidas,ROW(),Valor_Partida+1),CHAR(160),CHAR(32))&\"\",\"\"),\"[\",\"\"),\"]\",\"\"))","v":""}]
[{"$f":"IF(Valor_Partida=0,\"\",SUBSTITUTE(SUBSTITUTE(IFERROR(SUBSTITUTE(INDEX(misPartidas,ROW(),Valor_Partida+1),CHAR(160),CHAR(32))&\"\",\"\"),\"[\",\"\"),\"]\",\"\"))","v":""}]
[{"$f":"IF(Valor_Partida=0,\"\",SUBSTITUTE(SUBSTITUTE(IFERROR(SUBSTITUTE(INDEX(misPartidas,ROW(),Valor_Partida+1),CHAR(160),CHAR(32))&\"\",\"\"),\"[\",\"\"),\"]\",\"\"))","v":""}]
[{"$f":"IF(Valor_Partida=0,\"\",SUBSTITUTE(SUBSTITUTE(IFERROR(SUBSTITUTE(INDEX(misPartidas,ROW(),Valor_Partida+1),CHAR(160),CHAR(32))&\"\",\"\"),\"[\",\"\"),\"]\",\"\"))","v":""}]
[{"$f":"IF(Valor_Partida=0,\"\",SUBSTITUTE(SUBSTITUTE(IFERROR(SUBSTITUTE(INDEX(misPartidas,ROW(),Valor_Partida+1),CHAR(160),CHAR(32))&\"\",\"\"),\"[\",\"\"),\"]\",\"\"))","v":""}]
[{"$f":"IF(Valor_Partida=0,\"\",SUBSTITUTE(SUBSTITUTE(IFERROR(SUBSTITUTE(INDEX(misPartidas,ROW(),Valor_Partida+1),CHAR(160),CHAR(32))&\"\",\"\"),\"[\",\"\"),\"]\",\"\"))","v":""}]

{"sheet":"Numerical","index":8,"n_rows":110,"n_cols":13,"rows_kept":110,"cut":false,"hidden":true,"merged":[]}
[{"$f":"IF(Valor_Partida=0,\"\",IFERROR(SUBSTITUTE(INDEX(misPartidasNuméricas,ROW(),Valor_Partida+1),CHAR(160),CHAR(32))&\"\",\"\"))","v":""},{"$f":"Games!B1 & \"\"","v":"Mate del pastor"},{"$f":"Games!C1 & \"\"","v":"Mate del loco"},{"$f":"Games!D1 & \"\"","v":"Mate de Legal"},{"$f":"Games!E1 & \"\"","v":"Mate con celadas"},{"$f":"Games!F1 & \"\"","v":"La partida de la Ópera"},{"$f":"Games!G1 & \"\"","v":"La Siempreviva"},{"$f":"Games!H1 & \"\"","v":"La inmortal de Rubinstein"},{"$f":"Games!I1 & \"\"","v":"Mi partida favorita de todos los tiempos"},{"$f":"Games!J1 & \"\"","v":"Combinaciones contrarias a la intuición"},{"$f":"Games!K1 & \"\"","v":"Karpov-Kasparov en Linares"},{"$f":"Games!L1 & \"\"","v":"Carlsen-Niemann en Sinquefield Cup"},{"$f":"Games!M1 & \"\"","v":"C. YOO (2.563) - H. NIEMANN (2.699)"}]
[{"$f":"IF(Valor_Partida=0,\"\",SUBSTITUTE(SUBSTITUTE(IFERROR(SUBSTITUTE(INDEX(misPartidasNuméricas,ROW(),Valor_Partida+1),CHAR(160),CHAR(32))&\"\",\"\"),\"[\",\"\"),\"]\",\"\"))","v":""},{"$f":"Games!B2 & \"\"","v":"[Event \"Duque del ajedrez\"]"},{"$f":"Games!C2 & \"\"","v":"[Event \"\"]"},{"$f":"Games!D2 & \"\"","v":"[Event \"\"]"},{"$f":"Games!E2 & \"\"","v":"[Event \"\"]"},{"$f":"Games!F2 & \"\"","v":"[Event \"Paul Morphy - Duke Karl Count Isouard\"]"},{"$f":"Games!G2 & \"\"","v":"[Event \"Evans Gambit (C52)\"]"},{"$f":"Games!H2 & \"\"","v":"[Event \"Lodz1\"]"},{"$f":"Games!I2 & \"\"","v":"[Event \"It (cat.17)\"]"},{"$f":"Games!J2 & \"\"","v":"[Event \"75th Tata Steel GpA\"]"},{"$f":"Games!K2 & \"\"","v":"[Event \"Linares 11th (10)\"]"},{"$f":"Games!L2 & \"\"","v":"[Event \"Sinquefield Cup (chess24.com)\"]"},{"$f":"Games!M2 & \"\"","v":"[Event \"Campeonato EEUU (1). San Luis\"]"}]
[{"$f":"IF(Valor_Partida=0,\"\",SUBSTITUTE(SUBSTITUTE(IFERROR(SUBSTITUTE(INDEX(misPartidasNuméricas,ROW(),Valor_Partida+1),CHAR(160),CHAR(32))&\"\",\"\"),\"[\",\"\"),\"]\",\"\"))","v":""},{"$f":"Games!B3 & \"\"","v":"[Site \"Camino real\"]"},{"$f":"Games!C3 & \"\"","v":"[Site \"\"]"},{"$f":"Games!D3 & \"\"","v":"[Site \"París\"]"},{"$f":"Games!E3 & \"\"","v":"[Site \"Budapest\"]"},{"$f":"Games!F3 & \"\"","v":"[Site \"Paris (France)\"]"},{"$f":"Games!G3 & \"\"","v":"[Site \"Berlín\"]"},{"$f":"Games!H3 & \"\"","v":"[Site \"Lodz POL\"]"},{"$f":"Games!I3 & \"\"","v":"[Site \"Wijk aan Zee (Netherlands)\"]"},{"$f":"Games!J3 & \"\"","v":"[Site \"Wijk aan Zee NED\"]"},{"$f":"Games!K3 & \"\"","v":"[Site \"Linares\"]"},{"$f":"Games!L3 & \"\"","v":"[Site \" San Luis, Misuri, USA\"]"},{"$f":"Games!M3 & \"\"","v":"[White \"C. Yoo (2.563)\"]"}]
[{"$f":"IF(Valor_Partida=0,\"\",SUBSTITUTE(SUBSTITUTE(IFERROR(SUBSTITUTE(INDEX(misPartidasNuméricas,ROW(),Valor_Partida+1),CHAR(160),CHAR(32))&\"\",\"\"),\"[\",\"\"),\"]\",\"\"))","v":""},{"$f":"Games!B4 & \"\"","v":"[Date \"????.??.??\"]"},{"$f":"Games!C4 & \"\"","v":"[Date \"1959.??.??\"]"},{"$f":"Games!D4 & \"\"","v":"[Date \"1750.??.??\"]"},{"$f":"Games!E4 & \"\"","v":"[Date \"????.??.??\"]"},{"$f":"Games!F4 & \"\"","v":"[Date \"1858.??.??\"]"},{"$f":"Games!G4 & \"\"","v":"[Date \"1852.??.??\"]"},{"$f":"Games!H4 & \"\"","v":"[Date \"1907.??.??\"]"},{"$f":"Games!I4 & \"\"","v":"[Date \"1999.??.??\"]"},{"$f":"Games!J4 & \"\"","v":"[Date \"2013.01.15\"]"},{"$f":"Games!K4 & \"\"","v":"[Date \"1993.03.09\"]"},{"$f":"Games!L4 & \"\"","v":"[Date \"2022.09.04\"]"},{"$f":"Games!M4 & \"\"","v":"[Black \"H. Niemann (2.699)\"]"}]
[{"$f":"IF(Valor_Partida=0,\"\",SUBSTITUTE(SUBSTITUTE(IFERROR(SUBSTITUTE(INDEX(misPartidasNuméricas,ROW(),Valor_Partida+1),CHAR(160),CHAR(32))&\"\",\"\"),\"[\",\"\"),\"]\",\"\"))","v":""},{"$f":"Games!B5 & \"\"","v":"[Round \"?\"]"},{"$f":"Games!C5 & \"\"","v":"[Round \"?\"]"},{"$f":"Games!D5 & \"\"","v":"[Round \"?\"]"},{"$f":"Games!E5 & \"\"","v":"[Round \"?\"]"},{"$f":"Games!F5 & \"\"","v":"[Round \"?\"]"},{"$f":"Games!G5 & \"\"","v":"[Round \"?\"]"},{"$f":"Games!H5 & \"\"","v":"[Round \"?\"]"},{"$f":"Games!I5 & \"\"","v":"[Round \"?\"]"},{"$f":"Games!J5 & \"\"","v":"[Round \"?\"]"},{"$f":"Games!K5 & \"\"","v":"[Round \"?\"]"},{"$f":"Games!L5 & \"\"","v":"[Round \"3\"]"},{"$f":"Games!M5 & \"\"","v":"[Site \"\"]"}]
[{"$f":"IF(Valor_Partida=0,\"\",SUBSTITUTE(SUBSTITUTE(IFERROR(SUBSTITUTE(INDEX(misPartidasNuméricas,ROW(),Valor_Partida+1),CHAR(160),CHAR(32))&\"\",\"\"),\"[\",\"\"),\"]\",\"\"))","v":""},{"$f":"Games!B6 & \"\"","v":"[White \"Pastor de ovejas\"]"},{"$f":"Games!C6 & \"\"","v":"[White \"Masefield\"]"},{"$f":"Games!D6 & \"\"","v":"[White \"Kermur de Legal\"]"},{"$f":"Games!E6 & \"\"","v":"[White \"\"]"},{"$f":"Games!F6 & \"\"","v":"[White \"Paul Morphy\"]"},{"$f":"Games!G6 & \"\"","v":"[White \"Adolf Anderssen\"]"},{"$f":"Games!H6 & \"\"","v":"[White \"Rotlewi, Georg\"]"},{"$f":"Games!I6 & \"\"","v":"[White \"Garry Kasparov\"]"},{"$f":"Games!J6 & \"\"","v":"[White \"Levon Aronian\"]"},{"$f":"Games!K6 & \"\"","v":"[White \"Karpov, Anatoly\"]"},{"$f":"Games!L6 & \"\"","v":"[White \"Carlsen, Magnus\"]"},{"$f":"Games!M6 & \"\"","v":"[Round \"\"]"}]
[{"$f":"IF(Valor_Partida=0,\"\",SUBSTITUTE(SUBSTITUTE(IFERROR(SUBSTITUTE(INDEX(misPartidasNuméricas,ROW(),Valor_Partida+1),CHAR(160),CHAR(32))&\"\",\"\"),\"[\",\"\"),\"]\",\"\"))","v":""},{"$f":"Games!B7 & \"\"","v":"[Black \"Rey aventurero\"]"},{"$f":"Games!C7 & \"\"","v":"[Black \"Trinka\"]"},{"$f":"Games!D7 & \"\"","v":"[Black \"Saint Brie\"]"},{"$f":"Games!E7 & \"\"","v":"[Black \"\"]"},{"$f":"Games!F7 & \"\"","v":"[Black \"Duke of Brunswick and Count Isouard\"]"},{"$f":"Games!G7 & \"\"","v":"[Black \"Jean Dufresne\"]"},{"$f":"Games!H7 & \"\"","v":"[Black \"Rubinstein, Akiba\"]"},{"$f":"Games!I7 & \"\"","v":"[Black \"Veselin Topalov\"]"},{"$f":"Games!J7 & \"\"","v":"[Black \"Viswanathan Anand\"]"},{"$f":"Games!K7 & \"\"","v":"[Black \"Kasparov, Garry\"]"},{"$f":"Games!L7 & \"\"","v":"[Black \"Niemann, Hans Moke\"]"},{"$f":"Games!M7 & \"\"","v":"[Annotator \"\"]"}]
[{"$f":"IF(Valor_Partida=0,\"\",SUBSTITUTE(SUBSTITUTE(IFERROR(SUBSTITUTE(INDEX(misPartidasNuméricas,ROW(),Valor_Partida+1),CHAR(160),CHAR(32))&\"\",\"\"),\"[\",\"\"),\"]\",\"\"))","v":""},{"$f":"Games!B8 & \"\"","v":"[Result \"1-0\"]"},{"$f":"Games!C8 & \"\"","v":"[Result \"1-0\"]"},{"$f":"Games!D8 & \"\"","v":"[Result \"1-0\"]"},{"$f":"Games!E8 & \"\"","v":"[Result \"0-1\"]"},{"$f":"Games!F8 & \"\"","v":"[Result \"1-0\"]"},{"$f":"Games!G8 & \"\"","v":"[Result \"1-0\"]"},{"$f":"Games!H8 & \"\"","v":"[Result \"0-1\"]"},{"$f":"Games!I8 & \"\"","v":"[Result \"1-0\"]"},{"$f":"Games!J8 & \"\"","v":"[Result \"0-1\"]"},{"$f":"Games!K8 & \"\"","v":"[Result \"0-1\"]"},{"$f":"Games!L8 & \"\"","v":"[Result \"0-1\"]"},{"$f":"Games!M8 & \"\"","v":"[Result \"0-1\"]"}]
[{"$f":"IF(Valor_Partida=0,\"\",SUBSTITUTE(SUBSTITUTE(IFERROR(SUBSTITUTE(INDEX(misPartidasNuméricas,ROW(),Valor_Partida+1),CHAR(160),CHAR(32))&\"\",\"\"),\"[\",\"\"),\"]\",\"\"))","v":""},{"$f":"Games!B9 & \"\"","v":""},{"$f":"Games!C9 & \"\"","v":""},{"$f":"Games!D9 & \"\"","v":""},{"$f":"Games!E9 & \"\"","v":""},{"$f":"Games!F9 & \"\"","v":""},{"$f":"Games!G9 & \"\"","v":""},{"$f":"Games!H9 & \"\"","v":"[ECO \"D40q\"]"},{"$f":"Games!I9 & \"\"","v":""},{"$f":"Games!J9 & \"\"","v":""},{"$f":"Games!K9 & \"\"","v":""},{"$f":"Games!L9 & \"\"","v":""},{"$f":"Games!M9 & \"\"","v":"[Date \"2022.10.05\"]"}]
[{"$f":"IF(Valor_Partida=0,\"\",SUBSTITUTE(SUBSTITUTE(IFERROR(SUBSTITUTE(INDEX(misPartidasNuméricas,ROW(),Valor_Partida+1),CHAR(160),CHAR(32))&\"\",\"\"),\"[\",\"\"),\"]\",\"\"))","v":""},{"$f":"Games!B10 & \"\"","v":""},{"$f":"Games!C10 & \"\"","v":""},{"$f":"Games!D10 & \"\"","v":""},{"$f":"Games!E10 & \"\"","v":""},{"$f":"Games!F10 & \"\"","v":""},{"$f":"Games!G10 & \"\"","v":""},{"$f":"Games!H10 & \"\"","v":""},{"$f":"Games!I10 & \"\"","v":""},{"$f":"Games!J10 & \"\"","v":""},{"$f":"Games!K10 & \"\"","v":""},{"$f":"Games!L10 & \"\"","v":""},{"$f":"Games!M10 & \"\"","v":"[PlyCount \"108\"]"}]
[{"$f":"IF(Valor_Partida=0,\"\",IFERROR(INDEX(misPartidasNuméricas,ROW(),Valor_Partida+1)&\"\",\"\"))","v":""},"1. 5254 5755","1. 5254 7775","1. 5254 5755","1. 4244 7866","1. 5254 5755","1. 5254 5755","1. 4244 4745","1. 5254 4746","1. 4244 4745","1. 4244 7866","1. 4244 7866","1. 4244 7866"]
[{"$f":"IF(Valor_Partida=0,\"\",IFERROR(INDEX(misPartidasNuméricas,ROW(),Valor_Partida+1)&\"\",\"\"))","v":""},"2. 6134 2836","2. 2133 6765","2. 6134 4746","2. 3234 5755","2. 7163 4746","2. 7163 2836","2. 7163 5756","2. 4244 7866","2. 3234 3736","2. 3234 7776","2. 3234 5756","2. 2133 4745"]
[{"$f":"IF(Valor_Partida=0,\"\",IFERROR(INDEX(misPartidasNuméricas,ROW(),Valor_Partida+1)&\"\",\"\"))","v":""},"3. 4185 7866","3. 4185 ","3. 7163 3874","3. 4455 6674","3. 4244 3874","3. 6134 6835","3. 5253 3735","3. 2133 7776","3. 7163 7866","3. 2133 6877","3. 2133 6824","3. 3164 5756"]
[{"$f":"IF(Valor_Partida=0,\"\",IFERROR(INDEX(misPartidasNuméricas,ROW(),Valor_Partida+1)&\"\",\"\"))","v":""},"4. 8567 ",null,"4. 2133 7776","4. 7163 2836","4. 4455 7463","4. 2224 3524","4. 3234 2836","4. 3153 6877","4. 2133 5756","4. 5254 4746","4. 7273 5878","4. 3325 2816"]
[{"$f":"IF(Valor_Partida=0,\"\",IFERROR(INDEX(misPartidasNuméricas,ROW(),Valor_Partida+1)&\"\",\"\"))","v":""},null,null,"5. 6355 7441","5. 3164 6824","5. 4163 4655","5. 3233 2415","5. 2133 7866","5. 4142 3736","5. 5253 2847","5. 6263 5878","5. 6172 4745","5. 5253 6857"]
[{"$f":"IF(Valor_Partida=0,\"\",IFERROR(INDEX(misPartidasNuméricas,ROW(),Valor_Partida+1)&\"\",\"\"))","v":""},null,null,"6. 3467 5857","6. 2142 4857","6. 6134 7866","6. 4244 5544","6. 4435 6835","6. 6263 2725","6. 6143 4534","6. 3153 5755","6. 1213 2433","6. 7163 5878"]
[{"$f":"IF(Valor_Partida=0,\"\",IFERROR(INDEX(misPartidasNuméricas,ROW(),Valor_Partida+1)&\"\",\"\"))","v":""},null,null,"7. 3345 ","7. 1213 7455","7. 6323 4857","7. 5171 4443","7. 1213 1716","7. 7152 2847","7. 4334 2725","7. 7152 3736","7. 2233 4534","7. 6152 6685"]
[{"$f":"IF(Valor_Partida=0,\"\",IFERROR(INDEX(misPartidasNuméricas,ROW(),Valor_Partida+1)&\"\",\"\"))","v":""},null,null,null,"8. 1324 5543","8. 2133 3736","8. 4123 4866","8. 2224 3546","8. 5386 7786","8. 3443 6846","8. 4142 2847","8. 7163 3735","8. 6455 6766"]
[{"$f":"IF(Valor_Partida=0,\"\",IFERROR(INDEX(misPartidasNuméricas,ROW(),Valor_Partida+1)&\"\",\"\"))","v":""},null,null,null,null,"9. 3175 2725","9. 5455 6676","9. 3122 5878","9. 4286 3827","9. 5171 5878","9. 1141 1716","9. 5171 3544","9. 5573 3736"]
[{"$f":"IF(Valor_Partida=0,\"\",IFERROR(INDEX(misPartidasNuméricas,ROW(),Valor_Partida+1)&\"\",\"\"))","v":""},null,null,null,null,"10. 3325 3625","10. 6151 7857","10. 4142 4857","10. 1213 5755","10. 4132 3827","10. 4455 4755","10. 4144 2836","10. 2533 3635"]
[{"$f":"IF(Valor_Partida=0,\"\",IFERROR(INDEX(misPartidasNuméricas,ROW(),Valor_Partida+1)&\"\",\"\"))","v":""},null,null,null,null,"11. 3425 2847","11. 3113 2725","11. 6143 4534","11. 5131 4857","11. 1213 1838","11. 2223 2725","11. 4434 5655","11. 5171 8573"]
[{"$f":"IF(Valor_Partida=0,\"\",IFERROR(INDEX(misPartidasNuméricas,ROW(),Valor_Partida+1)&\"\",\"\"))","v":""},null,null,null,null,"12. 5131 1848","12. 2325 1828","12. 4334 2725","12. 3121 1716","12. 6375 3635","12. 3425 1625","12. 3175 8786","12. 8273 3534"]
[{"$f":"IF(Valor_Partida=0,\"\",IFERROR(INDEX(misPartidasNuméricas,ROW(),Valor_Partida+1)&\"\",\"\"))","v":""},null,null,null,null,"13. 4147 4847","13. 2514 1526","13. 3443 6848","13. 5231 5838","13. 7587 6674","13. 4246 6647","13. 6141 3856","13. 5354 5724"]
[{"$f":"IF(Valor_Partida=0,\"\",IFERROR(INDEX(misPartidasNuméricas,ROW(),Valor_Partida+1)&\"\",\"\"))","v":""},null,null,null,null,"14. 8141 5756","14. 2142 3827","14. 4252 3827","14. 3123 5544","14. 6264 3544","14. 6364 2524","14. 4148 5634","14. 5445 5645"]
[{"$f":"IF(Valor_Partida=0,\"\",IFERROR(INDEX(misPartidasNuméricas,ROW(),Valor_Partida+1)&\"\",\"\"))","v":""},null,null,null,null,"15. 2547 6647","15. 4254 7665","15. 5171 3655","15. 4144 3635","15. 5344 4635","15. 3321 5574","15. 4818 6818","15. 3321 1637"]
[{"$f":"IF(Valor_Partida=0,\"\",IFERROR(INDEX(misPartidasNuméricas,ROW(),Valor_Partida+1)&\"\",\"\"))","v":""},null,null,null,null,"16. 2328 4728","16. 3443 6585","16. 6355 4655","16. 4441 4726","16. 4352 4755","16. 5344 7744","16. 7566 7766","16. 3233 2446"]
[{"$f":"IF(Valor_Partida=0,\"\",IFERROR(INDEX(misPartidasNuméricas,ROW(),Valor_Partida+1)&\"\",\"\"))","v":""},null,null,null,null,"17. 4148 ","17. 5466 7766","17. 6264 5537","17. 7273 3828","17. 5274 3544","17. 4644 1812","17. 7161 1848","17. 2142 2725"]
[{"$f":"IF(Valor_Partida=0,\"\",IFERROR(INDEX(misPartidasNuméricas,ROW(),Valor_Partida+1)&\"\",\"\"))","v":""},null,null,null,null,null,"18. 5566 8878","18. 5354 1838","18. 2315 2718","18. 7181 5574","18. 8283 3635","18. 6151 3615","18. 6351 3856"]
[{"$f":"IF(Valor_Partida=0,\"\",IFERROR(INDEX(misPartidasNuméricas,ROW(),Valor_Partida+1)&\"\",\"\"))","v":""},null,null,null,null,null,"19. 1141 8563","19. 5455 3726","19. 6183 4645","19. 8768 6765","19. 4471 7466","19. 1141 4838","19. 5132 4847"]
[{"$f":"IF(Valor_Partida=0,\"\",IFERROR(INDEX(misPartidasNuméricas,ROW(),Valor_Partida+1)&\"\",\"\"))","v":""},null,null,null,null,null,"20. 5157 3657","20. 7181 6674","20. 8664 2817","20. 6876 4866","20. 5455 6654","20. 6342 3456","20. 6151 1715"]
[{"$f":"IF(Valor_Partida=0,\"\",IFERROR(INDEX(misPartidasNuméricas,ROW(),Valor_Partida+1)&\"\",\"\"))","v":""},null,null,null,null,null,"21. 1447 5847","21. 4354 5784","21. 8151 4544","21. 8283 6676","21. 8384 3534","21. 3334 5634","21. 1213 7776"]
[{"$f":"IF(Valor_Partida=0,\"\",IFERROR(INDEX(misPartidasNuméricas,ROW(),Valor_Partida+1)&\"\",\"\"))","v":""},null,null,null,null,null,"22. 4365 4758","22. 7273 3833","22. 3345 2645","22. 3252 7685","22. 5231 3433","22. 4234 3834","22. 4261 8785"]
[{"$f":"IF(Valor_Partida=0,\"\",IFERROR(INDEX(misPartidasNuméricas,ROW(),Valor_Partida+1)&\"\",\"\"))","v":""},null,null,null,null,null,"23. 6547 5868","23. 7384 4842","23. 5445 5746","23. 5243 4453","23. 3112 3332","23. 4148 7877","23. 4142 7877"]
[{"$f":"IF(Valor_Partida=0,\"\",IFERROR(INDEX(misPartidasNuméricas,ROW(),Valor_Partida+1)&\"\",\"\"))","v":""},null,null,null,null,null,"24. 1357 ","24. 5242 2754","24. 4144 3544",null,"24. 7144 32412","24. 7245 3437","24. 6264 6888"]
[{"$f":"IF(Valor_Partida=0,\"\",IFERROR(INDEX(misPartidasNuméricas,ROW(),Valor_Partida+1)&\"\",\"\"))","v":""},null,null,null,null,null,null,"25. 4272 3383","25. 5157 1726",null,"25. 5141 4735","25. 4818 1716","25. 5263 6665"]
[{"$f":"IF(Valor_Partida=0,\"\",IFERROR(INDEX(misPartidasNuméricas,ROW(),Valor_Partida+1)&\"\",\"\"))","v":""},null,null,null,null,null,null,null,"26. 6444 2615",null,"26. 4448 6848","26. 1828 6665","26. 5152 3758"]
[{"$f":"IF(Valor_Partida=0,\"\",IFERROR(INDEX(misPartidasNuméricas,ROW(),Valor_Partida+1)&\"\",\"\"))","v":""},null,null,null,null,null,null,null,"27. 2224 1514",null,"27. 4132 5462","27. 2858 5554","27. 1151 5667"]
[{"$f":"IF(Valor_Partida=0,\"\",IFERROR(INDEX(misPartidasNuméricas,ROW(),Valor_Partida+1)&\"\",\"\"))","v":""},null,null,null,null,null,null,null,"28. 4433 4645",null,null,"28. 7374 3735","28. 5255 5866"]
[{"$f":"IF(Valor_Partida=0,\"\",IFERROR(INDEX(misPartidasNuméricas,ROW(),Valor_Partida+1)&\"\",\"\"))","v":""},null,null,null,null,null,null,null,"29. 5717 1827",null,null,"29. 4512 1534","29. 6153 8584"]
[{"$f":"IF(Valor_Partida=0,\"\",IFERROR(INDEX(misPartidasNuméricas,ROW(),Valor_Partida+1)&\"\",\"\"))","v":""},null,null,null,null,null,null,null,"30. 1727 4534",null,null,"30. 1314 3446","30. 4262 8483"]
[{"$f":"IF(Valor_Partida=0,\"\",IFERROR(INDEX(misPartidasNuméricas,ROW(),Valor_Partida+1)&\"\",\"\"))","v":""},null,null,null,null,null,null,null,"31. 3366 1413",null,null,"31. 5857 6574","31. 5152 1848"]
[{"$f":"IF(Valor_Partida=0,\"\",IFERROR(INDEX(misPartidasNuméricas,ROW(),Valor_Partida+1)&\"\",\"\"))","v":""},null,null,null,null,null,null,null,"32. 6616 1324",null,null,"32. 5747 5453","32. 6251 6654"]
[{"$f":"IF(Valor_Partida=0,\"\",IFERROR(INDEX(misPartidasNuméricas,ROW(),Valor_Partida+1)&\"\",\"\"))","v":""},null,null,null,null,null,null,null,"33. 3233 2433",null,null,"33. 6253 4654","33. 7374 4655"]
[{"$f":"IF(Valor_Partida=0,\"\",IFERROR(INDEX(misPartidasNuméricas,ROW(),Valor_Partida+1)&\"\",\"\"))","v":""},null,null,null,null,null,null,null,"34. 1611 3342",null,null,"34. 5161 3531","34. 4455 8372"]
[{"$f":"IF(Valor_Partida=0,\"\",IFERROR(INDEX(misPartidasNuméricas,ROW(),Valor_Partida+1)&\"\",\"\"))","v":""},null,null,null,null,null,null,null,"35. 1122 4241",null,null,"35. 6172 3132","35. 5272 8883"]
[{"$f":"IF(Valor_Partida=0,\"\",IFERROR(INDEX(misPartidasNuméricas,ROW(),Valor_Partida+1)&\"\",\"\"))","v":""},null,null,null,null,null,null,null,"36. 8361 4842",null,null,"36. 1267 3252","36. 5556 6756"]
[{"$f":"IF(Valor_Partida=0,\"\",IFERROR(INDEX(misPartidasNuméricas,ROW(),Valor_Partida+1)&\"\",\"\"))","v":""},null,null,null,null,null,null,null,"37. 2747 4247",null,null,"37. 7271 5251","37. 7465 5665"]
[{"$f":"IF(Valor_Partida=0,\"\",IFERROR(INDEX(misPartidasNuméricas,ROW(),Valor_Partida+1)&\"\",\"\"))","v":""},null,null,null,null,null,null,null,"38. 6134 2534",null,null,"38. 7172 5152","38. 5365 4765"]
[{"$f":"IF(Valor_Partida=0,\"\",IFERROR(INDEX(misPartidasNuméricas,ROW(),Valor_Partida+1)&\"\",\"\"))","v":""},null,null,null,null,null,null,null,"39. 2288 4743",null,null,"39. 7271 7766","39. 3244 6566"]
[{"$f":"IF(Valor_Partida=0,\"\",IFERROR(INDEX(misPartidasNuméricas,ROW(),Valor_Partida+1)&\"\",\"\"))","v":""},null,null,null,null,null,null,null,"40. 8818 3433",null,null,"40. 6745 5242","40. 6354 4858"]
[{"$f":"IF(Valor_Partida=0,\"\",IFERROR(INDEX(misPartidasNuméricas,ROW(),Valor_Partida+1)&\"\",\"\"))","v":""},null,null,null,null,null,null,null,"41. 1814 4151",null,null,"41. 4767 6676","41. 6465 5854"]
[{"$f":"IF(Valor_Partida=0,\"\",IFERROR(INDEX(misPartidasNuméricas,ROW(),Valor_Partida+1)&\"\",\"\"))","v":""},null,null,null,null,null,null,null,"42. 6364 6765",null,null,"42. 6747 5475","42. 5162 5484"]
[{"$f":"IF(Valor_Partida=0,\"\",IFERROR(INDEX(misPartidasNuméricas,ROW(),Valor_Partida+1)&\"\",\"\"))","v":""},null,null,null,null,null,null,null,"43. 2131 4342",null,null,"43. 4567 7665","43. 7276 6676"]
[{"$f":"IF(Valor_Partida=0,\"\",IFERROR(INDEX(misPartidasNuméricas,ROW(),Valor_Partida+1)&\"\",\"\"))","v":""},null,null,null,null,null,null,null,"44. 1417 ",null,null,"44. 4742 7563","44. 6576 8381"]
[{"$f":"IF(Valor_Partida=0,\"\",IFERROR(INDEX(misPartidasNuméricas,ROW(),Valor_Partida+1)&\"\",\"\"))","v":""},null,null,null,null,null,null,null,null,null,null,"45. 7172 6342","45. 7172 8482"]
[{"$f":"IF(Valor_Partida=0,\"\",IFERROR(INDEX(misPartidasNuméricas,ROW(),Valor_Partida+1)&\"\",\"\"))","v":""},null,null,null,null,null,null,null,null,null,null,"46. 1415 6555","46. 7273 8262"]
[{"$f":"IF(Valor_Partida=0,\"\",IFERROR(INDEX(misPartidasNuméricas,ROW(),Valor_Partida+1)&\"\",\"\"))","v":""},null,null,null,null,null,null,null,null,null,null,"47. 7273 4261","47. 7362 8182"]
[{"$f":"IF(Valor_Partida=0,\"\",IFERROR(INDEX(misPartidasNuméricas,ROW(),Valor_Partida+1)&\"\",\"\"))","v":""},null,null,null,null,null,null,null,null,null,null,"48. 7362 6182","48. 6253 8222"]
[{"$f":"IF(Valor_Partida=0,\"\",IFERROR(INDEX(misPartidasNuméricas,ROW(),Valor_Partida+1)&\"\",\"\"))","v":""},null,null,null,null,null,null,null,null,null,null,"49. 5354 5554","49. 5364 7776"]
[{"$f":"IF(Valor_Partida=0,\"\",IFERROR(INDEX(misPartidasNuméricas,ROW(),Valor_Partida+1)&\"\",\"\"))","v":""},null,null,null,null,null,null,null,null,null,null,"50. 6756 5464","50. 6455 2524"]
[{"$f":"IF(Valor_Partida=0,\"\",IFERROR(INDEX(misPartidasNuméricas,ROW(),Valor_Partida+1)&\"\",\"\"))","v":""},null,null,null,null,null,null,null,null,null,null,"51. 5638 8263","51. 1324 1524"]
[{"$f":"IF(Valor_Partida=0,\"\",IFERROR(INDEX(misPartidasNuméricas,ROW(),Valor_Partida+1)&\"\",\"\"))","v":""},null,null,null,null,null,null,null,null,null,null,"52. 3827 6355","52. 3324 3433"]
[{"$f":"IF(Valor_Partida=0,\"\",IFERROR(INDEX(misPartidasNuméricas,ROW(),Valor_Partida+1)&\"\",\"\"))","v":""},null,null,null,null,null,null,null,null,null,null,"53. 2716 5536","53. 2425 2225"]
[{"$f":"IF(Valor_Partida=0,\"\",IFERROR(INDEX(misPartidasNuméricas,ROW(),Valor_Partida+1)&\"\",\"\"))","v":""},null,null,null,null,null,null,null,null,null,null,"54. 1627 3615","54. 4425 3332"]
[{"$f":"IF(Valor_Partida=0,\"\",IFERROR(INDEX(misPartidasNuméricas,ROW(),Valor_Partida+1)&\"\",\"\"))","v":""},null,null,null,null,null,null,null,null,null,null,"55. 2745 8685"]
[{"$f":"IF(Valor_Partida=0,\"\",IFERROR(INDEX(misPartidasNuméricas,ROW(),Valor_Partida+1)&\"\",\"\"))","v":""},null,null,null,null,null,null,null,null,null,null,"56. 4567 8584"]
[{"$f":"IF(Valor_Partida=0,\"\",IFERROR(INDEX(misPartidasNuméricas,ROW(),Valor_Partida+1)&\"\",\"\"))","v":""},null,null,null,null,null,null,null,null,null,null,"57. 6745 6455"]
[{"$f":"IF(Valor_Partida=0,\"\",IFERROR(INDEX(misPartidasNuméricas,ROW(),Valor_Partida+1)&\"\",\"\"))","v":""}]
[{"$f":"IF(Valor_Partida=0,\"\",IFERROR(INDEX(misPartidasNuméricas,ROW(),Valor_Partida+1)&\"\",\"\"))","v":""}]
[{"$f":"IF(Valor_Partida=0,\"\",IFERROR(INDEX(misPartidasNuméricas,ROW(),Valor_Partida+1)&\"\",\"\"))","v":""}]
[{"$f":"IF(Valor_Partida=0,\"\",IFERROR(INDEX(misPartidasNuméricas,ROW(),Valor_Partida+1)&\"\",\"\"))","v":""}]
[{"$f":"IF(Valor_Partida=0,\"\",IFERROR(INDEX(misPartidasNuméricas,ROW(),Valor_Partida+1)&\"\",\"\"))","v":""}]
[{"$f":"IF(Valor_Partida=0,\"\",IFERROR(INDEX(misPartidasNuméricas,ROW(),Valor_Partida+1)&\"\",\"\"))","v":""}]
[{"$f":"IF(Valor_Partida=0,\"\",IFERROR(INDEX(misPartidasNuméricas,ROW(),Valor_Partida+1)&\"\",\"\"))","v":""}]
[{"$f":"IF(Valor_Partida=0,\"\",IFERROR(INDEX(misPartidasNuméricas,ROW(),Valor_Partida+1)&\"\",\"\"))","v":""}]
[{"$f":"IF(Valor_Partida=0,\"\",IFERROR(INDEX(misPartidasNuméricas,ROW(),Valor_Partida+1)&\"\",\"\"))","v":""}]
[{"$f":"IF(Valor_Partida=0,\"\",IFERROR(INDEX(misPartidasNuméricas,ROW(),Valor_Partida+1)&\"\",\"\"))","v":""}]
[{"$f":"IF(Valor_Partida=0,\"\",IFERROR(INDEX(misPartidasNuméricas,ROW(),Valor_Partida+1)&\"\",\"\"))","v":""}]
[{"$f":"IF(Valor_Partida=0,\"\",IFERROR(INDEX(misPartidasNuméricas,ROW(),Valor_Partida+1)&\"\",\"\"))","v":""}]
[{"$f":"IF(Valor_Partida=0,\"\",IFERROR(INDEX(misPartidasNuméricas,ROW(),Valor_Partida+1)&\"\",\"\"))","v":""}]
[{"$f":"IF(Valor_Partida=0,\"\",IFERROR(INDEX(misPartidasNuméricas,ROW(),Valor_Partida+1)&\"\",\"\"))","v":""}]
[{"$f":"IF(Valor_Partida=0,\"\",IFERROR(INDEX(misPartidasNuméricas,ROW(),Valor_Partida+1)&\"\",\"\"))","v":""}]
[{"$f":"IF(Valor_Partida=0,\"\",IFERROR(INDEX(misPartidasNuméricas,ROW(),Valor_Partida+1)&\"\",\"\"))","v":""}]
[{"$f":"IF(Valor_Partida=0,\"\",IFERROR(INDEX(misPartidasNuméricas,ROW(),Valor_Partida+1)&\"\",\"\"))","v":""}]
[{"$f":"IF(Valor_Partida=0,\"\",IFERROR(INDEX(misPartidasNuméricas,ROW(),Valor_Partida+1)&\"\",\"\"))","v":""}]
[{"$f":"IF(Valor_Partida=0,\"\",IFERROR(INDEX(misPartidasNuméricas,ROW(),Valor_Partida+1)&\"\",\"\"))","v":""}]
[{"$f":"IF(Valor_Partida=0,\"\",IFERROR(INDEX(misPartidasNuméricas,ROW(),Valor_Partida+1)&\"\",\"\"))","v":""}]
[{"$f":"IF(Valor_Partida=0,\"\",IFERROR(INDEX(misPartidasNuméricas,ROW(),Valor_Partida+1)&\"\",\"\"))","v":""}]
[{"$f":"IF(Valor_Partida=0,\"\",IFERROR(INDEX(misPartidasNuméricas,ROW(),Valor_Partida+1)&\"\",\"\"))","v":""}]
[{"$f":"IF(Valor_Partida=0,\"\",IFERROR(INDEX(misPartidasNuméricas,ROW(),Valor_Partida+1)&\"\",\"\"))","v":""}]
[{"$f":"IF(Valor_Partida=0,\"\",IFERROR(INDEX(misPartidasNuméricas,ROW(),Valor_Partida+1)&\"\",\"\"))","v":""}]
[{"$f":"IF(Valor_Partida=0,\"\",IFERROR(INDEX(misPartidasNuméricas,ROW(),Valor_Partida+1)&\"\",\"\"))","v":""}]
[{"$f":"IF(Valor_Partida=0,\"\",IFERROR(INDEX(misPartidasNuméricas,ROW(),Valor_Partida+1)&\"\",\"\"))","v":""}]
[{"$f":"IF(Valor_Partida=0,\"\",IFERROR(INDEX(misPartidasNuméricas,ROW(),Valor_Partida+1)&\"\",\"\"))","v":""}]
[{"$f":"IF(Valor_Partida=0,\"\",IFERROR(INDEX(misPartidasNuméricas,ROW(),Valor_Partida+1)&\"\",\"\"))","v":""}]
[{"$f":"IF(Valor_Partida=0,\"\",IFERROR(INDEX(misPartidasNuméricas,ROW(),Valor_Partida+1)&\"\",\"\"))","v":""}]
[{"$f":"IF(Valor_Partida=0,\"\",IFERROR(INDEX(misPartidasNuméricas,ROW(),Valor_Partida+1)&\"\",\"\"))","v":""}]
[{"$f":"IF(Valor_Partida=0,\"\",IFERROR(INDEX(misPartidasNuméricas,ROW(),Valor_Partida+1)&\"\",\"\"))","v":""}]
[{"$f":"IF(Valor_Partida=0,\"\",IFERROR(INDEX(misPartidasNuméricas,ROW(),Valor_Partida+1)&\"\",\"\"))","v":""}]
[{"$f":"IF(Valor_Partida=0,\"\",IFERROR(INDEX(misPartidasNuméricas,ROW(),Valor_Partida+1)&\"\",\"\"))","v":""}]
[{"$f":"IF(Valor_Partida=0,\"\",IFERROR(INDEX(misPartidasNuméricas,ROW(),Valor_Partida+1)&\"\",\"\"))","v":""}]
[{"$f":"IF(Valor_Partida=0,\"\",IFERROR(INDEX(misPartidasNuméricas,ROW(),Valor_Partida+1)&\"\",\"\"))","v":""}]
[{"$f":"IF(Valor_Partida=0,\"\",IFERROR(INDEX(misPartidasNuméricas,ROW(),Valor_Partida+1)&\"\",\"\"))","v":""}]
[{"$f":"IF(Valor_Partida=0,\"\",IFERROR(INDEX(misPartidasNuméricas,ROW(),Valor_Partida+1)&\"\",\"\"))","v":""}]
[{"$f":"IF(Valor_Partida=0,\"\",IFERROR(INDEX(misPartidasNuméricas,ROW(),Valor_Partida+1)&\"\",\"\"))","v":""}]
[{"$f":"IF(Valor_Partida=0,\"\",IFERROR(INDEX(misPartidasNuméricas,ROW(),Valor_Partida+1)&\"\",\"\"))","v":""}]
[{"$f":"IF(Valor_Partida=0,\"\",IFERROR(INDEX(misPartidasNuméricas,ROW(),Valor_Partida+1)&\"\",\"\"))","v":""}]
[{"$f":"IF(Valor_Partida=0,\"\",IFERROR(INDEX(misPartidasNuméricas,ROW(),Valor_Partida+1)&\"\",\"\"))","v":""}]
[{"$f":"IF(Valor_Partida=0,\"\",IFERROR(INDEX(misPartidasNuméricas,ROW(),Valor_Partida+1)&\"\",\"\"))","v":""}]
[{"$f":"IF(Valor_Partida=0,\"\",IFERROR(INDEX(misPartidasNuméricas,ROW(),Valor_Partida+1)&\"\",\"\"))","v":""}]